Workbook

Sheet LDC Info
Z3: 1 | AA3: Alectra Utilities Corporation-Brampton Rate Zone
Z4: 2 | AA4: Alectra Utilities Corporation-Enersource Rate Zone
Z5: 3 | AA5: Alectra Utilities Corporation-Horizon Utilities Rate Zone
Z6: 4 | AA6: Alectra Utilities Corporation-PowerStream Rate Zone
Z7: 5 | AA7: Alectra Utilities Corporation-Guelph Rate Zone
Z8: 6 | AA8: Algoma Power Inc.
Z9: 7 | AA9: Atikokan Hydro Inc.
Z10: 8 | AA10: Bluewater Power Distribution Corporation
Z11: 9 | AA11: Brantford Power Inc.
Z12: 10 | AA12: Burlington Hydro Inc.
Z13: 11 | AA13: Canadian Niagara Power Inc.
D14: Utility Name | Z14: 12 | AA14: Centre Wellington Hydro Ltd.
Z15: 13 | AA15: Chapleau Public Utilities Corporation
D16: Assigned EB Number | Z16: 14 | AA16: Cooperative Hydro Embrun Inc.
Z17: 15 | AA17: E.L.K. Energy Inc.
D18: Name of Contact and Title | Z18: 16 | AA18: Elexicon Energy Inc.-Whitby Rate Zone
Z19: 17 | AA19: Elexicon Energy Inc.-Veridian Rate Zone
D20: Phone Number | Z20: 18 | AA20: Energy+ Inc.
Z21: 19 | AA21: Entegrus Powerlines Inc.-For Entegrus-Main Rate Zone
D22: Email Address | Z22: 20 | AA22: Entegrus Powerlines Inc.-For Former St. Thomas Energy Rate Zone
Z23: 21 | AA23: ENWIN Utilities Ltd.
D24: Test Year | E24: 2021 | Z24: 22 | AA24: EPCOR Electricity Distribution Ontario Inc.
Z25: 23 | AA25: ERTH Power Corporation - ERTH Power Main Rate Zone
D26: Bridge Year | E26: =IF(ISBLANK(E24), "", E24-1) -> 2020 | Z26: 24 | AA26: ERTH POWER CORPORATION – GODERICH RATE ZONE
Z27: 25 | AA27: Essex Powerlines Corporation
D28: Last Rebasing Year | E28: 2014 | Z28: 26 | AA28: Festival Hydro Inc.
Z29: 27 | AA29: Fort Frances Power Corporation
A30: Identify the accounting standard used for the test year | Z30: 28 | AA30: Greater Sudbury Hydro Inc.
Z31: 29 | AA31: Grimsby Power Incorporated
Z32: 30 | AA32: Halton Hills Hydro Inc.
A33: ="Did "& E14 &" update its depreciation and capitalization policies?" -> Did update its depreciation and capitalization policies? | Z33: 31 | AA33: Hearst Power Distribution Co. Ltd.
Z34: 32 | AA34: Hydro 2000 Inc.
Z35: 33 | AA35: Hydro Hawkesbury Inc.
A36: If "yes" to cell E34, were the changes in policies reflected in a prior rebasing application? | Z36: 34 | AA36: Hydro One Networks Inc.
Z37: 35 | AA37: Hydro One Networks Inc.-Former Haldimand County Hydro Inc. Service Area
Z38: 36 | AA38: Hydro One Networks Inc.-Former Norfolk Power Distribution Inc. Service Area
A39: ="When did "&E14&" update its actual depreciation and capitalization policies?" -> When did update its actual depreciation and capitalization policies? | Z39: 37 | AA39: Hydro One Networks Inc.-Former Woodstock Hydro Services Inc. Service Area
E40: 2001-01-01 | Z40: 38 | AA40: Hydro One Remote Communites Inc.
Z41: 39 | AA41: Hydro Ottawa Limited
A42: Identify the year the applicant adopted IFRS for financial reporting purposes | Z42: 40 | AA42: InnPower Corporation
Z43: 41 | AA43: Kingston Hydro Corporation
Z44: 42 | AA44: Kitchener-Wilmot Hydro Inc.
Z45: 43 | AA45: Lakefront Utilities Inc.
A46: ="Is " & E14 & " applying for cost recovery for the test and/or future year(s) for Green Energy initiatives?" -> Is applying for cost recovery for the test and/or future year(s) for Green Energy initiatives? | Z46: 44 | AA46: Lakeland Power Distribution Ltd.
Z47: 45 | AA47: Lakeland Power Distribution Ltd.-Parry Sound Service Area
Z48: 46 | AA48: London Hydro Inc.
A49: ="Is " & E14 & " an embedded distributor?" -> Is an embedded distributor? | Z49: 47 | AA49: Milton Hydro Distribution Inc.
Z50: 48 | AA50: Newmarket-Tay Power Distribution Ltd.-For Former Midland Power Utility Rate Zone
Z51: 49 | AA51: Newmarket-Tay Power Distribution Ltd.-For Newmarket-Tay Power Main Rate Zone
B52: Notes | Z52: 50 | AA52: Niagara Peninsula Energy Inc.
Z53: 51 | AA53: Niagara-on-the-Lake Hydro Inc.
C54: Pale green cells represent input cells. | Z54: 52 | AA54: North Bay Hydro Distribution Limited - Espanola service territory
Z55: 53 | AA55: North Bay Hydro Distribution Limited - North Bay service territory
C56: Pale blue cells represent drop-down lists. The applicant should select the appropriate item from the drop-down list. | Z56: 54 | AA56: Northern Ontario Wires Inc.
Z57: 55 | AA57: Oakville Hydro Electricity Distribution Inc.
C58: White cells contain fixed values, automatically generated values or formulae. | N58: =IF(LEN($G58)>1, (SUMPRODUCT(--($C$81:$C$1003=$C58),--($A$81:$A$1003=$D58), --($B$81:$B$1003=$B58&"_TOTAL"), $L$1:$L$889)), "") ->  | O58: =IF(LEN($G58)>1, (SUMPRODUCT(--($C$81:$C$1003=$C58),--($A$81:$A$1003=$D58), --($B$81:$B$1003=$B58&"_TOTAL"), $M$1:$M$889)), "") ->  | Z58: 56 | AA58: Orangeville Hydro Limited
Z59: 57 | AA59: Orillia Power Distribution Corporation
Z60: 58 | AA60: Oshawa PUC Networks Inc.
Z61: 59 | AA61: Ottawa River Power Corporation
Z62: 60 | AA62: Peterborough Distribution Incorporated
Z63: 61 | AA63: PUC Distribution Inc.
Z64: 62 | AA64: Renfrew Hydro Inc.
Z65: 63 | AA65: Rideau St. Lawrence Distribution Inc.
Z66: 64 | AA66: Sioux Lookout Hydro Inc.
Z67: 65 | AA67: Synergy North Corporation-Kenora Rate Zone
Z68: 66 | AA68: Synergy North Corporation-Thunder Bay Rate Zone
Z69: 67 | AA69: Tillsonburg Hydro Inc.
Z70: 68 | AA70: Toronto Hydro-Electric System Limited
Z71: 69 | AA71: Wasaga Distribution Inc.
Z72: 70 | AA72: Waterloo North Hydro Inc.
Z73: 71 | AA73: Welland Hydro-Electric System Corp.
Z74: 72 | AA74: Wellington North Power Inc.
Z75: 73 | AA75: Westario Power Inc.

Sheet Index
A15: 1 | B15: LDC Information Sheet | E15: 20 | F15: App.2-G: Service Reliability Indicators
A16: 2 | B16: Index | E16: 21 | F16: App.2-H: Other Operating Revenue (TO BE UPDATED AT THE DRAFT RATE ORDER STAGE)
A17: 3 | B17: Cost of Service Application Flowchart | E17: 22 | F17: App.2-I: Load Forecast CDM Adjustment Workform
A18: 4 | B18: List of Key References | E18: 23 | F18: App.2-IA: Load Forecast Data Instructions
A19: 5 | B19: App.2-A: List of Requested Approvals | E19: 24 | F19: App.2-IB: Actual and Forecast Load and Customer Data
A20: 6 | B20: App.2-AA: Capital Projects Table | E20: 25 | F20: App.2-JA: OM&A Summary Analysis (TO BE UPDATED AT THE DRAFT RATE ORDER STAGE)
A21: 7 | B21: App.2-AB: Capital Expenditures (TO BE UPDATED AT THE DRAFT RATE ORDER STAGE) | E21: 26 | F21: App.2-JB: Recoverable OM&A Cost Driver Table
A22: 8 | B22: App. 2-AC: Customer Engagement Worksheet | E22: 27 | F22: App.2-JC: OM&A Programs Table
A23: 9 | B23: App.2-B: General Accounting Instructions | E23: 28 | F23: App.2-K: Employee Costs (TO BE UPDATED AT THE DRAFT RATE ORDER STAGE)
A24: 10 | B24: App.2-BA: Fixed Asset Continuity Schedule | E24: 29 | F24: App.2-L: Recoverable OM&A Cost per Customer and per FTE
A25: 11 | B25: Appendix 2-BB: Service Life Comparison | E25: 30 | F25: App.2-M: Regulatory Costs Schedule (TO BE UPDATED AT THE DRAFT RATE ORDER STAGE)
A26: 12 | B26: App.2-C_DepExp: Depreciation and Amortization Expense | E26: 31 | F26: App.2-N: Shared Services and Corporate Cost Allocation
A27: 13 | B27: App.2-D: Overhead Expenses | E27: 32 | F27: App.2-OA: Capital Structure and Cost of Capital
A28: 14 | B28: App.2-EA: Account 1575 PP&E Deferral Account (2015 IFRS Adopters) - CONTACT OEB STAFF IF TAB REQUIRED | E28: 33 | F28: App.2-OB: Debt Instruments
A29: 15 | B29: App.2-EB: Account 1576 - Accounting Changes Under CGAAP (2012 Changes) - CONTACT OEB STAFF IF TAB REQUIRED | E29: 34 | F29: App.2-Q: Cost of Serving Embedded Distributor(s)
A30: 16 | B30: App.2-EC: Account 1576 - Accounting Changes Under CGAAP (2013 Changes) - CONTACT OEB STAFF IF TAB REQUIRED | E30: 35 | F30: App.2-R: Loss Factors
A31: 17 | B31: App.2-FA: Renewable Generation Connection Investment Summary (TO BE UPDATED AT THE DRAFT RATE ORDER STAGE) | E31: 36 | F31: App.2-S: Stranded Meter Treatment- CONTACT OEB STAFF IF TAB REQUIRED
A32: 18 | B32: App.2-FB: Calculation of Renewable Generation Connection Direct Benefits/Provincial Amount: Renewable Enabling Improvement Investments (TO BE UPDATED AT THE DRAFT RATE ORDER STAGE) | E32: 37 | F32: App.2-Y: Transition to MIFRS Summary Impact - CONTACT OEB STAFF IF TAB REQUIRED
A33: 19 | B33: App.2-FC: Calculation of Renewable Generation Connection Direct Benefits/Provincial Amount: Renewable Expansion Investments (TO BE UPDATED AT THE DRAFT RATE ORDER STAGE) | E33: 38 | F33: App.2-YA: One-Time Incremental IFRS Transition Costs - CONTACT OEB STAFF IF TAB REQUIRED
E34: 39 | F34: App.2-ZA: Commodity Expense
E35: 40 | F35: App.2-ZB: Cost of Power
A42: Note: | B42: Appendices for the Tariff of Rates and Charges at Current and Proposed Rates, and for the Bill Impacts are now in a separate spreadsheet model. These appendices were formerly 2-Z and 2-W.

Sheet COS Flowchart
B4: Cost of Service Rate Application Schematic
B6: The Cost of Service Rate Application Schematic is a flowchart that is included as a guide for the components of an application. The schematic demonstrates how demand and costs interrelate to derive the revenue requirement and how the revenue requirement is allocated between classes and through fixed/variable splits to derive rates that will be compensatory for the annual revenue requirement, based on the the forecasted demand. There is no form to be filled out; therefore, this Schedule is not required to be filed.

Sheet List of Key References
B2: List of Key References
A4: A list of key references for understanding the Filing Requirements has been embedded in the document below. To access the list of references and associated hyperlinks double-click the icon below.

Sheet App.2-A_Requested_Approvals
G1: File Number: | H1: =EBNUMBER -> 0
G2: Exhibit:
G3: Tab:
G4: Schedule:
G5: Page:
G7: Date:
B9: Appendix 2-A
B10: List of Requested Approvals
B12: The distributor must fill out the following sheet with the complete list of specific approvals requested and relevant section(s) of the legislation must be provided. All approvals, including accounting orders (deferral and variance accounts) new rate classes, revised specific service charges or retail service charges which the applicant is seeking, must be separately identified, as well being clearly documented in the appropriate sections of the application.
B14: Additional requests may be added by copying and pasting blank input rows, as needed.
B16: If additional requests arise, or requested approvals are removed, during the processing of the application, the distributor should update this list.
B18: =CONCATENATE('LDC Info'!E14," is seeking the following approvals in this application:") -> is seeking the following approvals in this application:
B20: 1

Sheet App.2-AA_Capital Projects
G1: File Number: | H1: =EBNUMBER -> 0
G2: Exhibit:
G3: Tab:
G4: Schedule:
G5: Page:
G7: Date:
A9: Appendix 2-AA
A10: Capital Projects Table
A13: Projects | B13: =C13-1 -> 2016 | C13: =D13-1 -> 2017 | D13: =E13-1 -> 2018 | E13: =BridgeYear - 1 -> 2019 | F13: =BridgeYear & " Bridge Year" -> 2020 Bridge Year | G13: =TestYear & " Test Year" -> 2021 Test Year
A14: Reporting Basis
A15: Project Name #1
A21: Sub-Total | B21: =SUM(B16:B20) -> 0 | C21: 0 | D21: 0 | E21: 0 | F21: 0 | G21: 0
A22: Project Name #2
A28: Sub-Total | B28: =SUM(B23:B27) -> 0 | C28: 0 | D28: 0 | E28: 0 | F28: 0 | G28: 0
A29: Project Name #3
A35: Sub-Total | B35: =SUM(B30:B34) -> 0 | C35: 0 | D35: 0 | E35: 0 | F35: 0 | G35: 0
A36: Project Name #4
A42: Sub-Total | B42: =SUM(B37:B41) -> 0 | C42: 0 | D42: 0 | E42: 0 | F42: 0 | G42: 0
A43: Miscellaneous
A44: Total | B44: =SUMPRODUCT(--($A15:$A43="Sub-Total"), B$15:B$43)+B43 -> 0 | C44: 0 | D44: 0 | E44: 0 | F44: 0 | G44: 0
A45: Less Renewable Generation Facility Assets and Other Non-Rate-Regulated Utility Assets (input as negative)
A46: Total | B46: =B44+B45 -> 0 | C46: 0 | D46: 0 | E46: 0 | F46: 0 | G46: 0
A48: Notes:
A50: 1 Please provide a breakdown of the major components of each capital project undertaken in each year. Please ensure that all projects below the materiality threshold are included in the miscellaneous line. Add more projects as required.
A51: 2 The applicant should group projects appropriately and avoid presentations that result in classification of significant components of the capital budget in the miscellaneous category.

Sheet App.2-AB_Capital Expenditures
AE1: File Number: | AG1: =EBNUMBER -> 0
AE2: Exhibit:
AE3: Tab:
AE4: Schedule:
A5: TO BE UPDATED AT THE DRAFT RATE ORDER STAGE | AE5: Page:
AE7: Date:
A9: Appendix 2-AB
A10: Table 2 - Capital Expenditure Summary from Chapter 5 Consolidated Distribution System Plan Filing Requirements
A11: First year of Forecast Period:
A12: =TestYear -> 2021
A13: CATEGORY | B13: Historical Period (previous plan1 & actual) | AC13: Forecast Period (planned)
B14: =E14-1 -> 2012 | E14: =H14-1 -> 2013 | H14: =K14-1 -> 2014 | K14: =N14-1 -> 2015 | N14: =Q14-1 -> 2016 | Q14: =T14-1 -> 2017 | T14: =W14-1 -> 2018 | W14: =Z14-1 -> 2019 | Z14: =AC14-1 -> 2020 | AC14: =A12 -> 2021 | AD14: =AC14+1 -> 2022 | AE14: =AD14+1 -> 2023 | AF14: =AE14+1 -> 2024 | AG14: =AF14+1 -> 2025
B15: Plan | C15: Actual | D15: Var | E15: Plan | F15: Actual | G15: Var | H15: Plan | I15: Actual | J15: Var | K15: Plan | L15: Actual | M15: Var | N15: Plan | O15: Actual | P15: Var | Q15: Plan | R15: Actual | S15: Var | T15: Plan | U15: Actual | V15: Var | W15: Plan | X15: Actual | Y15: Var | Z15: Plan | AA15: Actual2 | AB15: Var
B16: $ '000 | D16: % | E16: $ '000 | G16: % | H16: $ '000 | J16: % | K16: $ '000 | M16: % | N16: $ '000 | P16: % | Q16: $ '000 | S16: % | T16: $ '000 | V16: % | W16: $ '000 | Y16: % | Z16: $ '000 | AB16: % | AC16: $ '000
A17: System Access | D17: =IF(ISERROR((C17-B17)/B17),"--",(C17-B17)/B17) -> -- | G17: =IF(ISERROR((F17-E17)/E17),"--",(F17-E17)/E17) -> -- | J17: =IF(ISERROR((I17-H17)/H17),"--",(I17-H17)/H17) -> -- | M17: =IF(ISERROR((L17-K17)/K17),"--",(L17-K17)/K17) -> -- | P17: =IF(ISERROR((O17-N17)/N17),"--",(O17-N17)/N17) -> -- | S17: =IF(ISERROR((R17-Q17)/Q17),"--",(R17-Q17)/Q17) -> -- | V17: =IF(ISERROR((U17-T17)/T17),"--",(U17-T17)/T17) -> -- | Y17: =IF(ISERROR((X17-W17)/W17),"--",(X17-W17)/W17) -> -- | AB17: =IF(ISERROR((AA17-Z17)/Z17),"--",(AA17-Z17)/Z17) -> --
A18: System Renewal | D18: =IF(ISERROR((C18-B18)/B18),"--",(C18-B18)/B18) -> -- | G18: =IF(ISERROR((F18-E18)/E18),"--",(F18-E18)/E18) -> -- | J18: =IF(ISERROR((I18-H18)/H18),"--",(I18-H18)/H18) -> -- | M18: =IF(ISERROR((L18-K18)/K18),"--",(L18-K18)/K18) -> -- | P18: =IF(ISERROR((O18-N18)/N18),"--",(O18-N18)/N18) -> -- | S18: =IF(ISERROR((R18-Q18)/Q18),"--",(R18-Q18)/Q18) -> -- | V18: =IF(ISERROR((U18-T18)/T18),"--",(U18-T18)/T18) -> -- | Y18: =IF(ISERROR((X18-W18)/W18),"--",(X18-W18)/W18) -> -- | AB18: =IF(ISERROR((AA18-Z18)/Z18),"--",(AA18-Z18)/Z18) -> --
A19: System Service | D19: -- | G19: -- | J19: -- | M19: -- | P19: -- | S19: -- | V19: -- | Y19: -- | AB19: --
A20: General Plant | D20: -- | G20: -- | J20: -- | M20: -- | P20: -- | S20: -- | V20: -- | Y20: -- | AB20: --
A21: TOTAL EXPENDITURE | B21: =SUM(B17:B20) -> 0 | C21: =SUM(C17:C20) -> 0 | D21: -- | E21: =SUM(E17:E20) -> 0 | F21: =SUM(F17:F20) -> 0 | G21: -- | H21: =SUM(H17:H20) -> 0 | I21: =SUM(I17:I20) -> 0 | J21: -- | K21: =SUM(K17:K20) -> 0 | L21: =SUM(L17:L20) -> 0 | M21: -- | N21: =SUM(N17:N20) -> 0 | O21: =SUM(O17:O20) -> 0 | P21: -- | Q21: 0 | R21: 0 | S21: -- | T21: 0 | U21: 0 | V21: -- | W21: 0 | X21: 0 | Y21: -- | Z21: 0 | AA21: 0 | AB21: -- | AC21: 0 | AD21: 0 | AE21: 0 | AF21: 0 | AG21: =SUM(AG17:AG20) -> 0
A22: Capital Contributions | D22: -- | G22: -- | J22: -- | M22: -- | P22: -- | S22: -- | V22: -- | Y22: -- | AB22: --
A23: Net Capital Expenditures | D23: -- | G23: -- | J23: -- | M23: -- | P23: -- | S23: -- | V23: -- | Y23: -- | AB23: --
A24: System O&M | D24: -- | G24: -- | J24: -- | M24: -- | P24: -- | S24: -- | V24: -- | Y24: -- | AB24: --
A26: Notes to the Table:
A27: 1. Historical “previous plan” data is not required unless a plan has previously been filed. However, use the last OEB-approved, at least on a Total (Capital) Expenditure basis for the last cost of service rebasing year, and the applicant should include their planned budget in each subsequent historical year up to and including the Bridge Year.
A28: 2. Indicate the number of months of 'actual' data included in the last year of the Historical Period (normally a 'bridge' year):
A30: Explanatory Notes on Variances (complete only if applicable)
A31: Notes on shifts in forecast vs. historical budgets by category
A34: Notes on year over year Plan vs. Actual variances for Total Expenditures
A37: Notes on Plan vs. Actual variance trends for individual expenditure categories

Sheet Hidden_CAPEX (hidden)
A1: Utility Name | B1: EB Number | C1: Test Year | D1: Bridge Year | E1: Last Rebasing Year | F1: Category | G1: Year | H1: Plan | I1: Actual
A2: ='LDC Info'!$E$14 -> 0 | B2: =EBNUMBER -> 0 | C2: =TestYear -> 2021 | D2: =BridgeYear -> 2020 | E2: =RebaseYear -> 2014 | F2: System Access | G2: ='App.2-AB_Capital Expenditures'!B14 -> 2012 | H2: ='App.2-AB_Capital Expenditures'!B17 -> 0 | I2: ='App.2-AB_Capital Expenditures'!C17 -> 0
A3: ='LDC Info'!$E$14 -> 0 | B3: 0 | C3: 2021 | D3: 2020 | E3: 2014 | F3: System Renewal | G3: ='App.2-AB_Capital Expenditures'!B14 -> 2012 | H3: ='App.2-AB_Capital Expenditures'!B18 -> 0 | I3: ='App.2-AB_Capital Expenditures'!C18 -> 0
A4: ='LDC Info'!$E$14 -> 0 | B4: 0 | C4: 2021 | D4: 2020 | E4: 2014 | F4: System Service | G4: ='App.2-AB_Capital Expenditures'!B14 -> 2012 | H4: ='App.2-AB_Capital Expenditures'!B19 -> 0 | I4: ='App.2-AB_Capital Expenditures'!C19 -> 0
A5: ='LDC Info'!$E$14 -> 0 | B5: 0 | C5: 2021 | D5: 2020 | E5: 2014 | F5: General Plant | G5: ='App.2-AB_Capital Expenditures'!B14 -> 2012 | H5: ='App.2-AB_Capital Expenditures'!B20 -> 0 | I5: ='App.2-AB_Capital Expenditures'!C20 -> 0
A6: ='LDC Info'!$E$14 -> 0 | B6: 0 | C6: 2021 | D6: 2020 | E6: 2014 | F6: Total Expenditure | G6: ='App.2-AB_Capital Expenditures'!B14 -> 2012 | H6: ='App.2-AB_Capital Expenditures'!B21 -> 0 | I6: ='App.2-AB_Capital Expenditures'!C21 -> 0
A7: ='LDC Info'!$E$14 -> 0 | B7: 0 | C7: 2021 | D7: 2020 | E7: 2014 | F7: Capital Contributions | G7: ='App.2-AB_Capital Expenditures'!B14 -> 2012 | H7: ='App.2-AB_Capital Expenditures'!B22 -> 0 | I7: ='App.2-AB_Capital Expenditures'!C22 -> 0
A8: ='LDC Info'!$E$14 -> 0 | B8: 0 | C8: 2021 | D8: 2020 | E8: 2014 | F8: Net Capital Expenditures | G8: ='App.2-AB_Capital Expenditures'!B14 -> 2012 | H8: ='App.2-AB_Capital Expenditures'!B23 -> 0 | I8: ='App.2-AB_Capital Expenditures'!C23 -> 0
A9: ='LDC Info'!$E$14 -> 0 | B9: 0 | C9: 2021 | D9: 2020 | E9: 2014 | F9: System O&M | G9: ='App.2-AB_Capital Expenditures'!B14 -> 2012 | H9: ='App.2-AB_Capital Expenditures'!B24 -> 0 | I9: ='App.2-AB_Capital Expenditures'!C24 -> 0
A10: ='LDC Info'!$E$14 -> 0 | B10: 0 | C10: 2021 | D10: 2020 | E10: 2014 | F10: System Access | G10: ='App.2-AB_Capital Expenditures'!E14 -> 2013 | H10: ='App.2-AB_Capital Expenditures'!E17 -> 0 | I10: ='App.2-AB_Capital Expenditures'!F17 -> 0
A11: ='LDC Info'!$E$14 -> 0 | B11: 0 | C11: 2021 | D11: 2020 | E11: 2014 | F11: System Renewal | G11: ='App.2-AB_Capital Expenditures'!E14 -> 2013 | H11: ='App.2-AB_Capital Expenditures'!E18 -> 0 | I11: ='App.2-AB_Capital Expenditures'!F18 -> 0
A12: ='LDC Info'!$E$14 -> 0 | B12: 0 | C12: 2021 | D12: 2020 | E12: 2014 | F12: System Service | G12: ='App.2-AB_Capital Expenditures'!E14 -> 2013 | H12: ='App.2-AB_Capital Expenditures'!E19 -> 0 | I12: ='App.2-AB_Capital Expenditures'!F19 -> 0
A13: ='LDC Info'!$E$14 -> 0 | B13: 0 | C13: 2021 | D13: 2020 | E13: 2014 | F13: General Plant | G13: ='App.2-AB_Capital Expenditures'!E14 -> 2013 | H13: ='App.2-AB_Capital Expenditures'!E20 -> 0 | I13: ='App.2-AB_Capital Expenditures'!F20 -> 0
A14: ='LDC Info'!$E$14 -> 0 | B14: 0 | C14: 2021 | D14: 2020 | E14: 2014 | F14: Total Expenditure | G14: ='App.2-AB_Capital Expenditures'!E14 -> 2013 | H14: ='App.2-AB_Capital Expenditures'!E21 -> 0 | I14: ='App.2-AB_Capital Expenditures'!F21 -> 0
A15: ='LDC Info'!$E$14 -> 0 | B15: 0 | C15: 2021 | D15: 2020 | E15: 2014 | F15: Capital Contributions | G15: ='App.2-AB_Capital Expenditures'!E14 -> 2013 | H15: ='App.2-AB_Capital Expenditures'!E22 -> 0 | I15: ='App.2-AB_Capital Expenditures'!F22 -> 0
A16: ='LDC Info'!$E$14 -> 0 | B16: 0 | C16: 2021 | D16: 2020 | E16: 2014 | F16: Net Capital Expenditures | G16: ='App.2-AB_Capital Expenditures'!E14 -> 2013 | H16: ='App.2-AB_Capital Expenditures'!E23 -> 0 | I16: ='App.2-AB_Capital Expenditures'!F23 -> 0
A17: ='LDC Info'!$E$14 -> 0 | B17: 0 | C17: 2021 | D17: 2020 | E17: 2014 | F17: System O&M | G17: ='App.2-AB_Capital Expenditures'!E14 -> 2013 | H17: ='App.2-AB_Capital Expenditures'!E24 -> 0 | I17: ='App.2-AB_Capital Expenditures'!F24 -> 0
A18: ='LDC Info'!$E$14 -> 0 | B18: 0 | C18: 2021 | D18: 2020 | E18: 2014 | F18: System Access | G18: ='App.2-AB_Capital Expenditures'!H14 -> 2014 | H18: ='App.2-AB_Capital Expenditures'!H17 -> 0 | I18: ='App.2-AB_Capital Expenditures'!I17 -> 0
A19: ='LDC Info'!$E$14 -> 0 | B19: 0 | C19: 2021 | D19: 2020 | E19: 2014 | F19: System Renewal | G19: ='App.2-AB_Capital Expenditures'!H14 -> 2014 | H19: ='App.2-AB_Capital Expenditures'!H18 -> 0 | I19: ='App.2-AB_Capital Expenditures'!I18 -> 0
A20: ='LDC Info'!$E$14 -> 0 | B20: 0 | C20: 2021 | D20: 2020 | E20: 2014 | F20: System Service | G20: ='App.2-AB_Capital Expenditures'!H14 -> 2014 | H20: ='App.2-AB_Capital Expenditures'!H19 -> 0 | I20: ='App.2-AB_Capital Expenditures'!I19 -> 0
A21: ='LDC Info'!$E$14 -> 0 | B21: 0 | C21: 2021 | D21: 2020 | E21: 2014 | F21: General Plant | G21: ='App.2-AB_Capital Expenditures'!H14 -> 2014 | H21: ='App.2-AB_Capital Expenditures'!H20 -> 0 | I21: ='App.2-AB_Capital Expenditures'!I20 -> 0
A22: ='LDC Info'!$E$14 -> 0 | B22: 0 | C22: 2021 | D22: 2020 | E22: 2014 | F22: Total Expenditure | G22: ='App.2-AB_Capital Expenditures'!H14 -> 2014 | H22: ='App.2-AB_Capital Expenditures'!H21 -> 0 | I22: ='App.2-AB_Capital Expenditures'!I21 -> 0
A23: ='LDC Info'!$E$14 -> 0 | B23: 0 | C23: 2021 | D23: 2020 | E23: 2014 | F23: Capital Contributions | G23: ='App.2-AB_Capital Expenditures'!H14 -> 2014 | H23: ='App.2-AB_Capital Expenditures'!H22 -> 0 | I23: ='App.2-AB_Capital Expenditures'!I22 -> 0
A24: ='LDC Info'!$E$14 -> 0 | B24: 0 | C24: 2021 | D24: 2020 | E24: 2014 | F24: Net Capital Expenditures | G24: ='App.2-AB_Capital Expenditures'!H14 -> 2014 | H24: ='App.2-AB_Capital Expenditures'!H23 -> 0 | I24: ='App.2-AB_Capital Expenditures'!I23 -> 0
A25: ='LDC Info'!$E$14 -> 0 | B25: 0 | C25: 2021 | D25: 2020 | E25: 2014 | F25: System O&M | G25: ='App.2-AB_Capital Expenditures'!H14 -> 2014 | H25: ='App.2-AB_Capital Expenditures'!H24 -> 0 | I25: ='App.2-AB_Capital Expenditures'!I24 -> 0
A26: ='LDC Info'!$E$14 -> 0 | B26: 0 | C26: 2021 | D26: 2020 | E26: 2014 | F26: System Access | G26: ='App.2-AB_Capital Expenditures'!K14 -> 2015 | H26: ='App.2-AB_Capital Expenditures'!K17 -> 0 | I26: ='App.2-AB_Capital Expenditures'!L17 -> 0
A27: ='LDC Info'!$E$14 -> 0 | B27: 0 | C27: 2021 | D27: 2020 | E27: 2014 | F27: System Renewal | G27: ='App.2-AB_Capital Expenditures'!K14 -> 2015 | H27: ='App.2-AB_Capital Expenditures'!K18 -> 0 | I27: ='App.2-AB_Capital Expenditures'!L18 -> 0
A28: ='LDC Info'!$E$14 -> 0 | B28: 0 | C28: 2021 | D28: 2020 | E28: 2014 | F28: System Service | G28: ='App.2-AB_Capital Expenditures'!K14 -> 2015 | H28: ='App.2-AB_Capital Expenditures'!K19 -> 0 | I28: ='App.2-AB_Capital Expenditures'!L19 -> 0
A29: ='LDC Info'!$E$14 -> 0 | B29: 0 | C29: 2021 | D29: 2020 | E29: 2014 | F29: General Plant | G29: ='App.2-AB_Capital Expenditures'!K14 -> 2015 | H29: ='App.2-AB_Capital Expenditures'!K20 -> 0 | I29: ='App.2-AB_Capital Expenditures'!L20 -> 0
A30: ='LDC Info'!$E$14 -> 0 | B30: 0 | C30: 2021 | D30: 2020 | E30: 2014 | F30: Total Expenditure | G30: ='App.2-AB_Capital Expenditures'!K14 -> 2015 | H30: ='App.2-AB_Capital Expenditures'!K21 -> 0 | I30: ='App.2-AB_Capital Expenditures'!L21 -> 0
A31: ='LDC Info'!$E$14 -> 0 | B31: 0 | C31: 2021 | D31: 2020 | E31: 2014 | F31: Capital Contributions | G31: ='App.2-AB_Capital Expenditures'!K14 -> 2015 | H31: ='App.2-AB_Capital Expenditures'!K22 -> 0 | I31: ='App.2-AB_Capital Expenditures'!L22 -> 0
A32: ='LDC Info'!$E$14 -> 0 | B32: 0 | C32: 2021 | D32: 2020 | E32: 2014 | F32: Net Capital Expenditures | G32: ='App.2-AB_Capital Expenditures'!K14 -> 2015 | H32: ='App.2-AB_Capital Expenditures'!K23 -> 0 | I32: ='App.2-AB_Capital Expenditures'!L23 -> 0
A33: ='LDC Info'!$E$14 -> 0 | B33: 0 | C33: 2021 | D33: 2020 | E33: 2014 | F33: System O&M | G33: ='App.2-AB_Capital Expenditures'!K14 -> 2015 | H33: ='App.2-AB_Capital Expenditures'!K24 -> 0 | I33: ='App.2-AB_Capital Expenditures'!L24 -> 0
A34: ='LDC Info'!$E$14 -> 0 | B34: =EBNUMBER -> 0 | C34: =TestYear -> 2021 | D34: =BridgeYear -> 2020 | E34: =RebaseYear -> 2014 | F34: System Access | G34: ='App.2-AB_Capital Expenditures'!N14 -> 2016 | H34: ='App.2-AB_Capital Expenditures'!N17 -> 0 | I34: ='App.2-AB_Capital Expenditures'!O17 -> 0
A35: ='LDC Info'!$E$14 -> 0 | B35: 0 | C35: 2021 | D35: 2020 | E35: 2014 | F35: System Renewal | G35: ='App.2-AB_Capital Expenditures'!N14 -> 2016 | H35: ='App.2-AB_Capital Expenditures'!N18 -> 0 | I35: ='App.2-AB_Capital Expenditures'!O18 -> 0
A36: ='LDC Info'!$E$14 -> 0 | B36: 0 | C36: 2021 | D36: 2020 | E36: 2014 | F36: System Service | G36: ='App.2-AB_Capital Expenditures'!N14 -> 2016 | H36: ='App.2-AB_Capital Expenditures'!N19 -> 0 | I36: ='App.2-AB_Capital Expenditures'!O19 -> 0
A37: ='LDC Info'!$E$14 -> 0 | B37: 0 | C37: 2021 | D37: 2020 | E37: 2014 | F37: General Plant | G37: ='App.2-AB_Capital Expenditures'!N14 -> 2016 | H37: ='App.2-AB_Capital Expenditures'!N20 -> 0 | I37: ='App.2-AB_Capital Expenditures'!O20 -> 0
A38: ='LDC Info'!$E$14 -> 0 | B38: 0 | C38: 2021 | D38: 2020 | E38: 2014 | F38: Total Expenditure | G38: ='App.2-AB_Capital Expenditures'!N14 -> 2016 | H38: ='App.2-AB_Capital Expenditures'!N21 -> 0 | I38: ='App.2-AB_Capital Expenditures'!O21 -> 0
A39: ='LDC Info'!$E$14 -> 0 | B39: 0 | C39: 2021 | D39: 2020 | E39: 2014 | F39: Capital Contributions | G39: ='App.2-AB_Capital Expenditures'!N14 -> 2016 | H39: ='App.2-AB_Capital Expenditures'!N22 -> 0 | I39: ='App.2-AB_Capital Expenditures'!O22 -> 0
A40: ='LDC Info'!$E$14 -> 0 | B40: 0 | C40: 2021 | D40: 2020 | E40: 2014 | F40: Net Capital Expenditures | G40: ='App.2-AB_Capital Expenditures'!N14 -> 2016 | H40: ='App.2-AB_Capital Expenditures'!N23 -> 0 | I40: ='App.2-AB_Capital Expenditures'!O23 -> 0
A41: ='LDC Info'!$E$14 -> 0 | B41: 0 | C41: 2021 | D41: 2020 | E41: 2014 | F41: System O&M | G41: ='App.2-AB_Capital Expenditures'!N14 -> 2016 | H41: ='App.2-AB_Capital Expenditures'!N24 -> 0 | I41: ='App.2-AB_Capital Expenditures'!O24 -> 0
A42: ='LDC Info'!$E$14 -> 0 | B42: 0 | C42: 2021 | D42: 2020 | E42: 2014 | F42: System Access | G42: ='App.2-AB_Capital Expenditures'!Q14 -> 2017 | H42: ='App.2-AB_Capital Expenditures'!Q17 -> 0 | I42: ='App.2-AB_Capital Expenditures'!R17 -> 0
A43: ='LDC Info'!$E$14 -> 0 | B43: 0 | C43: 2021 | D43: 2020 | E43: 2014 | F43: System Renewal | G43: ='App.2-AB_Capital Expenditures'!Q14 -> 2017 | H43: ='App.2-AB_Capital Expenditures'!Q18 -> 0 | I43: ='App.2-AB_Capital Expenditures'!R18 -> 0
A44: ='LDC Info'!$E$14 -> 0 | B44: 0 | C44: 2021 | D44: 2020 | E44: 2014 | F44: System Service | G44: ='App.2-AB_Capital Expenditures'!Q14 -> 2017 | H44: ='App.2-AB_Capital Expenditures'!Q19 -> 0 | I44: ='App.2-AB_Capital Expenditures'!R19 -> 0
A45: ='LDC Info'!$E$14 -> 0 | B45: 0 | C45: 2021 | D45: 2020 | E45: 2014 | F45: General Plant | G45: ='App.2-AB_Capital Expenditures'!Q14 -> 2017 | H45: ='App.2-AB_Capital Expenditures'!Q20 -> 0 | I45: ='App.2-AB_Capital Expenditures'!R20 -> 0
A46: ='LDC Info'!$E$14 -> 0 | B46: 0 | C46: 2021 | D46: 2020 | E46: 2014 | F46: Total Expenditure | G46: ='App.2-AB_Capital Expenditures'!Q14 -> 2017 | H46: ='App.2-AB_Capital Expenditures'!Q21 -> 0 | I46: ='App.2-AB_Capital Expenditures'!R21 -> 0
A47: ='LDC Info'!$E$14 -> 0 | B47: 0 | C47: 2021 | D47: 2020 | E47: 2014 | F47: Capital Contributions | G47: ='App.2-AB_Capital Expenditures'!Q14 -> 2017 | H47: ='App.2-AB_Capital Expenditures'!Q22 -> 0 | I47: ='App.2-AB_Capital Expenditures'!R22 -> 0
A48: ='LDC Info'!$E$14 -> 0 | B48: 0 | C48: 2021 | D48: 2020 | E48: 2014 | F48: Net Capital Expenditures | G48: ='App.2-AB_Capital Expenditures'!Q14 -> 2017 | H48: ='App.2-AB_Capital Expenditures'!Q23 -> 0 | I48: ='App.2-AB_Capital Expenditures'!R23 -> 0
A49: ='LDC Info'!$E$14 -> 0 | B49: 0 | C49: 2021 | D49: 2020 | E49: 2014 | F49: System O&M | G49: ='App.2-AB_Capital Expenditures'!Q14 -> 2017 | H49: ='App.2-AB_Capital Expenditures'!Q24 -> 0 | I49: ='App.2-AB_Capital Expenditures'!R24 -> 0
A50: ='LDC Info'!$E$14 -> 0 | B50: 0 | C50: 2021 | D50: 2020 | E50: 2014 | F50: System Access | G50: ='App.2-AB_Capital Expenditures'!T14 -> 2018 | H50: ='App.2-AB_Capital Expenditures'!T17 -> 0 | I50: ='App.2-AB_Capital Expenditures'!U17 -> 0
A51: ='LDC Info'!$E$14 -> 0 | B51: 0 | C51: 2021 | D51: 2020 | E51: 2014 | F51: System Renewal | G51: ='App.2-AB_Capital Expenditures'!T14 -> 2018 | H51: ='App.2-AB_Capital Expenditures'!T18 -> 0 | I51: ='App.2-AB_Capital Expenditures'!U18 -> 0
A52: ='LDC Info'!$E$14 -> 0 | B52: 0 | C52: 2021 | D52: 2020 | E52: 2014 | F52: System Service | G52: ='App.2-AB_Capital Expenditures'!T14 -> 2018 | H52: ='App.2-AB_Capital Expenditures'!T19 -> 0 | I52: ='App.2-AB_Capital Expenditures'!U19 -> 0
A53: ='LDC Info'!$E$14 -> 0 | B53: 0 | C53: 2021 | D53: 2020 | E53: 2014 | F53: General Plant | G53: ='App.2-AB_Capital Expenditures'!T14 -> 2018 | H53: ='App.2-AB_Capital Expenditures'!T20 -> 0 | I53: ='App.2-AB_Capital Expenditures'!U20 -> 0
A54: ='LDC Info'!$E$14 -> 0 | B54: 0 | C54: 2021 | D54: 2020 | E54: 2014 | F54: Total Expenditure | G54: ='App.2-AB_Capital Expenditures'!T14 -> 2018 | H54: ='App.2-AB_Capital Expenditures'!T21 -> 0 | I54: ='App.2-AB_Capital Expenditures'!U21 -> 0
A55: ='LDC Info'!$E$14 -> 0 | B55: 0 | C55: 2021 | D55: 2020 | E55: 2014 | F55: Capital Contributions | G55: ='App.2-AB_Capital Expenditures'!T14 -> 2018 | H55: ='App.2-AB_Capital Expenditures'!T22 -> 0 | I55: ='App.2-AB_Capital Expenditures'!U22 -> 0
A56: ='LDC Info'!$E$14 -> 0 | B56: 0 | C56: 2021 | D56: 2020 | E56: 2014 | F56: Net Capital Expenditures | G56: ='App.2-AB_Capital Expenditures'!T14 -> 2018 | H56: ='App.2-AB_Capital Expenditures'!T23 -> 0 | I56: ='App.2-AB_Capital Expenditures'!U23 -> 0
A57: ='LDC Info'!$E$14 -> 0 | B57: 0 | C57: 2021 | D57: 2020 | E57: 2014 | F57: System O&M | G57: ='App.2-AB_Capital Expenditures'!T14 -> 2018 | H57: ='App.2-AB_Capital Expenditures'!T24 -> 0 | I57: ='App.2-AB_Capital Expenditures'!U24 -> 0
A58: ='LDC Info'!$E$14 -> 0 | B58: 0 | C58: 2021 | D58: 2020 | E58: 2014 | F58: System Access | G58: ='App.2-AB_Capital Expenditures'!W14 -> 2019 | H58: ='App.2-AB_Capital Expenditures'!W17 -> 0 | I58: ='App.2-AB_Capital Expenditures'!X17 -> 0
A59: ='LDC Info'!$E$14 -> 0 | B59: 0 | C59: 2021 | D59: 2020 | E59: 2014 | F59: System Renewal | G59: ='App.2-AB_Capital Expenditures'!W14 -> 2019 | H59: ='App.2-AB_Capital Expenditures'!W18 -> 0 | I59: ='App.2-AB_Capital Expenditures'!X18 -> 0
A60: ='LDC Info'!$E$14 -> 0 | B60: 0 | C60: 2021 | D60: 2020 | E60: 2014 | F60: System Service | G60: ='App.2-AB_Capital Expenditures'!W14 -> 2019 | H60: ='App.2-AB_Capital Expenditures'!W19 -> 0 | I60: ='App.2-AB_Capital Expenditures'!X19 -> 0
A61: ='LDC Info'!$E$14 -> 0 | B61: 0 | C61: 2021 | D61: 2020 | E61: 2014 | F61: General Plant | G61: ='App.2-AB_Capital Expenditures'!W14 -> 2019 | H61: ='App.2-AB_Capital Expenditures'!W20 -> 0 | I61: ='App.2-AB_Capital Expenditures'!X20 -> 0
A62: ='LDC Info'!$E$14 -> 0 | B62: 0 | C62: 2021 | D62: 2020 | E62: 2014 | F62: Total Expenditure | G62: ='App.2-AB_Capital Expenditures'!W14 -> 2019 | H62: ='App.2-AB_Capital Expenditures'!W21 -> 0 | I62: ='App.2-AB_Capital Expenditures'!X21 -> 0
A63: ='LDC Info'!$E$14 -> 0 | B63: 0 | C63: 2021 | D63: 2020 | E63: 2014 | F63: Capital Contributions | G63: ='App.2-AB_Capital Expenditures'!W14 -> 2019 | H63: ='App.2-AB_Capital Expenditures'!W22 -> 0 | I63: ='App.2-AB_Capital Expenditures'!X22 -> 0
A64: ='LDC Info'!$E$14 -> 0 | B64: 0 | C64: 2021 | D64: 2020 | E64: 2014 | F64: Net Capital Expenditures | G64: ='App.2-AB_Capital Expenditures'!W14 -> 2019 | H64: ='App.2-AB_Capital Expenditures'!W23 -> 0 | I64: ='App.2-AB_Capital Expenditures'!X23 -> 0
A65: ='LDC Info'!$E$14 -> 0 | B65: 0 | C65: 2021 | D65: 2020 | E65: 2014 | F65: System O&M | G65: ='App.2-AB_Capital Expenditures'!W14 -> 2019 | H65: ='App.2-AB_Capital Expenditures'!W24 -> 0 | I65: ='App.2-AB_Capital Expenditures'!X24 -> 0
A66: ='LDC Info'!$E$14 -> 0 | B66: =EBNUMBER -> 0 | C66: =TestYear -> 2021 | D66: =BridgeYear -> 2020 | E66: =RebaseYear -> 2014 | F66: System Access | G66: ='App.2-AB_Capital Expenditures'!Z14 -> 2020 | H66: ='App.2-AB_Capital Expenditures'!Z17 -> 0 | I66: ='App.2-AB_Capital Expenditures'!AA17 -> 0
A67: ='LDC Info'!$E$14 -> 0 | B67: 0 | C67: 2021 | D67: 2020 | E67: 2014 | F67: System Renewal | G67: ='App.2-AB_Capital Expenditures'!Z14 -> 2020 | H67: ='App.2-AB_Capital Expenditures'!Z18 -> 0 | I67: ='App.2-AB_Capital Expenditures'!AA18 -> 0
A68: ='LDC Info'!$E$14 -> 0 | B68: 0 | C68: 2021 | D68: 2020 | E68: 2014 | F68: System Service | G68: ='App.2-AB_Capital Expenditures'!Z14 -> 2020 | H68: ='App.2-AB_Capital Expenditures'!Z19 -> 0 | I68: ='App.2-AB_Capital Expenditures'!AA19 -> 0
A69: ='LDC Info'!$E$14 -> 0 | B69: 0 | C69: 2021 | D69: 2020 | E69: 2014 | F69: General Plant | G69: ='App.2-AB_Capital Expenditures'!Z14 -> 2020 | H69: ='App.2-AB_Capital Expenditures'!Z20 -> 0 | I69: ='App.2-AB_Capital Expenditures'!AA20 -> 0
A70: ='LDC Info'!$E$14 -> 0 | B70: 0 | C70: 2021 | D70: 2020 | E70: 2014 | F70: Total Expenditure | G70: ='App.2-AB_Capital Expenditures'!Z14 -> 2020 | H70: ='App.2-AB_Capital Expenditures'!Z21 -> 0 | I70: ='App.2-AB_Capital Expenditures'!AA21 -> 0
A71: ='LDC Info'!$E$14 -> 0 | B71: 0 | C71: 2021 | D71: 2020 | E71: 2014 | F71: Capital Contributions | G71: ='App.2-AB_Capital Expenditures'!Z14 -> 2020 | H71: ='App.2-AB_Capital Expenditures'!Z22 -> 0 | I71: ='App.2-AB_Capital Expenditures'!AA22 -> 0
A72: ='LDC Info'!$E$14 -> 0 | B72: 0 | C72: 2021 | D72: 2020 | E72: 2014 | F72: Net Capital Expenditures | G72: ='App.2-AB_Capital Expenditures'!Z14 -> 2020 | H72: ='App.2-AB_Capital Expenditures'!Z23 -> 0 | I72: ='App.2-AB_Capital Expenditures'!AA23 -> 0
A73: ='LDC Info'!$E$14 -> 0 | B73: 0 | C73: 2021 | D73: 2020 | E73: 2014 | F73: System O&M | G73: ='App.2-AB_Capital Expenditures'!Z14 -> 2020 | H73: ='App.2-AB_Capital Expenditures'!Z24 -> 0 | I73: ='App.2-AB_Capital Expenditures'!AA24 -> 0
A74: ='LDC Info'!$E$14 -> 0 | B74: 0 | C74: 2021 | D74: 2020 | E74: 2014 | F74: System Access | G74: ='App.2-AB_Capital Expenditures'!AC14 -> 2021 | H74: ='App.2-AB_Capital Expenditures'!AC17 -> 0
A75: ='LDC Info'!$E$14 -> 0 | B75: 0 | C75: 2021 | D75: 2020 | E75: 2014 | F75: System Renewal | G75: ='App.2-AB_Capital Expenditures'!AC14 -> 2021 | H75: ='App.2-AB_Capital Expenditures'!AC18 -> 0
A76: ='LDC Info'!$E$14 -> 0 | B76: 0 | C76: 2021 | D76: 2020 | E76: 2014 | F76: System Service | G76: ='App.2-AB_Capital Expenditures'!AC14 -> 2021 | H76: ='App.2-AB_Capital Expenditures'!AC19 -> 0
A77: ='LDC Info'!$E$14 -> 0 | B77: 0 | C77: 2021 | D77: 2020 | E77: 2014 | F77: General Plant | G77: ='App.2-AB_Capital Expenditures'!AC14 -> 2021 | H77: ='App.2-AB_Capital Expenditures'!AC20 -> 0
A78: ='LDC Info'!$E$14 -> 0 | B78: 0 | C78: 2021 | D78: 2020 | E78: 2014 | F78: Total Expenditure | G78: ='App.2-AB_Capital Expenditures'!AC14 -> 2021 | H78: ='App.2-AB_Capital Expenditures'!AC21 -> 0
A79: ='LDC Info'!$E$14 -> 0 | B79: 0 | C79: 2021 | D79: 2020 | E79: 2014 | F79: Capital Contributions | G79: ='App.2-AB_Capital Expenditures'!AC14 -> 2021 | H79: ='App.2-AB_Capital Expenditures'!AC22 -> 0
A80: ='LDC Info'!$E$14 -> 0 | B80: 0 | C80: 2021 | D80: 2020 | E80: 2014 | F80: Net Capital Expenditures | G80: ='App.2-AB_Capital Expenditures'!AC14 -> 2021 | H80: ='App.2-AB_Capital Expenditures'!AC23 -> 0
A81: ='LDC Info'!$E$14 -> 0 | B81: 0 | C81: 2021 | D81: 2020 | E81: 2014 | F81: System O&M | G81: ='App.2-AB_Capital Expenditures'!AC14 -> 2021 | H81: ='App.2-AB_Capital Expenditures'!AC24 -> 0
A82: ='LDC Info'!$E$14 -> 0 | B82: 0 | C82: 2021 | D82: 2020 | E82: 2014 | F82: System Access | G82: ='App.2-AB_Capital Expenditures'!AD14 -> 2022 | H82: ='App.2-AB_Capital Expenditures'!AD17 -> 0
A83: ='LDC Info'!$E$14 -> 0 | B83: 0 | C83: 2021 | D83: 2020 | E83: 2014 | F83: System Renewal | G83: ='App.2-AB_Capital Expenditures'!AD14 -> 2022 | H83: ='App.2-AB_Capital Expenditures'!AD18 -> 0
A84: ='LDC Info'!$E$14 -> 0 | B84: 0 | C84: 2021 | D84: 2020 | E84: 2014 | F84: System Service | G84: ='App.2-AB_Capital Expenditures'!AD14 -> 2022 | H84: ='App.2-AB_Capital Expenditures'!AD19 -> 0
A85: ='LDC Info'!$E$14 -> 0 | B85: 0 | C85: 2021 | D85: 2020 | E85: 2014 | F85: General Plant | G85: ='App.2-AB_Capital Expenditures'!AD14 -> 2022 | H85: ='App.2-AB_Capital Expenditures'!AD20 -> 0
A86: ='LDC Info'!$E$14 -> 0 | B86: 0 | C86: 2021 | D86: 2020 | E86: 2014 | F86: Total Expenditure | G86: ='App.2-AB_Capital Expenditures'!AD14 -> 2022 | H86: ='App.2-AB_Capital Expenditures'!AD21 -> 0
A87: ='LDC Info'!$E$14 -> 0 | B87: 0 | C87: 2021 | D87: 2020 | E87: 2014 | F87: Capital Contributions | G87: ='App.2-AB_Capital Expenditures'!AD14 -> 2022 | H87: ='App.2-AB_Capital Expenditures'!AD22 -> 0
A88: ='LDC Info'!$E$14 -> 0 | B88: 0 | C88: 2021 | D88: 2020 | E88: 2014 | F88: Net Capital Expenditures | G88: ='App.2-AB_Capital Expenditures'!AD14 -> 2022 | H88: ='App.2-AB_Capital Expenditures'!AD23 -> 0
A89: ='LDC Info'!$E$14 -> 0 | B89: 0 | C89: 2021 | D89: 2020 | E89: 2014 | F89: System O&M | G89: ='App.2-AB_Capital Expenditures'!AD14 -> 2022 | H89: ='App.2-AB_Capital Expenditures'!AD24 -> 0
A90: ='LDC Info'!$E$14 -> 0 | B90: 0 | C90: 2021 | D90: 2020 | E90: 2014 | F90: System Access | G90: ='App.2-AB_Capital Expenditures'!AE14 -> 2023 | H90: ='App.2-AB_Capital Expenditures'!AE17 -> 0
A91: ='LDC Info'!$E$14 -> 0 | B91: 0 | C91: 2021 | D91: 2020 | E91: 2014 | F91: System Renewal | G91: ='App.2-AB_Capital Expenditures'!AE14 -> 2023 | H91: ='App.2-AB_Capital Expenditures'!AE18 -> 0
A92: ='LDC Info'!$E$14 -> 0 | B92: 0 | C92: 2021 | D92: 2020 | E92: 2014 | F92: System Service | G92: ='App.2-AB_Capital Expenditures'!AE14 -> 2023 | H92: ='App.2-AB_Capital Expenditures'!AE19 -> 0
A93: ='LDC Info'!$E$14 -> 0 | B93: 0 | C93: 2021 | D93: 2020 | E93: 2014 | F93: General Plant | G93: ='App.2-AB_Capital Expenditures'!AE14 -> 2023 | H93: ='App.2-AB_Capital Expenditures'!AE20 -> 0
A94: ='LDC Info'!$E$14 -> 0 | B94: 0 | C94: 2021 | D94: 2020 | E94: 2014 | F94: Total Expenditure | G94: ='App.2-AB_Capital Expenditures'!AE14 -> 2023 | H94: ='App.2-AB_Capital Expenditures'!AE21 -> 0
A95: ='LDC Info'!$E$14 -> 0 | B95: 0 | C95: 2021 | D95: 2020 | E95: 2014 | F95: Capital Contributions | G95: ='App.2-AB_Capital Expenditures'!AE14 -> 2023 | H95: ='App.2-AB_Capital Expenditures'!AE22 -> 0
A96: ='LDC Info'!$E$14 -> 0 | B96: 0 | C96: 2021 | D96: 2020 | E96: 2014 | F96: Net Capital Expenditures | G96: ='App.2-AB_Capital Expenditures'!AE14 -> 2023 | H96: ='App.2-AB_Capital Expenditures'!AE23 -> 0
A97: ='LDC Info'!$E$14 -> 0 | B97: 0 | C97: 2021 | D97: 2020 | E97: 2014 | F97: System O&M | G97: ='App.2-AB_Capital Expenditures'!AE14 -> 2023 | H97: ='App.2-AB_Capital Expenditures'!AE24 -> 0
A98: ='LDC Info'!$E$14 -> 0 | B98: =EBNUMBER -> 0 | C98: =TestYear -> 2021 | D98: =BridgeYear -> 2020 | E98: =RebaseYear -> 2014 | F98: System Access | G98: ='App.2-AB_Capital Expenditures'!AF14 -> 2024 | H98: ='App.2-AB_Capital Expenditures'!AF17 -> 0
A99: ='LDC Info'!$E$14 -> 0 | B99: 0 | C99: 2021 | D99: 2020 | E99: 2014 | F99: System Renewal | G99: ='App.2-AB_Capital Expenditures'!AF14 -> 2024 | H99: ='App.2-AB_Capital Expenditures'!AF18 -> 0
A100: ='LDC Info'!$E$14 -> 0 | B100: 0 | C100: 2021 | D100: 2020 | E100: 2014 | F100: System Service | G100: ='App.2-AB_Capital Expenditures'!AF14 -> 2024 | H100: ='App.2-AB_Capital Expenditures'!AF19 -> 0
A101: ='LDC Info'!$E$14 -> 0 | B101: 0 | C101: 2021 | D101: 2020 | E101: 2014 | F101: General Plant | G101: ='App.2-AB_Capital Expenditures'!AF14 -> 2024 | H101: ='App.2-AB_Capital Expenditures'!AF20 -> 0
A102: ='LDC Info'!$E$14 -> 0 | B102: 0 | C102: 2021 | D102: 2020 | E102: 2014 | F102: Total Expenditure | G102: ='App.2-AB_Capital Expenditures'!AF14 -> 2024 | H102: ='App.2-AB_Capital Expenditures'!AF21 -> 0
A103: ='LDC Info'!$E$14 -> 0 | B103: 0 | C103: 2021 | D103: 2020 | E103: 2014 | F103: Capital Contributions | G103: ='App.2-AB_Capital Expenditures'!AF14 -> 2024 | H103: ='App.2-AB_Capital Expenditures'!AF22 -> 0
A104: ='LDC Info'!$E$14 -> 0 | B104: 0 | C104: 2021 | D104: 2020 | E104: 2014 | F104: Net Capital Expenditures | G104: ='App.2-AB_Capital Expenditures'!AF14 -> 2024 | H104: ='App.2-AB_Capital Expenditures'!AF23 -> 0
A105: ='LDC Info'!$E$14 -> 0 | B105: 0 | C105: 2021 | D105: 2020 | E105: 2014 | F105: System O&M | G105: ='App.2-AB_Capital Expenditures'!AF14 -> 2024 | H105: ='App.2-AB_Capital Expenditures'!AF24 -> 0
A106: ='LDC Info'!$E$14 -> 0 | B106: 0 | C106: 2021 | D106: 2020 | E106: 2014 | F106: System Access | G106: ='App.2-AB_Capital Expenditures'!AG14 -> 2025 | H106: ='App.2-AB_Capital Expenditures'!AG17 -> 0
A107: ='LDC Info'!$E$14 -> 0 | B107: 0 | C107: 2021 | D107: 2020 | E107: 2014 | F107: System Renewal | G107: ='App.2-AB_Capital Expenditures'!AG14 -> 2025 | H107: ='App.2-AB_Capital Expenditures'!AG18 -> 0
A108: ='LDC Info'!$E$14 -> 0 | B108: 0 | C108: 2021 | D108: 2020 | E108: 2014 | F108: System Service | G108: ='App.2-AB_Capital Expenditures'!AG14 -> 2025 | H108: ='App.2-AB_Capital Expenditures'!AG19 -> 0
A109: ='LDC Info'!$E$14 -> 0 | B109: 0 | C109: 2021 | D109: 2020 | E109: 2014 | F109: General Plant | G109: ='App.2-AB_Capital Expenditures'!AG14 -> 2025 | H109: ='App.2-AB_Capital Expenditures'!AG20 -> 0
A110: ='LDC Info'!$E$14 -> 0 | B110: 0 | C110: 2021 | D110: 2020 | E110: 2014 | F110: Total Expenditure | G110: ='App.2-AB_Capital Expenditures'!AG14 -> 2025 | H110: ='App.2-AB_Capital Expenditures'!AG21 -> 0
A111: ='LDC Info'!$E$14 -> 0 | B111: 0 | C111: 2021 | D111: 2020 | E111: 2014 | F111: Capital Contributions | G111: ='App.2-AB_Capital Expenditures'!AG14 -> 2025 | H111: ='App.2-AB_Capital Expenditures'!AG22 -> 0
A112: ='LDC Info'!$E$14 -> 0 | B112: 0 | C112: 2021 | D112: 2020 | E112: 2014 | F112: Net Capital Expenditures | G112: ='App.2-AB_Capital Expenditures'!AG14 -> 2025 | H112: ='App.2-AB_Capital Expenditures'!AG23 -> 0
A113: ='LDC Info'!$E$14 -> 0 | B113: 0 | C113: 2021 | D113: 2020 | E113: 2014 | F113: System O&M | G113: ='App.2-AB_Capital Expenditures'!AG14 -> 2025 | H113: ='App.2-AB_Capital Expenditures'!AG24 -> 0

Sheet App.2-AC_Customer Engagement
B1: File Number: | C1: =EBNUMBER -> 0
B2: Exhibit:
B3: Tab:
B4: Schedule:
B5: Page:
B7: Date:
A9: Appendix 2-AC
A10: Customer Engagement Activities Summary
A12: Provide a list of customer engagement activities | B12: Provide a list of customer needs and preferences identified through each engagement activity | C12: Actions taken to respond to identified needs and preferences. If no action was taken, explain why.
A45: Note: Use "ALT-ENTER" to go to the next line within a cell

Sheet App.2-B_Acctg Instructions
A1: General Instructions to MIFRS Appendices
A2: Types of Schedules to File
A4: The purpose of this tab is to provide general instructions. The specific instructions to each appendix are listed in footnotes of each appendix.
A6: The typical applicant is expected to have made capitalization and depreciation policy changes under CGAAP as permitted by the OEB on January 1, 2012 or mandated by the OEB by January 1, 2013, and adopted IFRS for reporting purposes on January 1, 2015 (transition date January 1, 2014). Most distributors filing for 2021 rates have rebased with these accounting changes reflected in a prior rebasing application. If that is the case, information relating to pre-accounting policy changes is not generally required. Most distributors may have rebased under MIFRS. If that is the case, information related to the accounting standard used prior to IFRS is not generally required. The information to be provided by applicants will depend on when the accounting policy changes were made and when they last rebased. In general, applicants should provide the following information in the appendices:
E9: Reflecting Accounting Policy Changes in Current Application | G9: Reflected Accounting Policy Changes in Prior Application3 | H9: Rebased under MIFRS in Prior Application3
E10: Accounting Policy Changes in 2012 and Adopted IFRS in 2015 | F10: Accounting Policy Changes in 2013 and Adopted IFRS in 2015 | G10: Adopted IFRS in 2015 | H10: IFRS Since 2015
B11: 2021 | C11: Test | E11: MIFRS | F11: MIFRS | G11: MIFRS | H11: MIFRS
A12: Information to be filed in 2019 CoS Application | B12: 2020 | C12: Bridge | E12: MIFRS | F12: MIFRS | G12: MIFRS | H12: MIFRS
B13: 2019 | C13: Bridge | E13: MIFRS | F13: MIFRS | G13: MIFRS | H13: MIFRS
B14: 2018 | C14: Bridge | E14: MIFRS | F14: MIFRS | G14: MIFRS | H14: MIFRS
B15: 2017 | C15: Historical | E15: MIFRS | F15: MIFRS | G15: MIFRS | H15: MIFRS
B16: 2016 | C16: Historical | E16: MIFRS | F16: MIFRS | G16: MIFRS | H16: MIFRS
B17: 2015 | C17: Historical | E17: MIFRS and Revised CGAAP1 | F17: MIFRS and Revised CGAAP1 | G17: MIFRS and Revised CGAAP1 | H17: N/A
B18: 2014 | C18: Historical | E18: Revised CGAAP | F18: CGAAP and Revised CGAAP2 | G18: N/A | H18: N/A
B19: 2013 | C19: Historical | E19: CGAAP and Revised CGAAP2 | F19: N/A | G19: N/A | H19: N/A
A21: 1) For the transition year (2014), the applicant may file two appendices, one under Revised CGAAP and one under MIFRS, depending on the materiality of impacts. See the specific instructions under each appendix below for further details.
A22: 2) For applicants that are reflecting accounting policy changes for the first time in a rebasing application, the applicant must file two appendices in the year that the applicant implemented changes to its capitalization and depreciation policies (2012 or 2013), one before and one after the policy changes.
A23: 3) Applicants should provide CGAAP and Revised CGAAP schedules (i.e. as indicated in the first two columns of the above table) to support balances in Account 1576 if the account has yet to be disposed of.
A26: Appendix 2-BA - Fixed Asset Schedule
A28: Applicants are to provide Appendix 2-BA in accordance with the years and corresponding accounting standards noted in the above table to provide a year over year continuity in fixed assets.
A29: If this is the first application where the applicant is rebasing under MIFRS, the applicant should file two appendices, one under Revised CGAAP and one under MIFRS for the transition year (2014), if the change between Revised CGAAP and MIFRS is material. If the change from the accounting standards is not material, the applicant may choose to only provide one appendix under MIFRS. However, the applicant must also indicate the fixed asset net book value balance under Revised CGAAP, the total dollar value of the change and explain why it is not material.
A33: The applicant must establish the continuity of historical cost for gross assets and accumulated depreciation by asset class by ensuring that the opening balance in the year agrees to the closing balance in the prior year.
A36: Appendix 2-Cx - Depreciation and Amortization
A38: Applicants are to provide Appendix 2-C in accordance with the years and corresponding accounting standards listed in the above table.
A39: Appendix 2-C is to be used under all of the scenarios presented in the table above. In the appendix, the applicant will need to indicate which scenario applies. The appendix is to be duplicated for each year and for each accounting standard required as per the above table.
A40: Depreciation accounting policy changes were mandated by the OEB by January 1, 2013. In general, no further changes to an applicant's depreciation policy (i.e. assets' service lives) are expected after the OEB mandated changes by January 1, 2013, unless a change is determined to be necessary in accordance with the depreciation review required under IFRS. If the applicant has made any changes to its depreciation policy subsequent to the OEB mandated changes, for the year of the change, applicants must quantify the change in depreciation. If there are significant changes to multiple asset classes, the applicant must complete Appendix 2-C before and after the change. Applicants must also explain the nature of the change, the reason for the change, quantify the impact of the change.
A42: Appendix 2-E - Account 1575, IFRS-CGAAP Transitional PP&E Amounts (2-EA), Account 1576, Accounting Changes Under CGAAP (2-EB, 2-EC) CONTACT OEB STAFF IF TAB REQUIRED
A44: 1) For an applicant that has a balance in Account 1576 to dispose:
A45: · | B45: If an applicant changed capitalization and depreciation policies effective January 1, 2012, the applicant must complete Appendix 2-EB
A46: · | B46: If an applicant changed capitalization and depreciation policies effective January 1, 2013, the applicant must complete Appendix 2-EC
A48: 2) For an applicant that has a balance in Account 1575 to dispose:
A49: · | B49: The applicant must complete 2-EA
A50: If the applicant did not make any further PP&E accounting policy changes beyond the capitalization and depreciation policy changes as mandated by the OEB by January 1, 2013 (i.e. no further changes made on transition to IFRS), the applicant must indicate this and does not need to complete Appendix 2-EA.
A54: Appendix 2-Y - Summary of Impacts to Revenue Requirement from Transition to MIFRS CONTACT OEB STAFF IF TAB REQUIRED
A56: Applicants must complete Appendix 2-Y if this is the first rebasing application under MIFRS. An applicant must provide a summary of the dollar impacts of MIFRS to each component of the revenue requirement (e.g. rate base, operating costs, etc.), including the overall impact on the proposed revenue requirement. Accordingly, the applicant must identify financial differences and resulting revenue requirement impacts arising from the adoption of MIFRS as compared to CGAAP. If the applicant is reflecting the changes in capitalization and depreciation policies for the first time in a rebasing application as well, then a comparison between MIFRS and CGAAP before the change in accounting policies should be completed. If the applicant changed capitalization and depreciation policies and reflected these changes in a prior rebasing application, then a comparison between MIFRS and CGAAP after the change in accounting policies should be completed.

Sheet App.2-BA_Fixed Asset Cont
L1: File Number: | M1: =EBNUMBER -> 0
L2: Exhibit:
L3: Tab:
L4: Schedule:
L5: Page:
L7: Date:
A9: Appendix 2-BA
A10: Fixed Asset Continuity Schedule 1
E12: Accounting Standard | F12: CGAAP
E13: Year
D15: Cost | J15: Accumulated Depreciation
A16: CCA Class 2 | B16: OEB Account 3 | C16: Description 3 | D16: Opening Balance | E16: Additions 4 | F16: Disposals 6 | G16: Closing Balance | I16: Opening Balance | J16: Additions | K16: Disposals 6 | L16: Closing Balance | M16: Net Book Value
B17: 1609 | C17: Capital Contributions Paid | G17: =D17+E17+F17 -> 0 | L17: =I17+J17+K17 -> 0 | M17: =G17+L17 -> 0
A18: 12 | B18: 1611 | C18: Computer Software (Formally known as Account 1925) | G18: =D18+E18+F18 -> 0 | L18: =I18+J18+K18 -> 0 | M18: =G18+L18 -> 0
A19: CEC | B19: 1612 | C19: Land Rights (Formally known as Account 1906) | G19: =D19+E19+F19 -> 0 | L19: =I19+J19+K19 -> 0 | M19: =G19+L19 -> 0
A20: N/A | B20: 1805 | C20: Land | G20: =D20+E20+F20 -> 0 | L20: =I20+J20+K20 -> 0 | M20: =G20+L20 -> 0
A21: 47 | B21: 1808 | C21: Buildings | G21: =D21+E21+F21 -> 0 | L21: =I21+J21+K21 -> 0 | M21: =G21+L21 -> 0
A22: 13 | B22: 1810 | C22: Leasehold Improvements | G22: 0 | L22: 0 | M22: 0
A23: 47 | B23: 1815 | C23: Transformer Station Equipment >50 kV | G23: 0 | L23: 0 | M23: 0
A24: 47 | B24: 1820 | C24: Distribution Station Equipment <50 kV | G24: 0 | L24: 0 | M24: 0
A25: 47 | B25: 1825 | C25: Storage Battery Equipment | G25: 0 | L25: 0 | M25: 0
A26: 47 | B26: 1830 | C26: Poles, Towers & Fixtures | G26: 0 | L26: 0 | M26: 0
A27: 47 | B27: 1835 | C27: Overhead Conductors & Devices | G27: 0 | L27: 0 | M27: 0
A28: 47 | B28: 1840 | C28: Underground Conduit | G28: 0 | L28: 0 | M28: 0
A29: 47 | B29: 1845 | C29: Underground Conductors & Devices | G29: 0 | L29: 0 | M29: 0
A30: 47 | B30: 1850 | C30: Line Transformers | G30: 0 | L30: 0 | M30: 0
A31: 47 | B31: 1855 | C31: Services (Overhead & Underground) | G31: 0 | L31: 0 | M31: 0
A32: 47 | B32: 1860 | C32: Meters | G32: 0 | L32: 0 | M32: 0
A33: 47 | B33: 1860 | C33: Meters (Smart Meters) | G33: 0 | L33: 0 | M33: 0
A34: N/A | B34: 1905 | C34: Land | G34: 0 | L34: 0 | M34: 0
A35: 47 | B35: 1908 | C35: Buildings & Fixtures | G35: 0 | L35: 0 | M35: 0
A36: 13 | B36: 1910 | C36: Leasehold Improvements | G36: 0 | L36: 0 | M36: 0
A37: 8 | B37: 1915 | C37: Office Furniture & Equipment (10 years) | G37: 0 | L37: 0 | M37: 0
A38: 8 | B38: 1915 | C38: Office Furniture & Equipment (5 years) | G38: 0 | L38: 0 | M38: 0
A39: 10 | B39: 1920 | C39: Computer Equipment - Hardware | G39: 0 | L39: 0 | M39: 0
A40: 45 | B40: 1920 | C40: Computer Equip.-Hardware(Post Mar. 22/04) | G40: 0 | L40: 0 | M40: 0
A41: 50 | B41: 1920 | C41: Computer Equip.-Hardware(Post Mar. 19/07) | G41: 0 | L41: 0 | M41: 0
A42: 10 | B42: 1930 | C42: Transportation Equipment | G42: 0 | L42: 0 | M42: 0
A43: 8 | B43: 1935 | C43: Stores Equipment | G43: 0 | L43: 0 | M43: 0
A44: 8 | B44: 1940 | C44: Tools, Shop & Garage Equipment | G44: 0 | L44: 0 | M44: 0
A45: 8 | B45: 1945 | C45: Measurement & Testing Equipment | G45: 0 | L45: 0 | M45: 0
A46: 8 | B46: 1950 | C46: Power Operated Equipment | G46: 0 | L46: 0 | M46: 0
A47: 8 | B47: 1955 | C47: Communications Equipment | G47: 0 | L47: 0 | M47: 0
A48: 8 | B48: 1955 | C48: Communication Equipment (Smart Meters) | G48: 0 | L48: 0 | M48: 0
A49: 8 | B49: 1960 | C49: Miscellaneous Equipment | G49: 0 | L49: 0 | M49: 0
A50: 47 | B50: 1970 | C50: Load Management Controls Customer Premises | G50: 0 | L50: 0 | M50: 0
A51: 47 | B51: 1975 | C51: Load Management Controls Utility Premises | G51: 0 | L51: 0 | M51: 0
A52: 47 | B52: 1980 | C52: System Supervisor Equipment | G52: 0 | L52: 0 | M52: 0
A53: 47 | B53: 1985 | C53: Miscellaneous Fixed Assets | G53: 0 | L53: 0 | M53: 0
A54: 47 | B54: 1990 | C54: Other Tangible Property | G54: 0 | L54: 0 | M54: 0
A55: 47 | B55: 1995 | C55: Contributions & Grants | G55: 0 | L55: 0 | M55: 0
A56: 47 | B56: 2440 | C56: Deferred Revenue5 | G56: 0 | L56: =I56+J56+K56 -> 0 | M56: =G56+L56 -> 0
B57: 2005 | C57: Property Under Finance Lease7 | G57: 0 | L57: 0 | M57: 0
C58: Sub-Total | D58: =SUM(D17:D57) -> 0 | E58: =SUM(E17:E57) -> 0 | F58: =SUM(F17:F57) -> 0 | G58: =SUM(G17:G57) -> 0 | I58: =SUM(I17:I57) -> 0 | J58: =SUM(J17:J57) -> 0 | K58: =SUM(K17:K57) -> 0 | L58: =SUM(L17:L57) -> 0 | M58: =SUM(M17:M57) -> 0
C59: Less Socialized Renewable Energy Generation Investments (input as negative) | G59: =D59+E59+F59 -> 0 | L59: =I59+J59+K59 -> 0 | M59: =G59+L59 -> 0
C60: Less Other Non Rate-Regulated Utility Assets (input as negative) | G60: 0 | L60: =I60+J60+K60 -> 0 | M60: 0
C61: Total PP&E | D61: =SUM(D58:D60) -> 0 | E61: =SUM(E58:E60) -> 0 | F61: =SUM(F58:F60) -> 0 | G61: =SUM(G58:G60) -> 0 | I61: =SUM(I58:I60) -> 0 | J61: =SUM(J58:J60) -> 0 | K61: =SUM(K58:K60) -> 0 | L61: =SUM(L58:L60) -> 0 | M61: =SUM(M58:M60) -> 0
C62: Depreciation Expense adj. from gain or loss on the retirement of assets (pool of like assets), if applicable6
C63: Total | J63: =J61+J62 -> 0
I65: Less: Fully Allocated Depreciation
A66: 10 | C66: Transportation | I66: Transportation
A67: 8 | C67: Stores Equipment | I67: Stores Equipment
A68: 47 | C68: Deferred Revenue | I68: Deferred Revenue
I69: Net Depreciation | K69: =J63-K66-K67-K68 -> 0
A71: Notes:
A73: 1 | B73: Tables in the format outlined above covering all fixed asset accounts should be submitted for the Test Year, Bridge Year and all relevant historical years. At a minimum , the applicant must provide data for the earlier of: 1) all historical years back to its last rebasing; or 2) at least three years of historical actuals, in addition to Bridge Year and Test Year forecasts.
A76: 2 | B76: The "CCA Class" for fixed assets should generally agree with the CCA Class used for tax purposes in Tax Returns. Fixed Assets sub-components may be used where the underlying asset components are classified under multiple CCA Classes for tax purposes. If an applicant uses any different classes from those shown in the table, an explanation should be provided. (also see note 3).
A79: 3 | B79: The table may need to be customized for a utility's asset categories or for any new asset accounts announced or authorized by the OEB.
A81: 4 | B81: The additions in column (E) must not include construction work in progress (CWIP).
A83: 5 | B83: Effective on the date of IFRS adoption, customer contributions will no longer be recorded in Account 1995 Contributions & Grants, but will be recorded in Account 2440, Deferred Revenues. Amortization of deferred revenue will be removed from the depreciation expense shown on this fixed asset continuity schedule as it should be included as income in Appendix 2-H Other Revenues.
A85: 6 | B85: The applicant must ensure that all asset disposals have been clearly identified in the Chapter 2 Appendices for all historic, bridge and test years. Where a distributor for general financial reporting purposes under IFRS has accounted for the amount of gain or loss on the retirement of assets in a pool of like assets as a charge or credit to income, for reporting and rate application filings, the distributor shall reclassify such gains and losses as depreciation expense, and disclose the amount separately.
A89: 7 | B89: This account includes the amount recorded under finance leases for plant leased from others and used by the utility in its utility operations.

Sheet Appendix 2-BB Service Life
N1: File Number: | P1: ='LDC Info'!E16 -> 0
N2: Exhibit:
N3: Tab:
N4: Schedule:
N5: Page:
N7: Date:
A9: Appendix 2-BB
A10: Service Life Comparison
A11: Table F-1 from Kinetrics Report1
C15: Asset Details | F15: Useful Life | J15: USoA Account Number | K15: USoA Account Description | L15: Current | N15: Proposed | P15: Outside Range of Min, Max TUL?
A16: Parent* | B16: # | C16: Category| Component | Type | F16: MIN UL | G16: TUL | H16: MAX UL | L16: Years | M16: Rate | N16: Years | O16: Rate | P16: Below Min TUL | Q16: Above Max TUL
A17: OH | B17: 1 | C17: Fully Dressed Wood Poles | D17: Overall | F17: 35 | G17: 45 | H17: 75 | M17: =IF(ISERROR(1/L17), "", 1/L17) ->  | O17: =IF(ISERROR(1/N17), "", 1/N17) ->  | P17: =IF(ISBLANK(N17),"",IF(N17<F17,"Yes","No")) ->  | Q17: =IF(ISBLANK(N17),"",IF(N17>H17,"Yes","No")) -> 
D18: Cross Arm | E18: Wood | F18: 20 | G18: 40 | H18: 55 | M18: =IF(ISERROR(1/L18), "", 1/L18) ->  | O18: =IF(ISERROR(1/N18), "", 1/N18) ->  | P18: =IF(ISBLANK(N18),"",IF(N18<F18,"Yes","No")) ->  | Q18: =IF(ISBLANK(N18),"",IF(N18>H18,"Yes","No")) -> 
E19: Steel | F19: 30 | G19: 70 | H19: 95
B20: 2 | C20: Fully Dressed Concrete Poles | D20: Overall | F20: 50 | G20: 60 | H20: 80
D21: Cross Arm | E21: Wood | F21: 20 | G21: 40 | H21: 55
E22: Steel | F22: 30 | G22: 70 | H22: 95
B23: 3 | C23: Fully Dressed Steel Poles | D23: Overall | F23: 60 | G23: 60 | H23: 80
D24: Cross Arm | E24: Wood | F24: 20 | G24: 40 | H24: 55
E25: Steel | F25: 30 | G25: 70 | H25: 95
B26: 4 | C26: OH Line Switch | F26: 30 | G26: 45 | H26: 55
B27: 5 | C27: OH Line Switch Motor | F27: 15 | G27: 25 | H27: 25
B28: 6 | C28: OH Line Switch RTU | F28: 15 | G28: 20 | H28: 20
B29: 7 | C29: OH Integral Switches | F29: 35 | G29: 45 | H29: 60
B30: 8 | C30: OH Conductors | F30: 50 | G30: 60 | H30: 75
B31: 9 | C31: OH Transformers & Voltage Regulators | F31: 30 | G31: 40 | H31: 60
B32: 10 | C32: OH Shunt Capacitor Banks | F32: 25 | G32: 30 | H32: 40
B33: 11 | C33: Reclosers | F33: 25 | G33: 40 | H33: 55
A34: TS & MS | B34: 12 | C34: Power Transformers | D34: Overall | F34: 30 | G34: 45 | H34: 60
D35: Bushing | F35: 10 | G35: 20 | H35: 30
D36: Tap Changer | F36: 20 | G36: 30 | H36: 60
B37: 13 | C37: Station Service Transformer | F37: 30 | G37: 45 | H37: 55
B38: 14 | C38: Station Grounding Transformer | F38: 30 | G38: 40 | H38: 40
B39: 15 | C39: Station DC System | D39: Overall | F39: 10 | G39: 20 | H39: 30
D40: Battery Bank | F40: 10 | G40: 15 | H40: 15
D41: Charger | F41: 20 | G41: 20 | H41: 30
B42: 16 | C42: Station Metal Clad Switchgear | D42: Overall | F42: 30 | G42: 40 | H42: 60
D43: Removable Breaker | F43: 25 | G43: 40 | H43: 60
B44: 17 | C44: Station Independent Breakers | F44: 35 | G44: 45 | H44: 65
B45: 18 | C45: Station Switch | F45: 30 | G45: 50 | H45: 60
B46: 19 | C46: Electromechanical Relays | F46: 25 | G46: 35 | H46: 50
B47: 20 | C47: Solid State Relays | F47: 10 | G47: 30 | H47: 45
B48: 21 | C48: Digital & Numeric Relays | F48: 15 | G48: 20 | H48: 20
B49: 22 | C49: Rigid Busbars | F49: 30 | G49: 55 | H49: 60
B50: 23 | C50: Steel Structure | F50: 35 | G50: 50 | H50: 90
A51: UG | B51: 24 | C51: Primary Paper Insulated Lead Covered (PILC) Cables | F51: 60 | G51: 65 | H51: 75
B52: 25 | C52: Primary Ethylene-Propylene Rubber (EPR) Cables | F52: 20 | G52: 25 | H52: 25
B53: 26 | C53: Primary Non-Tree Retardant (TR) Cross Linked Polyethylene (XLPE) Cables Direct Buried | F53: 20 | G53: 25 | H53: 30
B54: 27 | C54: Primary Non-TR XLPE Cables in Duct | F54: 20 | G54: 25 | H54: 30
B55: 30 | C55: Secondary PILC Cables | F55: 70 | G55: 75 | H55: 80
B56: 31 | C56: Secondary Cables Direct Buried | F56: 25 | G56: 35 | H56: 40
B57: 32 | C57: Secondary Cables in Duct | F57: 35 | G57: 40 | H57: 60
B58: 33 | C58: Network Tranformers | D58: Overall | F58: 20 | G58: 35 | H58: 50
D59: Protector | F59: 20 | G59: 35 | H59: 40
B60: 34 | C60: Pad-Mounted Transformers | F60: 25 | G60: 40 | H60: 45
B61: 35 | C61: Submersible/Vault Transformers | F61: 25 | G61: 35 | H61: 45
B62: 36 | C62: UG Foundation | F62: 35 | G62: 55 | H62: 70
B63: 37 | C63: UG Vaults | D63: Overall | F63: 40 | G63: 60 | H63: 80
D64: Roof | F64: 20 | G64: 30 | H64: 45
B65: 38 | C65: UG Vault Switches | F65: 20 | G65: 35 | H65: 50
B66: 39 | C66: Pad-Mounted Switchgear | F66: 20 | G66: 30 | H66: 45
B67: 40 | C67: Ducts | F67: 30 | G67: 50 | H67: 85
B68: 41 | C68: Concrete Encased Duct Banks | F68: 35 | G68: 55 | H68: 80
B69: 42 | C69: Cable Chambers | F69: 50 | G69: 60 | H69: 80
A70: S | B70: 43 | C70: Remote SCADA | F70: 15 | G70: 20 | H70: 30
A73: Table F-2 from Kinetrics Report1
C75: Asset Details | F75: Useful Life Range | J75: USoA Account Number | K75: USoA Account Description | L75: Current | N75: Proposed | P75: Outside Range of Min, Max TUL?
B76: # | C76: Category| Component | Type | L76: Years | M76: Rate | N76: Years | O76: Rate | P76: Below Min Range | Q76: Above Max Range
B77: 1 | C77: Office Equipment | F77: 5 | G77: 15 | M77: =IF(ISERROR(1/L77), "", 1/L77) ->  | O77: =IF(ISERROR(1/N77), "", 1/N77) ->  | P77: =IF(ISBLANK(N77),"",IF(N77<F77,"Yes","No")) ->  | Q77: =IF(ISBLANK(N77),"",IF(N77>G77,"Yes","No")) -> 
B78: 2 | C78: Vehicles | D78: Trucks & Buckets | F78: 5 | G78: 15 | M78: =IF(ISERROR(1/L78), "", 1/L78) ->  | O78: =IF(ISERROR(1/N78), "", 1/N78) ->  | P78: =IF(ISBLANK(N78),"",IF(N78<F78,"Yes","No")) ->  | Q78: =IF(ISBLANK(N78),"",IF(N78>G78,"Yes","No")) -> 
D79: Trailers | F79: 5 | G79: 20
D80: Vans | F80: 5 | G80: 10
B81: 3 | C81: Administrative Buildings | F81: 50 | G81: 75
B82: 4 | C82: Leasehold Improvements | F82: Lease dependent | P82: =IF(ISBLANK(N82),"",IF(N82<F82,"Yes","No")) ->  | Q82: =IF(ISBLANK(N82),"",IF(N82>G82,"Yes","No")) -> 
B83: 5 | C83: Station Buildings | D83: Station Buildings | F83: 50 | G83: 75
D84: Parking | F84: 25 | G84: 30
D85: Fence | F85: 25 | G85: 60
D86: Roof | F86: 20 | G86: 30
B87: 6 | C87: Computer Equipment | D87: Hardware | F87: 3 | G87: 5
D88: Software | F88: 2 | G88: 5
B89: 7 | C89: Equipment | D89: Power Operated | F89: 5 | G89: 10
D90: Stores | F90: 5 | G90: 10
D91: Tools, Shop, Garage Equipment | F91: 5 | G91: 10
D92: Measurement & Testing Equipment | F92: 5 | G92: 10
B93: 8 | C93: Communication | D93: Towers | F93: 60 | G93: 70
D94: Wireless | F94: 2 | G94: 10
B95: 9 | C95: Residential Energy Meters | F95: 25 | G95: 35
B96: 10 | C96: Industrial/Commercial Energy Meters | F96: 25 | G96: 35
B97: 11 | C97: Wholesale Energy Meters | F97: 15 | G97: 30
B98: 12 | C98: Current & Potential Transformer (CT & PT) | F98: 35 | G98: 50
B99: 13 | C99: Smart Meters | F99: 5 | G99: 15
B100: 14 | C100: Repeaters - Smart Metering | F100: 10 | G100: 15
B101: 15 | C101: Data Collectors - Smart Metering | F101: 15 | G101: 20
A104: * TS & MS = Transformer and Municipal Stations UG = Underground Systems S = Monitoring and Control Systems
A106: Note 1: | B106: Tables F-1 and F-2 above are to be used as a reference in order to complete columns J, K, L and N.
B107: See pages 17-19 of Kinetrics Report

Sheet App.2-C_DepExp
A9: Appendix 2-C | Y9: CGAAP
A10: Depreciation and Amortization Expense | Y10: Revised CGAAP
Y11: MIFRS
A12: This appendix is to be completed in conjunction with the accounting instructions in Appendix 2-B
A14: Scenario that applies | C14: Applicable Years and Accounting Standard | R14: Year Reflected in Schedule Below | S14: Accounting Standard Reflected in Schedule Below | Y14: 2012
A15: Rebasing for the first time with depreciation policy changes made in 2012. | C15: ="This appendix must be duplicated and completed for the years 2012 to " & TestYear & ". The appendix for 2012 is to be completed under CGAAP (prior to changes in depreciation policies)." &" The appendix for 2012 to 2014 must be completed under Revised CGAAP (after changes in depreciation policies). The appendix for 2014 to " & TestYear & " is to be completed under MIFRS (2014 if changes to MIFRS are material)." -> This appendix must be duplicated and completed for the years 2012 to 2021. The appendix for 2012 is to be completed under CGAAP (prior to changes in depreciation policies). The appendix for 2012 to 2014 must be completed under Revised CGAAP (after changes in depreciation policies). The appendix for 2014 to 2021 is to be completed under MIFRS (2014 if changes to MIFRS are material). | Y15: 2013
A16: Rebasing for the first time with depreciation policy changes made in 2013. | C16: ="This appendix must be duplicated and completed for the years 2013 to " & TestYear & ". The appendix for 2013 is to be completed under CGAAP (prior to changes in depreciation policies)."&" The appendix for 2013 to 2014 must be completed under Revised CGAAP (after changes in depreciation policies). The appendix for 2014 to " & TestYear & " is to be completed under MIFRS (2014 if changes to MIFRS are material)." -> This appendix must be duplicated and completed for the years 2013 to 2021. The appendix for 2013 is to be completed under CGAAP (prior to changes in depreciation policies). The appendix for 2013 to 2014 must be completed under Revised CGAAP (after changes in depreciation policies). The appendix for 2014 to 2021 is to be completed under MIFRS (2014 if changes to MIFRS are material). | Y16: 2014
A17: Already rebased with depreciation policy changes in a prior rate application and rebasing MIFRS for the first time. | C17: This appendix must be completed for 2014 to the test year. The appendix for 2014 is to be completed under Revised CGAAP (after changes in depreciation policies). The appendix for 2014 to the test year is to be completed under MIFRS (2014 if changes to MIFRS are material). | Y17: 2015
A18: Already rebased under MIFRS in a prior rate application | C18: ="This appendix must be completed under MIFRS for each year for the earlier of: 1) all historical years back to its last rebasing; or 2) at least three years of historical actuals, in addition to Bridge Year and Test Year forecasts." -> This appendix must be completed under MIFRS for each year for the earlier of: 1) all historical years back to its last rebasing; or 2) at least three years of historical actuals, in addition to Bridge Year and Test Year forecasts. | Y18: 2016
Y19: 2017
C20: Book Values | J20: Service Lives | N20: Depreciation Expense | Y20: 2018
A21: Account | B21: Description | C21: Opening Net Book Value of Existing Assets as at Date of Policy Change (Jan. 1) 1 | D21: Less Fully Depreciated 7 | E21: Net Amount of Existing Assets Before Policy Change to be Depreciated | F21: Opening Gross Book Value of Assets Acquired After Policy Change 2 | G21: Less Fully Depreciated 8 | H21: Net Amount of Assets Acquired After Policy Change to be Depreciated | I21: Current Year Additions | J21: Average Remaining Life of Assets Existing Before Policy Change 3 | K21: Depreciation Rate Assets Acquired After Policy Change | L21: Life of Assets Acquired After Policy Change 4 | M21: Depreciation Rate on New Additions | N21: Depreciation Expense on Assets Existing Before Policy Change | O21: Depreciation Expense on Assets Acquired After Policy Change | P21: Depreciation Expense on Current Year Additions 5 | Q21: Total Current Year Depreciation Expense | R21: Depreciation Expense per Appendix 2-BA Fixed Assets, Column J | S21: Variance 6
C22: a | D22: b | E22: c = a-b | F22: d | G22: e | H22: f = d- e | I22: g | J22: h | K22: i = 1/h | L22: j | M22: k = 1/j | N22: l = c/h | O22: m = f/j | P22: n = g*0.5/j | Q22: o = l+m+n | R22: p | S22: q = p-o
A23: 1611 | B23: Computer Software (Formally known as Account 1925) | E23: =C23-D23 -> 0 | H23: =F23-G23 -> 0 | K23: =IF(J23=0,0,1/J23) -> 0 | M23: =IF(L23=0,0,1/L23) -> 0 | N23: =IF(J23=0,0,+E23/J23) -> 0 | O23: =IF(L23=0,0,+H23/L23) -> 0 | P23: =IF(L23=0,0,+(I23*0.5)/L23) -> 0 | Q23: =IF(ISERROR(+N23+O23+P23), 0, +N23+O23+P23) -> 0 | S23: =IF(ISERROR(+R23-Q23), 0, +R23-Q23) -> 0
A24: 1612 | B24: Land Rights (Formally known as Account 1906) | E24: =C24-D24 -> 0 | H24: =F24-G24 -> 0 | K24: =IF(J24=0,0,1/J24) -> 0 | M24: =IF(L24=0,0,1/L24) -> 0 | N24: =IF(J24=0,0,+E24/J24) -> 0 | O24: =IF(L24=0,0,+H24/L24) -> 0 | P24: =IF(L24=0,0,+(I24*0.5)/L24) -> 0 | Q24: =IF(ISERROR(+N24+O24+P24), 0, +N24+O24+P24) -> 0 | S24: =IF(ISERROR(+R24-Q24), 0, +R24-Q24) -> 0
A25: 1805 | B25: Land | E25: 0 | H25: 0 | K25: 0 | M25: 0 | N25: 0 | O25: =IF(L25=0,0,+H25/L25) -> 0 | P25: 0 | Q25: 0 | S25: 0
A26: 1808 | B26: Buildings | E26: 0 | H26: 0 | K26: 0 | M26: 0 | N26: 0 | O26: 0 | P26: 0 | Q26: 0 | S26: 0
A27: 1810 | B27: Leasehold Improvements | E27: 0 | H27: 0 | K27: 0 | M27: 0 | N27: 0 | O27: 0 | P27: 0 | Q27: 0 | S27: 0
A28: 1815 | B28: Transformer Station Equipment >50 kV | E28: 0 | H28: 0 | K28: 0 | M28: 0 | N28: 0 | O28: 0 | P28: 0 | Q28: 0 | S28: 0
A29: 1820 | B29: Distribution Station Equipment <50 kV | E29: 0 | H29: 0 | K29: 0 | M29: 0 | N29: 0 | O29: 0 | P29: 0 | Q29: 0 | S29: 0
A30: 1825 | B30: Storage Battery Equipment | E30: 0 | H30: 0 | K30: 0 | M30: 0 | N30: 0 | O30: 0 | P30: 0 | Q30: 0 | S30: 0
A31: 1830 | B31: Poles, Towers & Fixtures | E31: 0 | H31: 0 | K31: 0 | M31: 0 | N31: 0 | O31: 0 | P31: 0 | Q31: 0 | S31: 0
A32: 1835 | B32: Overhead Conductors & Devices | E32: 0 | H32: 0 | K32: 0 | M32: 0 | N32: 0 | O32: 0 | P32: 0 | Q32: 0 | S32: 0
A33: 1840 | B33: Underground Conduit | E33: 0 | H33: 0 | K33: 0 | M33: 0 | N33: 0 | O33: 0 | P33: 0 | Q33: 0 | S33: 0
A34: 1845 | B34: Underground Conductors & Devices | E34: 0 | H34: 0 | K34: 0 | M34: 0 | N34: 0 | O34: 0 | P34: 0 | Q34: 0 | S34: 0
A35: 1850 | B35: Line Transformers | E35: 0 | H35: 0 | K35: 0 | M35: 0 | N35: 0 | O35: 0 | P35: 0 | Q35: 0 | S35: 0
A36: 1855 | B36: Services (Overhead & Underground) | E36: 0 | H36: 0 | K36: 0 | M36: 0 | N36: 0 | O36: 0 | P36: 0 | Q36: 0 | S36: 0
A37: 1860 | B37: Meters | E37: 0 | H37: 0 | K37: 0 | M37: 0 | N37: 0 | O37: 0 | P37: 0 | Q37: 0 | S37: 0
A38: 1860 | B38: Meters (Smart Meters) | E38: 0 | H38: 0 | K38: 0 | M38: 0 | N38: 0 | O38: 0 | P38: 0 | Q38: 0 | S38: 0
A39: 1905 | B39: Land | E39: 0 | H39: 0 | K39: 0 | M39: 0 | N39: 0 | O39: 0 | P39: 0 | Q39: 0 | S39: 0
A40: 1908 | B40: Buildings & Fixtures | E40: 0 | H40: 0 | K40: 0 | M40: 0 | N40: 0 | O40: 0 | P40: 0 | Q40: 0 | S40: 0
A41: 1910 | B41: Leasehold Improvements | E41: 0 | H41: 0 | K41: 0 | M41: 0 | N41: 0 | O41: 0 | P41: 0 | Q41: 0 | S41: 0
A42: 1915 | B42: Office Furniture & Equipment (10 years) | E42: 0 | H42: 0 | K42: 0 | M42: 0 | N42: 0 | O42: 0 | P42: 0 | Q42: 0 | S42: 0
A43: 1915 | B43: Office Furniture & Equipment (5 years) | E43: 0 | H43: 0 | K43: 0 | M43: 0 | N43: 0 | O43: 0 | P43: 0 | Q43: 0 | S43: 0
A44: 1920 | B44: Computer Equipment - Hardware | E44: 0 | H44: 0 | K44: 0 | M44: 0 | N44: 0 | O44: 0 | P44: 0 | Q44: 0 | S44: 0
A45: 1920 | B45: Computer Equip.-Hardware(Post Mar. 22/04) | E45: 0 | H45: 0 | K45: 0 | M45: 0 | N45: 0 | O45: 0 | P45: 0 | Q45: 0 | S45: 0
A46: 1920 | B46: Computer Equip.-Hardware(Post Mar. 19/07) | E46: 0 | H46: 0 | K46: 0 | M46: 0 | N46: 0 | O46: 0 | P46: 0 | Q46: 0 | S46: 0
A47: 1930 | B47: Transportation Equipment | E47: 0 | H47: 0 | K47: 0 | M47: 0 | N47: 0 | O47: 0 | P47: 0 | Q47: 0 | S47: 0
A48: 1935 | B48: Stores Equipment | E48: 0 | H48: 0 | K48: 0 | M48: 0 | N48: 0 | O48: 0 | P48: 0 | Q48: 0 | S48: 0
A49: 1940 | B49: Tools, Shop & Garage Equipment | E49: 0 | H49: 0 | K49: 0 | M49: 0 | N49: 0 | O49: 0 | P49: 0 | Q49: 0 | S49: 0
A50: 1945 | B50: Measurement & Testing Equipment | E50: 0 | H50: 0 | K50: 0 | M50: 0 | N50: 0 | O50: 0 | P50: 0 | Q50: 0 | S50: 0
A51: 1950 | B51: Power Operated Equipment | E51: 0 | H51: 0 | K51: 0 | M51: 0 | N51: 0 | O51: 0 | P51: 0 | Q51: 0 | S51: 0
A52: 1955 | B52: Communications Equipment | E52: 0 | H52: 0 | K52: 0 | M52: 0 | N52: 0 | O52: 0 | P52: 0 | Q52: 0 | S52: 0
A53: 1955 | B53: Communication Equipment (Smart Meters) | E53: 0 | H53: 0 | K53: 0 | M53: 0 | N53: 0 | O53: 0 | P53: 0 | Q53: 0 | S53: 0
A54: 1960 | B54: Miscellaneous Equipment | E54: 0 | H54: 0 | K54: 0 | M54: 0 | N54: 0 | O54: 0 | P54: 0 | Q54: 0 | S54: 0
A55: 1970 | B55: Load Management Controls Customer Premises | E55: 0 | H55: 0 | K55: 0 | M55: 0 | N55: 0 | O55: 0 | P55: 0 | Q55: 0 | S55: 0
A56: 1975 | B56: Load Management Controls Utility Premises | E56: 0 | H56: 0 | K56: 0 | M56: 0 | N56: 0 | O56: 0 | P56: 0 | Q56: 0 | S56: 0
A57: 1980 | B57: System Supervisor Equipment | E57: 0 | H57: 0 | K57: 0 | M57: 0 | N57: 0 | O57: 0 | P57: 0 | Q57: 0 | S57: 0
A58: 1985 | B58: Miscellaneous Fixed Assets | E58: 0 | H58: 0 | K58: 0 | M58: 0 | N58: 0 | O58: 0 | P58: 0 | Q58: 0 | S58: 0
A59: 1990 | B59: Other Tangible Property | E59: 0 | H59: 0 | K59: 0 | M59: 0 | N59: 0 | O59: 0 | P59: 0 | Q59: 0 | S59: 0
A60: 1995 | B60: Contributions & Grants | E60: 0 | H60: 0 | K60: 0 | M60: 0 | N60: 0 | O60: 0 | P60: 0 | Q60: 0 | S60: 0
A61: 2005 | B61: Property Under Finance Lease | E61: 0 | H61: 0 | K61: 0 | M61: 0 | N61: 0 | O61: =IF(L61=0,0,+H61/L61) -> 0 | P61: =IF(L61=0,0,+(I61*0.5)/L61) -> 0 | Q61: =IF(ISERROR(+N61+O61+P61), 0, +N61+O61+P61) -> 0 | S61: 0
B62: Total | C62: =SUM(C23:C61) -> 0 | D62: =SUM(D23:D61) -> 0 | E62: =SUM(E23:E61) -> 0 | F62: 0 | G62: 0 | H62: 0 | I62: 0 | N62: =SUM(N23:N61) -> 0 | O62: =SUM(O23:O61) -> 0 | P62: 0 | Q62: 0 | R62: 0 | S62: 0
A65: General: | B65: Applicants are to complete this appendix to show the reasonability of the depreciation expense that is included in rate base via. Accumulated depreciation and the revenue requirement.
B66: Applicants must provide a breakdown of depreciation and amortization expense in the above format for all relevant accounts. Balances presented in the table should exclude asset retirement obligations (AROs) and the related depreciation and accretion expense. These should be disclosed separately consistent with the Notes of historical Audited Financial Statements.
A69: Notes:
A70: 1 | B70: This is the net book value of assets that existed as at the date of the utility's change in depreciation policies (i.e. as at Jan. 1, 2012 or Jan. 1, 2013). These assets are to be depreciated at the average remaining service life. This amount will not change in years subsequent to the date of the utility's change in depreciation policies. This column is expected to be used until the assets that existed as at the date of the utility's change in depreciation policies are fully depreciated.
A71: 2 | B71: This is the opening gross book value of assets that have been acquired after the date of the utility's change in depreciation policies (i.e. additions starting in 2012/2013 for those who changed policies Jan. 1, 2012/2013). These assets are to be depreciated at the revised service life. The amount is expected to be equal to the opening gross book value of the prior year plus the prior year's additions.
A72: 3 | B72: A recalculation should be performed to determine the average remaining life of opening balance of assets (i.e. excluding current year's additions) under the change in policies under CGAAP. For example, Asset A had a useful life of 20 years under CGAAP without the change in policies. On January 1 of the year of policy changes, Asset A was 3 years depreciated. As a result, Asset A would have a remaining service life of 17 years (20 years less 3 years) as at January 1 of the year of policy changes. Due to making the change in policies under CGAAP, management re-assessed the asset useful lives and concluded that the revised useful life of Asset A is now 30 years. Therefore, the average remaining useful life of the opening balance of Asset A is determined to be 27 years (30 years less 3 years) under the revised CGAAP as at January 1 of the year of policy changes.
A73: 4 | B73: The useful life used should be consistent with the OEB's regulatory accounting policies as set out in the Accounting Procedures Handbook for Electricity Distributors, effective Jan. 1, 2012 and also with the Report of the Board, Transition to International Financial Reporting Standards, EB-2008-0408, and the Kinectrics Report.
A74: 5 | B74: OEB policy of the "half-year" rule - the applicant must ensure that additions in the year attract a half-year depreciation expense in the first year. Deviations from this standard practice must be supported in the application.
A75: 6 | B75: The applicant must provide an explanation of material variances in evidence.
A76: 7 | B76: This should include assets in column A (excel column C) that become fully depreciated since the date of the policy change. The amount input in b (excel column D) should equal the net book value of the asset as at the date of depreciation policy change
A77: 8 | B77: This should include assets in column D (excel column F) that have become fully depreciated. The amount input in e (excel column G) should equal the gross book value of the asset

Sheet App.2-D_Overhead
G1: File Number: | H1: =EBNUMBER -> 0
G2: Exhibit:
G3: Tab:
G4: Schedule:
G5: Page:
G7: Date:
A9: Appendix 2-D
A10: Overhead Expense
A12: Applicants are to provide a breakdown of OM&A before capitalization in the below table. OM&A before capitalization may be broken down by cost center, program, drivers or another format best suited to focus on capitalized vs. uncapitalized OM&A.
A14: OM&A Before Capitalization
B15: =F15-4 -> 2017 | C15: =F15-3 -> 2018 | D15: =F15-2 -> 2019 | E15: =F15-1 -> 2020 | F15: =TestYear -> 2021
B16: Historical Year | C16: Historical Year | D16: Historical Year | E16: Bridge Year | F16: Test Year
A27: Total OM&A Before Capitalization (B) | B27: =SUM(B17:B26) -> 0 | C27: =SUM(C17:C26) -> 0 | D27: =SUM(D17:D26) -> 0 | E27: =SUM(E17:E26) -> 0 | F27: =SUM(F17:F26) -> 0
A29: Applicants are to provide a breakdown of capitalized OM&A in the below table. Capitalized OM&A may be broken down using the categories listed in the table below if possible. Otherwise, applicants are to provide its own break down of capitalized OM&A.
A31: Capitalized OM&A | G31: Directly | H31: Explanation for Change in Overhead Capitalized
B32: =F32-4 -> 2017 | C32: =F32-3 -> 2018 | D32: =F32-2 -> 2019 | E32: =F32-1 -> 2020 | F32: =TestYear -> 2021 | G32: Attributable?
B33: Historical Year | C33: Historical Year | D33: Historical Year | E33: Bridge Year | F33: Test Year | G33: (Yes/No)
A34: employee benefits
A35: costs of site preparation
A36: initial delivery and handling costs
A37: costs of testing whether the asset is functioning properly
A38: professional fees
A40: costs of opening a new facility
A41: costs of introducing a new product or service (including costs of advertising and promotional activities)
A42: costs of conducting business in a new location or with a new class of customer (including costs of staff training)
A43: administration and other general overhead costs
A45: Insert description of additional item(s) and new rows if needed
A47: Total Capitalized OM&A (A) | B47: =SUM(B34:B46) -> 0 | C47: =SUM(C34:C46) -> 0 | D47: =SUM(D34:D46) -> 0 | E47: =SUM(E34:E46) -> 0 | F47: =SUM(F34:F46) -> 0
A49: % of Capitalized OM&A (=A/B) | B49: =IF(ISERROR(B47/B27),"0%",B47/B27) -> 0% | C49: =IF(ISERROR(C47/C27),"0%",C47/C27) -> 0% | D49: =IF(ISERROR(D47/D27),"0%",D47/D27) -> 0% | E49: =IF(ISERROR(E47/E27),"0%",E47/E27) -> 0% | F49: =IF(ISERROR(F47/F27),"0%",F47/F27) -> 0%

Sheet App.2-EA_Account 1575 (2015) (hidden)
H1: File Number: | I1: =EBNUMBER -> 0
H2: Exhibit:
H3: Tab:
H4: Schedule:
H5: Page:
H7: Date:
A9: Appendix 2-EA
A10: Account 1575 - IFRS-CGAAP Transitional PP&E Amounts
A11: 2015 Adopters of IFRS for Financial Reporting Purposes
A13: For applicants that adopted IFRS on January 1, 2015 for financial reporting purposes
B17: 2014 | C17: =TestYear-3 -> 2018 | D17: =TestYear-2 -> 2019 | E17: =CONCATENATE(TestYear-1," Bridge Year") -> 2020 Bridge Year | F17: =CONCATENATE(TestYear," Rebasing Year") -> 2021 Rebasing Year
A18: Reporting Basis | B18: CGAAP | C18: CGAAP | D18: CGAAP | E18: MIFRS | F18: MIFRS
B19: Actual | C19: Actual | D19: Actual | E19: Forecast | F19: Forecast
D20: $ | E20: $
A21: PP&E Values under CGAAP
A22: Opening net PP&E - Note 1 | C22: =+B25 -> 0 | D22: =+C25 -> 0 | E22: =+D25 -> 0
A23: Net Additions - Note 4
A24: Net Depreciation (amounts should be negative) - Note 4
A25: Closing net PP&E (1) | B25: =SUM(B22:B24) -> 0 | C25: =SUM(C22:C24) -> 0 | D25: =SUM(D22:D24) -> 0 | E25: =SUM(E22:E24) -> 0
A27: PP&E Values under MIFRS (Starts from 2014, the transition year)
A28: Opening net PP&E - Note 1 | C28: =+B31 -> 0 | D28: =+C31 -> 0 | E28: =+D31 -> 0
A29: Net Additions - Note 4
A30: Net Depreciation (amounts should be negative) - Note 4
A31: Closing net PP&E (2) | B31: =SUM(B28:B30) -> 0 | C31: =SUM(C28:C30) -> 0 | D31: =SUM(D28:D30) -> 0 | E31: =SUM(E28:E30) -> 0
A33: Difference in Closing net PP&E, former CGAAP vs. revised CGAAP | B33: =B25-B31 -> 0 | C33: =C25-C31 -> 0 | D33: =D25-D31 -> 0 | E33: =E25-E31 -> 0
A36: Effect on Deferral and Variance Account Rate Riders
A37: Closing balance in Account 1575 | F37: =IF(ISERROR(E33), 0, E33) -> 0 | H37: WACC
A38: Return on Rate Base Associated with Account 1575 balance at WACC - Note 2 | F38: =E33*I37*I38 -> 0 | G38: # of years of rate rider disposition period
A39: Amount included in Deferral and Variance Account Rate Rider Calculation | F39: =F37+F38 -> 0
A41: Notes:
A42: 1 For an applicant that adopted IFRS on January 1, 2015, the PP&E values as of January 1, 2014 under both CGAAP and MIFRS should be the same.
A43: 2 Return on rate base associated with deferred balance is calculated as:
A44: the deferral account closing balance as of 2017 x WACC X # of years of rate rider disposition period
A45: * Please note that the calculation should be adjusted once WACC is updated and finalized in the rate application.
A46: 3 The PP&E deferral account is cleared by including the total balance in the deferral and variance account rate rider calculation.
A47: 4 Net additions are additions net of disposals; Net depreciation is additions to depreciation net of disposals.

Sheet App.2-EB_Account 1576 (2012) (hidden)
K1: File Number: | L1: =EBNUMBER -> 0
K2: Exhibit:
K3: Tab:
K4: Schedule:
K5: Page:
K7: Date:
A9: Appendix 2-EB
A10: Account 1576 - Accounting Changes under CGAAP
A11: 2012 Changes in Accounting Policies under CGAAP
A13: For applicants with a balance in Account 1576 and made capitalization and depreciation expense accounting policy changes under CGAAP effective January 1, 2012. This is the first time the applicant is rebasing with changes in these accounting policies.
B17: Prior Years Rebasing | C17: 2012 | D17: 2013 | E17: 2014 | F17: 2015 | G17: 2016 | H17: 2017 | I17: 2018 Rebasing Year
A18: Reporting Basis | B18: CGAAP | C18: CGAAP | D18: CGAAP | E18: CGAAP | F18: MIFRS - Note 5 | G18: MIFRS | H18: MIFRS | I18: MIFRS
B19: Forecast | C19: Actual | D19: Actual | E19: Actual | F19: Actual | G19: Actual | H19: Forecast | I19: Forecast
C20: $ | D20: $ | E20: $ | F20: $ | G20: $ | H20: $
A21: PP&E Values under former CGAAP
A22: Opening net PP&E - Note 1 | D22: =+C25 -> 0 | E22: =+D25 -> 0 | F22: =+E25 -> 0 | G22: =+F25 -> 0 | H22: =+G25 -> 0
A23: Net Additions - Note 4
A24: Net Depreciation (amounts should be negative) - Note 4
A25: Closing net PP&E (1) | C25: =C22+C23+C24 -> 0 | D25: 0 | E25: 0 | F25: 0 | G25: 0 | H25: 0
A27: PP&E Values under revised CGAAP (Starts from 2012)
A28: Opening net PP&E - Note 1 | D28: =+C31 -> 0 | E28: =+D31 -> 0 | F28: =+E31 -> 0 | G28: =+F31 -> 0 | H28: =+G31 -> 0
A29: Net Additions - Note 4
A30: Net Depreciation (amounts should be negative) - Note 4
A31: Closing net PP&E (2) | C31: =SUM(C28:C30) -> 0 | D31: 0 | E31: 0 | F31: 0 | G31: 0 | H31: 0
A33: Difference in Closing net PP&E, former CGAAP vs. revised CGAAP | C33: =C25-C31 -> 0 | D33: 0 | E33: 0 | F33: 0 | G33: 0 | H33: 0
A36: Effect on Deferral and Variance Account Rate Riders
A37: Closing balance in Account 1576 | I37: =IF(ISERROR(H33), 0, H33) -> 0 | K37: WACC
A38: Return on Rate Base Associated with Account 1576 balance at WACC - Note 2 | I38: =H33*L37*L38 -> 0 | J38: # of years of rate rider disposition period
A39: Amount included in Deferral and Variance Account Rate Rider Calculation | I39: =I37+I38 -> 0
A41: Notes:
A42: 1 For an applicant that made the capitalization and depreciation expense accounting policy changes on January 1, 2012, the PP&E values as of January 1, 2012 under both former CGAAP and revised CGAAP should be the same.
A43: 2 Return on rate base associated with Account 1576 balance is calculated as:
A44: the variance account ending balance as of 2017 x WACC X # of years of rate rider disposition period
A45: * Please note that the calculation should be adjusted once WACC is updated and finalized in the rate application.
A46: 3 Account 1576 is cleared by including the total balance in the deferral and variance account rate rider calculation.
A47: 4 Net additions are additions net of disposals; Net depreciation is additions to depreciation net of disposals.
A48: 5 Differences due to the adoption of MIFRS are to be shown separately in Account 1575 in Appendix 2-EA as Accounts 1575 and 1576 cannot be used interchangably.

Sheet App.2-EC_Account 1576 (2013) (hidden)
J1: File Number: | K1: =EBNUMBER -> 0
J2: Exhibit:
J3: Tab:
J4: Schedule:
J5: Page:
J7: Date:
A9: Appendix 2-EC
A10: Account 1576 - Accounting Changes under CGAAP
A11: 2013 Changes in Accounting Policies under CGAAP
A13: For applicants with a balance in Account 1576 and made capitalization and depreciation expense accounting policy changes under CGAAP effective January 1, 2013. This is the first time the applicant is rebasing with changes in these accounting policies.
B17: Prior Years Rebasing | C17: 2013 | D17: 2014 | E17: 2015 | F17: 2016 | G17: 2017 | H17: 2018 Rebasing Year
A18: Reporting Basis | B18: CGAAP | C18: CGAAP | D18: CGAAP | E18: MIFRS - Note 5 | F18: MIFRS | G18: MIFRS | H18: MIFRS
B19: Actual | C19: Actual | D19: Actual | E19: Actual | F19: Actual | G19: Forecast | H19: Forecast
C20: $ | D20: $ | F20: $
A21: PP&E Values under former CGAAP
A22: Opening net PP&E - Note 1 | D22: =+C25 -> 0 | E22: =+D25 -> 0 | F22: =+E25 -> 0 | G22: =+F25 -> 0
A23: Net Additions - Note 4
A24: Net Depreciation (amounts should be negative) - Note 4
A25: Closing net PP&E (1) | C25: =C22+C23+C24 -> 0 | D25: =D22+D23+D24 -> 0 | E25: =E22+E23+E24 -> 0 | F25: =F22+F23+F24 -> 0 | G25: =G22+G23+G24 -> 0
A27: PP&E Values under revised CGAAP (Starts from 2012)
A28: Opening net PP&E - Note 1 | D28: =+C31 -> 0 | E28: =+D31 -> 0 | F28: =+E31 -> 0 | G28: =+F31 -> 0
A29: Net Additions - Note 4
A30: Net Depreciation (amounts should be negative) - Note 4
A31: Closing net PP&E (2) | C31: =SUM(C28:C30) -> 0 | D31: =SUM(D28:D30) -> 0 | E31: =SUM(E28:E30) -> 0 | F31: =SUM(F28:F30) -> 0 | G31: =SUM(G28:G30) -> 0
A33: Difference in Closing net PP&E, former CGAAP vs. revised CGAAP | C33: =C25-C31 -> 0 | D33: =D25-D31 -> 0 | E33: =E25-E31 -> 0 | F33: =F25-F31 -> 0 | G33: =G25-G31 -> 0
A36: Effect on Deferral and Variance Account Rate Riders
A37: Closing balance in Account 1576 | H37: =IF(ISERROR(G33), 0, G33) -> 0 | J37: WACC
A38: Return on Rate Base Associated with Account 1576 balance at WACC - Note 2 | H38: =G33*K37*K38 -> 0 | I38: # of years of rate rider disposition period
A39: Amount included in Deferral and Variance Account Rate Rider Calculation | H39: =H37+H38 -> 0
A41: Notes:
A42: 1 For an applicant that made the capitalization and depreciation expense accounting policy changes on January 1, 2013, the PP&E values as of January 1, 2013 under both former CGAAP and revised CGAAP should be the same.
A43: 2 Return on rate base associated with Account 1576 balance is calculated as:
A44: the variance account ending balance as of 2017 x WACC X # of years of rate rider disposition period
A45: * Please note that the calculation should be adjusted once WACC is updated and finalized in the rate application.
A46: 3 Account 1576 is cleared by including the total balance in the deferral and variance account rate rider calculation.
A47: 4 Net additions are additions net of disposals; Net depreciation is additions to depreciation net of disposals.
A48: 5 Differences due to the adoption of MIFRS are to be shown separately in Account 1575 in Appendix 2-EA as Accounts 1575 and 1576 cannot be used interchangably.

Sheet Hidden_REG Invest. (hidden)
A1: Utility Name | B1: EB Number | C1: Test Year | D1: Bridge Year | E1: Last Rebasing Year | F1: Renewable Generation Connection Investment Summary | G1: Year | H1: Amount
A2: ='LDC Info'!$E$14 -> 0 | B2: =EBNUMBER -> 0 | C2: =TestYear -> 2021 | D2: =BridgeYear -> 2020 | E2: =RebaseYear -> 2014 | F2: REI Investments_A_Total Capital Costs | G2: ='App.2-FA Proposed REG Invest.'!$C$31 -> 2016 | H2: ='App.2-FA Proposed REG Invest.'!C62 -> 0
A3: ='LDC Info'!$E$14 -> 0 | B3: 0 | C3: 2021 | D3: 2020 | E3: 2014 | F3: REI Investments_A_Total OM&A Start-Up | G3: ='App.2-FA Proposed REG Invest.'!$C$31 -> 2016 | H3: ='App.2-FA Proposed REG Invest.'!$C63 -> 0
A4: ='LDC Info'!$E$14 -> 0 | B4: 0 | C4: 2021 | D4: 2020 | E4: 2014 | F4: REI Investments_A_Total OM&A Ongoing | G4: ='App.2-FA Proposed REG Invest.'!$C$31 -> 2016 | H4: ='App.2-FA Proposed REG Invest.'!$C64 -> 0
A5: ='LDC Info'!$E$14 -> 0 | B5: 0 | C5: 2021 | D5: 2020 | E5: 2014 | F5: REI Investments_A_Total Capital Costs | G5: ='App.2-FA Proposed REG Invest.'!$D$31 -> 2017 | H5: ='App.2-FA Proposed REG Invest.'!D62 -> 0
A6: ='LDC Info'!$E$14 -> 0 | B6: 0 | C6: 2021 | D6: 2020 | E6: 2014 | F6: REI Investments_A_Total OM&A Start-Up | G6: ='App.2-FA Proposed REG Invest.'!$D$31 -> 2017 | H6: ='App.2-FA Proposed REG Invest.'!D63 -> 0
A7: ='LDC Info'!$E$14 -> 0 | B7: 0 | C7: 2021 | D7: 2020 | E7: 2014 | F7: REI Investments_A_Total OM&A Ongoing | G7: ='App.2-FA Proposed REG Invest.'!$D$31 -> 2017 | H7: ='App.2-FA Proposed REG Invest.'!D64 -> 0
A8: ='LDC Info'!$E$14 -> 0 | B8: 0 | C8: 2021 | D8: 2020 | E8: 2014 | F8: REI Investments_A_Total Capital Costs | G8: ='App.2-FA Proposed REG Invest.'!$E$31 -> 2018 | H8: ='App.2-FA Proposed REG Invest.'!E62 -> 0
A9: ='LDC Info'!$E$14 -> 0 | B9: 0 | C9: 2021 | D9: 2020 | E9: 2014 | F9: REI Investments_A_Total OM&A Start-Up | G9: ='App.2-FA Proposed REG Invest.'!$E$31 -> 2018 | H9: ='App.2-FA Proposed REG Invest.'!E63 -> 0
A10: ='LDC Info'!$E$14 -> 0 | B10: 0 | C10: 2021 | D10: 2020 | E10: 2014 | F10: REI Investments_A_Total OM&A Ongoing | G10: ='App.2-FA Proposed REG Invest.'!$E$31 -> 2018 | H10: ='App.2-FA Proposed REG Invest.'!E64 -> 0
A11: ='LDC Info'!$E$14 -> 0 | B11: 0 | C11: 2021 | D11: 2020 | E11: 2014 | F11: REI Investments_A_Total Capital Costs | G11: ='App.2-FA Proposed REG Invest.'!$F$31 -> 2019 | H11: ='App.2-FA Proposed REG Invest.'!F62 -> 0
A12: ='LDC Info'!$E$14 -> 0 | B12: 0 | C12: 2021 | D12: 2020 | E12: 2014 | F12: REI Investments_A_Total OM&A Start-Up | G12: ='App.2-FA Proposed REG Invest.'!$F$31 -> 2019 | H12: ='App.2-FA Proposed REG Invest.'!F63 -> 0
A13: ='LDC Info'!$E$14 -> 0 | B13: 0 | C13: 2021 | D13: 2020 | E13: 2014 | F13: REI Investments_A_Total OM&A Ongoing | G13: ='App.2-FA Proposed REG Invest.'!$F$31 -> 2019 | H13: ='App.2-FA Proposed REG Invest.'!F64 -> 0
A14: ='LDC Info'!$E$14 -> 0 | B14: 0 | C14: 2021 | D14: 2020 | E14: 2014 | F14: REI Investments_A_Total Capital Costs | G14: ='App.2-FA Proposed REG Invest.'!$G$31 -> 2020 | H14: ='App.2-FA Proposed REG Invest.'!G62 -> 0
A15: ='LDC Info'!$E$14 -> 0 | B15: 0 | C15: 2021 | D15: 2020 | E15: 2014 | F15: REI Investments_A_Total OM&A Start-Up | G15: ='App.2-FA Proposed REG Invest.'!$G$31 -> 2020 | H15: ='App.2-FA Proposed REG Invest.'!G63 -> 0
A16: ='LDC Info'!$E$14 -> 0 | B16: 0 | C16: 2021 | D16: 2020 | E16: 2014 | F16: REI Investments_A_Total OM&A Ongoing | G16: ='App.2-FA Proposed REG Invest.'!$G$31 -> 2020 | H16: ='App.2-FA Proposed REG Invest.'!G64 -> 0
A17: ='LDC Info'!$E$14 -> 0 | B17: 0 | C17: 2021 | D17: 2020 | E17: 2014 | F17: REI Investments_A_Total Capital Costs | G17: ='App.2-FA Proposed REG Invest.'!$H$31 -> 2021 | H17: ='App.2-FA Proposed REG Invest.'!H62 -> 0
A18: ='LDC Info'!$E$14 -> 0 | B18: 0 | C18: 2021 | D18: 2020 | E18: 2014 | F18: REI Investments_A_Total OM&A Start-Up | G18: ='App.2-FA Proposed REG Invest.'!$H$31 -> 2021 | H18: ='App.2-FA Proposed REG Invest.'!H63 -> 0
A19: ='LDC Info'!$E$14 -> 0 | B19: 0 | C19: 2021 | D19: 2020 | E19: 2014 | F19: REI Investments_A_Total OM&A Ongoing | G19: ='App.2-FA Proposed REG Invest.'!$H$31 -> 2021 | H19: ='App.2-FA Proposed REG Invest.'!H64 -> 0
A20: ='LDC Info'!$E$14 -> 0 | B20: 0 | C20: 2021 | D20: 2020 | E20: 2014 | F20: REI Investments_A_Total Capital Costs | G20: ='App.2-FA Proposed REG Invest.'!$I$31 -> 2022 | H20: ='App.2-FA Proposed REG Invest.'!I62 -> 0
A21: ='LDC Info'!$E$14 -> 0 | B21: 0 | C21: 2021 | D21: 2020 | E21: 2014 | F21: REI Investments_A_Total OM&A Start-Up | G21: ='App.2-FA Proposed REG Invest.'!$I$31 -> 2022 | H21: ='App.2-FA Proposed REG Invest.'!I63 -> 0
A22: ='LDC Info'!$E$14 -> 0 | B22: 0 | C22: 2021 | D22: 2020 | E22: 2014 | F22: REI Investments_A_Total OM&A Ongoing | G22: ='App.2-FA Proposed REG Invest.'!$I$31 -> 2022 | H22: ='App.2-FA Proposed REG Invest.'!I64 -> 0
A23: ='LDC Info'!$E$14 -> 0 | B23: 0 | C23: 2021 | D23: 2020 | E23: 2014 | F23: REI Investments_A_Total Capital Costs | G23: ='App.2-FA Proposed REG Invest.'!$J$31 -> 2023 | H23: ='App.2-FA Proposed REG Invest.'!J62 -> 0
A24: ='LDC Info'!$E$14 -> 0 | B24: 0 | C24: 2021 | D24: 2020 | E24: 2014 | F24: REI Investments_A_Total OM&A Start-Up | G24: ='App.2-FA Proposed REG Invest.'!$J$31 -> 2023 | H24: ='App.2-FA Proposed REG Invest.'!J63 -> 0
A25: ='LDC Info'!$E$14 -> 0 | B25: 0 | C25: 2021 | D25: 2020 | E25: 2014 | F25: REI Investments_A_Total OM&A Ongoing | G25: ='App.2-FA Proposed REG Invest.'!$J$31 -> 2023 | H25: ='App.2-FA Proposed REG Invest.'!J64 -> 0
A26: ='LDC Info'!$E$14 -> 0 | B26: 0 | C26: 2021 | D26: 2020 | E26: 2014 | F26: REI Investments_A_Total Capital Costs | G26: ='App.2-FA Proposed REG Invest.'!$K$31 -> 2024 | H26: ='App.2-FA Proposed REG Invest.'!K62 -> 0
A27: ='LDC Info'!$E$14 -> 0 | B27: 0 | C27: 2021 | D27: 2020 | E27: 2014 | F27: REI Investments_A_Total OM&A Start-Up | G27: ='App.2-FA Proposed REG Invest.'!$K$31 -> 2024 | H27: ='App.2-FA Proposed REG Invest.'!K63 -> 0
A28: ='LDC Info'!$E$14 -> 0 | B28: 0 | C28: 2021 | D28: 2020 | E28: 2014 | F28: REI Investments_A_Total OM&A Ongoing | G28: ='App.2-FA Proposed REG Invest.'!$K$31 -> 2024 | H28: ='App.2-FA Proposed REG Invest.'!K64 -> 0
A29: ='LDC Info'!$E$14 -> 0 | B29: 0 | C29: 2021 | D29: 2020 | E29: 2014 | F29: REI Investments_A_Total Capital Costs | G29: ='App.2-FA Proposed REG Invest.'!$L$31 -> 2025 | H29: ='App.2-FA Proposed REG Invest.'!L62 -> 0
A30: ='LDC Info'!$E$14 -> 0 | B30: 0 | C30: 2021 | D30: 2020 | E30: 2014 | F30: REI Investments_A_Total OM&A Start-Up | G30: ='App.2-FA Proposed REG Invest.'!$L$31 -> 2025 | H30: ='App.2-FA Proposed REG Invest.'!L63 -> 0
A31: ='LDC Info'!$E$14 -> 0 | B31: 0 | C31: 2021 | D31: 2020 | E31: 2014 | F31: REI Investments_A_Total OM&A Ongoing | G31: ='App.2-FA Proposed REG Invest.'!$L$31 -> 2025 | H31: ='App.2-FA Proposed REG Invest.'!L64 -> 0
A32: ='LDC Info'!$E$14 -> 0 | B32: 0 | C32: 2021 | D32: 2020 | E32: 2014 | F32: Expansion Investments_B_Total Capital Costs | G32: ='App.2-FA Proposed REG Invest.'!$C$31 -> 2016 | H32: ='App.2-FA Proposed REG Invest.'!C99 -> 0
A33: ='LDC Info'!$E$14 -> 0 | B33: 0 | C33: 2021 | D33: 2020 | E33: 2014 | F33: Expansion Investments_B_Total OM&A Start-Up | G33: ='App.2-FA Proposed REG Invest.'!$C$31 -> 2016 | H33: ='App.2-FA Proposed REG Invest.'!C100 -> 0
A34: ='LDC Info'!$E$14 -> 0 | B34: 0 | C34: 2021 | D34: 2020 | E34: 2014 | F34: Expansion Investments_B_Total OM&A Ongoing | G34: ='App.2-FA Proposed REG Invest.'!$C$31 -> 2016 | H34: ='App.2-FA Proposed REG Invest.'!C101 -> 0
A35: ='LDC Info'!$E$14 -> 0 | B35: 0 | C35: 2021 | D35: 2020 | E35: 2014 | F35: Expansion Investments_B_Total Capital Costs | G35: ='App.2-FA Proposed REG Invest.'!$D$31 -> 2017 | H35: ='App.2-FA Proposed REG Invest.'!D99 -> 0
A36: ='LDC Info'!$E$14 -> 0 | B36: 0 | C36: 2021 | D36: 2020 | E36: 2014 | F36: Expansion Investments_B_Total OM&A Start-Up | G36: ='App.2-FA Proposed REG Invest.'!$D$31 -> 2017 | H36: ='App.2-FA Proposed REG Invest.'!D100 -> 0
A37: ='LDC Info'!$E$14 -> 0 | B37: 0 | C37: 2021 | D37: 2020 | E37: 2014 | F37: Expansion Investments_B_Total OM&A Ongoing | G37: ='App.2-FA Proposed REG Invest.'!$D$31 -> 2017 | H37: ='App.2-FA Proposed REG Invest.'!D101 -> 0
A38: ='LDC Info'!$E$14 -> 0 | B38: 0 | C38: 2021 | D38: 2020 | E38: 2014 | F38: Expansion Investments_B_Total Capital Costs | G38: ='App.2-FA Proposed REG Invest.'!$E$31 -> 2018 | H38: ='App.2-FA Proposed REG Invest.'!E99 -> 0
A39: ='LDC Info'!$E$14 -> 0 | B39: 0 | C39: 2021 | D39: 2020 | E39: 2014 | F39: Expansion Investments_B_Total OM&A Start-Up | G39: ='App.2-FA Proposed REG Invest.'!$E$31 -> 2018 | H39: ='App.2-FA Proposed REG Invest.'!E100 -> 0
A40: ='LDC Info'!$E$14 -> 0 | B40: 0 | C40: 2021 | D40: 2020 | E40: 2014 | F40: Expansion Investments_B_Total OM&A Ongoing | G40: ='App.2-FA Proposed REG Invest.'!$E$31 -> 2018 | H40: ='App.2-FA Proposed REG Invest.'!E101 -> 0
A41: ='LDC Info'!$E$14 -> 0 | B41: 0 | C41: 2021 | D41: 2020 | E41: 2014 | F41: Expansion Investments_B_Total Capital Costs | G41: ='App.2-FA Proposed REG Invest.'!$F$31 -> 2019 | H41: ='App.2-FA Proposed REG Invest.'!F99 -> 0
A42: ='LDC Info'!$E$14 -> 0 | B42: 0 | C42: 2021 | D42: 2020 | E42: 2014 | F42: Expansion Investments_B_Total OM&A Start-Up | G42: ='App.2-FA Proposed REG Invest.'!$F$31 -> 2019 | H42: ='App.2-FA Proposed REG Invest.'!F100 -> 0
A43: ='LDC Info'!$E$14 -> 0 | B43: 0 | C43: 2021 | D43: 2020 | E43: 2014 | F43: Expansion Investments_B_Total OM&A Ongoing | G43: ='App.2-FA Proposed REG Invest.'!$F$31 -> 2019 | H43: ='App.2-FA Proposed REG Invest.'!F101 -> 0
A44: ='LDC Info'!$E$14 -> 0 | B44: 0 | C44: 2021 | D44: 2020 | E44: 2014 | F44: Expansion Investments_B_Total Capital Costs | G44: ='App.2-FA Proposed REG Invest.'!$G$31 -> 2020 | H44: ='App.2-FA Proposed REG Invest.'!G99 -> 0
A45: ='LDC Info'!$E$14 -> 0 | B45: 0 | C45: 2021 | D45: 2020 | E45: 2014 | F45: Expansion Investments_B_Total OM&A Start-Up | G45: ='App.2-FA Proposed REG Invest.'!$G$31 -> 2020 | H45: ='App.2-FA Proposed REG Invest.'!G100 -> 0
A46: ='LDC Info'!$E$14 -> 0 | B46: 0 | C46: 2021 | D46: 2020 | E46: 2014 | F46: Expansion Investments_B_Total OM&A Ongoing | G46: ='App.2-FA Proposed REG Invest.'!$G$31 -> 2020 | H46: ='App.2-FA Proposed REG Invest.'!G101 -> 0
A47: ='LDC Info'!$E$14 -> 0 | B47: 0 | C47: 2021 | D47: 2020 | E47: 2014 | F47: Expansion Investments_B_Total Capital Costs | G47: ='App.2-FA Proposed REG Invest.'!$H$31 -> 2021 | H47: ='App.2-FA Proposed REG Invest.'!H99 -> 0
A48: ='LDC Info'!$E$14 -> 0 | B48: 0 | C48: 2021 | D48: 2020 | E48: 2014 | F48: Expansion Investments_B_Total OM&A Start-Up | G48: ='App.2-FA Proposed REG Invest.'!$H$31 -> 2021 | H48: ='App.2-FA Proposed REG Invest.'!H100 -> 0
A49: ='LDC Info'!$E$14 -> 0 | B49: 0 | C49: 2021 | D49: 2020 | E49: 2014 | F49: Expansion Investments_B_Total OM&A Ongoing | G49: ='App.2-FA Proposed REG Invest.'!$H$31 -> 2021 | H49: ='App.2-FA Proposed REG Invest.'!H101 -> 0
A50: ='LDC Info'!$E$14 -> 0 | B50: 0 | C50: 2021 | D50: 2020 | E50: 2014 | F50: Expansion Investments_B_Total Capital Costs | G50: ='App.2-FA Proposed REG Invest.'!$I$31 -> 2022 | H50: ='App.2-FA Proposed REG Invest.'!I99 -> 0
A51: ='LDC Info'!$E$14 -> 0 | B51: 0 | C51: 2021 | D51: 2020 | E51: 2014 | F51: Expansion Investments_B_Total OM&A Start-Up | G51: ='App.2-FA Proposed REG Invest.'!$I$31 -> 2022 | H51: ='App.2-FA Proposed REG Invest.'!I100 -> 0
A52: ='LDC Info'!$E$14 -> 0 | B52: 0 | C52: 2021 | D52: 2020 | E52: 2014 | F52: Expansion Investments_B_Total OM&A Ongoing | G52: ='App.2-FA Proposed REG Invest.'!$I$31 -> 2022 | H52: ='App.2-FA Proposed REG Invest.'!I101 -> 0
A53: ='LDC Info'!$E$14 -> 0 | B53: 0 | C53: 2021 | D53: 2020 | E53: 2014 | F53: Expansion Investments_B_Total Capital Costs | G53: ='App.2-FA Proposed REG Invest.'!$J$31 -> 2023 | H53: ='App.2-FA Proposed REG Invest.'!J99 -> 0
A54: ='LDC Info'!$E$14 -> 0 | B54: 0 | C54: 2021 | D54: 2020 | E54: 2014 | F54: Expansion Investments_B_Total OM&A Start-Up | G54: ='App.2-FA Proposed REG Invest.'!$J$31 -> 2023 | H54: ='App.2-FA Proposed REG Invest.'!J100 -> 0
A55: ='LDC Info'!$E$14 -> 0 | B55: 0 | C55: 2021 | D55: 2020 | E55: 2014 | F55: Expansion Investments_B_Total OM&A Ongoing | G55: ='App.2-FA Proposed REG Invest.'!$J$31 -> 2023 | H55: ='App.2-FA Proposed REG Invest.'!J101 -> 0
A56: ='LDC Info'!$E$14 -> 0 | B56: 0 | C56: 2021 | D56: 2020 | E56: 2014 | F56: Expansion Investments_B_Total Capital Costs | G56: ='App.2-FA Proposed REG Invest.'!$K$31 -> 2024 | H56: ='App.2-FA Proposed REG Invest.'!K99 -> 0
A57: ='LDC Info'!$E$14 -> 0 | B57: 0 | C57: 2021 | D57: 2020 | E57: 2014 | F57: Expansion Investments_B_Total OM&A Start-Up | G57: ='App.2-FA Proposed REG Invest.'!$K$31 -> 2024 | H57: ='App.2-FA Proposed REG Invest.'!K100 -> 0
A58: ='LDC Info'!$E$14 -> 0 | B58: 0 | C58: 2021 | D58: 2020 | E58: 2014 | F58: Expansion Investments_B_Total OM&A Ongoing | G58: ='App.2-FA Proposed REG Invest.'!$K$31 -> 2024 | H58: ='App.2-FA Proposed REG Invest.'!K101 -> 0
A59: ='LDC Info'!$E$14 -> 0 | B59: 0 | C59: 2021 | D59: 2020 | E59: 2014 | F59: Expansion Investments_B_Total Capital Costs | G59: ='App.2-FA Proposed REG Invest.'!$L$31 -> 2025 | H59: ='App.2-FA Proposed REG Invest.'!L99 -> 0
A60: ='LDC Info'!$E$14 -> 0 | B60: 0 | C60: 2021 | D60: 2020 | E60: 2014 | F60: Expansion Investments_B_Total OM&A Start-Up | G60: ='App.2-FA Proposed REG Invest.'!$L$31 -> 2025 | H60: ='App.2-FA Proposed REG Invest.'!L100 -> 0
A61: ='LDC Info'!$E$14 -> 0 | B61: 0 | C61: 2021 | D61: 2020 | E61: 2014 | F61: Expansion Investments_B_Total OM&A Ongoing | G61: ='App.2-FA Proposed REG Invest.'!$L$31 -> 2025 | H61: ='App.2-FA Proposed REG Invest.'!L101 -> 0

Sheet Hidden_REG Improvement (hidden)
A1: Utility Name | B1: EB Number | C1: Test Year | D1: Bridge Year | E1: Last Rebasing Year | F1: Renewable Generation Connection Direct Benefits/Provincial Amount Renewable Enabling Improvement Investments | G1: Year | H1: Amount
A2: ='LDC Info'!$E$14 -> 0 | B2: =EBNUMBER -> 0 | C2: =TestYear -> 2021 | D2: =BridgeYear -> 2020 | E2: =RebaseYear -> 2014 | F2: Provincial Rate Protection | G2: ='App.2-FB Calc of REG Improvemnt'!D17 -> 2016 | H2: ='App.2-FB Calc of REG Improvemnt'!F$44 -> 0
A3: ='LDC Info'!$E$14 -> 0 | B3: 0 | C3: 2021 | D3: 2020 | E3: 2014 | F3: Provincial Rate Protection | G3: ='App.2-FB Calc of REG Improvemnt'!G17 -> 2017 | H3: ='App.2-FB Calc of REG Improvemnt'!I$44 -> 0
A4: ='LDC Info'!$E$14 -> 0 | B4: 0 | C4: 2021 | D4: 2020 | E4: 2014 | F4: Provincial Rate Protection | G4: ='App.2-FB Calc of REG Improvemnt'!J17 -> 2018 | H4: ='App.2-FB Calc of REG Improvemnt'!L$44 -> 0
A5: ='LDC Info'!$E$14 -> 0 | B5: 0 | C5: 2021 | D5: 2020 | E5: 2014 | F5: Provincial Rate Protection | G5: ='App.2-FB Calc of REG Improvemnt'!M17 -> 2019 | H5: ='App.2-FB Calc of REG Improvemnt'!O$44 -> 0
A6: ='LDC Info'!$E$14 -> 0 | B6: 0 | C6: 2021 | D6: 2020 | E6: 2014 | F6: Provincial Rate Protection | G6: ='App.2-FB Calc of REG Improvemnt'!P17 -> 2020 | H6: ='App.2-FB Calc of REG Improvemnt'!R$44 -> 0
A7: ='LDC Info'!$E$14 -> 0 | B7: 0 | C7: 2021 | D7: 2020 | E7: 2014 | F7: Provincial Rate Protection | G7: ='App.2-FB Calc of REG Improvemnt'!S17 -> 2021 | H7: ='App.2-FB Calc of REG Improvemnt'!U$44 -> 0
A8: ='LDC Info'!$E$14 -> 0 | B8: 0 | C8: 2021 | D8: 2020 | E8: 2014 | F8: Provincial Rate Protection | G8: ='App.2-FB Calc of REG Improvemnt'!V17 -> 2022 | H8: ='App.2-FB Calc of REG Improvemnt'!X$44 -> 0
A9: ='LDC Info'!$E$14 -> 0 | B9: 0 | C9: 2021 | D9: 2020 | E9: 2014 | F9: Provincial Rate Protection | G9: ='App.2-FB Calc of REG Improvemnt'!Y17 -> 2023 | H9: ='App.2-FB Calc of REG Improvemnt'!AA$44 -> 0
A10: ='LDC Info'!$E$14 -> 0 | B10: 0 | C10: 2021 | D10: 2020 | E10: 2014 | F10: Provincial Rate Protection | G10: ='App.2-FB Calc of REG Improvemnt'!AB17 -> 2024 | H10: ='App.2-FB Calc of REG Improvemnt'!AD$44 -> 0
A11: ='LDC Info'!$E$14 -> 0 | B11: 0 | C11: 2021 | D11: 2020 | E11: 2014 | F11: Provincial Rate Protection | G11: ='App.2-FB Calc of REG Improvemnt'!AE17 -> 2025 | H11: ='App.2-FB Calc of REG Improvemnt'!AG$44 -> 0

Sheet Hidden_REG Expansion (hidden)
A1: Utility Name | B1: EB Number | C1: Test Year | D1: Bridge Year | E1: Last Rebasing Year | F1: Calculation of Renewable Generation Connection Direct Benefits/Provincial Amount Renewable Expansion Investments | G1: Year | H1: Amount
A2: ='LDC Info'!$E$14 -> 0 | B2: =EBNUMBER -> 0 | C2: =TestYear -> 2021 | D2: =BridgeYear -> 2020 | E2: =RebaseYear -> 2014 | F2: Provincial Rate Protection | G2: ='App.2-FC Calc of REG Expansion'!D$17 -> 2016 | H2: ='App.2-FC Calc of REG Expansion'!F$44 -> 0
A3: ='LDC Info'!$E$14 -> 0 | B3: 0 | C3: 2021 | D3: 2020 | E3: 2014 | F3: Provincial Rate Protection | G3: ='App.2-FC Calc of REG Expansion'!G$17 -> 2017 | H3: ='App.2-FC Calc of REG Expansion'!I$44 -> 0
A4: ='LDC Info'!$E$14 -> 0 | B4: 0 | C4: 2021 | D4: 2020 | E4: 2014 | F4: Provincial Rate Protection | G4: ='App.2-FC Calc of REG Expansion'!J$17 -> 2018 | H4: ='App.2-FC Calc of REG Expansion'!L$44 -> 0
A5: ='LDC Info'!$E$14 -> 0 | B5: 0 | C5: 2021 | D5: 2020 | E5: 2014 | F5: Provincial Rate Protection | G5: ='App.2-FC Calc of REG Expansion'!M$17 -> 2019 | H5: ='App.2-FC Calc of REG Expansion'!O$44 -> 0
A6: ='LDC Info'!$E$14 -> 0 | B6: 0 | C6: 2021 | D6: 2020 | E6: 2014 | F6: Provincial Rate Protection | G6: ='App.2-FC Calc of REG Expansion'!P$17 -> 2020 | H6: ='App.2-FC Calc of REG Expansion'!R$44 -> 0
A7: ='LDC Info'!$E$14 -> 0 | B7: 0 | C7: 2021 | D7: 2020 | E7: 2014 | F7: Provincial Rate Protection | G7: ='App.2-FC Calc of REG Expansion'!S$17 -> 2021 | H7: ='App.2-FC Calc of REG Expansion'!U$44 -> 0
A8: ='LDC Info'!$E$14 -> 0 | B8: 0 | C8: 2021 | D8: 2020 | E8: 2014 | F8: Provincial Rate Protection | G8: ='App.2-FC Calc of REG Expansion'!V$17 -> 2022 | H8: ='App.2-FC Calc of REG Expansion'!X$44 -> 0
A9: ='LDC Info'!$E$14 -> 0 | B9: 0 | C9: 2021 | D9: 2020 | E9: 2014 | F9: Provincial Rate Protection | G9: ='App.2-FC Calc of REG Expansion'!Y$17 -> 2023 | H9: ='App.2-FC Calc of REG Expansion'!AA$44 -> 0
A10: ='LDC Info'!$E$14 -> 0 | B10: 0 | C10: 2021 | D10: 2020 | E10: 2014 | F10: Provincial Rate Protection | G10: ='App.2-FC Calc of REG Expansion'!AB$17 -> 2024 | H10: ='App.2-FC Calc of REG Expansion'!AD$44 -> 0
A11: ='LDC Info'!$E$14 -> 0 | B11: 0 | C11: 2021 | D11: 2020 | E11: 2014 | F11: Provincial Rate Protection | G11: ='App.2-FC Calc of REG Expansion'!AE$17 -> 2025 | H11: ='App.2-FC Calc of REG Expansion'!AG$44 -> 0

Sheet App.2-FA Proposed REG Invest.
K1: File Number: | L1: 0
K2: Exhibit:
K3: Tab:
A4: TO BE UPDATED AT DRAFT RATE ORDER STAGE | K4: Schedule:
K5: Page:
K7: Date:
A9: Appendix 2-FA
A10: Renewable Generation Connection Investment Summary (past investments or over the future rate setting period)
A12: Enter the details of the Renewable Generation Connection projects as described in the appropriate section of the Filing Requirements.
A13: All costs entered on this page will be transferred to the appropriate cells in the appendices that follow.
A14: For Part A, Renewable Enabling Improvements (REI), these amounts will be transferred to Appendix 2 - FB
A15: For Part B, Expansions, these amounts will be transferred to Appendix 2 - FC
A17: If there are more than five projects proposed to be in-service in a certain year, please amend the tables below and ensure that the formulae for the Total Amounts in any given rate year are updated.
A18: Based on the current methodology and allocation, amounts allocated represent 6% for REI Connection Investments and 17% for Expansion Investments. (EB-2009-0349, 6-10-2010, p. 15, note 9)
A19: Ensure that OM&A costs below are not included in Recoverable OM&A (App. 2-JA)
A20: There are two scenarios described below. Separate sets of spreadsheets (2-FA, 2-FB, 2-FC) should be submited for each scenario as required.
A21: Scenario 1: | B21: Past Investments with No Recovery. The distributor has made investments in the past (during the IRM Years), but has not received approval for these projects and therefore did not receive
B22: revenue from the IESO under Regulation 330/09 and did not receive ratepayer revenue for the direct benefit portion of the investment.
B23: The WCA percentage, debt percentages, interest rates, kWh, tax rates, amortization period, CCA Class and percentage should correspond to the distributor's last Cost of Service approval.
B24: The Direct Benefit portion of the calculated Revenue Requirement for each year should be summed and can be applied for recovery from the distributor's ratepayers through a rate rider.
B25: The Provincial Recovery portion of the calculated Revenue Requirement for each year should be summed and can be applied for recovery from the IESO through a separate order.
A27: Scenario 2: | B27: Investments in the Test Year and Beyond. Distributor plans to make investments in 2021 and/or beyond. These investments should be added to 2-FA in the appropriate year.
B28: The WCA percentage, debt percentages, interest rates, kWh, tax rates, amortization period, CCA Class and percentage should correspond to the distributor's current application.
A30: Part A | H30: Test Year
A31: REI Investments (Direct Benefit at 6%) | C31: =D31-1 -> 2016 | D31: =E31-1 -> 2017 | E31: =F31-1 -> 2018 | F31: =G31-1 -> 2019 | G31: =H31-1 -> 2020 | H31: ='LDC Info'!$E$24 -> 2021 | I31: =H31+1 -> 2022 | J31: =I31+1 -> 2023 | K31: =J31+1 -> 2024 | L31: =K31+1 -> 2025
A32: Project 1
A33: Name: REI Connection Project
A34: Capital Costs | C34: 0 | D34: 0 | E34: 0 | F34: 0 | G34: 0 | H34: 0 | I34: 0 | J34: 0 | K34: 0 | L34: 0
A35: Incremental OM&A (Start-Up) | C35: 0 | D35: 0 | E35: 0 | F35: 0 | G35: 0 | H35: 0 | I35: 0 | J35: 0 | K35: 0 | L35: 0
A36: Incremental OM&A (Ongoing) | C36: 0 | D36: 0 | E36: 0 | F36: 0 | G36: 0 | H36: 0 | I36: 0 | J36: 0 | K36: 0 | L36: 0
A38: Project 2
A39: Name: REI Connection Project
A40: Capital Costs | C40: 0 | D40: 0 | E40: 0 | F40: 0 | G40: 0 | H40: 0 | I40: 0 | J40: 0 | K40: 0 | L40: 0
A41: Incremental OM&A (Start-Up) | C41: 0 | D41: 0 | E41: 0 | F41: 0 | G41: 0 | H41: 0 | I41: 0 | J41: 0 | K41: 0 | L41: 0
A42: Incremental OM&A (Ongoing) | C42: 0 | D42: 0 | E42: 0 | F42: 0 | G42: 0 | H42: 0 | I42: 0 | J42: 0 | K42: 0 | L42: 0
A44: Project 3
A45: Name: REI Connection Project
A46: Capital Costs | C46: 0 | D46: 0 | E46: 0 | F46: 0 | G46: 0 | H46: 0 | I46: 0 | J46: 0 | K46: 0 | L46: 0
A47: Incremental OM&A (Start-Up) | C47: 0 | D47: 0 | E47: 0 | F47: 0 | G47: 0 | H47: 0 | I47: 0 | J47: 0 | K47: 0 | L47: 0
A48: Incremental OM&A (Ongoing) | C48: 0 | D48: 0 | E48: 0 | F48: 0 | G48: 0 | H48: 0 | I48: 0 | J48: 0 | K48: 0 | L48: 0
A50: Project 4
A51: Name: REI Connection Project
A52: Capital Costs | C52: 0 | D52: 0 | E52: 0 | F52: 0 | G52: 0 | H52: 0 | I52: 0 | J52: 0 | K52: 0 | L52: 0
A53: Incremental OM&A (Start-Up) | C53: 0 | D53: 0 | E53: 0 | F53: 0 | G53: 0 | H53: 0 | I53: 0 | J53: 0 | K53: 0 | L53: 0
A54: Incremental OM&A (Ongoing) | C54: 0 | D54: 0 | E54: 0 | F54: 0 | G54: 0 | H54: 0 | I54: 0 | J54: 0 | K54: 0 | L54: 0
A56: Project 5
A57: Name: REI Connection Project
A58: Capital Costs | C58: 0 | D58: 0 | E58: 0 | F58: 0 | G58: 0 | H58: 0 | I58: 0 | J58: 0 | K58: 0 | L58: 0
A59: Incremental OM&A (Start-Up) | C59: 0 | D59: 0 | E59: 0 | F59: 0 | G59: 0 | H59: 0 | I59: 0 | J59: 0 | K59: 0 | L59: 0
A60: Incremental OM&A (Ongoing) | C60: 0 | D60: 0 | E60: 0 | F60: 0 | G60: 0 | H60: 0 | I60: 0 | J60: 0 | K60: 0 | L60: 0
A62: Total Capital Costs | C62: =SUM(C58,C52,C46,C40,C34) -> 0 | D62: 0 | E62: 0 | F62: 0 | G62: 0 | H62: 0 | I62: 0 | J62: 0 | K62: 0 | L62: 0
A63: Total Incremental OM&A (Start-Up) | C63: 0 | D63: 0 | E63: 0 | F63: 0 | G63: 0 | H63: 0 | I63: 0 | J63: 0 | K63: 0 | L63: 0
A64: Total Incremental OM&A (Ongoing) | C64: 0 | D64: 0 | E64: 0 | F64: 0 | G64: 0 | H64: 0 | I64: 0 | J64: 0 | K64: 0 | L64: 0
A67: Part B | H67: Test Year
A68: Expansion Investments (Direct Benefit at 17%) | C68: =D68-1 -> 2016 | D68: =E68-1 -> 2017 | E68: =F68-1 -> 2018 | F68: =G68-1 -> 2019 | G68: =H68-1 -> 2020 | H68: =H31 -> 2021 | I68: =H68+1 -> 2022 | J68: =I68+1 -> 2023 | K68: =J68+1 -> 2024 | L68: =K68+1 -> 2025
A69: Project 1
A70: Name: Expansion Connection Project
A71: Capital Costs | C71: 0 | D71: 0 | E71: 0 | F71: 0 | G71: 0 | H71: 0 | I71: 0 | J71: 0 | K71: 0 | L71: 0
A72: Incremental OM&A (Start-Up) | C72: 0 | D72: 0 | E72: 0 | F72: 0 | G72: 0 | H72: 0 | I72: 0 | J72: 0 | K72: 0 | L72: 0
A73: Incremental OM&A (Ongoing) | C73: 0 | D73: 0 | E73: 0 | F73: 0 | G73: 0 | H73: 0 | I73: 0 | J73: 0 | K73: 0 | L73: 0
A75: Project 2
A76: Name: Expansion Connection Project
A77: Capital Costs | C77: 0 | D77: 0 | E77: 0 | F77: 0 | G77: 0 | H77: 0 | I77: 0 | J77: 0 | K77: 0 | L77: 0
A78: Incremental OM&A (Start-Up) | C78: 0 | D78: 0 | E78: 0 | F78: 0 | G78: 0 | H78: 0 | I78: 0 | J78: 0 | K78: 0 | L78: 0
A79: Incremental OM&A (Ongoing) | C79: 0 | D79: 0 | E79: 0 | F79: 0 | G79: 0 | H79: 0 | I79: 0 | J79: 0 | K79: 0 | L79: 0
A81: Project 3
A82: Name: Expansion Connection Project
A83: Capital Costs | C83: 0 | D83: 0 | E83: 0 | F83: 0 | G83: 0 | H83: 0 | I83: 0 | J83: 0 | K83: 0 | L83: 0
A84: Incremental OM&A (Start-Up) | C84: 0 | D84: 0 | E84: 0 | F84: 0 | G84: 0 | H84: 0 | I84: 0 | J84: 0 | K84: 0 | L84: 0
A85: Incremental OM&A (Ongoing) | C85: 0 | D85: 0 | E85: 0 | F85: 0 | G85: 0 | H85: 0 | I85: 0 | J85: 0 | K85: 0 | L85: 0
A87: Project 4
A88: Name: Expansion Connection Project
A89: Capital Costs | C89: 0 | D89: 0 | E89: 0 | F89: 0 | G89: 0 | H89: 0 | I89: 0 | J89: 0 | K89: 0 | L89: 0
A90: Incremental OM&A (Start-Up) | C90: 0 | D90: 0 | E90: 0 | F90: 0 | G90: 0 | H90: 0 | I90: 0 | J90: 0 | K90: 0 | L90: 0
A91: Incremental OM&A (Ongoing) | C91: 0 | D91: 0 | E91: 0 | F91: 0 | G91: 0 | H91: 0 | I91: 0 | J91: 0 | K91: 0 | L91: 0
A93: Project 5
A94: Name: Expansion Connection Project
A95: Capital Costs | C95: 0 | D95: 0 | E95: 0 | F95: 0 | G95: 0 | H95: 0 | I95: 0 | J95: 0 | K95: 0 | L95: 0
A96: Incremental OM&A (Start-Up) | C96: 0 | D96: 0 | E96: 0 | F96: 0 | G96: 0 | H96: 0 | I96: 0 | J96: 0 | K96: 0 | L96: 0
A97: Incremental OM&A (Ongoing) | C97: 0 | D97: 0 | E97: 0 | F97: 0 | G97: 0 | H97: 0 | I97: 0 | J97: 0 | K97: 0 | L97: 0
A99: Total Capital Costs | C99: =SUM(C95,C89,C83,C77,C71) -> 0 | D99: 0 | E99: 0 | F99: 0 | G99: 0 | H99: 0 | I99: 0 | J99: 0 | K99: 0 | L99: 0
A100: Total Incremental OM&A (Start-Up) | C100: 0 | D100: 0 | E100: 0 | F100: 0 | G100: 0 | H100: 0 | I100: 0 | J100: 0 | K100: 0 | L100: 0
A101: Total Incremental OM&A (Ongoing) | C101: 0 | D101: 0 | E101: 0 | F101: 0 | G101: 0 | H101: 0 | I101: 0 | J101: 0 | K101: 0 | L101: 0

Sheet App.2-FB Calc of REG Improvemnt
R1: File Number: | S1: 0
R2: Exhibit:
R3: Tab:
A4: TO BE UPDATED AT DRAFT RATE ORDER STAGE | R4: Schedule:
R5: Page:
R7: Date:
A9: Appendix 2-FB
A10: Calculation of Renewable Generation Connection Direct Benefits/Provincial Amount: Renewable Enabling Improvement Investments
A12: This table will calculate the distributor/provincial shares of the investments entered in Part A of Appendix 2-FA.
A13: Enter values in green shaded cells: WCA percentage, debt percentages, interest rates, kWh, tax rates, amortization period, CCA Class and percentage.
A14: For historical investments, enter these variables that were approved in your last cost of service test year. For 2021 and beyond, enter variables as in the application.
A15: Rate Riders related to the direct benefit portion of the renewable investments are not calculated for the Test Year as these assets and costs are already in the distributor's rate base/revenue requirement.
S16: Test Year
D17: =G17-1 -> 2016 | G17: =J17-1 -> 2017 | J17: =M17-1 -> 2018 | M17: =P17-1 -> 2019 | P17: =S17-1 -> 2020 | S17: ='LDC Info'!$E$24 -> 2021 | V17: =S17+1 -> 2022 | Y17: =V17+1 -> 2023 | Z17: 2016 | AB17: =Y17+1 -> 2024 | AE17: =AB17+1 -> 2025 | AH17: =AE17+1 -> 2026
E18: Direct Benefit | F18: Provincial | H18: Direct Benefit | I18: Provincial | K18: Direct Benefit | L18: Provincial | N18: Direct Benefit | O18: Provincial | Q18: Direct Benefit | R18: Provincial | T18: Direct Benefit | U18: Provincial | W18: Direct Benefit | X18: Provincial | Z18: Direct Benefit | AA18: Provincial | AC18: Direct Benefit | AD18: Provincial | AF18: Direct Benefit | AG18: Provincial | AI18: Direct Benefit | AJ18: Provincial
D19: Total | E19: 0.06 | F19: 0.94 | G19: Total | H19: 0.06 | I19: 0.94 | J19: Total | K19: 0.06 | L19: 0.94 | M19: Total | N19: 0.06 | O19: 0.94 | P19: Total | Q19: 0.06 | R19: 0.94 | S19: Total | T19: 0.06 | U19: 0.94 | V19: Total | W19: 0.06 | X19: 0.94 | Y19: Total | Z19: 0.06 | AA19: 0.94 | AB19: Total | AC19: 0.06 | AD19: 0.94 | AE19: Total | AF19: 0.06 | AG19: 0.94 | AH19: Total | AI19: 0.06 | AJ19: 0.94
A20: Net Fixed Assets (average) | D20: =E83 -> 0 | E20: =D20*E19 -> 0 | F20: =D20*F19 -> 0 | G20: =F83 -> 0 | H20: =G20*H19 -> 0 | I20: =G20*I19 -> 0 | J20: =G83 -> 0 | K20: =J20*K19 -> 0 | L20: =J20*L19 -> 0 | M20: =H83 -> 0 | N20: =M20*N19 -> 0 | O20: =M20*O19 -> 0 | P20: =I83 -> 0 | Q20: =P20*Q19 -> 0 | R20: =P20*R19 -> 0 | S20: =J83 -> 0 | T20: =S20*T19 -> 0 | U20: =S20*U19 -> 0 | V20: =K83 -> 0 | W20: =V20*W19 -> 0 | X20: =V20*X19 -> 0 | Y20: =L83 -> 0 | Z20: =Y20*Z19 -> 0 | AA20: =Y20*AA19 -> 0 | AB20: =M83 -> 0 | AC20: =AB20*AC19 -> 0 | AD20: =AB20*AD19 -> 0 | AE20: =N83 -> 0 | AF20: =AE20*AF19 -> 0 | AG20: =AE20*AG19 -> 0 | AH20: =O83 -> 0 | AI20: =AH20*AI19 -> 0 | AJ20: =AH20*AJ19 -> 0
A21: Incremental OM&A (on-going, N/A for Provincial Recovery) | D21: 0 | E21: =D21*E19 -> 0 | F21: =D21*F19 -> 0 | G21: 0 | H21: =G21*H19 -> 0 | I21: =G21*I19 -> 0 | J21: 0 | K21: =J21*K19 -> 0 | L21: =J21*L19 -> 0 | M21: 0 | N21: =M21*N19 -> 0 | O21: =M21*O19 -> 0 | P21: 0 | Q21: =P21*Q19 -> 0 | R21: =P21*R19 -> 0 | S21: 0 | T21: =S21*T19 -> 0 | U21: =S21*U19 -> 0 | V21: 0 | W21: =V21*W19 -> 0 | X21: =V21*X19 -> 0 | Y21: 0 | Z21: =Y21*Z19 -> 0 | AA21: =Y21*AA19 -> 0 | AB21: 0 | AC21: =AB21*AC19 -> 0 | AD21: =AB21*AD19 -> 0 | AE21: 0 | AF21: =AE21*AF19 -> 0 | AG21: =AE21*AG19 -> 0 | AH21: 0 | AI21: =AH21*AI19 -> 0 | AJ21: =AH21*AJ19 -> 0
A22: Incremental OM&A (start-up, applicable for Provincial Recovery) | D22: 0 | E22: =D22*E19 -> 0 | F22: =D22*F19 -> 0 | G22: 0 | H22: =G22*H19 -> 0 | I22: =G22*I19 -> 0 | J22: 0 | K22: =J22*K19 -> 0 | L22: =J22*L19 -> 0 | M22: 0 | N22: =M22*N19 -> 0 | O22: =M22*O19 -> 0 | P22: 0 | Q22: =P22*Q19 -> 0 | R22: =P22*R19 -> 0 | S22: 0 | T22: =S22*T19 -> 0 | U22: =S22*U19 -> 0 | V22: 0 | W22: =V22*W19 -> 0 | X22: =V22*X19 -> 0 | Y22: 0 | Z22: =Y22*Z19 -> 0 | AA22: =Y22*AA19 -> 0 | AB22: 0 | AC22: =AB22*AC19 -> 0 | AD22: =AB22*AD19 -> 0 | AE22: 0 | AF22: =AE22*AF19 -> 0 | AG22: =AE22*AG19 -> 0 | AH22: 0 | AI22: =AH22*AI19 -> 0 | AJ22: =AH22*AJ19 -> 0
A23: Rebasing Year vs. Test Year | B23: ='LDC Info'!E28 -> 2014 | C23: ='LDC Info'!E24 -> 2021
A24: Allowance for Working Capital (enter rate) | E24: =IF(AND(D$17>=$B$23, D$17<$C$23),(E21+E22)*$B$24,(E21+E22)*$C$24) -> 0 | F24: =IF(AND(D$17>=$B$23, D$17<$C$23),(F22)*$B$24,(F22)*$C$24) -> 0 | H24: =IF(AND(G$17>=$B$23, G$17<$C$23),(H21+H22)*$B$24,(H21+H22)*$C$24) -> 0 | I24: =IF(AND(G$17>=$B$23, G$17<$C$23),(I22)*$B$24,(I22)*$C$24) -> 0 | K24: =IF(AND(J$17>=$B$23, J$17<$C$23),(K21+K22)*$B$24,(K21+K22)*$C$24) -> 0 | L24: =IF(AND(J$17>=$B$23, J$17<$C$23),(L22)*$B$24,(L22)*$C$24) -> 0 | N24: =IF(AND(M$17>=$B$23, M$17<$C$23),(N21+N22)*$B$24,(N21+N22)*$C$24) -> 0 | O24: =IF(AND(M$17>=$B$23, M$17<$C$23),(O22)*$B$24,(O22)*$C$24) -> 0 | Q24: =IF(AND(P$17>=$B$23, P$17<$C$23),(Q21+Q22)*$B$24,(Q21+Q22)*$C$24) -> 0 | R24: =IF(AND(P$17>=$B$23, P$17<$C$23),(R22)*$B$24,(R22)*$C$24) -> 0 | T24: =IF(AND(S$17>=$B$23, S$17<$C$23),(T21+T22)*$B$24,(T21+T22)*$C$24) -> 0 | U24: =IF(AND(S$17>=$B$23, S$17<$C$23),(U22)*$B$24,(U22)*$C$24) -> 0 | W24: =IF(AND(V$17>=$B$23, V$17<$C$23),(W21+W22)*$B$24,(W21+W22)*$C$24) -> 0 | X24: =IF(AND(V$17>=$B$23, V$17<$C$23),(X22)*$B$24,(X22)*$C$24) -> 0 | Z24: =IF(AND(Y$17>=$B$23, Y$17<$C$23),(Z21+Z22)*$B$24,(Z21+Z22)*$C$24) -> 0 | AA24: =IF(AND(Y$17>=$B$23, Y$17<$C$23),(AA22)*$B$24,(AA22)*$C$24) -> 0 | AC24: =IF(AND(AB$17>=$B$23, AB$17<$C$23),(AC21+AC22)*$B$24,(AC21+AC22)*$C$24) -> 0 | AD24: =IF(AND(AB$17>=$B$23, AB$17<$C$23),(AD22)*$B$24,(AD22)*$C$24) -> 0 | AF24: =IF(AND(AE$17>=$B$23, AE$17<$C$23),(AF21+AF22)*$B$24,(AF21+AF22)*$C$24) -> 0 | AG24: =IF(AND(AE$17>=$B$23, AE$17<$C$23),(AG22)*$B$24,(AG22)*$C$24) -> 0 | AI24: =IF(AND(AH$17>=$B$23, AH$17<$C$23),(AI21+AI22)*$B$24,(AI21+AI22)*$C$24) -> 0 | AJ24: =IF(AND(AH$17>=$B$23, AH$17<$C$23),(AJ22)*$B$24,(AJ22)*$C$24) -> 0
A25: Rate Base | E25: =SUM(E20+E24) -> 0 | F25: =SUM(F20+F24) -> 0 | H25: =SUM(H20+H24) -> 0 | I25: =SUM(I20+I24) -> 0 | K25: =SUM(K20+K24) -> 0 | L25: =SUM(L20+L24) -> 0 | N25: =SUM(N20+N24) -> 0 | O25: =SUM(O20+O24) -> 0 | Q25: =SUM(Q20+Q24) -> 0 | R25: =SUM(R20+R24) -> 0 | T25: =SUM(T20+T24) -> 0 | U25: =SUM(U20+U24) -> 0 | W25: =SUM(W20+W24) -> 0 | X25: =SUM(X20+X24) -> 0 | Z25: =SUM(Z20+Z24) -> 0 | AA25: =SUM(AA20+AA24) -> 0 | AC25: =SUM(AC20+AC24) -> 0 | AD25: =SUM(AD20+AD24) -> 0 | AF25: =SUM(AF20+AF24) -> 0 | AG25: =SUM(AG20+AG24) -> 0 | AI25: =SUM(AI20+AI24) -> 0 | AJ25: =SUM(AJ20+AJ24) -> 0
A27: Rebasing Year vs. Test Year | B27: =B23 -> 2014 | C27: =C23 -> 2021
A28: Deemed ST Debt | B28: 0.04 | C28: 0.04 | E28: =E25*$B$28 -> 0 | F28: =F25*$B$28 -> 0 | H28: =H25*$B$28 -> 0 | I28: =I25*$B$28 -> 0 | K28: =K25*$B$28 -> 0 | L28: =L25*$B$28 -> 0 | N28: =N25*$B$28 -> 0 | O28: =O25*$B$28 -> 0 | Q28: =Q25*$B$28 -> 0 | R28: =R25*$B$28 -> 0 | T28: =T25*$C$28 -> 0 | U28: =U25*$C$28 -> 0 | W28: =W25*$C$28 -> 0 | X28: =X25*$C$28 -> 0 | Z28: =Z25*$C$28 -> 0 | AA28: =AA25*$C$28 -> 0 | AC28: =AC25*$C$28 -> 0 | AD28: =AD25*$C$28 -> 0 | AF28: =AF25*$C$28 -> 0 | AG28: =AG25*$C$28 -> 0 | AI28: =AI25*$C$28 -> 0 | AJ28: =AJ25*$C$28 -> 0
A29: Deemed LT Debt | B29: 0.56 | C29: 0.56 | E29: =E25*$B$29 -> 0 | F29: =F25*$B$29 -> 0 | H29: =H25*$B$29 -> 0 | I29: =I25*$B$29 -> 0 | K29: =K25*$B$29 -> 0 | L29: =L25*$B$29 -> 0 | N29: =N25*$B$29 -> 0 | O29: =O25*$B$29 -> 0 | Q29: =Q25*$B$29 -> 0 | R29: =R25*$B$29 -> 0 | T29: =T25*$C$29 -> 0 | U29: =U25*$C$29 -> 0 | W29: =W25*$C$29 -> 0 | X29: =X25*$C$29 -> 0 | Z29: =Z25*$C$29 -> 0 | AA29: =AA25*$C$29 -> 0 | AC29: =AC25*$C$29 -> 0 | AD29: =AD25*$C$29 -> 0 | AF29: =AF25*$C$29 -> 0 | AG29: =AG25*$C$29 -> 0 | AI29: =AI25*$C$29 -> 0 | AJ29: =AJ25*$C$29 -> 0
A30: Deemed Equity | B30: 0.4 | C30: 0.4 | E30: =E25*$B$30 -> 0 | F30: =F25*$B$30 -> 0 | H30: =H25*$B$30 -> 0 | I30: =I25*$B$30 -> 0 | K30: =K25*$B$30 -> 0 | L30: =L25*$B$30 -> 0 | N30: =N25*$B$30 -> 0 | O30: =O25*$B$30 -> 0 | Q30: =Q25*$B$30 -> 0 | R30: =R25*$B$30 -> 0 | T30: =T25*$C$30 -> 0 | U30: =U25*$C$30 -> 0 | W30: =W25*$C$30 -> 0 | X30: =X25*$C$30 -> 0 | Z30: =Z25*$C$30 -> 0 | AA30: =AA25*$C$30 -> 0 | AC30: =AC25*$C$30 -> 0 | AD30: =AD25*$C$30 -> 0 | AF30: =AF25*$C$30 -> 0 | AG30: =AG25*$C$30 -> 0 | AI30: =AI25*$C$30 -> 0 | AJ30: =AJ25*$C$30 -> 0
A32: ST Interest (enter rate) | E32: =E28*$B32 -> 0 | F32: 0 | H32: 0 | I32: 0 | K32: 0 | L32: 0 | N32: 0 | O32: 0 | Q32: 0 | R32: 0 | T32: =T28*$C32 -> 0 | U32: 0 | W32: =W28*$C32 -> 0 | X32: 0 | Z32: =Z28*$C32 -> 0 | AA32: 0 | AC32: =AC28*$C32 -> 0 | AD32: 0 | AF32: =AF28*$C32 -> 0 | AG32: 0 | AI32: =AI28*$C32 -> 0 | AJ32: 0
A33: LT Interest (enter rate) | E33: 0 | F33: 0 | H33: 0 | I33: 0 | K33: 0 | L33: 0 | N33: 0 | O33: 0 | Q33: 0 | R33: 0 | T33: 0 | U33: 0 | W33: 0 | X33: 0 | Z33: 0 | AA33: 0 | AC33: 0 | AD33: 0 | AF33: 0 | AG33: 0 | AI33: =AI29*$C33 -> 0 | AJ33: 0
A34: Return on Equity (enter rate) | E34: 0 | F34: 0 | H34: 0 | I34: 0 | K34: 0 | L34: 0 | N34: 0 | O34: 0 | Q34: 0 | R34: 0 | T34: 0 | U34: 0 | W34: 0 | X34: 0 | Z34: 0 | AA34: 0 | AC34: 0 | AD34: 0 | AF34: 0 | AG34: 0 | AI34: =AI30*$C34 -> 0 | AJ34: 0
A35: Cost of Capital Total | E35: =SUM(E32:E34) -> 0 | F35: =SUM(F32:F34) -> 0 | H35: =SUM(H32:H34) -> 0 | I35: =SUM(I32:I34) -> 0 | K35: =SUM(K32:K34) -> 0 | L35: =SUM(L32:L34) -> 0 | N35: =SUM(N32:N34) -> 0 | O35: =SUM(O32:O34) -> 0 | Q35: =SUM(Q32:Q34) -> 0 | R35: =SUM(R32:R34) -> 0 | T35: =SUM(T32:T34) -> 0 | U35: =SUM(U32:U34) -> 0 | W35: =SUM(W32:W34) -> 0 | X35: =SUM(X32:X34) -> 0 | Z35: =SUM(Z32:Z34) -> 0 | AA35: =SUM(AA32:AA34) -> 0 | AC35: =SUM(AC32:AC34) -> 0 | AD35: =SUM(AD32:AD34) -> 0 | AF35: =SUM(AF32:AF34) -> 0 | AG35: =SUM(AG32:AG34) -> 0 | AI35: =SUM(AI32:AI34) -> 0 | AJ35: =SUM(AJ32:AJ34) -> 0
A37: OM&A | E37: =E21+E22 -> 0 | F37: =F22 -> 0 | H37: =H21+H22 -> 0 | I37: =I22 -> 0 | K37: =K21+K22 -> 0 | L37: =L22 -> 0 | N37: =N21+N22 -> 0 | O37: =O22 -> 0 | Q37: =Q21+Q22 -> 0 | R37: =R22 -> 0 | T37: =T21+T22 -> 0 | U37: =U22 -> 0 | W37: =W21+W22 -> 0 | X37: =X22 -> 0 | Z37: =Z21+Z22 -> 0 | AA37: =AA22 -> 0 | AC37: =AC21+AC22 -> 0 | AD37: =AD22 -> 0 | AF37: =AF21+AF22 -> 0 | AG37: =AG22 -> 0 | AI37: =AI21+AI22 -> 0 | AJ37: =AJ22 -> 0
A38: Amortization | D38: =+E77+E78 -> 0 | E38: =D38*E$19 -> 0 | F38: =D38*F$19 -> 0 | G38: =+F77+F78 -> 0 | H38: =G38*H$19 -> 0 | I38: =G38*I$19 -> 0 | J38: =+G77+G78 -> 0 | K38: =J38*K$19 -> 0 | L38: =J38*L$19 -> 0 | M38: =+H77+H78 -> 0 | N38: =M38*N$19 -> 0 | O38: =M38*O$19 -> 0 | P38: =+I77+I78 -> 0 | Q38: =P38*Q$19 -> 0 | R38: =P38*R$19 -> 0 | S38: =+J77+J78 -> 0 | T38: =S38*T$19 -> 0 | U38: =S38*U$19 -> 0 | V38: =+K77+K78 -> 0 | W38: =V38*W$19 -> 0 | X38: =V38*X$19 -> 0 | Y38: =+L77+L78 -> 0 | Z38: =Y38*Z$19 -> 0 | AA38: =Y38*AA$19 -> 0 | AB38: =+M77+M78 -> 0 | AC38: =AB38*AC$19 -> 0 | AD38: =AB38*AD$19 -> 0 | AE38: =+N77+N78 -> 0 | AF38: =AE38*AF$19 -> 0 | AG38: =AE38*AG$19 -> 0 | AH38: =+O77+O78 -> 0 | AI38: =AH38*AI$19 -> 0 | AJ38: =AH38*AJ$19 -> 0
A39: Grossed-up PILs | E39: =+E66 -> 0 | F39: =+F66 -> 0 | H39: =+H66 -> 0 | I39: =+I66 -> 0 | K39: =+K66 -> 0 | L39: =+L66 -> 0 | N39: =+N66 -> 0 | O39: =+O66 -> 0 | Q39: =+Q66 -> 0 | R39: =+R66 -> 0 | T39: =+T66 -> 0 | U39: =+U66 -> 0 | W39: =+W66 -> 0 | X39: =+X66 -> 0 | Z39: =+Z66 -> 0 | AA39: =+AA66 -> 0 | AC39: =+AC66 -> 0 | AD39: =+AD66 -> 0 | AF39: =+AF66 -> 0 | AG39: =+AG66 -> 0 | AI39: =+AI66 -> 0 | AJ39: =+AJ66 -> 0
A41: Revenue Requirement | E41: =SUM(E35:E39) -> 0 | F41: =SUM(F35:F39) -> 0 | H41: =SUM(H35:H39) -> 0 | I41: 0 | K41: =SUM(K35:K39) -> 0 | L41: 0 | N41: =SUM(N35:N39) -> 0 | O41: 0 | Q41: =SUM(Q35:Q39) -> 0 | R41: 0 | T41: =SUM(T35:T39) -> 0 | U41: 0 | W41: =SUM(W35:W39) -> 0 | X41: 0 | Z41: =SUM(Z35:Z39) -> 0 | AA41: 0 | AC41: =SUM(AC35:AC39) -> 0 | AD41: 0 | AF41: =SUM(AF35:AF39) -> 0 | AG41: 0 | AI41: =SUM(AI35:AI39) -> 0 | AJ41: 0
A44: Provincial Rate Protection | F44: =F41 -> 0 | I44: =I41 -> 0 | L44: =L41 -> 0 | O44: =O41 -> 0 | R44: =R41 -> 0 | U44: =U41 -> 0 | X44: =X41 -> 0 | AA44: =AA41 -> 0 | AD44: =AD41 -> 0 | AG44: =AG41 -> 0 | AJ44: =AJ41 -> 0
A46: Monthly Amount Paid by IESO | F46: =F44/12 -> 0 | I46: =I44/12 -> 0 | L46: =L44/12 -> 0 | O46: =O44/12 -> 0 | R46: =R44/12 -> 0 | U46: =U44/12 -> 0 | X46: =X44/12 -> 0 | AA46: =AA44/12 -> 0 | AD46: =AD44/12 -> 0 | AG46: =AG44/12 -> 0 | AJ46: =AJ44/12 -> 0
A48: Note 1: The distributor should follow the regulatory accounting set out in the Accounting Procedure Handbook Guidance FAQs issued in March 2015. Q10 of the APH FAQs states that: “For approved eligible investments as defined under O.Reg. 330/09 under the OEB Act, a variance account will continue to be used for the purpose of recording variances between the revenue requirement based on actual costs of approved eligible investments and the revenue received from the IESO.” The answer for Q10 provides the accounting guidance for this variance account: “Distributors that have included eligible investments to connect qualifying facilities in their DS plans are to establish the variance Account 1533 Renewable Generation Connection Funding Adder Deferral Account, Sub-account Provincial Rate Protection Payment Variances following OEB approval for investments forecast to enter service beyond the test year for purposes of implementing rate protection pursuant to O.Reg. 330/09. The purpose of this variance account is to track the variance between the distributor’s revenue requirement associated with the portion of the actual capital and/or operating costs that are eligible for rate protection, as incurred by the distributor for eligible renewable enabling and expansion investments, and the rate protection payments collected from the IESO.” The answer further provides the journal entries to record the variances. Distributors should follow the instructions in the answer for recording the journal entries in the variance account 1533.
A50: Note 2: For the Test Year, Costs and Revenues of the Direct Benefit are to be included in the test year applicant Rate Base and Revenues.
A52: PILs Calculation | T52: Test Year
E53: =G17-1 -> 2016 | H53: =G17 -> 2017 | K53: =J17 -> 2018 | N53: =M17 -> 2019 | Q53: =P17 -> 2020 | T53: =S17 -> 2021 | W53: =V17 -> 2022 | Z53: =Y17 -> 2023 | AC53: =AB17 -> 2024 | AF53: =AE17 -> 2025 | AI53: =AH17 -> 2026
A54: Income Tax | E54: Direct Benefit | F54: Provincial | H54: Direct Benefit | I54: Provincial | K54: Direct Benefit | L54: Provincial | N54: Direct Benefit | O54: Provincial | Q54: Direct Benefit | R54: Provincial | T54: Direct Benefit | U54: Provincial | W54: Direct Benefit | X54: Provincial | Z54: Direct Benefit | AA54: Provincial | AC54: Direct Benefit | AD54: Provincial | AF54: Direct Benefit | AG54: Provincial | AI54: Direct Benefit | AJ54: Provincial
AB55: Total | AE55: Total | AH55: Total
A56: Net Income - ROE on Rate Base | E56: =E34 -> 0 | F56: =F34 -> 0 | H56: =H34 -> 0 | I56: =I34 -> 0 | K56: =K34 -> 0 | L56: =L34 -> 0 | N56: =N34 -> 0 | O56: =O34 -> 0 | Q56: =Q34 -> 0 | R56: =R34 -> 0 | T56: =T34 -> 0 | U56: =U34 -> 0 | W56: =W34 -> 0 | X56: =X34 -> 0 | Z56: =Z34 -> 0 | AA56: =AA34 -> 0 | AC56: =AC34 -> 0 | AD56: =AD34 -> 0 | AF56: =AF34 -> 0 | AG56: =AG34 -> 0 | AI56: =AI34 -> 0 | AJ56: =AJ34 -> 0
A57: Amortization (6% DB and 94% P) | E57: =E38 -> 0 | F57: =F38 -> 0 | H57: =H38 -> 0 | I57: =I38 -> 0 | K57: =K38 -> 0 | L57: =L38 -> 0 | N57: =N38 -> 0 | O57: =O38 -> 0 | Q57: =Q38 -> 0 | R57: =R38 -> 0 | T57: =T38 -> 0 | U57: =U38 -> 0 | W57: =W38 -> 0 | X57: =X38 -> 0 | Z57: =Z38 -> 0 | AA57: =AA38 -> 0 | AC57: =AC38 -> 0 | AD57: =AD38 -> 0 | AF57: =AF38 -> 0 | AG57: =AG38 -> 0 | AI57: =AI38 -> 0 | AJ57: =AJ38 -> 0
A58: CCA (6% DB and 94% P) | E58: =-E95*$E$19 -> 0 | F58: =-E95*$F$19 -> 0 | H58: =-F95*$E$19 -> 0 | I58: =-F95*$F$19 -> 0 | K58: =-G95*$E$19 -> 0 | L58: =-G95*$F$19 -> 0 | N58: =-H95*$E$19 -> 0 | O58: =-H95*$F$19 -> 0 | Q58: =-I95*$E$19 -> 0 | R58: =-I95*$F$19 -> 0 | T58: =-J95*$E$19 -> 0 | U58: =-J95*$F$19 -> 0 | W58: =-K95*$E$19 -> 0 | X58: =-K95*$F$19 -> 0 | Z58: =-L95*$E$19 -> 0 | AA58: =-L95*$F$19 -> 0 | AC58: =-M95*$E$19 -> 0 | AD58: =-M95*$F$19 -> 0 | AF58: =-N95*$E$19 -> 0 | AG58: =-N95*$F$19 -> 0 | AI58: =-Q95*$E$19 -> 0 | AJ58: =-Q95*$F$19 -> 0
A59: Taxable income | E59: =SUM(E56:E58) -> 0 | F59: =SUM(F56:F58) -> 0 | H59: =SUM(H56:H58) -> 0 | I59: 0 | K59: =SUM(K56:K58) -> 0 | L59: 0 | N59: =SUM(N56:N58) -> 0 | O59: 0 | Q59: =SUM(Q56:Q58) -> 0 | R59: 0 | T59: =SUM(T56:T58) -> 0 | U59: 0 | W59: =SUM(W56:W58) -> 0 | X59: 0 | Z59: =SUM(Z56:Z58) -> 0 | AA59: =SUM(AA56:AA58) -> 0 | AC59: =SUM(AC56:AC58) -> 0 | AD59: =SUM(AD56:AD58) -> 0 | AF59: =SUM(AF56:AF58) -> 0 | AG59: =SUM(AG56:AG58) -> 0 | AI59: =SUM(AI56:AI58) -> 0 | AJ59: =SUM(AJ56:AJ58) -> 0
B60: =B27 -> 2014 | C60: =C27 -> 2021
A61: Tax Rate (to be entered) | E61: =IF(AND(E$53>=$B$60, E$53<$C$60),$B$61,$C$61) -> 0 | F61: =IF(AND(E$53>=$B$60, E$53<$C$60),$B$61,$C$61) -> 0 | H61: =IF(AND(H$53>=$B$60, H$53<$C$60),$B$61,$C$61) -> 0 | I61: =IF(AND(H$53>=$B$60, H$53<$C$60),$B$61,$C$61) -> 0 | K61: =IF(AND(K$53>=$B$60, K$53<$C$60),$B$61,$C$61) -> 0 | L61: =IF(AND(K$53>=$B$60, K$53<$C$60),$B$61,$C$61) -> 0 | N61: =IF(AND(N$53>=$B$60, N$53<$C$60),$B$61,$C$61) -> 0 | O61: =IF(AND(N$53>=$B$60, N$53<$C$60),$B$61,$C$61) -> 0 | Q61: =IF(AND(Q$53>=$B$60, Q$53<$C$60),$B$61,$C$61) -> 0 | R61: =IF(AND(Q$53>=$B$60, Q$53<$C$60),$B$61,$C$61) -> 0 | T61: =IF(AND(T$53>=$B$60, T$53<$C$60),$B$61,$C$61) -> 0 | U61: =IF(AND(T$53>=$B$60, T$53<$C$60),$B$61,$C$61) -> 0 | W61: =IF(AND(W$53>=$B$60, W$53<$C$60),$B$61,$C$61) -> 0 | X61: =IF(AND(W$53>=$B$60, W$53<$C$60),$B$61,$C$61) -> 0 | Z61: =IF(AND(Z$53>=$B$60, Z$53<$C$60),$B$61,$C$61) -> 0 | AA61: =IF(AND(Z$53>=$B$60, Z$53<$C$60),$B$61,$C$61) -> 0 | AC61: =IF(AND(AC$53>=$B$60, AC$53<$C$60),$B$61,$C$61) -> 0 | AD61: =IF(AND(AC$53>=$B$60, AC$53<$C$60),$B$61,$C$61) -> 0 | AF61: =IF(AND(AF$53>=$B$60, AF$53<$C$60),$B$61,$C$61) -> 0 | AG61: =IF(AND(AF$53>=$B$60, AF$53<$C$60),$B$61,$C$61) -> 0 | AI61: =IF(AND(AI$53>=$B$60, AI$53<$C$60),$B$61,$C$61) -> 0 | AJ61: =IF(AND(AI$53>=$B$60, AI$53<$C$60),$B$61,$C$61) -> 0
A63: Income Taxes Payable | E63: =E59*E61 -> 0 | F63: =F59*F61 -> 0 | H63: =H59*H61 -> 0 | I63: =I59*I61 -> 0 | K63: =K59*K61 -> 0 | L63: =L59*L61 -> 0 | N63: =N59*N61 -> 0 | O63: =O59*O61 -> 0 | Q63: =Q59*Q61 -> 0 | R63: =R59*R61 -> 0 | T63: =T59*T61 -> 0 | U63: =U59*U61 -> 0 | W63: =W59*W61 -> 0 | X63: =X59*X61 -> 0 | Z63: =Z59*Z61 -> 0 | AA63: =AA59*AA61 -> 0 | AC63: =AC59*AC61 -> 0 | AD63: =AD59*AD61 -> 0 | AF63: =AF59*AF61 -> 0 | AG63: =AG59*AG61 -> 0 | AI63: =AI59*AI61 -> 0 | AJ63: =AJ59*AJ61 -> 0
A64: Gross Up
A65: Income Taxes Payable | E65: =E63/(1-E61) -> 0 | F65: =F63/(1-F61) -> 0 | H65: =H63/(1-H61) -> 0 | I65: =I63/(1-I61) -> 0 | K65: =K63/(1-K61) -> 0 | L65: =L63/(1-L61) -> 0 | N65: =N63/(1-N61) -> 0 | O65: =O63/(1-O61) -> 0 | Q65: =Q63/(1-Q61) -> 0 | R65: =R63/(1-R61) -> 0 | T65: =T63/(1-T61) -> 0 | U65: =U63/(1-U61) -> 0 | W65: =W63/(1-W61) -> 0 | X65: =X63/(1-X61) -> 0 | Z65: =Z63/(1-Z61) -> 0 | AA65: =AA63/(1-AA61) -> 0 | AC65: =AC63/(1-AC61) -> 0 | AD65: =AD63/(1-AD61) -> 0 | AF65: =AF63/(1-AF61) -> 0 | AG65: =AG63/(1-AG61) -> 0 | AI65: =AI63/(1-AI61) -> 0 | AJ65: =AJ63/(1-AJ61) -> 0
A66: Grossed Up PILs | E66: =+E65 -> 0 | F66: =+F65 -> 0 | H66: =+H65 -> 0 | I66: =+I65 -> 0 | K66: =+K65 -> 0 | L66: 0 | N66: =+N65 -> 0 | O66: 0 | Q66: =+Q65 -> 0 | R66: 0 | T66: =+T65 -> 0 | U66: 0 | W66: =+W65 -> 0 | X66: 0 | Z66: =+Z65 -> 0 | AA66: 0 | AC66: =+AC65 -> 0 | AD66: 0 | AF66: =+AF65 -> 0 | AG66: 0 | AI66: =+AI65 -> 0 | AJ66: 0
J68: Test Year
E69: =F69-1 -> 2016 | F69: =G69-1 -> 2017 | G69: =H69-1 -> 2018 | H69: =I69-1 -> 2019 | I69: =J69-1 -> 2020 | J69: ='LDC Info'!E24 -> 2021 | K69: =J69+1 -> 2022 | L69: =K69+1 -> 2023 | M69: =L69+1 -> 2024 | N69: =M69+1 -> 2025 | O69: =N69+1 -> 2026
A70: Net Fixed Assets
A71: Enter applicable amortization in years: | B71: 40
A72: Opening Gross Fixed Assets | F72: =E74 -> 0 | G72: 0 | H72: 0 | I72: 0 | J72: 0 | K72: 0 | L72: 0 | M72: 0 | N72: 0 | O72: 0
A73: Capital Additions | E73: ='App.2-FA Proposed REG Invest.'!C62 -> 0 | F73: ='App.2-FA Proposed REG Invest.'!D62 -> 0 | G73: ='App.2-FA Proposed REG Invest.'!E62 -> 0 | H73: ='App.2-FA Proposed REG Invest.'!F62 -> 0 | I73: ='App.2-FA Proposed REG Invest.'!G62 -> 0 | J73: ='App.2-FA Proposed REG Invest.'!H62 -> 0 | K73: ='App.2-FA Proposed REG Invest.'!I62 -> 0 | L73: ='App.2-FA Proposed REG Invest.'!J62 -> 0 | M73: ='App.2-FA Proposed REG Invest.'!K62 -> 0 | N73: ='App.2-FA Proposed REG Invest.'!L62 -> 0 | O73: ='App.2-FA Proposed REG Invest.'!M62 -> 0
A74: Closing Gross Fixed Assets | E74: =SUM(E72:E73) -> 0 | F74: 0 | G74: 0 | H74: 0 | I74: 0 | J74: 0 | K74: 0 | L74: 0 | M74: 0 | N74: 0 | O74: =SUM(O72:O73) -> 0
A76: Opening Accumulated Amortization | F76: =+E79 -> 0 | G76: =+F79 -> 0 | H76: 0 | I76: 0 | J76: 0 | K76: 0 | L76: 0 | M76: 0 | N76: 0 | O76: 0
A77: Current Year Amortization (before additions) | E77: =IF(ISERROR(E72/$B$71), 0, E72/$B$71) -> 0 | F77: =IF(ISERROR(F72/$B$71), 0, F72/$B$71) -> 0 | G77: 0 | H77: 0 | I77: 0 | J77: 0 | K77: 0 | L77: 0 | M77: 0 | N77: 0 | O77: =IF(ISERROR(O72/$B$71), 0, O72/$B$71) -> 0
A78: Capital Additions Amortization (half year) | E78: =E73/$B$71/2 -> 0 | F78: =F73/$B$71/2 -> 0 | G78: 0 | H78: 0 | I78: 0 | J78: 0 | K78: 0 | L78: 0 | M78: 0 | N78: 0 | O78: =O73/$B$71/2 -> 0
A79: Closing Accumulated Amortization | E79: =SUM(E76+E77+E78) -> 0 | F79: 0 | G79: 0 | H79: 0 | I79: 0 | J79: 0 | K79: 0 | L79: 0 | M79: 0 | N79: 0 | O79: =SUM(O76+O77+O78) -> 0
A81: Opening Net Fixed Assets | E81: =E72-E76 -> 0 | F81: 0 | G81: 0 | H81: 0 | I81: 0 | J81: 0 | K81: 0 | L81: 0 | M81: 0 | N81: 0 | O81: =O72-O76 -> 0
A82: Closing Net Fixed Assets | E82: =E74-E79 -> 0 | F82: 0 | G82: 0 | H82: 0 | I82: 0 | J82: 0 | K82: 0 | L82: 0 | M82: 0 | N82: 0 | O82: =O74-O79 -> 0
A83: Average Net Fixed Assets | E83: =SUM(E81:E82)/2 -> 0 | F83: 0 | G83: 0 | H83: 0 | I83: 0 | J83: 0 | K83: 0 | L83: 0 | M83: 0 | N83: 0 | O83: =SUM(O81:O82)/2 -> 0
A85: UCC for PILs Calculation | J85: Test Year
E86: =E69 -> 2016 | F86: =F69 -> 2017 | G86: =G69 -> 2018 | H86: 2019 | I86: 2020 | J86: 2021 | K86: 2022 | L86: 2023 | M86: 2024 | N86: 2025 | O86: =O69 -> 2026
A88: Opening UCC | E88: =E72 -> 0 | F88: =E96 -> 0 | G88: 0 | H88: 0 | I88: 0 | J88: 0 | K88: 0 | L88: 0 | M88: 0 | N88: 0 | O88: 0
A89: Capital Additions | E89: =E73 -> 0 | F89: 0 | G89: 0 | H89: 0 | I89: 0 | J89: 0 | K89: 0 | L89: 0 | M89: 0 | N89: 0 | O89: =O73 -> 0
A90: UCC Before Half Year Rule | E90: =SUM(E88:E89) -> 0 | F90: 0 | G90: 0 | H90: 0 | I90: 0 | J90: 0 | K90: 0 | L90: 0 | M90: 0 | N90: 0 | O90: =SUM(O88:O89) -> 0
A91: Capital Additions (half year) | E91: =E89/2 -> 0 | F91: 0 | G91: 0 | H91: 0 | I91: 0 | J91: 0 | K91: 0 | L91: 0 | M91: 0 | N91: 0 | O91: =O89/2 -> 0
A92: Reduced UCC | E92: =E90-E91 -> 0 | F92: 0 | G92: 0 | H92: 0 | I92: 0 | J92: 0 | K92: 0 | L92: 0 | M92: 0 | N92: 0 | O92: =O90-O91 -> 0
A93: CCA Rate Class (to be entered)
A94: CCA Rate (to be entered)
A95: CCA | E95: =E92*$B$94 -> 0 | F95: =F92*$B$94 -> 0 | G95: 0 | H95: 0 | I95: 0 | J95: 0 | K95: 0 | L95: 0 | M95: 0 | N95: 0 | O95: =O92*$B$94 -> 0
A96: Closing UCC | E96: =E90-E95 -> 0 | F96: 0 | G96: 0 | H96: 0 | I96: 0 | J96: 0 | K96: 0 | L96: 0 | M96: 0 | N96: 0 | O96: =O90-O95 -> 0

Sheet App.2-FC Calc of REG Expansion
R1: File Number: | S1: 0
R2: Exhibit:
R3: Tab:
A4: TO BE UPDATED AT DRAFT RATE ORDER STAGE | R4: Schedule:
R5: Page:
R7: Date:
A9: Appendix 2-FC
A10: Calculation of Renewable Generation Connection Direct Benefits/Provincial Amount: Renewable Expansion Investments
A12: This table will calculate the distributor/provincial shares of the investments entered in Part B of Appendix 2-FA.
A13: Enter values in green shaded cells: WCA percentage, debt percentages, interest rates, kWh, tax rates, amortization period, CCA Class and percentage.
A14: For historical investments, enter these variables that were approved in your last cost of service test year. For 2021 and beyond, enter variables as in the application.
A15: Rate Riders related to the direct benefit portion of the renewable investments are not calculated for the Test Year as these assets and costs are already in the distributor's rate base/revenue requirement.
S16: Test Year
D17: =G17-1 -> 2016 | G17: =J17-1 -> 2017 | J17: =M17-1 -> 2018 | M17: =P17-1 -> 2019 | P17: =S17-1 -> 2020 | S17: ='LDC Info'!$E$24 -> 2021 | V17: =S17+1 -> 2022 | Y17: =V17+1 -> 2023 | Z17: 2016 | AB17: =Y17+1 -> 2024 | AE17: =AB17+1 -> 2025 | AH17: =AE17+1 -> 2026
E18: Direct Benefit | F18: Provincial | H18: Direct Benefit | I18: Provincial | K18: Direct Benefit | L18: Provincial | N18: Direct Benefit | O18: Provincial | Q18: Direct Benefit | R18: Provincial | T18: Direct Benefit | U18: Provincial | W18: Direct Benefit | X18: Provincial | Z18: Direct Benefit | AA18: Provincial | AC18: Direct Benefit | AD18: Provincial | AF18: Direct Benefit | AG18: Provincial | AI18: Direct Benefit | AJ18: Provincial
D19: Total | E19: 0.17 | F19: 0.83 | G19: Total | H19: 0.17 | I19: 0.83 | J19: Total | K19: 0.17 | L19: 0.83 | M19: Total | N19: 0.17 | O19: 0.83 | P19: Total | Q19: 0.17 | R19: 0.83 | S19: Total | T19: 0.17 | U19: 0.83 | V19: Total | W19: 0.17 | X19: 0.83 | Y19: Total | Z19: 0.17 | AA19: 0.83 | AB19: Total | AC19: 0.17 | AD19: 0.83 | AE19: Total | AF19: 0.17 | AG19: 0.83 | AH19: Total | AI19: 0.17 | AJ19: 0.83
A20: Net Fixed Assets (average) | D20: =E83 -> 0 | E20: =D20*E19 -> 0 | F20: =D20*F19 -> 0 | G20: =F83 -> 0 | H20: =G20*H19 -> 0 | I20: =G20*I19 -> 0 | J20: =G83 -> 0 | K20: =J20*K19 -> 0 | L20: =J20*L19 -> 0 | M20: =H83 -> 0 | N20: =M20*N19 -> 0 | O20: =M20*O19 -> 0 | P20: =I83 -> 0 | Q20: =P20*Q19 -> 0 | R20: =P20*R19 -> 0 | S20: =J83 -> 0 | T20: =S20*T19 -> 0 | U20: =S20*U19 -> 0 | V20: =K83 -> 0 | W20: =V20*W19 -> 0 | X20: =V20*X19 -> 0 | Y20: =L83 -> 0 | Z20: =Y20*Z19 -> 0 | AA20: =Y20*AA19 -> 0 | AB20: =M83 -> 0 | AC20: =AB20*AC19 -> 0 | AD20: =AB20*AD19 -> 0 | AE20: =N83 -> 0 | AF20: =AE20*AF19 -> 0 | AG20: =AE20*AG19 -> 0 | AH20: =O83 -> 0 | AI20: =AH20*AI19 -> 0 | AJ20: =AH20*AJ19 -> 0
A21: Incremental OM&A (on-going, N/A for Provincial Recovery) | D21: 0 | E21: =D21*E19 -> 0 | F21: =D21*F19 -> 0 | G21: 0 | H21: =G21*H19 -> 0 | I21: =G21*I19 -> 0 | J21: 0 | K21: =J21*K19 -> 0 | L21: =J21*L19 -> 0 | M21: 0 | N21: =M21*N19 -> 0 | O21: =M21*O19 -> 0 | P21: 0 | Q21: =P21*Q19 -> 0 | R21: =P21*R19 -> 0 | S21: 0 | T21: =S21*T19 -> 0 | U21: =S21*U19 -> 0 | V21: 0 | W21: =V21*W19 -> 0 | X21: =V21*X19 -> 0 | Y21: 0 | Z21: =Y21*Z19 -> 0 | AA21: =Y21*AA19 -> 0 | AB21: 0 | AC21: =AB21*AC19 -> 0 | AD21: =AB21*AD19 -> 0 | AE21: 0 | AF21: =AE21*AF19 -> 0 | AG21: =AE21*AG19 -> 0 | AH21: 0 | AI21: =AH21*AI19 -> 0 | AJ21: =AH21*AJ19 -> 0
A22: Incremental OM&A (start-up, applicable for Provincial Recovery) | D22: 0 | E22: =D22*E19 -> 0 | F22: =D22*F19 -> 0 | G22: 0 | H22: =G22*H19 -> 0 | I22: =G22*I19 -> 0 | J22: 0 | K22: =J22*K19 -> 0 | L22: =J22*L19 -> 0 | M22: 0 | N22: =M22*N19 -> 0 | O22: =M22*O19 -> 0 | P22: 0 | Q22: =P22*Q19 -> 0 | R22: =P22*R19 -> 0 | S22: 0 | T22: =S22*T19 -> 0 | U22: =S22*U19 -> 0 | V22: 0 | W22: =V22*W19 -> 0 | X22: =V22*X19 -> 0 | Y22: 0 | Z22: =Y22*Z19 -> 0 | AA22: =Y22*AA19 -> 0 | AB22: 0 | AC22: =AB22*AC19 -> 0 | AD22: =AB22*AD19 -> 0 | AE22: 0 | AF22: =AE22*AF19 -> 0 | AG22: =AE22*AG19 -> 0 | AH22: 0 | AI22: =AH22*AI19 -> 0 | AJ22: =AH22*AJ19 -> 0
A23: Rebasing Year vs. Test Year | B23: ='LDC Info'!E28 -> 2014 | C23: ='LDC Info'!E24 -> 2021
A24: Allowance for Working Capital (enter rate) | E24: =IF(AND(D$17>=$B$23, D$17<$C$23),(E21+E22)*$B$24,(E21+E22)*$C$24) -> 0 | F24: =IF(AND(D$17>=$B$23, D$17<$C$23),(F22)*$B$24,(F22)*$C$24) -> 0 | H24: =IF(AND(G$17>=$B$23, G$17<$C$23),(H21+H22)*$B$24,(H21+H22)*$C$24) -> 0 | I24: =IF(AND(G$17>=$B$23, G$17<$C$23),(I22)*$B$24,(I22)*$C$24) -> 0 | K24: =IF(AND(J$17>=$B$23, J$17<$C$23),(K21+K22)*$B$24,(K21+K22)*$C$24) -> 0 | L24: =IF(AND(J$17>=$B$23, J$17<$C$23),(L22)*$B$24,(L22)*$C$24) -> 0 | N24: =IF(AND(M$17>=$B$23, M$17<$C$23),(N21+N22)*$B$24,(N21+N22)*$C$24) -> 0 | O24: =IF(AND(M$17>=$B$23, M$17<$C$23),(O22)*$B$24,(O22)*$C$24) -> 0 | Q24: =IF(AND(P$17>=$B$23, P$17<$C$23),(Q21+Q22)*$B$24,(Q21+Q22)*$C$24) -> 0 | R24: =IF(AND(P$17>=$B$23, P$17<$C$23),(R22)*$B$24,(R22)*$C$24) -> 0 | T24: =IF(AND(S$17>=$B$23, S$17<$C$23),(T21+T22)*$B$24,(T21+T22)*$C$24) -> 0 | U24: =IF(AND(S$17>=$B$23, S$17<$C$23),(U22)*$B$24,(U22)*$C$24) -> 0 | W24: =IF(AND(V$17>=$B$23, V$17<$C$23),(W21+W22)*$B$24,(W21+W22)*$C$24) -> 0 | X24: =IF(AND(V$17>=$B$23, V$17<$C$23),(X22)*$B$24,(X22)*$C$24) -> 0 | Z24: =IF(AND(Y$17>=$B$23, Y$17<$C$23),(Z21+Z22)*$B$24,(Z21+Z22)*$C$24) -> 0 | AA24: =IF(AND(Y$17>=$B$23, Y$17<$C$23),(AA22)*$B$24,(AA22)*$C$24) -> 0 | AC24: =IF(AND(AB$17>=$B$23, AB$17<$C$23),(AC21+AC22)*$B$24,(AC21+AC22)*$C$24) -> 0 | AD24: =IF(AND(AB$17>=$B$23, AB$17<$C$23),(AD22)*$B$24,(AD22)*$C$24) -> 0 | AF24: =IF(AND(AE$17>=$B$23, AE$17<$C$23),(AF21+AF22)*$B$24,(AF21+AF22)*$C$24) -> 0 | AG24: =IF(AND(AE$17>=$B$23, AE$17<$C$23),(AG22)*$B$24,(AG22)*$C$24) -> 0 | AI24: =IF(AND(AH$17>=$B$23, AH$17<$C$23),(AI21+AI22)*$B$24,(AI21+AI22)*$C$24) -> 0 | AJ24: =IF(AND(AH$17>=$B$23, AH$17<$C$23),(AJ22)*$B$24,(AJ22)*$C$24) -> 0
A25: Rate Base | E25: =SUM(E20+E24) -> 0 | F25: =SUM(F20+F24) -> 0 | H25: =SUM(H20+H24) -> 0 | I25: =SUM(I20+I24) -> 0 | K25: =SUM(K20+K24) -> 0 | L25: =SUM(L20+L24) -> 0 | N25: =SUM(N20+N24) -> 0 | O25: =SUM(O20+O24) -> 0 | Q25: =SUM(Q20+Q24) -> 0 | R25: =SUM(R20+R24) -> 0 | T25: =SUM(T20+T24) -> 0 | U25: =SUM(U20+U24) -> 0 | W25: =SUM(W20+W24) -> 0 | X25: =SUM(X20+X24) -> 0 | Z25: =SUM(Z20+Z24) -> 0 | AA25: =SUM(AA20+AA24) -> 0 | AC25: =SUM(AC20+AC24) -> 0 | AD25: =SUM(AD20+AD24) -> 0 | AF25: =SUM(AF20+AF24) -> 0 | AG25: =SUM(AG20+AG24) -> 0 | AI25: =SUM(AI20+AI24) -> 0 | AJ25: =SUM(AJ20+AJ24) -> 0
B27: =B23 -> 2014 | C27: =C23 -> 2021
A28: Deemed ST Debt | B28: 0.04 | C28: 0.04 | E28: =E25*$B$28 -> 0 | F28: =F25*$B$28 -> 0 | H28: =H25*$B$28 -> 0 | I28: =I25*$B$28 -> 0 | K28: =K25*$B$28 -> 0 | L28: =L25*$B$28 -> 0 | N28: =N25*$B$28 -> 0 | O28: =O25*$B$28 -> 0 | Q28: =Q25*$B$28 -> 0 | R28: =R25*$B$28 -> 0 | T28: =T25*$C$28 -> 0 | U28: =U25*$C$28 -> 0 | W28: =W25*$C$28 -> 0 | X28: =X25*$C$28 -> 0 | Z28: =Z25*$C$28 -> 0 | AA28: =AA25*$C$28 -> 0 | AC28: =AC25*$C$28 -> 0 | AD28: =AD25*$C$28 -> 0 | AF28: =AF25*$C$28 -> 0 | AG28: =AG25*$C$28 -> 0 | AI28: =AI25*$C$28 -> 0 | AJ28: =AJ25*$C$28 -> 0
A29: Deemed LT Debt | B29: 0.56 | C29: 0.56 | E29: =E25*$B$29 -> 0 | F29: =F25*$B$29 -> 0 | H29: =H25*$B$29 -> 0 | I29: =I25*$B$29 -> 0 | K29: =K25*$B$29 -> 0 | L29: =L25*$B$29 -> 0 | N29: =N25*$B$29 -> 0 | O29: =O25*$B$29 -> 0 | Q29: =Q25*$B$29 -> 0 | R29: =R25*$B$29 -> 0 | T29: =T25*$C$29 -> 0 | U29: =U25*$C$29 -> 0 | W29: =W25*$C$29 -> 0 | X29: =X25*$C$29 -> 0 | Z29: =Z25*$C$29 -> 0 | AA29: =AA25*$C$29 -> 0 | AC29: =AC25*$C$29 -> 0 | AD29: =AD25*$C$29 -> 0 | AF29: =AF25*$C$29 -> 0 | AG29: =AG25*$C$29 -> 0 | AI29: =AI25*$C$29 -> 0 | AJ29: =AJ25*$C$29 -> 0
A30: Deemed Equity | B30: 0.4 | C30: 0.4 | E30: =E25*$B$30 -> 0 | F30: =F25*$B$30 -> 0 | H30: =H25*$B$30 -> 0 | I30: =I25*$B$30 -> 0 | K30: =K25*$B$30 -> 0 | L30: =L25*$B$30 -> 0 | N30: =N25*$B$30 -> 0 | O30: =O25*$B$30 -> 0 | Q30: =Q25*$B$30 -> 0 | R30: =R25*$B$30 -> 0 | T30: =T25*$C$30 -> 0 | U30: =U25*$C$30 -> 0 | W30: =W25*$C$30 -> 0 | X30: =X25*$C$30 -> 0 | Z30: =Z25*$C$30 -> 0 | AA30: =AA25*$C$30 -> 0 | AC30: =AC25*$C$30 -> 0 | AD30: =AD25*$C$30 -> 0 | AF30: =AF25*$C$30 -> 0 | AG30: =AG25*$C$30 -> 0 | AI30: =AI25*$C$30 -> 0 | AJ30: =AJ25*$C$30 -> 0
A32: ST Interest (enter rate) | E32: =E28*$B32 -> 0 | F32: 0 | H32: 0 | I32: 0 | K32: 0 | L32: 0 | N32: 0 | O32: 0 | Q32: 0 | R32: 0 | T32: =T28*$C32 -> 0 | U32: 0 | W32: =W28*$C32 -> 0 | X32: 0 | Z32: =Z28*$C32 -> 0 | AA32: 0 | AC32: =AC28*$C32 -> 0 | AD32: 0 | AF32: =AF28*$C32 -> 0 | AG32: 0 | AI32: =AI28*$C32 -> 0 | AJ32: 0
A33: LT Interest (enter rate) | E33: 0 | F33: 0 | H33: 0 | I33: 0 | K33: 0 | L33: 0 | N33: 0 | O33: 0 | Q33: 0 | R33: 0 | T33: 0 | U33: 0 | W33: 0 | X33: 0 | Z33: 0 | AA33: 0 | AC33: 0 | AD33: 0 | AF33: 0 | AG33: 0 | AI33: =AI29*$C33 -> 0 | AJ33: 0
A34: Return on Equity (enter rate) | E34: 0 | F34: 0 | H34: 0 | I34: 0 | K34: 0 | L34: 0 | N34: 0 | O34: 0 | Q34: 0 | R34: 0 | T34: 0 | U34: 0 | W34: 0 | X34: 0 | Z34: 0 | AA34: 0 | AC34: 0 | AD34: 0 | AF34: 0 | AG34: 0 | AI34: =AI30*$C34 -> 0 | AJ34: 0
A35: Cost of Capital Total | E35: =SUM(E32:E34) -> 0 | F35: =SUM(F32:F34) -> 0 | H35: =SUM(H32:H34) -> 0 | I35: =SUM(I32:I34) -> 0 | K35: =SUM(K32:K34) -> 0 | L35: =SUM(L32:L34) -> 0 | N35: =SUM(N32:N34) -> 0 | O35: =SUM(O32:O34) -> 0 | Q35: =SUM(Q32:Q34) -> 0 | R35: =SUM(R32:R34) -> 0 | T35: =SUM(T32:T34) -> 0 | U35: =SUM(U32:U34) -> 0 | W35: =SUM(W32:W34) -> 0 | X35: =SUM(X32:X34) -> 0 | Z35: =SUM(Z32:Z34) -> 0 | AA35: =SUM(AA32:AA34) -> 0 | AC35: =SUM(AC32:AC34) -> 0 | AD35: =SUM(AD32:AD34) -> 0 | AF35: =SUM(AF32:AF34) -> 0 | AG35: =SUM(AG32:AG34) -> 0 | AI35: =SUM(AI32:AI34) -> 0 | AJ35: =SUM(AJ32:AJ34) -> 0
A37: OM&A | E37: =E21+E22 -> 0 | F37: =F22 -> 0 | H37: =H21+H22 -> 0 | I37: =I22 -> 0 | K37: =K21+K22 -> 0 | L37: =L22 -> 0 | N37: =N21+N22 -> 0 | O37: =O22 -> 0 | Q37: =Q21+Q22 -> 0 | R37: =R22 -> 0 | T37: =T21+T22 -> 0 | U37: =U22 -> 0 | W37: =W21+W22 -> 0 | X37: =X22 -> 0 | Z37: =Z21+Z22 -> 0 | AA37: =AA22 -> 0 | AC37: =AC21+AC22 -> 0 | AD37: =AD22 -> 0 | AF37: =AF21+AF22 -> 0 | AG37: =AG22 -> 0 | AI37: =AI21+AI22 -> 0 | AJ37: =AJ22 -> 0
A38: Amortization | D38: =+E77+E78 -> 0 | E38: =D38*E$19 -> 0 | F38: =D38*F$19 -> 0 | G38: =+F77+F78 -> 0 | H38: =G38*H$19 -> 0 | I38: =G38*I$19 -> 0 | J38: =+G77+G78 -> 0 | K38: =J38*K$19 -> 0 | L38: =J38*L$19 -> 0 | M38: =+H77+H78 -> 0 | N38: =M38*N$19 -> 0 | O38: =M38*O$19 -> 0 | P38: =+I77+I78 -> 0 | Q38: =P38*Q$19 -> 0 | R38: =P38*R$19 -> 0 | S38: =+J77+J78 -> 0 | T38: =S38*T$19 -> 0 | U38: =S38*U$19 -> 0 | V38: =+K77+K78 -> 0 | W38: =V38*W$19 -> 0 | X38: =V38*X$19 -> 0 | Y38: =+L77+L78 -> 0 | Z38: =Y38*Z$19 -> 0 | AA38: =Y38*AA$19 -> 0 | AB38: =+M77+M78 -> 0 | AC38: =AB38*AC$19 -> 0 | AD38: =AB38*AD$19 -> 0 | AE38: =+N77+N78 -> 0 | AF38: =AE38*AF$19 -> 0 | AG38: =AE38*AG$19 -> 0 | AH38: =+O77+O78 -> 0 | AI38: =AH38*AI$19 -> 0 | AJ38: =AH38*AJ$19 -> 0
A39: Grossed-up PILs | E39: =+E66 -> 0 | F39: =+F66 -> 0 | H39: =+H66 -> 0 | I39: =+I66 -> 0 | K39: =+K66 -> 0 | L39: =+L66 -> 0 | N39: =+N66 -> 0 | O39: =+O66 -> 0 | Q39: =+Q66 -> 0 | R39: =+R66 -> 0 | T39: =+T66 -> 0 | U39: =+U66 -> 0 | W39: =+W66 -> 0 | X39: =+X66 -> 0 | Z39: =+Z66 -> 0 | AA39: =+AA66 -> 0 | AC39: =+AC66 -> 0 | AD39: =+AD66 -> 0 | AF39: =+AF66 -> 0 | AG39: =+AG66 -> 0 | AI39: =+AI66 -> 0 | AJ39: =+AJ66 -> 0
A41: Revenue Requirement | E41: =SUM(E35:E39) -> 0 | F41: =SUM(F35:F39) -> 0 | H41: =SUM(H35:H39) -> 0 | I41: 0 | K41: =SUM(K35:K39) -> 0 | L41: 0 | N41: =SUM(N35:N39) -> 0 | O41: 0 | Q41: =SUM(Q35:Q39) -> 0 | R41: 0 | T41: =SUM(T35:T39) -> 0 | U41: 0 | W41: =SUM(W35:W39) -> 0 | X41: 0 | Z41: =SUM(Z35:Z39) -> 0 | AA41: 0 | AC41: =SUM(AC35:AC39) -> 0 | AD41: 0 | AF41: =SUM(AF35:AF39) -> 0 | AG41: 0 | AI41: =SUM(AI35:AI39) -> 0 | AJ41: 0
A44: Provincial Rate Protection | F44: =F41 -> 0 | I44: =I41 -> 0 | L44: =L41 -> 0 | O44: =O41 -> 0 | R44: =R41 -> 0 | U44: =U41 -> 0 | X44: =X41 -> 0 | AA44: =AA41 -> 0 | AD44: =AD41 -> 0 | AG44: =AG41 -> 0 | AJ44: =AJ41 -> 0
A46: Monthly Amount Paid by IESO | F46: =F44/12 -> 0 | I46: =I44/12 -> 0 | L46: =L44/12 -> 0 | O46: =O44/12 -> 0 | R46: =R44/12 -> 0 | U46: =U44/12 -> 0 | X46: =X44/12 -> 0 | AA46: =AA44/12 -> 0 | AD46: =AD44/12 -> 0 | AG46: =AG44/12 -> 0 | AJ46: =AJ44/12 -> 0
A48: Note 1: The distributor should follow the regulatory accounting set out in the Accounting Procedure Handbook Guidance FAQs issued in March 2015. Q10 of the APH FAQs states that: “For approved eligible investments as defined under O.Reg. 330/09 under the OEB Act, a variance account will continue to be used for the purpose of recording variances between the revenue requirement based on actual costs of approved eligible investments and the revenue received from the IESO.” The answer for Q10 provides the accounting guidance for this variance account: “Distributors that have included eligible investments to connect qualifying facilities in their DS plans are to establish the variance Account 1533 Renewable Generation Connection Funding Adder Deferral Account, Sub-account Provincial Rate Protection Payment Variances following OEB approval for investments forecast to enter service beyond the test year for purposes of implementing rate protection pursuant to O.Reg. 330/09. The purpose of this variance account is to track the variance between the distributor’s revenue requirement associated with the portion of the actual capital and/or operating costs that are eligible for rate protection, as incurred by the distributor for eligible renewable enabling and expansion investments, and the rate protection payments collected from the IESO.” The answer further provides the journal entries to record the variances. Distributors should follow the instructions in the answer for recording the journal entries in the variance account 1533.
A50: Note 2: For the Test Year, Costs and Revenues of the Direct Benefit are to be included in the test year applicant Rate Base and Revenues.
A52: PILs Calculation | T52: Test Year
E53: =G17-1 -> 2016 | H53: =G17 -> 2017 | K53: =J17 -> 2018 | N53: =M17 -> 2019 | Q53: =P17 -> 2020 | T53: =S17 -> 2021 | W53: =V17 -> 2022 | Z53: =Y17 -> 2023 | AC53: =AB17 -> 2024 | AF53: =AE17 -> 2025 | AI53: =AH17 -> 2026
A54: Income Tax | E54: Direct Benefit | F54: Provincial | H54: Direct Benefit | I54: Provincial | K54: Direct Benefit | L54: Provincial | N54: Direct Benefit | O54: Provincial | Q54: Direct Benefit | R54: Provincial | T54: Direct Benefit | U54: Provincial | W54: Direct Benefit | X54: Provincial | Z54: Direct Benefit | AA54: Provincial | AC54: Direct Benefit | AD54: Provincial | AF54: Direct Benefit | AG54: Provincial | AI54: Direct Benefit | AJ54: Provincial
AB55: Total | AE55: Total | AH55: Total
A56: Net Income - ROE on Rate Base | E56: =E34 -> 0 | F56: =F34 -> 0 | H56: =H34 -> 0 | I56: =I34 -> 0 | K56: =K34 -> 0 | L56: =L34 -> 0 | N56: =N34 -> 0 | O56: =O34 -> 0 | Q56: =Q34 -> 0 | R56: =R34 -> 0 | T56: =T34 -> 0 | U56: =U34 -> 0 | W56: =W34 -> 0 | X56: =X34 -> 0 | Z56: =Z34 -> 0 | AA56: =AA34 -> 0 | AC56: =AC34 -> 0 | AD56: =AD34 -> 0 | AF56: =AF34 -> 0 | AG56: =AG34 -> 0 | AI56: =AI34 -> 0 | AJ56: =AJ34 -> 0
A57: Amortization (6% DB and 94% P) | E57: =E38 -> 0 | F57: =F38 -> 0 | H57: =H38 -> 0 | I57: =I38 -> 0 | K57: =K38 -> 0 | L57: =L38 -> 0 | N57: =N38 -> 0 | O57: =O38 -> 0 | Q57: =Q38 -> 0 | R57: =R38 -> 0 | T57: =T38 -> 0 | U57: =U38 -> 0 | W57: =W38 -> 0 | X57: =X38 -> 0 | Z57: =Z38 -> 0 | AA57: =AA38 -> 0 | AC57: =AC38 -> 0 | AD57: =AD38 -> 0 | AF57: =AF38 -> 0 | AG57: =AG38 -> 0 | AI57: =AI38 -> 0 | AJ57: =AJ38 -> 0
A58: CCA (6% DB and 94% P) | E58: =-E95*$E$19 -> 0 | F58: =-E95*$F$19 -> 0 | H58: =-F95*$E$19 -> 0 | I58: =-F95*$F$19 -> 0 | K58: =-G95*$E$19 -> 0 | L58: =-G95*$F$19 -> 0 | N58: =-H95*$E$19 -> 0 | O58: =-H95*$F$19 -> 0 | Q58: =-I95*$E$19 -> 0 | R58: =-I95*$F$19 -> 0 | T58: =-J95*$E$19 -> 0 | U58: =-J95*$F$19 -> 0 | W58: =-K95*$E$19 -> 0 | X58: =-K95*$F$19 -> 0 | Z58: =-L95*$E$19 -> 0 | AA58: =-L95*$F$19 -> 0 | AC58: =-M95*$E$19 -> 0 | AD58: =-M95*$F$19 -> 0 | AF58: =-N95*$E$19 -> 0 | AG58: =-N95*$F$19 -> 0 | AI58: =-Q95*$E$19 -> 0 | AJ58: =-Q95*$F$19 -> 0
A59: Taxable income | E59: =SUM(E56:E58) -> 0 | F59: =SUM(F56:F58) -> 0 | H59: =SUM(H56:H58) -> 0 | I59: 0 | K59: =SUM(K56:K58) -> 0 | L59: 0 | N59: =SUM(N56:N58) -> 0 | O59: 0 | Q59: =SUM(Q56:Q58) -> 0 | R59: 0 | T59: =SUM(T56:T58) -> 0 | U59: 0 | W59: =SUM(W56:W58) -> 0 | X59: 0 | Z59: =SUM(Z56:Z58) -> 0 | AA59: =SUM(AA56:AA58) -> 0 | AC59: =SUM(AC56:AC58) -> 0 | AD59: =SUM(AD56:AD58) -> 0 | AF59: =SUM(AF56:AF58) -> 0 | AG59: =SUM(AG56:AG58) -> 0 | AI59: =SUM(AI56:AI58) -> 0 | AJ59: =SUM(AJ56:AJ58) -> 0
B60: =B27 -> 2014 | C60: =C27 -> 2021
A61: Tax Rate (to be entered) | E61: =IF(AND(E$53>=$B$60, E$53<$C$60),$B$61,$C$61) -> 0 | F61: =IF(AND(E$53>=$B$60, E$53<$C$60),$B$61,$C$61) -> 0 | H61: =IF(AND(H$53>=$B$60, H$53<$C$60),$B$61,$C$61) -> 0 | I61: =IF(AND(H$53>=$B$60, H$53<$C$60),$B$61,$C$61) -> 0 | K61: =IF(AND(K$53>=$B$60, K$53<$C$60),$B$61,$C$61) -> 0 | L61: =IF(AND(K$53>=$B$60, K$53<$C$60),$B$61,$C$61) -> 0 | N61: =IF(AND(N$53>=$B$60, N$53<$C$60),$B$61,$C$61) -> 0 | O61: =IF(AND(N$53>=$B$60, N$53<$C$60),$B$61,$C$61) -> 0 | Q61: =IF(AND(Q$53>=$B$60, Q$53<$C$60),$B$61,$C$61) -> 0 | R61: =IF(AND(Q$53>=$B$60, Q$53<$C$60),$B$61,$C$61) -> 0 | T61: =IF(AND(T$53>=$B$60, T$53<$C$60),$B$61,$C$61) -> 0 | U61: =IF(AND(T$53>=$B$60, T$53<$C$60),$B$61,$C$61) -> 0 | W61: =IF(AND(W$53>=$B$60, W$53<$C$60),$B$61,$C$61) -> 0 | X61: =IF(AND(W$53>=$B$60, W$53<$C$60),$B$61,$C$61) -> 0 | Z61: =IF(AND(Z$53>=$B$60, Z$53<$C$60),$B$61,$C$61) -> 0 | AA61: =IF(AND(Z$53>=$B$60, Z$53<$C$60),$B$61,$C$61) -> 0 | AC61: =IF(AND(AC$53>=$B$60, AC$53<$C$60),$B$61,$C$61) -> 0 | AD61: =IF(AND(AC$53>=$B$60, AC$53<$C$60),$B$61,$C$61) -> 0 | AF61: =IF(AND(AF$53>=$B$60, AF$53<$C$60),$B$61,$C$61) -> 0 | AG61: =IF(AND(AF$53>=$B$60, AF$53<$C$60),$B$61,$C$61) -> 0 | AI61: =IF(AND(AI$53>=$B$60, AI$53<$C$60),$B$61,$C$61) -> 0 | AJ61: =IF(AND(AI$53>=$B$60, AI$53<$C$60),$B$61,$C$61) -> 0
A63: Income Taxes Payable | E63: =E59*E61 -> 0 | F63: =F59*F61 -> 0 | H63: =H59*H61 -> 0 | I63: =I59*I61 -> 0 | K63: =K59*K61 -> 0 | L63: =L59*L61 -> 0 | N63: =N59*N61 -> 0 | O63: =O59*O61 -> 0 | Q63: =Q59*Q61 -> 0 | R63: =R59*R61 -> 0 | T63: =T59*T61 -> 0 | U63: =U59*U61 -> 0 | W63: =W59*W61 -> 0 | X63: =X59*X61 -> 0 | Z63: =Z59*Z61 -> 0 | AA63: =AA59*AA61 -> 0 | AC63: =AC59*AC61 -> 0 | AD63: =AD59*AD61 -> 0 | AF63: =AF59*AF61 -> 0 | AG63: =AG59*AG61 -> 0 | AI63: =AI59*AI61 -> 0 | AJ63: =AJ59*AJ61 -> 0
A64: Gross Up
A65: Income Taxes Payable | E65: =E63/(1-E61) -> 0 | F65: =F63/(1-F61) -> 0 | H65: =H63/(1-H61) -> 0 | I65: =I63/(1-I61) -> 0 | K65: =K63/(1-K61) -> 0 | L65: =L63/(1-L61) -> 0 | N65: =N63/(1-N61) -> 0 | O65: =O63/(1-O61) -> 0 | Q65: =Q63/(1-Q61) -> 0 | R65: =R63/(1-R61) -> 0 | T65: =T63/(1-T61) -> 0 | U65: =U63/(1-U61) -> 0 | W65: =W63/(1-W61) -> 0 | X65: =X63/(1-X61) -> 0 | Z65: =Z63/(1-Z61) -> 0 | AA65: =AA63/(1-AA61) -> 0 | AC65: =AC63/(1-AC61) -> 0 | AD65: =AD63/(1-AD61) -> 0 | AF65: =AF63/(1-AF61) -> 0 | AG65: =AG63/(1-AG61) -> 0 | AI65: =AI63/(1-AI61) -> 0 | AJ65: =AJ63/(1-AJ61) -> 0
A66: Grossed Up PILs | E66: =+E65 -> 0 | F66: =+F65 -> 0 | H66: =+H65 -> 0 | I66: =+I65 -> 0 | K66: =+K65 -> 0 | L66: 0 | N66: =+N65 -> 0 | O66: 0 | Q66: =+Q65 -> 0 | R66: 0 | T66: =+T65 -> 0 | U66: 0 | W66: =+W65 -> 0 | X66: 0 | Z66: =+Z65 -> 0 | AA66: 0 | AC66: =+AC65 -> 0 | AD66: 0 | AF66: =+AF65 -> 0 | AG66: 0 | AI66: =+AI65 -> 0 | AJ66: 0
J68: Test Year
E69: =F69-1 -> 2016 | F69: =G69-1 -> 2017 | G69: =H69-1 -> 2018 | H69: =I69-1 -> 2019 | I69: =J69-1 -> 2020 | J69: ='LDC Info'!E24 -> 2021 | K69: =J69+1 -> 2022 | L69: =K69+1 -> 2023 | M69: =L69+1 -> 2024 | N69: =M69+1 -> 2025 | O69: =N69+1 -> 2026
A70: Net Fixed Assets
A71: Enter applicable amortization in years: | B71: 40
A72: Opening Gross Fixed Assets | F72: =E74 -> 0 | G72: 0 | H72: 0 | I72: 0 | J72: 0 | K72: 0 | L72: 0 | M72: 0 | N72: 0 | O72: 0
A73: Capital Additions | E73: ='App.2-FA Proposed REG Invest.'!C99 -> 0 | F73: ='App.2-FA Proposed REG Invest.'!D99 -> 0 | G73: ='App.2-FA Proposed REG Invest.'!E99 -> 0 | H73: ='App.2-FA Proposed REG Invest.'!F99 -> 0 | I73: ='App.2-FA Proposed REG Invest.'!G99 -> 0 | J73: ='App.2-FA Proposed REG Invest.'!H99 -> 0 | K73: ='App.2-FA Proposed REG Invest.'!I99 -> 0 | L73: ='App.2-FA Proposed REG Invest.'!J99 -> 0 | M73: ='App.2-FA Proposed REG Invest.'!K99 -> 0 | N73: ='App.2-FA Proposed REG Invest.'!L99 -> 0 | O73: ='App.2-FA Proposed REG Invest.'!M99 -> 0
A74: Closing Gross Fixed Assets | E74: =SUM(E72:E73) -> 0 | F74: 0 | G74: 0 | H74: 0 | I74: 0 | J74: 0 | K74: 0 | L74: 0 | M74: 0 | N74: 0 | O74: =SUM(O72:O73) -> 0
A76: Opening Accumulated Amortization | E76: 0 | F76: =+E79 -> 0 | G76: =+F79 -> 0 | H76: 0 | I76: 0 | J76: 0 | K76: 0 | L76: 0 | M76: 0 | N76: 0 | O76: 0
A77: Current Year Amortization (before additions) | E77: =IF(ISERROR(E72/$B$71), 0, E72/$B$71) -> 0 | F77: =IF(ISERROR(F72/$B$71), 0, F72/$B$71) -> 0 | G77: 0 | H77: 0 | I77: 0 | J77: 0 | K77: 0 | L77: 0 | M77: 0 | N77: 0 | O77: =IF(ISERROR(O72/$B$71), 0, O72/$B$71) -> 0
A78: Capital Additions Amortization (half year) | E78: =E73/$B$71/2 -> 0 | F78: =F73/$B$71/2 -> 0 | G78: 0 | H78: 0 | I78: 0 | J78: 0 | K78: 0 | L78: 0 | M78: 0 | N78: 0 | O78: =O73/$B$71/2 -> 0
A79: Closing Accumulated Amortization | E79: =SUM(E76+E77+E78) -> 0 | F79: 0 | G79: 0 | H79: 0 | I79: 0 | J79: 0 | K79: 0 | L79: 0 | M79: 0 | N79: 0 | O79: =SUM(O76+O77+O78) -> 0
A81: Opening Net Fixed Assets | E81: =E72-E76 -> 0 | F81: 0 | G81: 0 | H81: 0 | I81: 0 | J81: 0 | K81: 0 | L81: 0 | M81: 0 | N81: 0 | O81: =O72-O76 -> 0
A82: Closing Net Fixed Assets | E82: =E74-E79 -> 0 | F82: 0 | G82: 0 | H82: 0 | I82: 0 | J82: 0 | K82: 0 | L82: 0 | M82: 0 | N82: 0 | O82: =O74-O79 -> 0
A83: Average Net Fixed Assets | E83: =SUM(E81:E82)/2 -> 0 | F83: 0 | G83: 0 | H83: 0 | I83: 0 | J83: 0 | K83: 0 | L83: 0 | M83: 0 | N83: 0 | O83: =SUM(O81:O82)/2 -> 0
A85: UCC for PILs Calculation | J85: =J68 -> Test Year
E86: =E69 -> 2016 | F86: =F69 -> 2017 | G86: =G69 -> 2018 | H86: 2019 | I86: 2020 | J86: 2021 | K86: 2022 | L86: 2023 | M86: 2024 | N86: 2025 | O86: =O69 -> 2026
A88: Opening UCC | E88: =E72 -> 0 | F88: =E96 -> 0 | G88: 0 | H88: 0 | I88: 0 | J88: 0 | K88: 0 | L88: 0 | M88: 0 | N88: 0 | O88: 0
A89: Capital Additions | E89: =E73 -> 0 | F89: 0 | G89: 0 | H89: 0 | I89: 0 | J89: 0 | K89: 0 | L89: 0 | M89: 0 | N89: 0 | O89: =O73 -> 0
A90: UCC Before Half Year Rule | E90: =SUM(E88:E89) -> 0 | F90: 0 | G90: 0 | H90: 0 | I90: 0 | J90: 0 | K90: 0 | L90: 0 | M90: 0 | N90: 0 | O90: =SUM(O88:O89) -> 0
A91: Capital Additions (half year) | E91: =E89/2 -> 0 | F91: 0 | G91: 0 | H91: 0 | I91: 0 | J91: 0 | K91: 0 | L91: 0 | M91: 0 | N91: 0 | O91: =O89/2 -> 0
A92: Reduced UCC | E92: =E90-E91 -> 0 | F92: 0 | G92: 0 | H92: 0 | I92: 0 | J92: 0 | K92: 0 | L92: 0 | M92: 0 | N92: 0 | O92: =O90-O91 -> 0
A93: CCA Rate Class (to be entered)
A94: CCA Rate (to be entered)
A95: CCA | E95: =E92*$B$94 -> 0 | F95: =F92*$B$94 -> 0 | G95: 0 | H95: 0 | I95: 0 | J95: 0 | K95: 0 | L95: 0 | M95: 0 | N95: 0 | O95: =O92*$B$94 -> 0
A96: Closing UCC | E96: =E90-E95 -> 0 | F96: 0 | G96: 0 | H96: 0 | I96: 0 | J96: 0 | K96: 0 | L96: 0 | M96: 0 | N96: 0 | O96: =O90-O95 -> 0

Sheet App.2-G SQI
M1: File Number: | O1: =EBNUMBER -> 0
M2: Exhibit:
M3: Tab:
M4: Schedule:
M5: Page:
M7: Date:
A9: Appendix 2-G
A10: Service Reliability and Quality Indicators
A13: Service Reliability
A15: Index | B15: Including outages caused by loss of supply | G15: Excluding outages caused by loss of supply | L15: Excluding Major Event Days
B16: =TestYear-6 -> 2015 | C16: =TestYear-5 -> 2016 | D16: =TestYear-4 -> 2017 | E16: =TestYear-3 -> 2018 | F16: =TestYear-2 -> 2019 | G16: =B16 -> 2015 | H16: 2016 | I16: 2017 | J16: 2018 | K16: 2019 | L16: 2015 | M16: 2016 | N16: 2017 | O16: 2018 | P16: 2019
A17: SAIDI
A18: SAIFI
A20: 5 Year Historical Average
A21: SAIDI | F21: =IF(ISERROR(AVERAGE(B17:F17)), "", AVERAGE(B17:F17)) ->  | K21: =IF(ISERROR(AVERAGE(G17:K17)), "", AVERAGE(G17:K17)) ->  | P21: =IF(ISERROR(AVERAGE(L17:P17)), "", AVERAGE(L17:P17)) -> 
A22: SAIFI | F22: =IF(ISERROR(AVERAGE(B18:F18)), "", AVERAGE(B18:F18)) ->  | K22: =IF(ISERROR(AVERAGE(G18:K18)), "", AVERAGE(G18:K18)) ->  | P22: =IF(ISERROR(AVERAGE(L18:P18)), "", AVERAGE(L18:P18)) -> 
A24: SAIDI = System Average Interruption Duration Index
A25: SAIFI = System Average Interruption Frequency Index
A27: Service Quality
A29: Indicator | E29: OEB Minimum Standard | G29: =B16 -> 2015 | H29: =C16 -> 2016 | I29: =D16 -> 2017 | J29: =E16 -> 2018 | K29: =F16 -> 2019
A30: Low Voltage Connections | E30: 0.9
A31: High Voltage Connections | E31: 0.9
A32: Telephone Accessibility | E32: 0.65
A33: Appointments Met | E33: 0.9
A34: Written Response to Enquires | E34: 0.8
A35: Emergency Urban Response | E35: 0.8
A36: Emergency Rural Response | E36: 0.8
A37: Telephone Call Abandon Rate | E37: 0.1
A38: Appointment Scheduling | E38: 0.9
A39: Rescheduling a Missed Appointment | E39: 1
A40: Reconnection Performance Standard | E40: 0.85

Sheet App.2-H_Other_Oper_Rev
K1: File Number: | L1: =EBNUMBER -> 0
K2: Exhibit:
K3: Tab:
A4: TO BE UPDATED AT THE DRAFT RATE ORDER STAGE | K4: Schedule:
K5: Page:
K7: Date:
A9: Appendix 2-H
A10: Other Operating Revenue
A12: USoA # | B12: USoA Description | C12: =D13 - 1 &" Actual"&CHAR(178) -> 2012 Actual² | D12: 2013 Actual² | E12: 2014 Actual² | F12: 2015 Actual² | G12: =H13 - 1 &" Actual"&CHAR(178) -> 2016 Actual² | H12: =I13 - 1 &" Actual"&CHAR(178) -> 2017 Actual² | I12: =I13 & " Actual" & CHAR(178) -> 2018 Actual² | J12: =J13& " Actual" -> 2019 Actual | K12: Bridge Year | L12: Test Year | N12: CGAAP
C13: =D13-1 -> 2012 | D13: =E13-1 -> 2013 | E13: =F13-1 -> 2014 | F13: =G13-1 -> 2015 | G13: =H13-1 -> 2016 | H13: =I13-1 -> 2017 | I13: =J13-1 -> 2018 | J13: 2019 | K13: =BridgeYear -> 2020 | L13: =TestYear -> 2021 | N13: Enter Transition Year
B14: Reporting Basis | N14: CGAAP
A15: 4235 | B15: Specific Service Charges
A16: 4225 | B16: Late Payment Charges
A17: 4082 | B17: Retail Services Revenues
A18: etc.
A53: Specific Service Charges | C53: =C15 -> 0 | D53: 0 | E53: 0 | F53: 0 | G53: 0 | H53: 0 | I53: 0 | J53: 0 | K53: 0 | L53: 0 | N53: =N15 -> 0
A54: Late Payment Charges | C54: =C16 -> 0 | D54: 0 | E54: 0 | F54: 0 | G54: 0 | H54: 0 | I54: 0 | J54: 0 | K54: 0 | L54: 0 | N54: =N16 -> 0
A55: Other Operating Revenues
A56: Other Income or Deductions
A57: Total | C57: =SUM(C53:C56) -> 0 | D57: =SUM(D53:D56) -> 0 | E57: =SUM(E53:E56) -> 0 | F57: =SUM(F53:F56) -> 0 | G57: =SUM(G53:G56) -> 0 | H57: 0 | I57: 0 | J57: 0 | K57: 0 | L57: 0 | N57: =SUM(N53:N56) -> 0
A59: Description Account(s)
A60: Specific Service Charges: 4235
A61: Late Payment Charges: 4225
A62: Other Distribution Revenues: 4082, 4084, 4090, 4205, 4210, 4215, 4220, 4230, 4240, 4245
A63: Other Income and Expenses: 4305, 4310, 4315, 4320, 4325, 4330, 4335, 4340, 4345, 4350, 4355, 4357, 4360, 4362, 4365, 4370, 4375, 4380, 4385, 4390, 4395, 4398, 4405, 4410, 4415, 4420
A66: Note: Add all applicable accounts listed above to the table and include all relevant information.
A68: Account Breakdown Details
A70: For each "Other Operating Revenue" and "Other Income or Deductions" Account, a detailed breakdown of the account components is required. See the example below for Account 4405, Interest and Dividend Income. Tables for the detailed breakdowns will be generated after cell B89 is filled in.
A73: Example: Account 4405 - Interest and Dividend Income
C74: =C12 -> 2012 Actual² | D74: 2013 Actual² | E74: 2014 Actual² | F74: 2015 Actual² | G74: 2016 Actual² | H74: 2017 Actual² | I74: 2018 Actual² | J74: 2019 Actual | K74: Bridge Year | L74: Test Year | N74: =N12 -> CGAAP
C75: =C13 -> 2012 | D75: 2013 | E75: 2014 | F75: 2015 | G75: 2016 | H75: 2017 | I75: 2018 | J75: =J13 -> 2019 | K75: =K13 -> 2020 | L75: =L13 -> 2021 | N75: =N13 -> Enter Transition Year
A76: Reporting Basis | C76: =IF(C14=0, "", C14) ->  | N76: =IF(N14=0, "", N14) -> CGAAP
A77: Short-term Investment Interest
A78: Bank Deposit Interest
A79: Miscellaneous Interest Revenue
A80: etc.1
A83: Total | C83: =SUM(C77:C82) -> 0 | D83: 0 | E83: 0 | F83: 0 | G83: 0 | H83: 0 | I83: 0 | J83: 0 | K83: 0 | L83: 0 | N83: =SUM(N77:N82) -> 0
A86: Notes:
A87: 1 | B87: List and specify any other interest revenue.
A88: 2 | B88: For applicants rebasing under IFRS for the first time, in the transition year (2014) to IFRS, the applicant is to present information in both MIFRS and CGAAP. In column N, present CGAAP transition year information.
C89: Enter the number of "Other Operating Revenue" and "Other Income or Deductions" Accounts that require a detailed breakdown of the account components.
C94: =C$12 -> 2012 Actual² | D94: 2013 Actual² | E94: 2014 Actual² | F94: 2015 Actual² | G94: 2016 Actual² | H94: 2017 Actual² | I94: 2018 Actual² | J94: 2019 Actual | K94: Bridge Year | L94: Test Year | N94: =N$12 -> CGAAP
C95: =C$13 -> 2012 | D95: 2013 | E95: 2014 | F95: 2015 | G95: 2016 | H95: 2017 | I95: 2018 | J95: 2019 | K95: 2020 | L95: 2021 | N95: =N$13 -> Enter Transition Year
A96: Reporting Basis | C96: =IF(C34=0, "", C34) ->  | N96: =IF(N$14=0, "", N$14) -> CGAAP
A105: Total | C105: =SUM(C97:C104) -> 0 | D105: 0 | E105: 0 | F105: 0 | G105: 0 | H105: 0 | I105: 0 | J105: 0 | K105: 0 | L105: 0 | N105: =SUM(N97:N104) -> 0
C108: =C$12 -> 2012 Actual² | D108: 2013 Actual² | E108: 2014 Actual² | F108: 2015 Actual² | G108: 2016 Actual² | H108: 2017 Actual² | I108: 2018 Actual² | J108: 2019 Actual | K108: Bridge Year | L108: Test Year | N108: =N$12 -> CGAAP
C109: =C$13 -> 2012 | D109: 2013 | E109: 2014 | F109: 2015 | G109: 2016 | H109: 2017 | I109: 2018 | J109: 2019 | K109: 2020 | L109: 2021 | N109: =N$13 -> Enter Transition Year
A110: Reporting Basis | C110: =IF(C48=0, "", C48) ->  | N110: =IF(N$14=0, "", N$14) -> CGAAP
A119: Total | C119: =SUM(C111:C118) -> 0 | D119: =SUM(D111:D118) -> 0 | E119: =SUM(E111:E118) -> 0 | F119: =SUM(F111:F118) -> 0 | G119: =SUM(G111:G118) -> 0 | H119: =SUM(H111:H118) -> 0 | I119: =SUM(I111:I118) -> 0 | J119: =SUM(J111:J118) -> 0 | K119: =SUM(K111:K118) -> 0 | L119: =SUM(L111:L118) -> 0 | N119: =SUM(N111:N118) -> 0
C122: =C$12 -> 2012 Actual² | D122: 2013 Actual² | E122: 2014 Actual² | F122: 2015 Actual² | G122: 2016 Actual² | H122: 2017 Actual² | I122: 2018 Actual² | J122: 2019 Actual | K122: Bridge Year | L122: Test Year | N122: =N$12 -> CGAAP
C123: =C$13 -> 2012 | D123: 2013 | E123: 2014 | F123: 2015 | G123: 2016 | H123: 2017 | I123: 2018 | J123: 2019 | K123: 2020 | L123: 2021 | N123: =N$13 -> Enter Transition Year
A124: Reporting Basis | C124: =IF(C62=0, "", C62) ->  | N124: =IF(N$14=0, "", N$14) -> CGAAP
A133: Total | C133: =SUM(C125:C132) -> 0 | D133: =SUM(D125:D132) -> 0 | E133: =SUM(E125:E132) -> 0 | F133: =SUM(F125:F132) -> 0 | G133: =SUM(G125:G132) -> 0 | H133: =SUM(H125:H132) -> 0 | I133: =SUM(I125:I132) -> 0 | J133: =SUM(J125:J132) -> 0 | K133: =SUM(K125:K132) -> 0 | L133: =SUM(L125:L132) -> 0 | N133: =SUM(N125:N132) -> 0
C136: =C$12 -> 2012 Actual² | D136: 2013 Actual² | E136: 2014 Actual² | F136: 2015 Actual² | G136: 2016 Actual² | H136: 2017 Actual² | I136: 2018 Actual² | J136: 2019 Actual | K136: Bridge Year | L136: Test Year | N136: =N$12 -> CGAAP
C137: =C$13 -> 2012 | D137: 2013 | E137: 2014 | F137: 2015 | G137: 2016 | H137: 2017 | I137: 2018 | J137: 2019 | K137: 2020 | L137: 2021 | N137: =N$13 -> Enter Transition Year
A138: Reporting Basis | C138: =IF(C76=0, "", C76) ->  | N138: =IF(N$14=0, "", N$14) -> CGAAP
A147: Total | C147: =SUM(C139:C146) -> 0 | D147: =SUM(D139:D146) -> 0 | E147: =SUM(E139:E146) -> 0 | F147: =SUM(F139:F146) -> 0 | G147: =SUM(G139:G146) -> 0 | H147: =SUM(H139:H146) -> 0 | I147: =SUM(I139:I146) -> 0 | J147: =SUM(J139:J146) -> 0 | K147: =SUM(K139:K146) -> 0 | L147: =SUM(L139:L146) -> 0 | N147: =SUM(N139:N146) -> 0
C150: =C$12 -> 2012 Actual² | D150: 2013 Actual² | E150: 2014 Actual² | F150: 2015 Actual² | G150: 2016 Actual² | H150: 2017 Actual² | I150: 2018 Actual² | J150: 2019 Actual | K150: Bridge Year | L150: Test Year | N150: =N$12 -> CGAAP
C151: =C$13 -> 2012 | D151: 2013 | E151: 2014 | F151: 2015 | G151: 2016 | H151: 2017 | I151: 2018 | J151: 2019 | K151: 2020 | L151: 2021 | N151: =N$13 -> Enter Transition Year
A152: Reporting Basis | C152: =IF(C90=0, "", C90) ->  | N152: =IF(N$14=0, "", N$14) -> CGAAP
A161: Total | C161: =SUM(C153:C160) -> 0 | D161: =SUM(D153:D160) -> 0 | E161: =SUM(E153:E160) -> 0 | F161: =SUM(F153:F160) -> 0 | G161: =SUM(G153:G160) -> 0 | H161: =SUM(H153:H160) -> 0 | I161: =SUM(I153:I160) -> 0 | J161: =SUM(J153:J160) -> 0 | K161: =SUM(K153:K160) -> 0 | L161: =SUM(L153:L160) -> 0 | N161: =SUM(N153:N160) -> 0
C164: =C$12 -> 2012 Actual² | D164: 2013 Actual² | E164: 2014 Actual² | F164: 2015 Actual² | G164: 2016 Actual² | H164: 2017 Actual² | I164: 2018 Actual² | J164: 2019 Actual | K164: Bridge Year | L164: Test Year | N164: =N$12 -> CGAAP
C165: =C$13 -> 2012 | D165: 2013 | E165: 2014 | F165: 2015 | G165: 2016 | H165: 2017 | I165: 2018 | J165: 2019 | K165: 2020 | L165: 2021 | N165: =N$13 -> Enter Transition Year
A166: Reporting Basis | C166: =IF(C104=0, "", C104) ->  | N166: =IF(N$14=0, "", N$14) -> CGAAP
A175: Total | C175: =SUM(C167:C174) -> 0 | D175: =SUM(D167:D174) -> 0 | E175: =SUM(E167:E174) -> 0 | F175: =SUM(F167:F174) -> 0 | G175: =SUM(G167:G174) -> 0 | H175: =SUM(H167:H174) -> 0 | I175: =SUM(I167:I174) -> 0 | J175: =SUM(J167:J174) -> 0 | K175: =SUM(K167:K174) -> 0 | L175: =SUM(L167:L174) -> 0 | N175: =SUM(N167:N174) -> 0
C178: =C$12 -> 2012 Actual² | D178: 2013 Actual² | E178: 2014 Actual² | F178: 2015 Actual² | G178: 2016 Actual² | H178: 2017 Actual² | I178: 2018 Actual² | J178: 2019 Actual | K178: Bridge Year | L178: Test Year | N178: =N$12 -> CGAAP
C179: =C$13 -> 2012 | D179: 2013 | E179: 2014 | F179: 2015 | G179: 2016 | H179: 2017 | I179: 2018 | J179: 2019 | K179: 2020 | L179: 2021 | N179: =N$13 -> Enter Transition Year
A180: Reporting Basis | C180: =IF(C118=0, "", C118) ->  | N180: =IF(N$14=0, "", N$14) -> CGAAP
A189: Total | C189: =SUM(C181:C188) -> 0 | D189: =SUM(D181:D188) -> 0 | E189: =SUM(E181:E188) -> 0 | F189: =SUM(F181:F188) -> 0 | G189: =SUM(G181:G188) -> 0 | H189: =SUM(H181:H188) -> 0 | I189: =SUM(I181:I188) -> 0 | J189: =SUM(J181:J188) -> 0 | K189: =SUM(K181:K188) -> 0 | L189: =SUM(L181:L188) -> 0 | N189: =SUM(N181:N188) -> 0
C192: =C$12 -> 2012 Actual² | D192: 2013 Actual² | E192: 2014 Actual² | F192: 2015 Actual² | G192: 2016 Actual² | H192: 2017 Actual² | I192: 2018 Actual² | J192: 2019 Actual | K192: Bridge Year | L192: Test Year | N192: =N$12 -> CGAAP
C193: =C$13 -> 2012 | D193: 2013 | E193: 2014 | F193: 2015 | G193: 2016 | H193: 2017 | I193: 2018 | J193: 2019 | K193: 2020 | L193: 2021 | N193: =N$13 -> Enter Transition Year
A194: Reporting Basis | C194: =IF(C132=0, "", C132) ->  | N194: =IF(N$14=0, "", N$14) -> CGAAP
A203: Total | C203: =SUM(C195:C202) -> 0 | D203: =SUM(D195:D202) -> 0 | E203: =SUM(E195:E202) -> 0 | F203: =SUM(F195:F202) -> 0 | G203: =SUM(G195:G202) -> 0 | H203: =SUM(H195:H202) -> 0 | I203: =SUM(I195:I202) -> 0 | J203: =SUM(J195:J202) -> 0 | K203: =SUM(K195:K202) -> 0 | L203: =SUM(L195:L202) -> 0 | N203: =SUM(N195:N202) -> 0
C206: =C$12 -> 2012 Actual² | D206: 2013 Actual² | E206: 2014 Actual² | F206: 2015 Actual² | G206: 2016 Actual² | H206: 2017 Actual² | I206: 2018 Actual² | J206: 2019 Actual | K206: Bridge Year | L206: Test Year | N206: =N$12 -> CGAAP
C207: =C$13 -> 2012 | D207: 2013 | E207: 2014 | F207: 2015 | G207: 2016 | H207: 2017 | I207: 2018 | J207: 2019 | K207: 2020 | L207: 2021 | N207: =N$13 -> Enter Transition Year
A208: Reporting Basis | C208: =IF(C146=0, "", C146) ->  | N208: =IF(N$14=0, "", N$14) -> CGAAP
A217: Total | C217: =SUM(C209:C216) -> 0 | D217: =SUM(D209:D216) -> 0 | E217: =SUM(E209:E216) -> 0 | F217: =SUM(F209:F216) -> 0 | G217: =SUM(G209:G216) -> 0 | H217: =SUM(H209:H216) -> 0 | I217: =SUM(I209:I216) -> 0 | J217: =SUM(J209:J216) -> 0 | K217: =SUM(K209:K216) -> 0 | L217: =SUM(L209:L216) -> 0 | N217: =SUM(N209:N216) -> 0
C220: =C$12 -> 2012 Actual² | D220: 2013 Actual² | E220: 2014 Actual² | F220: 2015 Actual² | G220: 2016 Actual² | H220: 2017 Actual² | I220: 2018 Actual² | J220: 2019 Actual | K220: Bridge Year | L220: Test Year | N220: =N$12 -> CGAAP
C221: =C$13 -> 2012 | D221: 2013 | E221: 2014 | F221: 2015 | G221: 2016 | H221: 2017 | I221: 2018 | J221: 2019 | K221: 2020 | L221: 2021 | N221: =N$13 -> Enter Transition Year
A222: Reporting Basis | C222: =IF(C160=0, "", C160) ->  | N222: =IF(N$14=0, "", N$14) -> CGAAP
A231: Total | C231: =SUM(C223:C230) -> 0 | D231: =SUM(D223:D230) -> 0 | E231: =SUM(E223:E230) -> 0 | F231: =SUM(F223:F230) -> 0 | G231: =SUM(G223:G230) -> 0 | H231: =SUM(H223:H230) -> 0 | I231: =SUM(I223:I230) -> 0 | J231: =SUM(J223:J230) -> 0 | K231: =SUM(K223:K230) -> 0 | L231: =SUM(L223:L230) -> 0 | N231: =SUM(N223:N230) -> 0
C234: =C$12 -> 2012 Actual² | D234: 2013 Actual² | E234: 2014 Actual² | F234: 2015 Actual² | G234: 2016 Actual² | H234: 2017 Actual² | I234: 2018 Actual² | J234: 2019 Actual | K234: Bridge Year | L234: Test Year | N234: =N$12 -> CGAAP
C235: =C$13 -> 2012 | D235: 2013 | E235: 2014 | F235: 2015 | G235: 2016 | H235: 2017 | I235: 2018 | J235: 2019 | K235: 2020 | L235: 2021 | N235: =N$13 -> Enter Transition Year
A236: Reporting Basis | C236: =IF(C174=0, "", C174) ->  | N236: =IF(N$14=0, "", N$14) -> CGAAP
A245: Total | C245: =SUM(C237:C244) -> 0 | D245: =SUM(D237:D244) -> 0 | E245: =SUM(E237:E244) -> 0 | F245: =SUM(F237:F244) -> 0 | G245: =SUM(G237:G244) -> 0 | H245: =SUM(H237:H244) -> 0 | I245: =SUM(I237:I244) -> 0 | J245: =SUM(J237:J244) -> 0 | K245: =SUM(K237:K244) -> 0 | L245: =SUM(L237:L244) -> 0 | N245: =SUM(N237:N244) -> 0
C248: =C$12 -> 2012 Actual² | D248: 2013 Actual² | E248: 2014 Actual² | F248: 2015 Actual² | G248: 2016 Actual² | H248: 2017 Actual² | I248: 2018 Actual² | J248: 2019 Actual | K248: Bridge Year | L248: Test Year | N248: =N$12 -> CGAAP
C249: =C$13 -> 2012 | D249: 2013 | E249: 2014 | F249: 2015 | G249: 2016 | H249: 2017 | I249: 2018 | J249: 2019 | K249: 2020 | L249: 2021 | N249: =N$13 -> Enter Transition Year
A250: Reporting Basis | C250: =IF(C188=0, "", C188) ->  | N250: =IF(N$14=0, "", N$14) -> CGAAP
A259: Total | C259: =SUM(C251:C258) -> 0 | D259: =SUM(D251:D258) -> 0 | E259: =SUM(E251:E258) -> 0 | F259: =SUM(F251:F258) -> 0 | G259: =SUM(G251:G258) -> 0 | H259: =SUM(H251:H258) -> 0 | I259: =SUM(I251:I258) -> 0 | J259: =SUM(J251:J258) -> 0 | K259: =SUM(K251:K258) -> 0 | L259: =SUM(L251:L258) -> 0 | N259: =SUM(N251:N258) -> 0
C262: =C$12 -> 2012 Actual² | D262: 2013 Actual² | E262: 2014 Actual² | F262: 2015 Actual² | G262: 2016 Actual² | H262: 2017 Actual² | I262: 2018 Actual² | J262: 2019 Actual | K262: Bridge Year | L262: Test Year | N262: =N$12 -> CGAAP
C263: =C$13 -> 2012 | D263: 2013 | E263: 2014 | F263: 2015 | G263: 2016 | H263: 2017 | I263: 2018 | J263: 2019 | K263: 2020 | L263: 2021 | N263: =N$13 -> Enter Transition Year
A264: Reporting Basis | C264: =IF(C202=0, "", C202) ->  | N264: =IF(N$14=0, "", N$14) -> CGAAP
A273: Total | C273: =SUM(C265:C272) -> 0 | D273: =SUM(D265:D272) -> 0 | E273: =SUM(E265:E272) -> 0 | F273: =SUM(F265:F272) -> 0 | G273: =SUM(G265:G272) -> 0 | H273: =SUM(H265:H272) -> 0 | I273: =SUM(I265:I272) -> 0 | J273: =SUM(J265:J272) -> 0 | K273: =SUM(K265:K272) -> 0 | L273: =SUM(L265:L272) -> 0 | N273: =SUM(N265:N272) -> 0
C276: =C$12 -> 2012 Actual² | D276: 2013 Actual² | E276: 2014 Actual² | F276: 2015 Actual² | G276: 2016 Actual² | H276: 2017 Actual² | I276: 2018 Actual² | J276: 2019 Actual | K276: Bridge Year | L276: Test Year | N276: =N$12 -> CGAAP
C277: =C$13 -> 2012 | D277: 2013 | E277: 2014 | F277: 2015 | G277: 2016 | H277: 2017 | I277: 2018 | J277: 2019 | K277: 2020 | L277: 2021 | N277: =N$13 -> Enter Transition Year
A278: Reporting Basis | C278: =IF(C216=0, "", C216) ->  | N278: =IF(N$14=0, "", N$14) -> CGAAP
A287: Total | C287: =SUM(C279:C286) -> 0 | D287: =SUM(D279:D286) -> 0 | E287: =SUM(E279:E286) -> 0 | F287: =SUM(F279:F286) -> 0 | G287: =SUM(G279:G286) -> 0 | H287: =SUM(H279:H286) -> 0 | I287: =SUM(I279:I286) -> 0 | J287: =SUM(J279:J286) -> 0 | K287: =SUM(K279:K286) -> 0 | L287: =SUM(L279:L286) -> 0 | N287: =SUM(N279:N286) -> 0
C290: =C$12 -> 2012 Actual² | D290: 2013 Actual² | E290: 2014 Actual² | F290: 2015 Actual² | G290: 2016 Actual² | H290: 2017 Actual² | I290: 2018 Actual² | J290: 2019 Actual | K290: Bridge Year | L290: Test Year | N290: =N$12 -> CGAAP
C291: =C$13 -> 2012 | D291: 2013 | E291: 2014 | F291: 2015 | G291: 2016 | H291: 2017 | I291: 2018 | J291: 2019 | K291: 2020 | L291: 2021 | N291: =N$13 -> Enter Transition Year
A292: Reporting Basis | C292: =IF(C230=0, "", C230) ->  | N292: =IF(N$14=0, "", N$14) -> CGAAP
A301: Total | C301: =SUM(C293:C300) -> 0 | D301: =SUM(D293:D300) -> 0 | E301: =SUM(E293:E300) -> 0 | F301: =SUM(F293:F300) -> 0 | G301: =SUM(G293:G300) -> 0 | H301: =SUM(H293:H300) -> 0 | I301: =SUM(I293:I300) -> 0 | J301: =SUM(J293:J300) -> 0 | K301: =SUM(K293:K300) -> 0 | L301: =SUM(L293:L300) -> 0 | N301: =SUM(N293:N300) -> 0
C304: =C$12 -> 2012 Actual² | D304: 2013 Actual² | E304: 2014 Actual² | F304: 2015 Actual² | G304: 2016 Actual² | H304: 2017 Actual² | I304: 2018 Actual² | J304: 2019 Actual | K304: Bridge Year | L304: Test Year | N304: =N$12 -> CGAAP
C305: =C$13 -> 2012 | D305: 2013 | E305: 2014 | F305: 2015 | G305: 2016 | H305: 2017 | I305: 2018 | J305: 2019 | K305: 2020 | L305: 2021 | N305: =N$13 -> Enter Transition Year
A306: Reporting Basis | C306: =IF(C244=0, "", C244) ->  | N306: =IF(N$14=0, "", N$14) -> CGAAP
A315: Total | C315: =SUM(C307:C314) -> 0 | D315: =SUM(D307:D314) -> 0 | E315: =SUM(E307:E314) -> 0 | F315: =SUM(F307:F314) -> 0 | G315: =SUM(G307:G314) -> 0 | H315: =SUM(H307:H314) -> 0 | I315: =SUM(I307:I314) -> 0 | J315: =SUM(J307:J314) -> 0 | K315: =SUM(K307:K314) -> 0 | L315: =SUM(L307:L314) -> 0 | N315: =SUM(N307:N314) -> 0
C318: =C$12 -> 2012 Actual² | D318: 2013 Actual² | E318: 2014 Actual² | F318: 2015 Actual² | G318: 2016 Actual² | H318: 2017 Actual² | I318: 2018 Actual² | J318: 2019 Actual | K318: Bridge Year | L318: Test Year | N318: =N$12 -> CGAAP
C319: =C$13 -> 2012 | D319: 2013 | E319: 2014 | F319: 2015 | G319: 2016 | H319: 2017 | I319: 2018 | J319: 2019 | K319: 2020 | L319: 2021 | N319: =N$13 -> Enter Transition Year
A320: Reporting Basis | C320: =IF(C258=0, "", C258) ->  | N320: =IF(N$14=0, "", N$14) -> CGAAP
A329: Total | C329: =SUM(C321:C328) -> 0 | D329: =SUM(D321:D328) -> 0 | E329: =SUM(E321:E328) -> 0 | F329: =SUM(F321:F328) -> 0 | G329: =SUM(G321:G328) -> 0 | H329: =SUM(H321:H328) -> 0 | I329: =SUM(I321:I328) -> 0 | J329: =SUM(J321:J328) -> 0 | K329: =SUM(K321:K328) -> 0 | L329: =SUM(L321:L328) -> 0 | N329: =SUM(N321:N328) -> 0
C332: =C$12 -> 2012 Actual² | D332: 2013 Actual² | E332: 2014 Actual² | F332: 2015 Actual² | G332: 2016 Actual² | H332: 2017 Actual² | I332: 2018 Actual² | J332: 2019 Actual | K332: Bridge Year | L332: Test Year | N332: =N$12 -> CGAAP
C333: =C$13 -> 2012 | D333: 2013 | E333: 2014 | F333: 2015 | G333: 2016 | H333: 2017 | I333: 2018 | J333: 2019 | K333: 2020 | L333: 2021 | N333: =N$13 -> Enter Transition Year
A334: Reporting Basis | C334: =IF(C272=0, "", C272) ->  | N334: =IF(N$14=0, "", N$14) -> CGAAP
A343: Total | C343: =SUM(C335:C342) -> 0 | D343: =SUM(D335:D342) -> 0 | E343: =SUM(E335:E342) -> 0 | F343: =SUM(F335:F342) -> 0 | G343: =SUM(G335:G342) -> 0 | H343: =SUM(H335:H342) -> 0 | I343: =SUM(I335:I342) -> 0 | J343: =SUM(J335:J342) -> 0 | K343: =SUM(K335:K342) -> 0 | L343: =SUM(L335:L342) -> 0 | N343: =SUM(N335:N342) -> 0
C346: =C$12 -> 2012 Actual² | D346: 2013 Actual² | E346: 2014 Actual² | F346: 2015 Actual² | G346: 2016 Actual² | H346: 2017 Actual² | I346: 2018 Actual² | J346: 2019 Actual | K346: Bridge Year | L346: Test Year | N346: =N$12 -> CGAAP
C347: =C$13 -> 2012 | D347: 2013 | E347: 2014 | F347: 2015 | G347: 2016 | H347: 2017 | I347: 2018 | J347: 2019 | K347: 2020 | L347: 2021 | N347: =N$13 -> Enter Transition Year
A348: Reporting Basis | C348: =IF(C286=0, "", C286) ->  | N348: =IF(N$14=0, "", N$14) -> CGAAP
A357: Total | C357: =SUM(C349:C356) -> 0 | D357: =SUM(D349:D356) -> 0 | E357: =SUM(E349:E356) -> 0 | F357: =SUM(F349:F356) -> 0 | G357: =SUM(G349:G356) -> 0 | H357: =SUM(H349:H356) -> 0 | I357: =SUM(I349:I356) -> 0 | J357: =SUM(J349:J356) -> 0 | K357: =SUM(K349:K356) -> 0 | L357: =SUM(L349:L356) -> 0 | N357: =SUM(N349:N356) -> 0
C360: =C$12 -> 2012 Actual² | D360: 2013 Actual² | E360: 2014 Actual² | F360: 2015 Actual² | G360: 2016 Actual² | H360: 2017 Actual² | I360: 2018 Actual² | J360: 2019 Actual | K360: Bridge Year | L360: Test Year | N360: =N$12 -> CGAAP
C361: =C$13 -> 2012 | D361: 2013 | E361: 2014 | F361: 2015 | G361: 2016 | H361: 2017 | I361: 2018 | J361: 2019 | K361: 2020 | L361: 2021 | N361: =N$13 -> Enter Transition Year
A362: Reporting Basis | C362: =IF(C300=0, "", C300) ->  | N362: =IF(N$14=0, "", N$14) -> CGAAP
A371: Total | C371: =SUM(C363:C370) -> 0 | D371: =SUM(D363:D370) -> 0 | E371: =SUM(E363:E370) -> 0 | F371: =SUM(F363:F370) -> 0 | G371: =SUM(G363:G370) -> 0 | H371: =SUM(H363:H370) -> 0 | I371: =SUM(I363:I370) -> 0 | J371: =SUM(J363:J370) -> 0 | K371: =SUM(K363:K370) -> 0 | L371: =SUM(L363:L370) -> 0 | N371: =SUM(N363:N370) -> 0
C374: =C$12 -> 2012 Actual² | D374: 2013 Actual² | E374: 2014 Actual² | F374: 2015 Actual² | G374: 2016 Actual² | H374: 2017 Actual² | I374: 2018 Actual² | J374: 2019 Actual | K374: Bridge Year | L374: Test Year | N374: =N$12 -> CGAAP
C375: =C$13 -> 2012 | D375: 2013 | E375: 2014 | F375: 2015 | G375: 2016 | H375: 2017 | I375: 2018 | J375: 2019 | K375: 2020 | L375: 2021 | N375: =N$13 -> Enter Transition Year
A376: Reporting Basis | C376: =IF(C314=0, "", C314) ->  | N376: =IF(N$14=0, "", N$14) -> CGAAP
A385: Total | C385: =SUM(C377:C384) -> 0 | D385: =SUM(D377:D384) -> 0 | E385: =SUM(E377:E384) -> 0 | F385: =SUM(F377:F384) -> 0 | G385: =SUM(G377:G384) -> 0 | H385: =SUM(H377:H384) -> 0 | I385: =SUM(I377:I384) -> 0 | J385: =SUM(J377:J384) -> 0 | K385: =SUM(K377:K384) -> 0 | L385: =SUM(L377:L384) -> 0 | N385: =SUM(N377:N384) -> 0
C388: =C$12 -> 2012 Actual² | D388: 2013 Actual² | E388: 2014 Actual² | F388: 2015 Actual² | G388: 2016 Actual² | H388: 2017 Actual² | I388: 2018 Actual² | J388: 2019 Actual | K388: Bridge Year | L388: Test Year | N388: =N$12 -> CGAAP
C389: =C$13 -> 2012 | D389: 2013 | E389: 2014 | F389: 2015 | G389: 2016 | H389: 2017 | I389: 2018 | J389: 2019 | K389: 2020 | L389: 2021 | N389: =N$13 -> Enter Transition Year
A390: Reporting Basis | C390: =IF(C328=0, "", C328) ->  | N390: =IF(N$14=0, "", N$14) -> CGAAP
A399: Total | C399: =SUM(C391:C398) -> 0 | D399: =SUM(D391:D398) -> 0 | E399: =SUM(E391:E398) -> 0 | F399: =SUM(F391:F398) -> 0 | G399: =SUM(G391:G398) -> 0 | H399: =SUM(H391:H398) -> 0 | I399: =SUM(I391:I398) -> 0 | J399: =SUM(J391:J398) -> 0 | K399: =SUM(K391:K398) -> 0 | L399: =SUM(L391:L398) -> 0 | N399: =SUM(N391:N398) -> 0
C402: =C$12 -> 2012 Actual² | D402: 2013 Actual² | E402: 2014 Actual² | F402: 2015 Actual² | G402: 2016 Actual² | H402: 2017 Actual² | I402: 2018 Actual² | J402: 2019 Actual | K402: Bridge Year | L402: Test Year | N402: =N$12 -> CGAAP
C403: =C$13 -> 2012 | D403: 2013 | E403: 2014 | F403: 2015 | G403: 2016 | H403: 2017 | I403: 2018 | J403: 2019 | K403: 2020 | L403: 2021 | N403: =N$13 -> Enter Transition Year
A404: Reporting Basis | C404: =IF(C342=0, "", C342) ->  | N404: =IF(N$14=0, "", N$14) -> CGAAP
A413: Total | C413: =SUM(C405:C412) -> 0 | D413: =SUM(D405:D412) -> 0 | E413: =SUM(E405:E412) -> 0 | F413: =SUM(F405:F412) -> 0 | G413: =SUM(G405:G412) -> 0 | H413: =SUM(H405:H412) -> 0 | I413: =SUM(I405:I412) -> 0 | J413: =SUM(J405:J412) -> 0 | K413: =SUM(K405:K412) -> 0 | L413: =SUM(L405:L412) -> 0 | N413: =SUM(N405:N412) -> 0
C416: =C$12 -> 2012 Actual² | D416: 2013 Actual² | E416: 2014 Actual² | F416: 2015 Actual² | G416: 2016 Actual² | H416: 2017 Actual² | I416: 2018 Actual² | J416: 2019 Actual | K416: Bridge Year | L416: Test Year | N416: =N$12 -> CGAAP
C417: =C$13 -> 2012 | D417: 2013 | E417: 2014 | F417: 2015 | G417: 2016 | H417: 2017 | I417: 2018 | J417: 2019 | K417: 2020 | L417: 2021 | N417: =N$13 -> Enter Transition Year
A418: Reporting Basis | C418: =IF(C356=0, "", C356) ->  | N418: =IF(N$14=0, "", N$14) -> CGAAP
A427: Total | C427: =SUM(C419:C426) -> 0 | D427: =SUM(D419:D426) -> 0 | E427: =SUM(E419:E426) -> 0 | F427: =SUM(F419:F426) -> 0 | G427: =SUM(G419:G426) -> 0 | H427: =SUM(H419:H426) -> 0 | I427: =SUM(I419:I426) -> 0 | J427: =SUM(J419:J426) -> 0 | K427: =SUM(K419:K426) -> 0 | L427: =SUM(L419:L426) -> 0 | N427: =SUM(N419:N426) -> 0
C430: =C$12 -> 2012 Actual² | D430: 2013 Actual² | E430: 2014 Actual² | F430: 2015 Actual² | G430: 2016 Actual² | H430: 2017 Actual² | I430: 2018 Actual² | J430: 2019 Actual | K430: Bridge Year | L430: Test Year | N430: =N$12 -> CGAAP
C431: =C$13 -> 2012 | D431: 2013 | E431: 2014 | F431: 2015 | G431: 2016 | H431: 2017 | I431: 2018 | J431: 2019 | K431: 2020 | L431: 2021 | N431: =N$13 -> Enter Transition Year
A432: Reporting Basis | C432: =IF(C370=0, "", C370) ->  | N432: =IF(N$14=0, "", N$14) -> CGAAP
A441: Total | C441: =SUM(C433:C440) -> 0 | D441: =SUM(D433:D440) -> 0 | E441: =SUM(E433:E440) -> 0 | F441: =SUM(F433:F440) -> 0 | G441: =SUM(G433:G440) -> 0 | H441: =SUM(H433:H440) -> 0 | I441: =SUM(I433:I440) -> 0 | J441: =SUM(J433:J440) -> 0 | K441: =SUM(K433:K440) -> 0 | L441: =SUM(L433:L440) -> 0 | N441: =SUM(N433:N440) -> 0
C444: =C$12 -> 2012 Actual² | D444: 2013 Actual² | E444: 2014 Actual² | F444: 2015 Actual² | G444: 2016 Actual² | H444: 2017 Actual² | I444: 2018 Actual² | J444: 2019 Actual | K444: Bridge Year | L444: Test Year | N444: =N$12 -> CGAAP
C445: =C$13 -> 2012 | D445: 2013 | E445: 2014 | F445: 2015 | G445: 2016 | H445: 2017 | I445: 2018 | J445: 2019 | K445: 2020 | L445: 2021 | N445: =N$13 -> Enter Transition Year
A446: Reporting Basis | C446: =IF(C384=0, "", C384) ->  | N446: =IF(N$14=0, "", N$14) -> CGAAP
A455: Total | C455: =SUM(C447:C454) -> 0 | D455: =SUM(D447:D454) -> 0 | E455: =SUM(E447:E454) -> 0 | F455: =SUM(F447:F454) -> 0 | G455: =SUM(G447:G454) -> 0 | H455: =SUM(H447:H454) -> 0 | I455: =SUM(I447:I454) -> 0 | J455: =SUM(J447:J454) -> 0 | K455: =SUM(K447:K454) -> 0 | L455: =SUM(L447:L454) -> 0 | N455: =SUM(N447:N454) -> 0
C458: =C$12 -> 2012 Actual² | D458: 2013 Actual² | E458: 2014 Actual² | F458: 2015 Actual² | G458: 2016 Actual² | H458: 2017 Actual² | I458: 2018 Actual² | J458: 2019 Actual | K458: Bridge Year | L458: Test Year | N458: =N$12 -> CGAAP
C459: =C$13 -> 2012 | D459: 2013 | E459: 2014 | F459: 2015 | G459: 2016 | H459: 2017 | I459: 2018 | J459: 2019 | K459: 2020 | L459: 2021 | N459: =N$13 -> Enter Transition Year
A460: Reporting Basis | C460: =IF(C398=0, "", C398) ->  | N460: =IF(N$14=0, "", N$14) -> CGAAP
A469: Total | C469: =SUM(C461:C468) -> 0 | D469: =SUM(D461:D468) -> 0 | E469: =SUM(E461:E468) -> 0 | F469: =SUM(F461:F468) -> 0 | G469: =SUM(G461:G468) -> 0 | H469: =SUM(H461:H468) -> 0 | I469: =SUM(I461:I468) -> 0 | J469: =SUM(J461:J468) -> 0 | K469: =SUM(K461:K468) -> 0 | L469: =SUM(L461:L468) -> 0 | N469: =SUM(N461:N468) -> 0
C472: =C$12 -> 2012 Actual² | D472: 2013 Actual² | E472: 2014 Actual² | F472: 2015 Actual² | G472: 2016 Actual² | H472: 2017 Actual² | I472: 2018 Actual² | J472: 2019 Actual | K472: Bridge Year | L472: Test Year | N472: =N$12 -> CGAAP
C473: =C$13 -> 2012 | D473: 2013 | E473: 2014 | F473: 2015 | G473: 2016 | H473: 2017 | I473: 2018 | J473: 2019 | K473: 2020 | L473: 2021 | N473: =N$13 -> Enter Transition Year
A474: Reporting Basis | C474: =IF(C412=0, "", C412) ->  | N474: =IF(N$14=0, "", N$14) -> CGAAP
A483: Total | C483: =SUM(C475:C482) -> 0 | D483: =SUM(D475:D482) -> 0 | E483: =SUM(E475:E482) -> 0 | F483: =SUM(F475:F482) -> 0 | G483: =SUM(G475:G482) -> 0 | H483: =SUM(H475:H482) -> 0 | I483: =SUM(I475:I482) -> 0 | J483: =SUM(J475:J482) -> 0 | K483: =SUM(K475:K482) -> 0 | L483: =SUM(L475:L482) -> 0 | N483: =SUM(N475:N482) -> 0
C486: =C$12 -> 2012 Actual² | D486: 2013 Actual² | E486: 2014 Actual² | F486: 2015 Actual² | G486: 2016 Actual² | H486: 2017 Actual² | I486: 2018 Actual² | J486: 2019 Actual | K486: Bridge Year | L486: Test Year | N486: =N$12 -> CGAAP
C487: =C$13 -> 2012 | D487: 2013 | E487: 2014 | F487: 2015 | G487: 2016 | H487: 2017 | I487: 2018 | J487: 2019 | K487: 2020 | L487: 2021 | N487: =N$13 -> Enter Transition Year
A488: Reporting Basis | C488: =IF(C426=0, "", C426) ->  | N488: =IF(N$14=0, "", N$14) -> CGAAP
A497: Total | C497: =SUM(C489:C496) -> 0 | D497: =SUM(D489:D496) -> 0 | E497: =SUM(E489:E496) -> 0 | F497: =SUM(F489:F496) -> 0 | G497: =SUM(G489:G496) -> 0 | H497: =SUM(H489:H496) -> 0 | I497: =SUM(I489:I496) -> 0 | J497: =SUM(J489:J496) -> 0 | K497: =SUM(K489:K496) -> 0 | L497: =SUM(L489:L496) -> 0 | N497: =SUM(N489:N496) -> 0
C500: =C$12 -> 2012 Actual² | D500: 2013 Actual² | E500: 2014 Actual² | F500: 2015 Actual² | G500: 2016 Actual² | H500: 2017 Actual² | I500: 2018 Actual² | J500: 2019 Actual | K500: Bridge Year | L500: Test Year | N500: =N$12 -> CGAAP
C501: =C$13 -> 2012 | D501: 2013 | E501: 2014 | F501: 2015 | G501: 2016 | H501: 2017 | I501: 2018 | J501: 2019 | K501: 2020 | L501: 2021 | N501: =N$13 -> Enter Transition Year
A502: Reporting Basis | C502: =IF(C440=0, "", C440) ->  | N502: =IF(N$14=0, "", N$14) -> CGAAP
A511: Total | C511: =SUM(C503:C510) -> 0 | D511: =SUM(D503:D510) -> 0 | E511: =SUM(E503:E510) -> 0 | F511: =SUM(F503:F510) -> 0 | G511: =SUM(G503:G510) -> 0 | H511: =SUM(H503:H510) -> 0 | I511: =SUM(I503:I510) -> 0 | J511: =SUM(J503:J510) -> 0 | K511: =SUM(K503:K510) -> 0 | L511: =SUM(L503:L510) -> 0 | N511: =SUM(N503:N510) -> 0
C514: =C$12 -> 2012 Actual² | D514: 2013 Actual² | E514: 2014 Actual² | F514: 2015 Actual² | G514: 2016 Actual² | H514: 2017 Actual² | I514: 2018 Actual² | J514: 2019 Actual | K514: Bridge Year | L514: Test Year | N514: =N$12 -> CGAAP
C515: =C$13 -> 2012 | D515: 2013 | E515: 2014 | F515: 2015 | G515: 2016 | H515: 2017 | I515: 2018 | J515: 2019 | K515: 2020 | L515: 2021 | N515: =N$13 -> Enter Transition Year
A516: Reporting Basis | C516: =IF(C454=0, "", C454) ->  | N516: =IF(N$14=0, "", N$14) -> CGAAP
A525: Total | C525: =SUM(C517:C524) -> 0 | D525: =SUM(D517:D524) -> 0 | E525: =SUM(E517:E524) -> 0 | F525: =SUM(F517:F524) -> 0 | G525: =SUM(G517:G524) -> 0 | H525: =SUM(H517:H524) -> 0 | I525: =SUM(I517:I524) -> 0 | J525: =SUM(J517:J524) -> 0 | K525: =SUM(K517:K524) -> 0 | L525: =SUM(L517:L524) -> 0 | N525: =SUM(N517:N524) -> 0
C528: =C$12 -> 2012 Actual² | D528: 2013 Actual² | E528: 2014 Actual² | F528: 2015 Actual² | G528: 2016 Actual² | H528: 2017 Actual² | I528: 2018 Actual² | J528: 2019 Actual | K528: Bridge Year | L528: Test Year | N528: =N$12 -> CGAAP
C529: =C$13 -> 2012 | D529: 2013 | E529: 2014 | F529: 2015 | G529: 2016 | H529: 2017 | I529: 2018 | J529: 2019 | K529: 2020 | L529: 2021 | N529: =N$13 -> Enter Transition Year
A530: Reporting Basis | C530: =IF(C468=0, "", C468) ->  | N530: =IF(N$14=0, "", N$14) -> CGAAP
A539: Total | C539: =SUM(C531:C538) -> 0 | D539: =SUM(D531:D538) -> 0 | E539: =SUM(E531:E538) -> 0 | F539: =SUM(F531:F538) -> 0 | G539: =SUM(G531:G538) -> 0 | H539: =SUM(H531:H538) -> 0 | I539: =SUM(I531:I538) -> 0 | J539: =SUM(J531:J538) -> 0 | K539: =SUM(K531:K538) -> 0 | L539: =SUM(L531:L538) -> 0 | N539: =SUM(N531:N538) -> 0
C542: =C$12 -> 2012 Actual² | D542: 2013 Actual² | E542: 2014 Actual² | F542: 2015 Actual² | G542: 2016 Actual² | H542: 2017 Actual² | I542: 2018 Actual² | J542: 2019 Actual | K542: Bridge Year | L542: Test Year | N542: =N$12 -> CGAAP
C543: =C$13 -> 2012 | D543: 2013 | E543: 2014 | F543: 2015 | G543: 2016 | H543: 2017 | I543: 2018 | J543: 2019 | K543: 2020 | L543: 2021 | N543: =N$13 -> Enter Transition Year
A544: Reporting Basis | C544: =IF(C482=0, "", C482) ->  | N544: =IF(N$14=0, "", N$14) -> CGAAP
A553: Total | C553: =SUM(C545:C552) -> 0 | D553: =SUM(D545:D552) -> 0 | E553: =SUM(E545:E552) -> 0 | F553: =SUM(F545:F552) -> 0 | G553: =SUM(G545:G552) -> 0 | H553: =SUM(H545:H552) -> 0 | I553: =SUM(I545:I552) -> 0 | J553: =SUM(J545:J552) -> 0 | K553: =SUM(K545:K552) -> 0 | L553: =SUM(L545:L552) -> 0 | N553: =SUM(N545:N552) -> 0
C556: =C$12 -> 2012 Actual² | D556: 2013 Actual² | E556: 2014 Actual² | F556: 2015 Actual² | G556: 2016 Actual² | H556: 2017 Actual² | I556: 2018 Actual² | J556: 2019 Actual | K556: Bridge Year | L556: Test Year | N556: =N$12 -> CGAAP
C557: =C$13 -> 2012 | D557: 2013 | E557: 2014 | F557: 2015 | G557: 2016 | H557: 2017 | I557: 2018 | J557: 2019 | K557: 2020 | L557: 2021 | N557: =N$13 -> Enter Transition Year
A558: Reporting Basis | C558: =IF(C496=0, "", C496) ->  | N558: =IF(N$14=0, "", N$14) -> CGAAP
A567: Total | C567: =SUM(C559:C566) -> 0 | D567: =SUM(D559:D566) -> 0 | E567: =SUM(E559:E566) -> 0 | F567: =SUM(F559:F566) -> 0 | G567: =SUM(G559:G566) -> 0 | H567: =SUM(H559:H566) -> 0 | I567: =SUM(I559:I566) -> 0 | J567: =SUM(J559:J566) -> 0 | K567: =SUM(K559:K566) -> 0 | L567: =SUM(L559:L566) -> 0 | N567: =SUM(N559:N566) -> 0

Sheet Hidden_Other Revenue (hidden)
A1: Utility Name | B1: EB Number | C1: Test Year | D1: Bridge Year | E1: Last Rebasing Year | F1: Heading | G1: Year | H1: Amount
A2: ='LDC Info'!$E$14 -> 0 | B2: =EBNUMBER -> 0 | C2: =TestYear -> 2021 | D2: =BridgeYear -> 2020 | E2: =RebaseYear -> 2014 | F2: Specific Service Charges | G2: ='App.2-H_Other_Oper_Rev'!C13 -> 2012 | H2: ='App.2-H_Other_Oper_Rev'!C53 -> 0
A3: ='LDC Info'!$E$14 -> 0 | B3: 0 | C3: 2021 | D3: 2020 | E3: 2014 | F3: Late Payment Charges | G3: ='App.2-H_Other_Oper_Rev'!C13 -> 2012 | H3: ='App.2-H_Other_Oper_Rev'!C54 -> 0
A4: ='LDC Info'!$E$14 -> 0 | B4: 0 | C4: 2021 | D4: 2020 | E4: 2014 | F4: Other Operating Revenues | G4: ='App.2-H_Other_Oper_Rev'!C13 -> 2012 | H4: ='App.2-H_Other_Oper_Rev'!C55 -> 0
A5: ='LDC Info'!$E$14 -> 0 | B5: 0 | C5: 2021 | D5: 2020 | E5: 2014 | F5: Other Income or Deductions | G5: ='App.2-H_Other_Oper_Rev'!C13 -> 2012 | H5: ='App.2-H_Other_Oper_Rev'!C56 -> 0
A6: ='LDC Info'!$E$14 -> 0 | B6: 0 | C6: 2021 | D6: 2020 | E6: 2014 | F6: Specific Service Charges | G6: ='App.2-H_Other_Oper_Rev'!D13 -> 2013 | H6: ='App.2-H_Other_Oper_Rev'!D53 -> 0
A7: ='LDC Info'!$E$14 -> 0 | B7: 0 | C7: 2021 | D7: 2020 | E7: 2014 | F7: Late Payment Charges | G7: ='App.2-H_Other_Oper_Rev'!D13 -> 2013 | H7: ='App.2-H_Other_Oper_Rev'!D54 -> 0
A8: ='LDC Info'!$E$14 -> 0 | B8: 0 | C8: 2021 | D8: 2020 | E8: 2014 | F8: Other Operating Revenues | G8: ='App.2-H_Other_Oper_Rev'!D13 -> 2013 | H8: ='App.2-H_Other_Oper_Rev'!D55 -> 0
A9: ='LDC Info'!$E$14 -> 0 | B9: 0 | C9: 2021 | D9: 2020 | E9: 2014 | F9: Other Income or Deductions | G9: ='App.2-H_Other_Oper_Rev'!D13 -> 2013 | H9: ='App.2-H_Other_Oper_Rev'!D56 -> 0
A10: ='LDC Info'!$E$14 -> 0 | B10: 0 | C10: 2021 | D10: 2020 | E10: 2014 | F10: Specific Service Charges | G10: ='App.2-H_Other_Oper_Rev'!E13 -> 2014 | H10: ='App.2-H_Other_Oper_Rev'!E53 -> 0
A11: ='LDC Info'!$E$14 -> 0 | B11: 0 | C11: 2021 | D11: 2020 | E11: 2014 | F11: Late Payment Charges | G11: ='App.2-H_Other_Oper_Rev'!E13 -> 2014 | H11: ='App.2-H_Other_Oper_Rev'!E54 -> 0
A12: ='LDC Info'!$E$14 -> 0 | B12: 0 | C12: 2021 | D12: 2020 | E12: 2014 | F12: Other Operating Revenues | G12: ='App.2-H_Other_Oper_Rev'!E13 -> 2014 | H12: ='App.2-H_Other_Oper_Rev'!E55 -> 0
A13: ='LDC Info'!$E$14 -> 0 | B13: 0 | C13: 2021 | D13: 2020 | E13: 2014 | F13: Other Income or Deductions | G13: ='App.2-H_Other_Oper_Rev'!E13 -> 2014 | H13: ='App.2-H_Other_Oper_Rev'!E56 -> 0
A14: ='LDC Info'!$E$14 -> 0 | B14: 0 | C14: 2021 | D14: 2020 | E14: 2014 | F14: Specific Service Charges | G14: ='App.2-H_Other_Oper_Rev'!F13 -> 2015 | H14: ='App.2-H_Other_Oper_Rev'!F53 -> 0
A15: ='LDC Info'!$E$14 -> 0 | B15: 0 | C15: 2021 | D15: 2020 | E15: 2014 | F15: Late Payment Charges | G15: ='App.2-H_Other_Oper_Rev'!F13 -> 2015 | H15: ='App.2-H_Other_Oper_Rev'!F54 -> 0
A16: ='LDC Info'!$E$14 -> 0 | B16: 0 | C16: 2021 | D16: 2020 | E16: 2014 | F16: Other Operating Revenues | G16: ='App.2-H_Other_Oper_Rev'!F13 -> 2015 | H16: ='App.2-H_Other_Oper_Rev'!F55 -> 0
A17: ='LDC Info'!$E$14 -> 0 | B17: 0 | C17: 2021 | D17: 2020 | E17: 2014 | F17: Other Income or Deductions | G17: ='App.2-H_Other_Oper_Rev'!F13 -> 2015 | H17: ='App.2-H_Other_Oper_Rev'!F56 -> 0
A18: ='LDC Info'!$E$14 -> 0 | B18: 0 | C18: 2021 | D18: 2020 | E18: 2014 | F18: Specific Service Charges | G18: ='App.2-H_Other_Oper_Rev'!G13 -> 2016 | H18: ='App.2-H_Other_Oper_Rev'!G53 -> 0
A19: ='LDC Info'!$E$14 -> 0 | B19: 0 | C19: 2021 | D19: 2020 | E19: 2014 | F19: Late Payment Charges | G19: ='App.2-H_Other_Oper_Rev'!G13 -> 2016 | H19: ='App.2-H_Other_Oper_Rev'!G54 -> 0
A20: ='LDC Info'!$E$14 -> 0 | B20: 0 | C20: 2021 | D20: 2020 | E20: 2014 | F20: Other Operating Revenues | G20: ='App.2-H_Other_Oper_Rev'!G13 -> 2016 | H20: ='App.2-H_Other_Oper_Rev'!G55 -> 0
A21: ='LDC Info'!$E$14 -> 0 | B21: 0 | C21: 2021 | D21: 2020 | E21: 2014 | F21: Other Income or Deductions | G21: ='App.2-H_Other_Oper_Rev'!G13 -> 2016 | H21: ='App.2-H_Other_Oper_Rev'!G56 -> 0
A22: ='LDC Info'!$E$14 -> 0 | B22: 0 | C22: 2021 | D22: 2020 | E22: 2014 | F22: Specific Service Charges | G22: ='App.2-H_Other_Oper_Rev'!H13 -> 2017 | H22: ='App.2-H_Other_Oper_Rev'!H53 -> 0
A23: ='LDC Info'!$E$14 -> 0 | B23: 0 | C23: 2021 | D23: 2020 | E23: 2014 | F23: Late Payment Charges | G23: ='App.2-H_Other_Oper_Rev'!H13 -> 2017 | H23: ='App.2-H_Other_Oper_Rev'!H54 -> 0
A24: ='LDC Info'!$E$14 -> 0 | B24: 0 | C24: 2021 | D24: 2020 | E24: 2014 | F24: Other Operating Revenues | G24: ='App.2-H_Other_Oper_Rev'!H13 -> 2017 | H24: ='App.2-H_Other_Oper_Rev'!H55 -> 0
A25: ='LDC Info'!$E$14 -> 0 | B25: 0 | C25: 2021 | D25: 2020 | E25: 2014 | F25: Other Income or Deductions | G25: ='App.2-H_Other_Oper_Rev'!H13 -> 2017 | H25: ='App.2-H_Other_Oper_Rev'!H56 -> 0
A26: ='LDC Info'!$E$14 -> 0 | B26: 0 | C26: 2021 | D26: 2020 | E26: 2014 | F26: Specific Service Charges | G26: ='App.2-H_Other_Oper_Rev'!I13 -> 2018 | H26: ='App.2-H_Other_Oper_Rev'!I53 -> 0
A27: ='LDC Info'!$E$14 -> 0 | B27: 0 | C27: 2021 | D27: 2020 | E27: 2014 | F27: Late Payment Charges | G27: ='App.2-H_Other_Oper_Rev'!I13 -> 2018 | H27: ='App.2-H_Other_Oper_Rev'!I54 -> 0
A28: ='LDC Info'!$E$14 -> 0 | B28: 0 | C28: 2021 | D28: 2020 | E28: 2014 | F28: Other Operating Revenues | G28: ='App.2-H_Other_Oper_Rev'!I13 -> 2018 | H28: ='App.2-H_Other_Oper_Rev'!I55 -> 0
A29: ='LDC Info'!$E$14 -> 0 | B29: 0 | C29: 2021 | D29: 2020 | E29: 2014 | F29: Other Income or Deductions | G29: ='App.2-H_Other_Oper_Rev'!I13 -> 2018 | H29: ='App.2-H_Other_Oper_Rev'!I56 -> 0
A30: ='LDC Info'!$E$14 -> 0 | B30: 0 | C30: 2021 | D30: 2020 | E30: 2014 | F30: Specific Service Charges | G30: ='App.2-H_Other_Oper_Rev'!J13 -> 2019 | H30: ='App.2-H_Other_Oper_Rev'!J53 -> 0
A31: ='LDC Info'!$E$14 -> 0 | B31: 0 | C31: 2021 | D31: 2020 | E31: 2014 | F31: Late Payment Charges | G31: ='App.2-H_Other_Oper_Rev'!J13 -> 2019 | H31: ='App.2-H_Other_Oper_Rev'!J54 -> 0
A32: ='LDC Info'!$E$14 -> 0 | B32: 0 | C32: 2021 | D32: 2020 | E32: 2014 | F32: Other Operating Revenues | G32: ='App.2-H_Other_Oper_Rev'!J13 -> 2019 | H32: ='App.2-H_Other_Oper_Rev'!J55 -> 0
A33: ='LDC Info'!$E$14 -> 0 | B33: 0 | C33: 2021 | D33: 2020 | E33: 2014 | F33: Other Income or Deductions | G33: ='App.2-H_Other_Oper_Rev'!J13 -> 2019 | H33: ='App.2-H_Other_Oper_Rev'!J56 -> 0
A34: ='LDC Info'!$E$14 -> 0 | B34: 0 | C34: 2021 | D34: 2020 | E34: 2014 | F34: Specific Service Charges | G34: ='App.2-H_Other_Oper_Rev'!K13 -> 2020 | H34: ='App.2-H_Other_Oper_Rev'!K53 -> 0
A35: ='LDC Info'!$E$14 -> 0 | B35: 0 | C35: 2021 | D35: 2020 | E35: 2014 | F35: Late Payment Charges | G35: ='App.2-H_Other_Oper_Rev'!K13 -> 2020 | H35: ='App.2-H_Other_Oper_Rev'!K54 -> 0
A36: ='LDC Info'!$E$14 -> 0 | B36: 0 | C36: 2021 | D36: 2020 | E36: 2014 | F36: Other Operating Revenues | G36: ='App.2-H_Other_Oper_Rev'!K13 -> 2020 | H36: ='App.2-H_Other_Oper_Rev'!K55 -> 0
A37: ='LDC Info'!$E$14 -> 0 | B37: 0 | C37: 2021 | D37: 2020 | E37: 2014 | F37: Other Income or Deductions | G37: ='App.2-H_Other_Oper_Rev'!K13 -> 2020 | H37: ='App.2-H_Other_Oper_Rev'!K56 -> 0
A38: ='LDC Info'!$E$14 -> 0 | B38: 0 | C38: 2021 | D38: 2020 | E38: 2014 | F38: Specific Service Charges | G38: ='App.2-H_Other_Oper_Rev'!L13 -> 2021 | H38: ='App.2-H_Other_Oper_Rev'!L53 -> 0
A39: ='LDC Info'!$E$14 -> 0 | B39: 0 | C39: 2021 | D39: 2020 | E39: 2014 | F39: Late Payment Charges | G39: ='App.2-H_Other_Oper_Rev'!L13 -> 2021 | H39: ='App.2-H_Other_Oper_Rev'!L54 -> 0
A40: ='LDC Info'!$E$14 -> 0 | B40: 0 | C40: 2021 | D40: 2020 | E40: 2014 | F40: Other Operating Revenues | G40: ='App.2-H_Other_Oper_Rev'!L13 -> 2021 | H40: ='App.2-H_Other_Oper_Rev'!L55 -> 0
A41: ='LDC Info'!$E$14 -> 0 | B41: 0 | C41: 2021 | D41: 2020 | E41: 2014 | F41: Other Income or Deductions | G41: ='App.2-H_Other_Oper_Rev'!L13 -> 2021 | H41: ='App.2-H_Other_Oper_Rev'!L56 -> 0

Sheet App_2-I LF_CDM
G1: File Number: | I1: =EBNUMBER -> 0
G2: Exhibit:
G3: Tab:
G4: Schedule:
G5: Page:
G7: Date:
A9: Appendix 2-I
A10: Load Forecast CDM Adjustment Work Form
A12: Appendix 2-I was initially developed to help determine what would be the amount of CDM savings needed in each year to cumulatively achieve the four year 2011-2014 CDM target. This determined the amount of kWh (and with translation, kW of demand) savings that were converted into dollar balances for the LRAMVA, and also to determine the related adjustment to the load forecast to account for OPA-reported savings. Beginning in the 2015 year, it was adjusted because the persistence of 2011-2014 CDM programs will be an adjustment to the load forecast in addition to the estimated savings for the first year (2015) for the new 2015-2020 CDM plan. This appendix has been updated for 2021 rate applications to acknowledge that in accordance with the Minister of Energy's March 20, 2019 Directive to the IESO, the Conservation First Framework (CFF) is no longer in effect. As distributors are no longer working towards the former 2015-2020 CDM targets, for 2019 and 2020 CDM activity, distributors may propose a CDM manual adjustment to the load forecast. If a distributor elects to propose a CDM manual adjustment to the load forecast, only CDM projects that are subject to a contractual agreement entered into between the distributor and a customer by April 30, 2019 under a former CFF program should be included in the proposed CDM manual adjustment to the load forecast. Distributors should provide relevant documentation to support the manual adjustments for 2019 and 2020 CDM projects, including the corresponding CFF program, project timelines and projected savings.
A14: 2019-2020 CDM Activities (and beyond, if applicable)
A16: For the first year of the new 2015-2020 CDM plan, for simplicity, it was assumed that each year's program will achieve an equal amount of new CDM savings. This resulted in each year's program being about 1/6 (or 16.67%) of the cumulative 2015-2020 CDM target for kWh savings. For 2021 rate applications, distributors should ensure that the sum of the results for the 2015 to 2019 program years is consistent with the results provided by the IESO. For the 2020 and 2021 program year (as applicable), distributors that elect to propose a CDM manual adjustment, should only include the projected CDM savings from projects that are subject to contractual agreements between the distributor and customer made on or before April 30, 2019 under the former CFF.
A18: Former CFF 6 Year (2015-2020) kWh Target*
A19: 99039999.4
B20: 2015 | C20: 2016 | D20: 2017 | E20: 2018 | F20: 2019 | G20: 2020 | H20: 2021** | I20: Total
A21: %
A22: 2015 CDM Programs | G22: =G30/G37 -> 0.1659050949 | I22: =I30/I37 -> 0.1514299198
A23: 2016 CDM Programs | G23: =G31/G37 -> 0.2248864538 | I23: =I31/I37 -> 0.2007728364
A24: 2017 CDM Programs | G24: =G32/$I$37 -> 0.3041178095 | I24: =I32/I37 -> 0.3040786334
A25: 2018 CDM Programs | G25: =G33/$I$37 -> 0.1290453208 | I25: =I33/I37 -> 0.1290453208
A26: 2019 CDM Programs | G26: =G34/$I$37 -> 0.08441770566 | I26: =I34/I37 -> 0.08399510791
A27: 2020 CDM Programs | G27: =G35/$I$37 -> 0.02648463131 | I27: =I35/I37 -> 0.02635220815
A28: Total in Year | B28: =SUM(B22:B27) -> 0 | C28: =SUM(C22:C27) -> 0 | D28: =SUM(D22:D27) -> 0 | E28: =SUM(E22:E25) -> 0 | F28: =SUM(F22:F26) -> 0 | G28: =SUM(G22:G27) -> 0.9348570158 | I28: =SUM(I22:I27) -> 0.8956740263
A29: kWh
A30: =A22 -> 2015 CDM Programs | B30: 14805774.66 | C30: 14757073.58 | D30: 14837426.98 | E30: 14857909.39 | F30: 14843590.8 | G30: 14674239.2 | H30: 14997619.16 | I30: =H30 -> 14997619.16
A31: 2016 CDM Programs | C31: 19559158.76 | D31: 19558981.51 | E31: 19891471.27 | F31: 19891294.02 | G31: 19891116.77 | H31: 19884541.59 | I31: 19884541.59 | L31: 2011 | M31: 2012 | N31: 2013 | O31: 2014
A32: 2017 CDM Programs | D32: 34134385.6 | E32: 30128301.62 | F32: 30124064.64 | G32: 30119827.67 | H32: 30115947.67 | I32: 30115947.67 | K32: 2011 CDM Programs | L32: =50% -> 0.5 | M32: 1 | N32: 1 | O32: 1
A33: 2018 CDM Programs | E33: 13243854.7 | F33: 13012251.59 | G33: 12780648.49 | H33: 12780648.49 | I33: 12780648.49 | K33: 2012 CDM Programs | M33: 0.5 | N33: 1 | O33: 1
A34: 2019 CDM Programs | F34: 8709155.713 | G34: 8360729.517 | H34: 8318875.437 | I34: 8318875.437 | K34: 2013 CDM Programs | N34: 0.5 | O34: 1
A35: =A27 -> 2020 CDM Programs | G35: 2623037.869 | H35: 2609922.68 | I35: 2609922.68
A36: 2021 CDM Programs (if applicable)*** | I36: 0 | K36: 2014 CDM Programs | O36: 0.5
A37: Total in Year | B37: =SUM(B30:B36) -> 14805774.66 | C37: =SUM(C30:C36) -> 34316232.34 | D37: =SUM(D30:D36) -> 68530794.1 | E37: =SUM(E30:E33) -> 78121536.98 | F37: =SUM(F30:F34) -> 86580356.77 | G37: =SUM(G30:G36) -> 88449599.52 | H37: =SUM(H30:H36) -> 88707555.03 | I37: =A19 -> 99039999.4
G38: =IF(G37-I37<>0,"Inputs do no match 2015-20 CDM target","") -> Inputs do no match 2015-20 CDM target
A40: *This total will not equal the distributor's former CFF CDM target. Rather, for 2019 and 2020, if the distributor elects to propose a CDM manual adjustment, it should only include the projected savings from projects that are subject to contractual agreements made between the LDC and a customer on or before April 30, 2019 under the former CFF.
A41: ** If a distributor wishes to include projected savings that persist from former Conservation First programs into the 2021 test year, you may do so. Please provide relevant supporting documentation to show the savings persistence into 2021.
A42: *** If a distributor expects impacts from any CFF-related projects not deployed by April 2019, but for which a distributor is contractually obligated to complete (or for other programs delivered by the distributor after April 2019), a distributor may include these amounts as part of a CDM manual adjustment to the 2021 load forecast, but must ensure that sufficient supporting evidence is provided in support of all estimated CDM savings.
A43: Note: The default formulae in the above table assume that the 2015-2020 kWh CDM target is achieved through persistence of CDM savings to the end of 2020. Distributors should rely on the Participant and Cost monthly reports provided by the IESO for 2018 and 2019 CDM savings.
A45: Determination of 2021 Load Forecast Adjustment
A47: The OEB determined that the "net" number should be used in its Decision and Order with respect to Centre Wellington Hydro Ltd.'s 2013 Cost of Service rates (EB-2012-0113). This approach has also been used in Settlement Agreements accepted by the OEB in other 2013 and 2014 applications. The distributor should select whether the adjustment is done on a "net" or "gross" basis, but must support a proposal for the adjustment being done on a "gross" basis. Sheet 2-I defaults to the adjustment being done on a "net" basis consistent with OEB policy and practice.
A49: From each of the 2006-2010 CDM Final Report, and the 2011 to 2017 CDM Final Reports, issued by the OPA/IESO for the distributor, the distributor should input the "gross" and "net" results of the cumulative CDM savings for 2019 into cells C57 to C66 and D57 to D66. The model will calculate the cumulative savings for all programs from 2006 to 2019 and determine the "net" to "gross" factor "g".
A51: Net-to-Gross Conversion
A53: Is CDM adjustment being done on a "net" or "gross" basis? | F53: net
C55: "Gross" | D55: "Net" | E55: Difference | F55: "Net-to-Gross" Conversion Factor
A56: Persistence of Historical CDM programs | C56: kWh | D56: kWh | E56: kWh | F56: ('g')
A57: 2006-2010 CDM programs | E57: =C57-D57 -> 0
A58: 2011 CDM program | E58: 0
A59: 2012 CDM program | E59: 0
A60: 2013 CDM program | E60: 0
A61: 2014 CDM program | E61: 0
A62: 2015 CDM program | E62: 0
A63: 2016 CDM program | E63: =C63-D63 -> 0
A64: 2017 CDM program | E64: 0
A65: 2018 CDM program* | E65: =C65-D65 -> 0
A66: 2019 CDM program (if applicable)* | E66: =C66-D66 -> 0
A67: 2006 to 2019 OPA CDM programs: Persistence to 2021. | C67: =SUM(C57:C66) -> 0 | D67: =SUM(D57:D66) -> 0 | E67: =C67-D67 -> 0 | F67: =IF(D67=0,0,IF(F53="net",0,E67/D67)) -> 0
A68: *CDM programs distributors should rely on the results made available by the IESO in the Participant and Cost monthly reports
A70: The default values below represent the factor used for how each year's CDM program is factored into the manual CDM adjustment. Distributors can choose alternative weights of "0", "0.5" or "1" from the drop-down menu for each cell, but must support its alternatives.
A72: These factors do not mean that CDM programs are excluded, but the assumption that impacts of previous year CDM programs are already implicitly reflected in the actual data for historical years that are used to derive the load forecast prior to any manual CDM adjustment for the 2021 test year.
A75: Weight Factor for Inclusion in CDM Adjustment to 2021 Load Forecast
B76: 2015 | C76: 2016 | D76: 2017 | E76: 2018* | F76: 2019** | G76: 2020** | H76: 2021***
A77: Weight Factor for each year's CDM program impact on 2021 load forecast | B77: 0 | C77: 0 | D77: 0 | E77: 0 | F77: 0.5 | G77: 1 | H77: 0.5 | I77: Distributor can select "0", "0.5", or "1" from drop-down list
A78: Default Value selection rationale. | B78: Full year impact of 2015 CDM is assumed to be reflected in the base forecast, as the full year persistence of 2015 CDM programs is in the 2018 historical actual data. No further impact is necessary for the manual adjustment to the load forecast. | C78: Full year impact of 2016 CDM is assumed to be reflected in the base forecast, as the full year persistence of 2016 CDM programs is in the 2018 historical actual data. No further impact is necessary for the manual adjustment to the load forecast. | D78: Full year impact of 2017 CDM is assumed to be reflected in the base forecast, as the full year persistence of 2017 CDM programs is in the 2018 historical actual data. No further impact is necessary for the manual adjustment to the load forecast. | E78: Default is 0. Full year impact of 2018 CDM is assumed to be reflected in the base forecast. | F78: Default is 0. Full year impact of 2019 CDM is assumed to be reflected in the base forecast. Adjust based on distributor's circumstance | G78: Default is 0.5. Adjust based on distributor's circumstance | H78: Default is 1. Adjust based on distributor's circumstance
A79: * For 2018 CDM programs distributors should rely on the results made available by the IESO in the Participant and Cost monthly reports
A80: ** For 2019 and 2020 CDM program activity, the distributor should include only those projected CDM savings from projects that it has contractual obligations with a customer under the former CFF.
A81: *** This may include the persistence of any remaining CDM projects that the distributor is contractually obligated to complete under the former CFF, as applicable. If this includes CDM activity that is beyond the CFF framework or other programs, please file project-level supporting documentation in accordance with section 2.3.1.3 of Chapter 2 Filing Requirements to support the breakdown of your proposal.
A83: 2021 LRAMVA and 2021 CDM adjustment to Load Forecast
A85: One manual adjustment for CDM impacts to the 2021 load forecast is made. There is a different but related threshold amount that is used for the 2021 LRAMVA amount for Account 1568.
A87: The amount used for the CDM threshold and the LRAMVA is the kWh that will be used to determine the base amount for the LRAMVA balance for 2021. This allows for a comparison between projected CDM savings and actual CDM savings.
A89: If used to determine the manual CDM adjustment for the system purchased kWh, the proposed loss factor should correspond with the proposed total loss factor calculated in Appendix 2-R .
A91: The Manual Adjustment for the 2021 Load Forecast is the amount manually subtracted from the system-wide load forecast (either based on a purchased or billed basis) derived from the base forecast from historical data. If the distributor has developed their load forecast on a system purchased basis, then the manual adjustment should be on a system purchased basis, including the adjustment for losses. If the load forecast has been developed on a billed basis, either on a system basis or on a class-specific basis, the manual adjustment should be on a billed basis, excluding losses.
A93: The distributor should determine the allocation of the savings to all customer classes in a reasonable manner (e.g. taking into account what programs and what IESO-measured impacts were directed at specific customer classes), for both the LRAMVA and for the load forecast adjustment.
B95: 2015 | C95: 2016 | D95: 2017 | E95: 2018 | F95: 2019 | G95: 2020 | H95: 2021 | I95: Total for 2021
A97: Amount used for CDM threshold for LRAMVA (2021) | B97: =H30 -> 14997619.16 | C97: =H31 -> 19884541.59 | D97: =H32 -> 30115947.67 | E97: =H33 -> 12780648.49 | F97: =H34 -> 8318875.437 | G97: =H35 -> 2609922.68 | H97: =H36 -> 0 | I97: =SUM(B97:H97) -> 88707555.03
A99: Manual Adjustment for 2021 Load Forecast (billed basis) | F99: =F97*(1+F67)*F77 -> 4159437.718 | G99: =G97*(1+F67)*G77 -> 2609922.68 | H99: =H97*(1+F67)*H77 -> 0 | I99: =SUM(F99:H99) -> 6769360.398
A100: Manual Adjustment for 2021 LDC-only CDM programs (billed basis)
A101: Total Manual Forecast to Load Forecast | F101: =F99 -> 4159437.718 | G101: =G99 -> 2609922.68 | H101: =H99+H100 -> 0 | I101: =SUM(F101:H101) -> 6769360.398
A103: Proposed Loss Factor (TLF) | C103: Format: X.XX%
A104: Manual Adjustment for 2021 Load Forecast (system purchased basis) | B104: =B101*(1+$B103) -> 0 | C104: 0 | D104: 0 | E104: 0 | F104: 4159437.718 | G104: 2609922.68 | H104: 0 | I104: =SUM(B104:H104) -> 6769360.398
A106: Manual adjustment uses "gross" versus "net" (i.e. numbers multiplied by (1 + g). The Weight factor is also used to calculate the impact of each year's program on the CDM adjustment to the 2021 load forecast.

Sheet lists (hidden)
A1: COMPETITIVE SECTOR MULTI-UNIT RESIDENTIAL SERVICE CLASSIFICATION
A2: DISTRIBUTED GENERATION [DGEN] SERVICE CLASSIFICATION
A3: DISTRIBUTED GENERATION SERVICE CLASSIFICATION
A4: EMBEDDED DISTRIBUTOR SERVICE CLASSIFICATION
A5: EMBEDDED DISTRIBUTOR SERVICE CLASSIFICATION FOR HYDRO ONE NETWORKS INC.
A6: ENERGY FROM WASTE SERVICE CLASSIFICATION
A7: GENERAL SERVICE 1,000 KW AND GREATER SERVICE CLASSIFICATION
A8: GENERAL SERVICE 1,000 KW OR GREATER SERVICE CLASSIFICATION
A9: GENERAL SERVICE 1,000 TO 4,999 KW (CO-GENERATION) SERVICE CLASSIFICATION
A10: GENERAL SERVICE 1,000 TO 4,999 KW SERVICE CLASSIFICATION
A11: GENERAL SERVICE 1,500 TO 4,999 KW SERVICE CLASSIFICATION
A12: GENERAL SERVICE 3,000 TO 4,999 KW - INTERMEDIATE USE SERVICE CLASSIFICATION
A13: GENERAL SERVICE 3,000 TO 4,999 KW SERVICE CLASSIFICATION
A14: GENERAL SERVICE 50 TO 1,499 KW SERVICE CLASSIFICATION
A15: GENERAL SERVICE 50 TO 2,999 KW SERVICE CLASSIFICATION
A16: GENERAL SERVICE 50 to 4,999 kW SERVICE CLASSIFICATION
A17: GENERAL SERVICE 50 TO 499 KW SERVICE CLASSIFICATION
A18: GENERAL SERVICE 50 TO 699 KW SERVICE CLASSIFICATION
A19: GENERAL SERVICE 50 TO 999 KW SERVICE CLASSIFICATION
A20: GENERAL SERVICE 500 TO 1,499 KW SERVICE CLASSIFICATION
A21: GENERAL SERVICE 500 TO 4,999 KW SERVICE CLASSIFICATION
A22: GENERAL SERVICE 700 TO 4,999 KW SERVICE CLASSIFICATION
A23: GENERAL SERVICE DEMAND BILLED SERVICE CLASSIFICATION
A24: GENERAL SERVICE ENERGY BILLED SERVICE CLASSIFICATION
A25: GENERAL SERVICE EQUAL TO OR GREATER THAN 1,500 KW SERVICE CLASSIFICATION
A26: GENERAL SERVICE GREATER THAN 1,000 KW SERVICE CLASSIFICATION
A27: GENERAL SERVICE LESS THAN 50 KW SERVICE CLASSIFICATION
A28: HCI, RESOP, OTHER ENERGY RESOURCE SERVICE CLASSIFICATION
A29: INTERMEDIATE USER SERVICE CLASSIFICATION
A30: LARGE USE - 3TS SERVICE CLASSIFICATION
A31: LARGE USE - FORD ANNEX SERVICE CLASSIFICATION
A32: LARGE USE - REGULAR SERVICE CLASSIFICATION
A33: LARGE USE SERVICE CLASSIFICATION
A34: LARGE USE WITH DEDICATED ASSETS SERVICE CLASSIFICATION
A35: ONTARIO ELECTRICITY SUPPORT PROGRAM RECIPIENTS
A36: R1 RESIDENTIAL SERVICE CLASSIFICATION
A37: R2 RESIDENTIAL SERVICE CLASSIFICATION
A38: RESIDENTIAL R1 SERVICE CLASSIFICATION
A39: RESIDENTIAL R2 SERVICE CLASSIFICATION
A40: RESIDENTIAL SERVICE CLASSIFICATION
A41: SEASONAL CUSTOMERS SERVICE CLASSIFICATION
A42: SEASONAL RESIDENTIAL SERVICE CLASSIFICATION
A43: SEASONAL SERVICE CLASSIFICATION
A44: SENTINEL LIGHTING SERVICE CLASSIFICATION
A45: STANDBY POWER SERVICE CLASSIFICATION
A46: SUB TRANSMISSION SERVICE CLASSIFICATION
A47: UNMETERED SCATTERED LOAD SERVICE CLASSIFICATION
A48: UR RESIDENTIAL SERVICE CLASSIFICATION
A49: URBAN GENERAL SERVICE DEMAND BILLED SERVICE CLASSIFICATION
A50: URBAN GENERAL SERVICE ENERGY BILLED SERVICE CLASSIFICATION

Sheet App.2-IA_Load_Forecast_Instrct
Q1: File Number: | R1: =EBNUMBER -> 0
Q2: Exhibit:
Q3: Tab:
Q4: Schedule:
Q5: Page:
Q7: Date:
B9: Appendix 2-IA
B10: Instructions on Customer, Connections, Load Forecast and Revenues Data and Analysis
B12: This sheet requires no inputs, but serves as a summary of the hiostorical and forecasted data to be provided with respect to:
B14: 1) | C14: Customers and connections
B15: 2) | C15: Consumption (kWh)
B16: 3) | C16: Demand (kW or kCA) for applicable demand-billed customer classes
B17: 4) | C17: Revenues
B19: The spreadsheet summarizes the data provided and the analyses (variance or year-over-year) that are required. Data are required to be provided on a customer class level. Consumption (kWh) must also be provided on a total distribution system level.
B21: Appendix 2-IB (formerly 2-IA) is the appendix spreadsheet that the distributor populates, and the spreadsheet is laid out for inputting the necessary data. The spreadsheet also calculates necessary statistics such as average consumption per customer/connection per year, and variances and % annual changes, as necessary.
B23: The distributor is required to provide suitable documentation in Exhibit 3 of its Application, in accordance with section 2.3.2 of Chaoter 2 of the Filing Requirements. This would include explanations for material variations or of trends in the data.
B25: The distributor is also required to input its test year customer/connection and load forecast in Sheet 10 - Load Forecast of the Revenue Requirement Work Form. This sheet should also be updated to reflect changes in the load forecast made through the stages of processing of the rates application.
B27: The applicant must demonstrate the historical accuracy of its load forecast approach for at least the past 5 years. Such analysis will cover both customer/connections and consumption (kWh) and demand (kW or kVA) by providing the following, as shown in the following table:
D29: Calendar Year | F29: Customers / Connections | I29: Consumption (kWh) (3) | M29: Demand (kW or kVA) | Q29: Revenues
D30: ="(for "&TestYear&" Cost of Service)" -> (for 2021 Cost of Service) | I30: Weather-actual | J30: Weather-normalized | M30: Weather-actual | N30: Weather-normalized | Q30: Weather-actual | R30: Weather-normalized
C31: Historical | D31: =D32-1 -> 2015 | F31: Actual | I31: Actual | J31: Actual (1) | M31: Actual | N31: Actual (1) | Q31: Actual
C32: Historical | D32: 2016 | F32: Actual | I32: Actual | J32: Actual (1) | M32: Actual | N32: Actual (1) | Q32: Actual
C33: Historical | D33: 2017 | F33: Actual | G33: OEB-approved (2) | I33: Actual | J33: Actual (1) | K33: OEB-approved (2) | M33: Actual | N33: Actual (1) | O33: OEB-approved (2) | Q33: Actual
C34: Historical | D34: 2018 | F34: Actual | I34: Actual | J34: Actual (1) | M34: Actual | N34: Actual (1) | Q34: Actual
C35: Historical | D35: 2019 | F35: Actual | I35: Actual | J35: Actual (1) | M35: Actual | N35: Actual (1) | Q35: Actual
C36: Bridge Year (Forecast) | D36: 2020 | F36: Forecast | J36: Forecast | N36: Forecast | R36: Forecast
C37: Test Year (Forecast) | D37: =TestYear -> 2021 | F37: Forecast | J37: Forecast | N37: Forecast | R37: Forecast
B40: Notes:
B42: (1) | C42: “Weather-normalized actuals” are estimated by replacing the actual weather-related values (typically Heating Degree Days (HDD) and Cooling Degree Days (CDD)) by the “typical” or “weather-normalized” values. These “weather-normalized HDD and CDD values would be the same as used to estimate the Bridge Year and Test Year forecasts.
B43: (2) | C43: ="For "&TestYear&" Cost of Service rebasers, the typical situation is that "& TestYear - 4 & " would have been the most recent cost of service rebasing application. If the most recent rebasing application was for a rate year other than "& TestYear - 4& ", that year should be used."&" An applicant must provide historical information back to the greater of: a) at least five (5) historical actual years; or b) to its last cost of service application." -> For 2021 Cost of Service rebasers, the typical situation is that 2017 would have been the most recent cost of service rebasing application. If the most recent rebasing application was for a rate year other than 2017, that year should be used. An applicant must provide historical information back to the greater of: a) at least five (5) historical actual years; or b) to its last cost of service application.
B44: (3) | C44: Consumption must be provided on a total distribution system basis as well as at a customer class level.
B45: (4) | C45: Revenues exclude commodity charges.

Sheet App.2-IB_Load_Forecast_Analysis
T1: File Number: | U1: =EBNUMBER -> 0
T2: Exhibit:
T3: Tab:
T4: Schedule:
T5: Page:
T7: Date:
B9: Appendix 2-IB
B10: Customer, Connections, Load Forecast and Revenues Data and Analysis
B12: This sheet requires no inputs, but serves as a summary of the hiostorical and forecasted data to be provided with respect to:
B14: 1) | C14: Customers and connections
B15: 2) | C15: Consumption (kWh)
B16: 3) | C16: Demand (kW or kCA) for applicable demand-billed customer classes
B17: 4) | C17: Revenues
B19: The spreadsheet summarizes the data provided and the analyses (variance or year-over-year) that are required. Data are required to be provided on a customer class level. Consumption (kWh) must also be provided on a total distribution system level.
B21: Appendix 2-IB (formerly 2-IA) is the appendix spreadsheet that the distributor populates, and the spreadsheet is laid out for inputting the necessary data. The spreadsheet also calculates necessary statistics such as average consumption per customer/connection per year, and variances and % annual changes, as necessary.
B23: The distributor is required to provide suitable documentation in Exhibit 3 of its Application, in accordance with section 2.3.2 of Chaoter 2 of the Filing Requirements. This would include explanations for material variations or of trends in the data.
B25: The distributor is also required to input its test year customer/connection and load forecast in Sheet 10 - Load Forecast of the Revenue Requirement Work Form. This sheet should also be updated to reflect changes in the load forecast made through the stages of processing of the rates application.
B27: The applicant must demonstrate the historical accuracy of its load forecast approach for at least the past 5 years. Such analysis will cover both customer/connections and consumption (kWh) and demand (kW or kVA) by providing the following, as shown in the following table:
B29: This sheet is to be filled in accordance with the instructions documented in section 2.3.2 of Chapter 2 of the Filing Requirements for Distribution Rate Applications, in terms of one set of tables per customer class.
B31: Color coding for Cells: | F31: Data input | K31: Drop-down List
F33: No data entry required | K33: Blank or calculated value
B35: Distribution System (Total)
D37: Calendar Year | K37: Consumption (kWh) (3)
D38: =CONCATENATE("(for ",TestYear," Cost of Service") -> (for 2021 Cost of Service | L38: Actual (Weather actual) | M38: Weather-normalized | O38: Weather-normalized
C39: Historical | D39: =D40-1 -> 2014 | K39: Actual | L39: 1617185814 | M39: 1638065150 | N39: =IF(D39=RebaseYear,"OEB-approved","") -> OEB-approved
C40: Historical | D40: 2015 | K40: Actual | L40: 1621254425 | M40: 1632093257
C41: Historical | D41: =D42-1 -> 2016 | K41: Actual | L41: 1648846758 | M41: 1624103778 | N41: =IF(D41=RebaseYear,"OEB-approved","") -> 
C42: Historical | D42: 2017 | K42: Actual | L42: 1566913372 | M42: 1580274718
C43: Historical | D43: 2018 | K43: Actual | L43: 1598388710 | M43: 1550538912
C44: Historical | D44: 2019 | K44: Actual | L44: 1533883834 | M44: 1552408493
C45: Bridge Year | D45: 2020 | K45: Forecast | M45: 1452412078
C46: Test Year | D46: =TestYear -> 2021 | K46: Forecast | M46: 1527539492
O47: =SUM(O39:O45) -> 0
C48: Variance Analysis | K48: Year | L48: Year-over-year | O48: Versus OEB-approved
D49: =D39 -> 2014 | K49: =D49 -> 2014
D50: 2015 | K50: =D50 -> 2015 | L50: =IF(L39=0,"",L40/L39-1) -> 0.0025158587 | M50: -0.00364569929
D51: 2016 | K51: =D51 -> 2016 | L51: 0.01701912579 | M51: -0.004895234395
D52: 2017 | K52: =D52 -> 2017 | L52: -0.04969132856 | M52: -0.02698661287
D53: 2018 | K53: 2018 | L53: 0.02008747807 | M53: -0.01881685867
D54: 2019 | K54: 2019 | L54: -0.04035618845 | M54: 0.001205761954
D55: 2020 | K55: 2020 | L55: =IF(K45="Forecast","",IF(L44=0,"",L45/L44-1)) ->  | M55: =IF(M44=0,"",M45/M44-1) -> -0.06441372552
D56: 2021 | K56: 2021 | L56: =IF(K46="Forecast","",IF(L45=0,"",L46/L45-1)) ->  | M56: =IF(M45=0,"",M46/M45-1) -> 0.05172596317 | O56: =IF(O47=0,"",M46/O47-1) -> 
D57: Geometric Mean | K57: Geometric Mean | L57: =IF(L39=0,"",(L44/L39)^(1/($D44-$D39-1))-1) -> -0.01313411334 | M57: =IF(M39=0,"",(M46/M39)^(1/($D46-$D39-1))-1) -> -0.01157539905 | O57: =IF(O47=0,"",(M46/O47)^(1/(TestYear-RebaseYear-1))-1) -> 
B59: Customer Class Analysis (one for each Customer Class, excluding MicroFIT and Standby)
B61: 1 | C61: Customer Class: | D61: Residential | K61: Is the customer class billed on consumption (kWh) or demand (kW or kVA)? | Q61: kWh
D63: Calendar Year | F63: Customers | K63: Consumption (kWh) (3) | Q63: =CONCATENATE("Consumption (kWh) per ",LEFT(F63,LEN(F63)-1)) -> Consumption (kWh) per Customer
D64: =CONCATENATE("(for ",TestYear," Cost of Service") -> (for 2021 Cost of Service | L64: Actual (Weather actual) | M64: Weather-normalized | O64: Weather-normalized | R64: =L64 -> Actual (Weather actual) | S64: =M64 -> Weather-normalized | U64: =O64 -> Weather-normalized
C65: Historical | D65: =D66-1 -> 2014 | F65: =$K$42 -> Actual | G65: 59824.41667 | H65: =IF(D65=RebaseYear,"OEB-approved","") -> OEB-approved | K65: =F65 -> Actual | L65: 530303117 | M65: 544629927.5 | N65: =H65 -> OEB-approved | Q65: =K65 -> Actual | R65: =IF(G65=0,"",L65/G65) -> 8864.325748 | S65: =IF(G65=0,"",M65/G65) -> 9103.806738 | T65: =N65 -> OEB-approved | U65: =IF(T65="","",IF(I65=0,"",O65/I65)) -> 
C66: Historical | D66: 2015 | F66: =$K$43 -> Actual | G66: 60123.25 | K66: Actual | L66: 530999846 | M66: 536484747.9 | Q66: Actual | R66: 8831.855331 | S66: 8923.082966
C67: Historical | D67: 2016 | F67: =$K$41 -> Actual | G67: 60318.83333 | H67: =IF(D67=RebaseYear,"OEB-approved","") ->  | K67: =F67 -> Actual | L67: 545123880 | M67: 529766663.3 | N67: =H67 ->  | Q67: =K67 -> Actual | R67: =IF(G67=0,"",L67/G67) -> 9037.374397 | S67: =IF(G67=0,"",M67/G67) -> 8782.773705 | T67: =N67 ->  | U67: =IF(T67="","",IF(I67=0,"",O67/I67)) -> 
C68: Historical | D68: 2017 | F68: =$K$42 -> Actual | G68: 60502 | K68: Actual | L68: 501428451 | M68: 515589624.8 | N68: =H68 ->  | Q68: Actual | R68: 8287.799593 | S68: 8521.860844 | T68: =N68 ->  | U68: =IF(T68="","",IF(I68=0,"",O68/I68)) -> 
C69: Historical | D69: 2018 | F69: =$K$43 -> Actual | G69: 60920.08333 | K69: Actual | L69: 536801589 | M69: 510984906 | Q69: Actual | R69: 8811.570169 | S69: 8387.790661
C70: Historical | D70: 2019 | F70: =$K$44 -> Actual | G70: 61427.66667 | K70: Actual | L70: 512580883 | M70: 520074033.6 | Q70: Actual | R70: 8344.462859 | S70: 8466.446176
C71: Bridge Year | D71: =D72-1 -> 2020 | F71: =$K$45 -> Forecast | G71: 61651.28549 | K71: Forecast | M71: 546039497.5 | Q71: Forecast | R71: 0 | S71: 8856.903683
C72: Test Year | D72: =TestYear -> 2021 | F72: =$K$46 -> Forecast | G72: 62055.71792 | K72: Forecast | M72: 524243173.5 | Q72: Forecast | R72: 0 | S72: 8447.943091
I73: =SUM(I65:I71) -> 0 | O73: =SUM(O65:O71) -> 0 | U73: =SUM(U65:U71) -> 0
C74: Variance Analysis | D74: Year | G74: Year-over-year | I74: Test Year Versus OEB-approved | K74: Year | L74: Year-over-year | O74: =I74 -> Test Year Versus OEB-approved | Q74: Year | R74: Year-over-year | U74: =O74 -> Test Year Versus OEB-approved
D75: =D65 -> 2014 | K75: =D75 -> 2014 | Q75: =K75 -> 2014
D76: =D66 -> 2015 | G76: =IF(G65=0,"",G66/G65-1) -> 0.004995173375 | K76: =D76 -> 2015 | L76: =IF(L65=0,"",L66/L65-1) -> 0.001313831614 | M76: -0.01495543889 | Q76: =K76 -> 2015 | R76: =IF(R65="","",IF(R65=0,"",R66/R65-1)) -> -0.003663044221 | S76: -0.01985145082
D77: 2016 | G77: 0.003253039936 | K77: 2016 | L77: =IF(L66=0,"",L67/L66-1) -> 0.0265989418 | M77: -0.01252241494 | Q77: 2016 | R77: =IF(R66="","",IF(R66=0,"",R67/R66-1)) -> 0.02327020297 | S77: -0.01572430309
D78: 2017 | G78: 0.003036641403 | K78: 2017 | L78: =IF(L67=0,"",L68/L67-1) -> -0.0801568792 | M78: -0.02676091097 | Q78: 2017 | R78: =IF(R67="","",IF(R67=0,"",R68/R67-1)) -> -0.08294165654 | S78: -0.02970734183
D79: 2018 | G79: 0.006910239882 | K79: 2018 | L79: =IF(L68=0,"",L69/L68-1) -> 0.0705447366 | M79: -0.008930976367 | Q79: 2018 | R79: =IF(R68="","",IF(R68=0,"",R69/R68-1)) -> 0.06319778487 | S79: -0.01573250089
D80: =D70 -> 2019 | G80: =IF(G69=0,"",G70/G69-1) -> 0.008331954022 | K80: =D80 -> 2019 | L80: =IF(L69=0,"",L70/L69-1) -> -0.04512040668 | M80: =IF(M69=0,"",M70/M69-1) -> 0.01778746776 | Q80: =K80 -> 2019 | R80: =IF(R69="","",IF(R69=0,"",R70/R69-1)) -> -0.05301067816 | S80: =IF(S69="","",IF(S69=0,"",S70/S69-1)) -> 0.009377381824
D81: =D71 -> 2020 | G81: =IF(G70=0,"",G71/G70-1) -> 0.003640359968 | K81: 2020 | L81: =IF(K71="Forecast","",IF(L70=0,"",L71/L70-1)) ->  | M81: =IF(M70=0,"",M71/M70-1) -> 0.04992647625 | Q81: 2020 | R81: =IF(Q71="Forecast","",IF(R70=0,"",R71/R70-1)) ->  | S81: =IF(S70="","",IF(S70=0,"",S71/S70-1)) -> 0.04611822932
D82: =D72 -> 2021 | G82: =IF(G71=0,"",G72/G71-1) -> 0.00656 | I82: =IF(I73=0,"",G72/I73-1) ->  | K82: 2021 | L82: =IF(K72="Forecast","",IF(L71=0,"",L72/L71-1)) ->  | M82: =IF(M71=0,"",M72/M71-1) -> -0.03991711972 | O82: =IF(O73=0,"",M72/O73-1) ->  | Q82: 2021 | R82: =IF(Q72="Forecast","",IF(R71=0,"",R72/R71-1)) ->  | S82: =IF(S71="","",IF(S71=0,"",S72/S71-1)) -> -0.04617421685 | U82: =IF(U73=0,"",S72/U73-1) -> 
D83: Geometric Mean | G83: =IF(G65=0,"",(G72/G65)^(1/($D72-$D65-1))-1) -> 0.00612179112 | I83: =IF(I73=0,"",(G72/I73)^(1/(TestYear-RebaseYear-1))-1) ->  | K83: Geometric Mean | L83: =IF(L65=0,"",(L70/L65)^(1/($D70-$D65-1))-1) -> -0.008461558501 | M83: =IF(M65=0,"",(M72/M65)^(1/($D72-$D65-1))-1) -> -0.006338308267 | O83: =IF(O73=0,"",(M72/O73)^(1/(TestYear-RebaseYear-1))-1) ->  | Q83: Geometric Mean | R83: =IF(R65="","",IF(R65=0,"",(R70/R65)^(1/($D70-$D65-1))-1)) -> -0.01499560182 | S83: =IF(S65="","",IF(S65=0,"",(S72/S65)^(1/($D72-$D65-1))-1)) -> -0.01238428538 | U83: =IF(U73=0,"",(S72/U73)^(1/(TestYear-RebaseYear-1))-1) -> 
D86: Calendar Year | F86: Revenues | K86: =IF(ISBLANK(Q61),"",CONCATENATE("Demand (",Q61,")")) -> Demand (kWh) | Q86: =CONCATENATE("Demand (",Q61,") per ",LEFT(F63,LEN(F63)-1)) -> Demand (kWh) per Customer
D87: =CONCATENATE("(for ",TestYear," Cost of Service") -> (for 2021 Cost of Service | L87: Actual (Weather actual) | M87: Weather-normalized | O87: =M87 -> Weather-normalized | R87: =L87 -> Actual (Weather actual) | S87: =M87 -> Weather-normalized | U87: =O87 -> Weather-normalized
C88: Historical | D88: =D89-1 -> 2014 | F88: =F65 -> Actual | G88: 17877959.65 | H88: =IF(D88=RebaseYear,"OEB-approved","") -> OEB-approved | K88: =K65 -> Actual | N88: =N65 -> OEB-approved | Q88: =K88 -> Actual | R88: =IF(G88=0,"",L88/G88) -> 0 | S88: =IF(G88=0,"",M88/G88) -> 0 | T88: =N88 -> OEB-approved | U88: =IF(T88="","",IF(I88=0,"",O88/I88)) -> 
C89: Historical | D89: 2015 | F89: Actual | G89: 17515273.34 | H89: =IF(D89=RebaseYear,"OEB-approved","") -> 
C90: Historical | D90: 2016 | F90: Actual | G90: 18131911.8 | H90: =IF(D90=RebaseYear,"OEB-approved","") ->  | K90: =K67 -> Actual | N90: =N67 ->  | Q90: =K90 -> Actual | R90: =IF(G90=0,"",L90/G90) -> 0 | S90: =IF(G90=0,"",M90/G90) -> 0 | T90: =N90 ->  | U90: =IF(T90="","",IF(I90=0,"",O90/I90)) -> 
C91: Historical | D91: 2017 | F91: Actual | G91: 18327347.72 | K91: Actual | Q91: Actual | R91: 0 | S91: 0
C92: Historical | D92: 2018 | F92: Actual | G92: 18848915.94 | K92: Actual | Q92: Actual | R92: 0 | S92: 0
C93: Historical | D93: 2019 | F93: Actual | G93: 19082513.98 | K93: Actual | Q93: Actual | R93: 0 | S93: 0
C94: Bridge Year (Forecast) | D94: 2020 | F94: Forecast | G94: 19612506.94 | K94: Forecast | Q94: Forecast | R94: 0 | S94: 0
C95: Test Year (Forecast) | D95: =TestYear -> 2021 | F95: Forecast | G95: 21906924.79 | K95: Forecast | Q95: Forecast | R95: 0 | S95: 0
I96: =SUM(I88:I94) -> 0 | O96: =SUM(O88:O94) -> 0 | U96: =SUM(U88:U94) -> 0
C97: Variance Analysis | D97: Year | G97: Year-over-year | I97: =I74 -> Test Year Versus OEB-approved | K97: Year | L97: Year-over-year | O97: =I97 -> Test Year Versus OEB-approved | Q97: Year | R97: Year-over-year | U97: =O97 -> Test Year Versus OEB-approved
D98: =D88 -> 2014 | K98: =D98 -> 2014 | Q98: =K98 -> 2014
D99: 2015 | G99: =IF(G88=0,"",G89/G88-1) -> -0.02028678424
D100: 2016 | G100: 0.03520575717 | K100: =D100 -> 2016 | L100: =IF(L88=0,"",L90/L88-1) ->  | M100: =IF(M88=0,"",M90/M88-1) ->  | Q100: =K100 -> 2016 | R100: =IF(R88="","",IF(R88=0,"",R90/R88-1)) ->  | S100: =IF(S88="","",IF(S88=0,"",S90/S88-1)) -> 
D101: 2017 | G101: 0.01077856114 | K101: 2017 | L101: =IF(L90=0,"",L91/L90-1) ->  | Q101: 2017 | R101: =IF(R90="","",IF(R90=0,"",R91/R90-1)) -> 
D102: 2018 | G102: 0.02845846698 | K102: 2018 | Q102: 2018
D103: 2019 | G103: 0.0123931817 | K103: 2019 | Q103: 2019
D104: 2020 | G104: 0.02777374926 | K104: 2020 | L104: =IF(K94="Forecast","",IF(L93=0,"",L94/L93-1)) ->  | M104: =IF(M93=0,"",M94/M93-1) ->  | Q104: 2020 | R104: =IF(Q94="Forecast","",IF(R93=0,"",R94/R93-1)) ->  | S104: =IF(S93="","",IF(S93=0,"",S94/S93-1)) -> 
D105: 2021 | G105: 0.1169874845 | I105: =IF(I96=0,"",G95/I96-1) ->  | K105: 2021 | L105: =IF(K95="Forecast","",IF(L94=0,"",L95/L94-1)) ->  | M105: =IF(M94=0,"",M95/M94-1) ->  | O105: =IF(O96=0,"",M95/O96-1) ->  | Q105: 2021 | R105: =IF(Q95="Forecast","",IF(R94=0,"",R95/R94-1)) ->  | S105: =IF(S94="","",IF(S94=0,"",S95/S94-1)) ->  | U105: =IF(U96=0,"",S95/U96-1) -> 
D106: Geometric Mean | G106: =IF(G88=0,"",(G95/G88)^(1/($D95-$D88-1))-1) -> 0.03445255691 | I106: =IF(I96=0,"",(G95/I96)^(1/(TestYear-RebaseYear-1))-1) ->  | K106: Geometric Mean | L106: =IF(L88=0,"",(L93/L88)^(1/($D93-$D88-1))-1) ->  | M106: =IF(M88=0,"",(M95/M88)^(1/($D95-$D88-1))-1) ->  | O106: =IF(O96=0,"",(M95/O96)^(1/(TestYear-RebaseYear-1))-1) ->  | Q106: Geometric Mean | R106: =IF(R88="","",IF(R88=0,"",(R93/R88)^(1/($D93-$D88-1))-1)) ->  | S106: =IF(S88="","",IF(S88=0,"",(S95/S88)^(1/($D95-$D88-1))-1)) ->  | U106: =IF(U96=0,"",(S95/U96)^(1/(TestYear-RebaseYear-1))-1) -> 
B108: 2 | C108: Customer Class: | D108: GS < 50 kW | K108: Is the customer class billed on consumption (kWh) or demand (kW or kVA)? | Q108: kWh
D110: Calendar Year | F110: Customers | K110: Consumption (kWh) (3) | Q110: =CONCATENATE("Consumption (kWh) per ",LEFT(F110,LEN(F110)-1)) -> Consumption (kWh) per Customer
D111: =CONCATENATE("(for ",TestYear," Cost of Service") -> (for 2021 Cost of Service | L111: Actual (Weather actual) | M111: Weather-normalized | O111: Weather-normalized | R111: =L111 -> Actual (Weather actual) | S111: =M111 -> Weather-normalized | U111: =O111 -> Weather-normalized
C112: Historical | D112: =D113-1 -> 2014 | F112: =$K$41 -> Actual | G112: 5198.458333 | H112: =IF(D112=RebaseYear,"OEB-approved","") -> OEB-approved | K112: =F112 -> Actual | L112: 172644356 | M112: 173351270.7 | N112: =H112 -> OEB-approved | Q112: =K112 -> Actual | R112: =IF(G112=0,"",L112/G112) -> 33210.68381 | S112: =IF(G112=0,"",M112/G112) -> 33346.66926 | T112: =N112 -> OEB-approved | U112: =IF(T112="","",IF(I112=0,"",O112/I112)) -> 
C113: Historical | D113: 2015 | F113: =$K$42 -> Actual | G113: 5238.5 | K113: Actual | L113: 170245509 | M113: 171832583.6 | N113: =H113 ->  | Q113: Actual | R113: 32498.90408 | S113: 32801.86764 | T113: =N113 ->  | U113: =IF(T113="","",IF(I113=0,"",O113/I113)) -> 
C114: Historical | D114: 2016 | F114: =$K$41 -> Actual | G114: 5272.833333 | H114: =IF(D114=RebaseYear,"OEB-approved","") ->  | K114: =F114 -> Actual | L114: 169905557 | M114: 169607123.8 | N114: =H114 ->  | Q114: =K114 -> Actual | R114: =IF(G114=0,"",L114/G114) -> 32222.81955 | S114: =IF(G114=0,"",M114/G114) -> 32166.22129 | T114: =N114 ->  | U114: =IF(T114="","",IF(I114=0,"",O114/I114)) -> 
C115: Historical | D115: 2017 | F115: =$K$42 -> Actual | G115: 5341.666667 | K115: Actual | L115: 166894185 | M115: 169390968.2 | N115: =H115 ->  | Q115: Actual | R115: 31243.84119 | S115: 31711.25769 | T115: =N115 ->  | U115: =IF(T115="","",IF(I115=0,"",O115/I115)) -> 
C116: Historical | D116: 2018 | F116: =$K$43 -> Actual | G116: 5427.75 | K116: Actual | L116: 174257110 | M116: 169541626.9 | Q116: Actual | R116: 32104.85192 | S116: 31236.07884
C117: Historical | D117: 2019 | F117: =$K$44 -> Actual | G117: 5489.5 | K117: Actual | L117: 170703484 | M117: 170772378.2 | Q117: Actual | R117: 31096.36287 | S117: 31108.91306
C118: Bridge Year | D118: =D119-1 -> 2020 | F118: =$K$45 -> Forecast | G118: 5505.560136 | K118: Forecast | M118: 152883777.5 | Q118: Forecast | R118: 0 | S118: 27768.97786
C119: Test Year | D119: =TestYear -> 2021 | F119: =$K$46 -> Forecast | G119: 5564.469629 | K119: Forecast | M119: 169189510.1 | Q119: Forecast | R119: 0 | S119: 30405.32546
I120: =SUM(I112:I118) -> 0 | O120: =SUM(O112:O118) -> 0 | U120: =SUM(U112:U118) -> 0
C121: Variance Analysis | D121: Year | G121: Year-over-year | I121: Test Year Versus OEB-approved | K121: Year | L121: Year-over-year | O121: =I121 -> Test Year Versus OEB-approved | Q121: Year | R121: Year-over-year | U121: =O121 -> Test Year Versus OEB-approved
D122: =D112 -> 2014 | K122: =D122 -> 2014 | Q122: =K122 -> 2014
D123: 2015 | G123: =IF(G112=0,"",G113/G112-1) -> 0.007702604137 | K123: =D123 -> 2015 | L123: =IF(L112=0,"",L113/L112-1) -> -0.01389473166 | M123: -0.008760749663 | Q123: =K123 -> 2015 | R123: =IF(R112="","",IF(R112=0,"",R113/R112-1)) -> -0.02143225165 | S123: -0.01633751241
D124: 2016 | G124: 0.006554039006 | K124: 2016 | L124: =IF(L113=0,"",L114/L113-1) -> -0.001996833878 | M124: -0.01295132589 | Q124: 2016 | R124: =IF(R113="","",IF(R113=0,"",R114/R113-1)) -> -0.008495195045 | S124: -0.01937835838
D125: 2017 | G125: 0.01305433511 | K125: =D125 -> 2017 | L125: =IF(L114=0,"",L115/L114-1) -> -0.01772379935 | M125: -0.001274449128 | Q125: =K125 -> 2017 | R125: =IF(R114="","",IF(R114=0,"",R115/R114-1)) -> -0.03038152387 | S125: -0.01414414187
D126: 2018 | G126: 0.01611544462 | K126: 2018 | L126: =IF(L115=0,"",L116/L115-1) -> 0.044117325 | M126: 0.000889414395 | Q126: 2018 | R126: =IF(R115="","",IF(R115=0,"",R116/R115-1)) -> 0.02755777459 | S126: -0.01498454758
D127: 2019 | G127: 0.01137672148 | K127: 2019 | L127: =IF(L116=0,"",L117/L116-1) -> -0.02039300434 | M127: 0.007259286887 | Q127: 2019 | R127: =IF(R116="","",IF(R116=0,"",R117/R116-1)) -> -0.03141235619 | S127: -0.004071118608
D128: 2020 | G128: 0.00292560996 | K128: 2020 | L128: =IF(K118="Forecast","",IF(L117=0,"",L118/L117-1)) ->  | M128: =IF(M117=0,"",M118/M117-1) -> -0.1047511368 | Q128: 2020 | R128: =IF(Q118="Forecast","",IF(R117=0,"",R118/R117-1)) ->  | S128: =IF(S117="","",IF(S117=0,"",S118/S117-1)) -> -0.1073626455
D129: 2021 | G129: 0.0107 | I129: =IF(I120=0,"",G119/I120-1) ->  | K129: 2021 | L129: =IF(K119="Forecast","",IF(L118=0,"",L119/L118-1)) ->  | M129: =IF(M118=0,"",M119/M118-1) -> 0.106654433 | O129: =IF(O120=0,"",M119/O120-1) ->  | Q129: 2021 | R129: =IF(Q119="Forecast","",IF(R118=0,"",R119/R118-1)) ->  | S129: =IF(S118="","",IF(S118=0,"",S119/S118-1)) -> 0.09493859012 | U129: =IF(U120=0,"",S119/U120-1) -> 
D130: Geometric Mean | G130: =IF(G112=0,"",(G119/G112)^(1/($D119-$D112-1))-1) -> 0.01140446875 | I130: =IF(I120=0,"",(G119/I120)^(1/(TestYear-RebaseYear-1))-1) ->  | K130: Geometric Mean | L130: =IF(L112=0,"",(L117/L112)^(1/($D117-$D112-1))-1) -> -0.002822432731 | M130: =IF(M112=0,"",(M119/M112)^(1/($D119-$D112-1))-1) -> -0.004041901791 | O130: =IF(O120=0,"",(M119/O120)^(1/(TestYear-RebaseYear-1))-1) ->  | Q130: Geometric Mean | R130: =IF(R112="","",IF(R112=0,"",(R117/R112)^(1/($D117-$D112-1))-1)) -> -0.01631070673 | S130: =IF(S112="","",IF(S112=0,"",(S119/S112)^(1/($D119-$D112-1))-1)) -> -0.01527219922 | U130: =IF(U120=0,"",(S119/U120)^(1/(TestYear-RebaseYear-1))-1) -> 
D133: Calendar Year | F133: Revenues | K133: =IF(ISBLANK(Q108),"",CONCATENATE("Demand (",Q108,")")) -> Demand (kWh) | Q133: =CONCATENATE("Demand (",Q108,") per ",LEFT(F110,LEN(F110)-1)) -> Demand (kWh) per Customer
D134: =CONCATENATE("(for ",TestYear," Cost of Service") -> (for 2021 Cost of Service | L134: Actual (Weather actual) | M134: Weather-normalized | O134: =M134 -> Weather-normalized | R134: =L134 -> Actual (Weather actual) | S134: =M134 -> Weather-normalized | U134: =O134 -> Weather-normalized
C135: Historical | D135: =D136-1 -> 2014 | F135: =F112 -> Actual | G135: 4007275.5 | H135: =IF(D135=RebaseYear,"OEB-approved","") -> OEB-approved | K135: =K112 -> Actual | N135: =N112 -> OEB-approved | Q135: =K135 -> Actual | R135: =IF(G135=0,"",L135/G135) -> 0 | S135: =IF(G135=0,"",M135/G135) -> 0 | T135: =N135 -> OEB-approved | U135: =IF(T135="","",IF(I135=0,"",O135/I135)) -> 
C136: Historical | D136: 2015 | F136: Actual | G136: 3881113.64
C137: Historical | D137: 2016 | F137: Actual | G137: 3989017.11 | H137: =IF(D137=RebaseYear,"OEB-approved","") ->  | K137: =K114 -> Actual | N137: =N114 ->  | Q137: =K137 -> Actual | R137: =IF(G137=0,"",L137/G137) -> 0 | S137: =IF(G137=0,"",M137/G137) -> 0 | T137: =N137 ->  | U137: =IF(T137="","",IF(I137=0,"",O137/I137)) -> 
C138: Historical | D138: 2017 | F138: Actual | G138: 4062265.27 | K138: Actual | Q138: Actual | R138: 0 | S138: 0
C139: Historical | D139: 2018 | F139: Actual | G139: 4267284.95 | K139: Actual | Q139: Actual | R139: 0 | S139: 0
C140: Historical | D140: 2019 | F140: Actual | G140: 4277731.29 | K140: Actual | Q140: Actual | R140: 0 | S140: 0
C141: Bridge Year (Forecast) | D141: 2020 | F141: Forecast | G141: 4004580.261 | K141: Forecast | Q141: Forecast | R141: 0 | S141: 0
C142: Test Year (Forecast) | D142: =TestYear -> 2021 | F142: Forecast | G142: 4719064.072 | K142: Forecast | Q142: Forecast | R142: 0 | S142: 0
I143: =SUM(I135:I141) -> 0 | O143: =SUM(O135:O141) -> 0 | U143: =SUM(U135:U141) -> 0
C144: Variance Analysis | D144: Year | G144: Year-over-year | I144: =I121 -> Test Year Versus OEB-approved | K144: Year | L144: Year-over-year | O144: =I144 -> Test Year Versus OEB-approved | Q144: Year | R144: Year-over-year | U144: =O144 -> Test Year Versus OEB-approved
D145: =D135 -> 2014 | K145: =D145 -> 2014 | Q145: =K145 -> 2014
D146: 2015 | G146: =IF(G135=0,"",G136/G135-1) -> -0.03148320099
D147: 2016 | G147: 0.02780219288 | K147: =D147 -> 2016 | L147: =IF(L135=0,"",L137/L135-1) ->  | Q147: =K147 -> 2016 | R147: =IF(R135="","",IF(R135=0,"",R137/R135-1)) ->  | S147: =IF(S135="","",IF(S135=0,"",S137/S135-1)) -> 
D148: 2017 | G148: 0.01836245821 | K148: 2017 | L148: =IF(L137=0,"",L138/L137-1) ->  | Q148: 2017 | R148: =IF(R137="","",IF(R137=0,"",R138/R137-1)) -> 
D149: 2018 | G149: 0.05046929887 | K149: 2018 | L149: =IF(L138=0,"",L139/L138-1) ->  | Q149: 2018 | R149: =IF(R138="","",IF(R138=0,"",R139/R138-1)) -> 
D150: 2019 | G150: 0.002448006197 | K150: 2019 | L150: =IF(L139=0,"",L140/L139-1) ->  | Q150: 2019 | R150: =IF(R139="","",IF(R139=0,"",R140/R139-1)) -> 
D151: 2020 | G151: -0.06385418123 | K151: 2020 | L151: =IF(K141="Forecast","",IF(L140=0,"",L141/L140-1)) ->  | M151: =IF(M140=0,"",M141/M140-1) ->  | Q151: 2020 | R151: =IF(Q141="Forecast","",IF(R140=0,"",R141/R140-1)) ->  | S151: =IF(S140="","",IF(S140=0,"",S141/S140-1)) -> 
D152: 2021 | G152: 0.1784166542 | I152: =IF(I143=0,"",G142/I143-1) ->  | K152: 2021 | L152: =IF(K142="Forecast","",IF(L141=0,"",L142/L141-1)) ->  | M152: =IF(M141=0,"",M142/M141-1) ->  | O152: =IF(O143=0,"",M142/O143-1) ->  | Q152: 2021 | R152: =IF(Q142="Forecast","",IF(R141=0,"",R142/R141-1)) ->  | S152: =IF(S141="","",IF(S141=0,"",S142/S141-1)) ->  | U152: =IF(U143=0,"",S142/U143-1) -> 
D153: Geometric Mean | G153: =IF(G135=0,"",(G142/G135)^(1/($D142-$D135-1))-1) -> 0.02762448949 | I153: =IF(I143=0,"",(G142/I143)^(1/(TestYear-RebaseYear-1))-1) ->  | K153: Geometric Mean | L153: =IF(L135=0,"",(L140/L135)^(1/($D140-$D135-1))-1) ->  | M153: =IF(M135=0,"",(M142/M135)^(1/($D142-$D135-1))-1) ->  | O153: =IF(O143=0,"",(M142/O143)^(1/(TestYear-RebaseYear-1))-1) ->  | Q153: Geometric Mean | R153: =IF(R135="","",IF(R135=0,"",(R140/R135)^(1/($D140-$D135-1))-1)) ->  | S153: =IF(S135="","",IF(S135=0,"",(S142/S135)^(1/($D142-$D135-1))-1)) ->  | U153: =IF(U143=0,"",(S142/U143)^(1/(TestYear-RebaseYear-1))-1) -> 
B155: 3 | C155: Customer Class: | D155: GS > 50 kW (kW) | K155: Is the customer class billed on consumption (kWh) or demand (kW or kVA)? | Q155: kW
D157: Calendar Year | F157: Customers | K157: Demand (kW) (3) | Q157: =CONCATENATE("Demand (kW) per ",LEFT(F157,LEN(F157)-1)) -> Demand (kW) per Customer
D158: =CONCATENATE("(for ",TestYear," Cost of Service") -> (for 2021 Cost of Service | L158: Actual (Weather actual) | M158: Weather-normalized | O158: Weather-normalized | R158: =L158 -> Actual (Weather actual) | S158: =M158 -> Weather-normalized | U158: =O158 -> Weather-normalized
C159: Historical | D159: =D160-1 -> 2014 | F159: =$K$42 -> Actual | G159: 1021.208333 | H159: =IF(D159=RebaseYear,"OEB-approved","") -> OEB-approved | K159: =F159 -> Actual | L159: 2373361 | M159: 2387586.733 | N159: =H159 -> OEB-approved | Q159: =K159 -> Actual | R159: =IF(G159=0,"",L159/G159) -> 2324.071321 | S159: =IF(G159=0,"",M159/G159) -> 2338.001615 | T159: =N159 -> OEB-approved | U159: =IF(T159="","",IF(I159=0,"",O159/I159)) -> 
C160: Historical | D160: 2015 | F160: =$K$43 -> Actual | G160: 1027.666667 | K160: Actual | L160: 2374100 | M160: 2393115.119 | Q160: Actual | R160: 2310.184885 | S160: 2328.688082
C161: Historical | D161: 2016 | F161: =$K$41 -> Actual | G161: 1034.166667 | H161: =IF(D161=RebaseYear,"OEB-approved","") ->  | K161: =F161 -> Actual | L161: 2410544 | M161: 2413739.367 | N161: =H161 ->  | Q161: =K161 -> Actual | R161: =IF(G161=0,"",L161/G161) -> 2330.904754 | S161: =IF(G161=0,"",M161/G161) -> 2333.994553 | T161: =N161 ->  | U161: =IF(T161="","",IF(I161=0,"",O161/I161)) -> 
C162: Historical | D162: 2017 | F162: =$K$42 -> Actual | G162: 1003.666667 | K162: Actual | L162: 2363980 | M162: 2349801.544 | N162: =H162 ->  | Q162: Actual | R162: 2355.34374 | S162: 2341.217081 | T162: =N162 ->  | U162: =IF(T162="","",IF(I162=0,"",O162/I162)) -> 
C163: Historical | D163: 2018 | F163: =$K$43 -> Actual | G163: 985.8333333 | K163: Actual | L163: 2353522 | M163: 2312209.667 | Q163: Actual | R163: 2387.342688 | S163: 2345.436687
C164: Historical | D164: 2019 | F164: =$K$44 -> Actual | G164: 984.8333333 | K164: Actual | L164: 2275484 | M164: 2309173.37 | Q164: Actual | R164: 2310.526993 | S164: 2344.735187
C165: Bridge Year | D165: =D166-1 -> 2020 | F165: =$K$45 -> Forecast | G165: 1004.291507 | K165: Forecast | M165: 2031467.131 | Q165: Forecast | R165: 0 | S165: 2022.786329
C166: Test Year | D166: =TestYear -> 2021 | F166: =$K$46 -> Forecast | G166: 1003.090073 | K166: Forecast | M166: 2267944.871 | Q166: Forecast | R166: 0 | S166: 2260.958345
I167: =SUM(I159:I165) -> 0 | O167: =SUM(O159:O165) -> 0 | U167: =SUM(U159:U165) -> 0
C168: Variance Analysis | D168: Year | G168: Year-over-year | I168: Test Year Versus OEB-approved | K168: Year | L168: Year-over-year | O168: =I168 -> Test Year Versus OEB-approved | Q168: Year | R168: Year-over-year | U168: =O168 -> Test Year Versus OEB-approved
D169: =D159 -> 2014 | K169: =D169 -> 2014 | Q169: =K169 -> 2014
D170: 2015 | G170: =IF(G159=0,"",G160/G159-1) -> 0.006324207434 | K170: =D170 -> 2015 | L170: =IF(L159=0,"",L160/L159-1) -> 0.0003113727747 | M170: 0.002315470152 | Q170: =K170 -> 2015 | R170: =IF(R159="","",IF(R159=0,"",R160/R159-1)) -> -0.005975047221 | S170: -0.00398354452
D171: 2016 | G171: 0.006325008109 | K171: 2016 | L171: =IF(L160=0,"",L161/L160-1) -> 0.0153506592 | M171: 0.008618159673 | Q171: 2016 | R171: =IF(R160="","",IF(R160=0,"",R161/R160-1)) -> 0.00896892258 | S171: 0.002278738524
D172: 2017 | G172: -0.02949234488 | K172: =D172 -> 2017 | L172: =IF(L161=0,"",L162/L161-1) -> -0.01931680152 | M172: -0.02648911628 | Q172: =K172 -> 2017 | R172: =IF(R161="","",IF(R161=0,"",R162/R161-1)) -> 0.01048476363 | S172: 0.003094492443
D173: 2018 | G173: -0.01776818333 | K173: 2018 | L173: =IF(L162=0,"",L163/L162-1) -> -0.004423895295 | M173: -0.01599789448 | Q173: 2018 | R173: =IF(R162="","",IF(R162=0,"",R163/R162-1)) -> 0.0135856809 | S173: 0.001802312671
D174: 2019 | G174: -0.001014370245 | K174: 2019 | L174: =IF(L163=0,"",L164/L163-1) -> -0.03315796496 | M174: -0.001313158207 | Q174: 2019 | R174: =IF(R163="","",IF(R163=0,"",R164/R163-1)) -> -0.03217623332 | S174: -0.0002990913515
D175: 2020 | G175: 0.01975783392 | K175: 2020 | L175: =IF(K165="Forecast","",IF(L164=0,"",L165/L164-1)) ->  | M175: =IF(M164=0,"",M165/M164-1) -> -0.1202621868 | Q175: 2020 | R175: =IF(Q165="Forecast","",IF(R164=0,"",R165/R164-1)) ->  | S175: =IF(S164="","",IF(S164=0,"",S165/S164-1)) -> -0.1373071293
D176: 2021 | G176: -0.0011963 | I176: =IF(I167=0,"",G166/I167-1) ->  | K176: 2021 | L176: =IF(K166="Forecast","",IF(L165=0,"",L166/L165-1)) ->  | M176: =IF(M165=0,"",M166/M165-1) -> 0.1164073673 | O176: =IF(O167=0,"",M166/O167-1) ->  | Q176: 2021 | R176: =IF(Q166="Forecast","",IF(R165=0,"",R166/R165-1)) ->  | S176: =IF(S165="","",IF(S165=0,"",S166/S165-1)) -> 0.117744525 | U176: =IF(U167=0,"",S166/U167-1) -> 
D177: Geometric Mean | G177: =IF(G159=0,"",(G166/G159)^(1/($D166-$D159-1))-1) -> -0.002979096709 | I177: =IF(I167=0,"",(G166/I167)^(1/(TestYear-RebaseYear-1))-1) ->  | K177: Geometric Mean | L177: =IF(L159=0,"",(L164/L159)^(1/($D164-$D159-1))-1) -> -0.01047334776 | M177: =IF(M159=0,"",(M166/M159)^(1/($D166-$D159-1))-1) -> -0.008531571533 | O177: =IF(O167=0,"",(M166/O167)^(1/(TestYear-RebaseYear-1))-1) ->  | Q177: Geometric Mean | R177: =IF(R159="","",IF(R159=0,"",(R164/R159)^(1/($D164-$D159-1))-1)) -> -0.001460156286 | S177: =IF(S159="","",IF(S159=0,"",(S166/S159)^(1/($D166-$D159-1))-1)) -> -0.005569065609 | U177: =IF(U167=0,"",(S166/U167)^(1/(TestYear-RebaseYear-1))-1) -> 
D180: Calendar Year | F180: Revenues | K180: =IF(ISBLANK(Q155),"",CONCATENATE("Demand (",Q155,")")) -> Demand (kW) | Q180: =CONCATENATE("Demand (",Q155,") per ",LEFT(F157,LEN(F157)-1)) -> Demand (kW) per Customer
D181: =CONCATENATE("(for ",TestYear," Cost of Service") -> (for 2021 Cost of Service | L181: Actual (Weather actual) | M181: Weather-normalized | O181: =M181 -> Weather-normalized | R181: =L181 -> Actual (Weather actual) | S181: =M181 -> Weather-normalized | U181: =O181 -> Weather-normalized
C182: Historical | D182: =D183-1 -> 2014 | F182: =F159 -> Actual | G182: 7026525.93 | H182: =IF(D182=RebaseYear,"OEB-approved","") -> OEB-approved | K182: =K159 -> Actual | N182: =N159 -> OEB-approved | Q182: =K182 -> Actual | R182: =IF(G182=0,"",L182/G182) -> 0 | S182: =IF(G182=0,"",M182/G182) -> 0 | T182: =N182 -> OEB-approved | U182: =IF(T182="","",IF(I182=0,"",O182/I182)) -> 
C183: Historical | D183: 2015 | F183: Actual | G183: 7098025.6 | H183: =IF(D183=RebaseYear,"OEB-approved","") -> 
C184: Historical | D184: 2016 | F184: Actual | G184: 7448485.91 | H184: =IF(D184=RebaseYear,"OEB-approved","") ->  | K184: =K161 -> Actual | N184: =N161 ->  | Q184: =K184 -> Actual | R184: =IF(G184=0,"",L184/G184) -> 0 | S184: =IF(G184=0,"",M184/G184) -> 0 | T184: =N184 ->  | U184: =IF(T184="","",IF(I184=0,"",O184/I184)) -> 
C185: Historical | D185: 2017 | F185: Actual | G185: 7450542.45 | K185: Actual | Q185: Actual | R185: 0 | S185: 0
C186: Historical | D186: 2018 | F186: Actual | G186: 7552404.01 | K186: Actual | Q186: Actual | R186: 0 | S186: 0
C187: Historical | D187: 2019 | F187: Actual | G187: 7470865.4 | K187: Actual | Q187: Actual | R187: 0 | S187: 0
C188: Bridge Year (Forecast) | D188: 2020 | F188: Forecast | G188: 6584976.13 | K188: Forecast | Q188: Forecast | R188: 0 | S188: 0
C189: Test Year (Forecast) | D189: =TestYear -> 2021 | F189: Forecast | G189: 8136334.949 | K189: Forecast | Q189: Forecast | R189: 0 | S189: 0
I190: =SUM(I182:I188) -> 0 | O190: =SUM(O182:O188) -> 0 | U190: =SUM(U182:U188) -> 0
C191: Variance Analysis | D191: Year | G191: Year-over-year | I191: =I168 -> Test Year Versus OEB-approved | K191: Year | L191: Year-over-year | O191: =I191 -> Test Year Versus OEB-approved | Q191: Year | R191: Year-over-year | U191: =O191 -> Test Year Versus OEB-approved
D192: =D182 -> 2014 | K192: =D192 -> 2014 | Q192: =K192 -> 2014
D193: 2015 | G193: =IF(G182=0,"",G183/G182-1) -> 0.01017567867
D194: 2016 | G194: 0.04937433728 | K194: =D194 -> 2016 | L194: =IF(L182=0,"",L184/L182-1) ->  | Q194: =K194 -> 2016 | R194: =IF(R182="","",IF(R182=0,"",R184/R182-1)) ->  | S194: =IF(S182="","",IF(S182=0,"",S184/S182-1)) -> 
D195: 2017 | G195: 0.0002761017507 | K195: 2017 | L195: =IF(L184=0,"",L185/L184-1) ->  | Q195: 2017 | R195: =IF(R184="","",IF(R184=0,"",R185/R184-1)) -> 
D196: 2018 | G196: 0.01367169715 | K196: 2018 | L196: =IF(L185=0,"",L186/L185-1) ->  | Q196: 2018 | R196: =IF(R185="","",IF(R185=0,"",R186/R185-1)) -> 
D197: 2019 | G197: -0.0107963782 | K197: 2019 | L197: =IF(L186=0,"",L187/L186-1) ->  | Q197: 2019 | R197: =IF(R186="","",IF(R186=0,"",R187/R186-1)) -> 
D198: 2020 | G198: -0.1185792036 | K198: 2020 | L198: =IF(K188="Forecast","",IF(L187=0,"",L188/L187-1)) ->  | M198: =IF(M187=0,"",M188/M187-1) ->  | Q198: 2020 | R198: =IF(Q188="Forecast","",IF(R187=0,"",R188/R187-1)) ->  | S198: =IF(S187="","",IF(S187=0,"",S188/S187-1)) -> 
D199: 2021 | G199: 0.2355906519 | I199: =IF(I190=0,"",G189/I190-1) ->  | K199: 2021 | L199: =IF(K189="Forecast","",IF(L188=0,"",L189/L188-1)) ->  | M199: =IF(M188=0,"",M189/M188-1) ->  | O199: =IF(O190=0,"",M189/O190-1) ->  | Q199: 2021 | R199: =IF(Q189="Forecast","",IF(R188=0,"",R189/R188-1)) ->  | S199: =IF(S188="","",IF(S188=0,"",S189/S188-1)) ->  | U199: =IF(U190=0,"",S189/U190-1) -> 
D200: Geometric Mean | G200: =IF(G182=0,"",(G189/G182)^(1/($D189-$D182-1))-1) -> 0.0247423722 | I200: =IF(I190=0,"",(G189/I190)^(1/(TestYear-RebaseYear-1))-1) ->  | K200: Geometric Mean | L200: =IF(L182=0,"",(L187/L182)^(1/($D187-$D182-1))-1) ->  | M200: =IF(M182=0,"",(M189/M182)^(1/($D189-$D182-1))-1) ->  | O200: =IF(O190=0,"",(M189/O190)^(1/(TestYear-RebaseYear-1))-1) ->  | Q200: Geometric Mean | R200: =IF(R182="","",IF(R182=0,"",(R187/R182)^(1/($D187-$D182-1))-1)) ->  | S200: =IF(S182="","",IF(S182=0,"",(S189/S182)^(1/($D189-$D182-1))-1)) ->  | U200: =IF(U190=0,"",(S189/U190)^(1/(TestYear-RebaseYear-1))-1) -> 
B202: 4 | C202: Customer Class: | D202: Street Light (kW) | K202: Is the customer class billed on consumption (kWh) or demand (kW or kVA)? | Q202: kW
D204: Calendar Year | F204: Customers | K204: Demand (kW) (3) | Q204: =CONCATENATE("Demand (kW) per ",LEFT(F204,LEN(F204)-1)) -> Demand (kW) per Customer
D205: =CONCATENATE("(for ",TestYear," Cost of Service") -> (for 2021 Cost of Service | L205: Actual (Weather actual) | M205: Weather-normalized | O205: Weather-normalized | R205: =L205 -> Actual (Weather actual) | S205: =M205 -> Weather-normalized | U205: =O205 -> Weather-normalized
C206: Historical | D206: =D207-1 -> 2014 | F206: =$K$42 -> Actual | G206: 15170.75 | H206: =IF(D206=RebaseYear,"OEB-approved","") -> OEB-approved | K206: =F206 -> Actual | L206: 27636 | M206: 27636 | N206: =H206 -> OEB-approved | Q206: =K206 -> Actual | R206: =IF(G206=0,"",L206/G206) -> 1.821663398 | S206: =IF(G206=0,"",M206/G206) -> 1.821663398 | T206: =N206 -> OEB-approved | U206: =IF(T206="","",IF(I206=0,"",O206/I206)) -> 
C207: Historical | D207: 2015 | F207: =$K$43 -> Actual | G207: 15228.58333 | K207: Actual | L207: 27661 | M207: 27661 | Q207: Actual | R207: 1.816386948 | S207: 1.816386948
C208: Historical | D208: 2016 | F208: =$K$41 -> Actual | G208: 15252.66667 | H208: =IF(D208=RebaseYear,"OEB-approved","") ->  | K208: =F208 -> Actual | L208: 27648 | M208: 27648 | N208: =H208 ->  | Q208: =K208 -> Actual | R208: =IF(G208=0,"",L208/G208) -> 1.812666638 | S208: =IF(G208=0,"",M208/G208) -> 1.812666638 | T208: =N208 ->  | U208: =IF(T208="","",IF(I208=0,"",O208/I208)) -> 
C209: Historical | D209: 2017 | F209: =$K$42 -> Actual | G209: 17184 | K209: Actual | L209: 30451.8 | M209: 30451.8 | N209: =H209 ->  | Q209: Actual | R209: 1.772101955 | S209: 1.772101955 | T209: =N209 ->  | U209: =IF(T209="","",IF(I209=0,"",O209/I209)) -> 
C210: Historical | D210: 2018 | F210: =$K$43 -> Actual | G210: 17184 | K210: Actual | L210: 18200.9 | M210: 18200.9 | Q210: Actual | R210: 1.059177142 | S210: 1.059177142
C211: Historical | D211: 2019 | F211: =$K$44 -> Actual | G211: 17184 | K211: Actual | L211: 15445.8 | M211: 15445.8 | Q211: Actual | R211: 0.8988477654 | S211: 0.8988477654
C212: Bridge Year | D212: =D213-1 -> 2020 | F212: =$K$45 -> Forecast | G212: 17196.60059 | K212: Forecast | M212: 15448 | Q212: Forecast | R212: 0 | S212: 0.8983170782
C213: Test Year | D213: =TestYear -> 2021 | F213: =$K$46 -> Forecast | G213: 17283.27146 | K213: Forecast | M213: 15528 | Q213: Forecast | R213: 0 | S213: 0.8984410177
I214: =SUM(I206:I212) -> 0 | O214: =SUM(O206:O212) -> 0 | U214: =SUM(U206:U212) -> 0
C215: Variance Analysis | D215: Year | G215: Year-over-year | I215: Test Year Versus OEB-approved | K215: Year | L215: Year-over-year | O215: =I215 -> Test Year Versus OEB-approved | Q215: Year | R215: Year-over-year | U215: =O215 -> Test Year Versus OEB-approved
D216: =D206 -> 2014 | K216: =D216 -> 2014 | Q216: =K216 -> 2014
D217: =D207 -> 2015 | G217: =IF(G206=0,"",G207/G206-1) -> 0.003812160462 | K217: =D217 -> 2015 | L217: =IF(L206=0,"",L207/L206-1) -> 0.000904617166 | M217: 0.000904617166 | Q217: =K217 -> 2015 | R217: =IF(R206="","",IF(R206=0,"",R207/R206-1)) -> -0.002896501368 | S217: -0.002896501368
D218: 2016 | G218: 0.001581455924 | K218: 2016 | L218: =IF(L207=0,"",L208/L207-1) -> -0.0004699757782 | M218: -0.0004699757782 | Q218: 2016 | R218: =IF(R207="","",IF(R207=0,"",R208/R207-1)) -> -0.002048192576 | S218: -0.002048192576
D219: =D209 -> 2017 | G219: =IF(G208=0,"",G209/G208-1) -> 0.1266226671 | K219: =D219 -> 2017 | L219: =IF(L208=0,"",L209/L208-1) -> 0.1014105903 | M219: 0.1014105903 | Q219: =K219 -> 2017 | R219: =IF(R208="","",IF(R208=0,"",R209/R208-1)) -> -0.0223784569 | S219: -0.0223784569
D220: =D210 -> 2018 | G220: =IF(G209=0,"",G210/G209-1) -> 0 | K220: 2018 | L220: =IF(L209=0,"",L210/L209-1) -> -0.4023046257 | M220: -0.4023046257 | Q220: 2018 | R220: =IF(R209="","",IF(R209=0,"",R210/R209-1)) -> -0.4023046257 | S220: -0.4023046257
D221: =D211 -> 2019 | G221: =IF(G210=0,"",G211/G210-1) -> 0 | K221: 2019 | L221: =IF(L210=0,"",L211/L210-1) -> -0.1513716355 | M221: -0.1513716355 | Q221: 2019 | R221: =IF(R210="","",IF(R210=0,"",R211/R210-1)) -> -0.1513716355 | S221: -0.1513716355
D222: =D212 -> 2020 | G222: =IF(G211=0,"",G212/G211-1) -> 0.0007332747722 | K222: 2020 | L222: =IF(K212="Forecast","",IF(L211=0,"",L212/L211-1)) ->  | M222: =IF(M211=0,"",M212/M211-1) -> 0.0001424335418 | Q222: 2020 | R222: =IF(Q212="Forecast","",IF(R211=0,"",R212/R211-1)) ->  | S222: =IF(S211="","",IF(S211=0,"",S212/S211-1)) -> -0.0005904082989
D223: =D213 -> 2021 | G223: =IF(G212=0,"",G213/G212-1) -> 0.00504 | I223: =IF(I214=0,"",G213/I214-1) ->  | K223: 2021 | L223: =IF(K213="Forecast","",IF(L212=0,"",L213/L212-1)) ->  | M223: =IF(M212=0,"",M213/M212-1) -> 0.005178663905 | O223: =IF(O214=0,"",M213/O214-1) ->  | Q223: 2021 | R223: =IF(Q213="Forecast","",IF(R212=0,"",R213/R212-1)) ->  | S223: =IF(S212="","",IF(S212=0,"",S213/S212-1)) -> 0.0001379685433 | U223: =IF(U214=0,"",S213/U214-1) -> 
D224: Geometric Mean | G224: =IF(G206=0,"",(G213/G206)^(1/($D213-$D206-1))-1) -> 0.0219660844 | I224: =IF(I214=0,"",(G213/I214)^(1/(TestYear-RebaseYear-1))-1) ->  | K224: Geometric Mean | L224: =IF(L206=0,"",(L211/L206)^(1/($D211-$D206-1))-1) -> -0.1353630207 | M224: =IF(M206=0,"",(M213/M206)^(1/($D213-$D206-1))-1) -> -0.09160781406 | O224: =IF(O214=0,"",(M213/O214)^(1/(TestYear-RebaseYear-1))-1) ->  | Q224: Geometric Mean | R224: =IF(R206="","",IF(R206=0,"",(R211/R206)^(1/($D211-$D206-1))-1)) -> -0.1618832839 | S224: =IF(S206="","",IF(S206=0,"",(S213/S206)^(1/($D213-$D206-1))-1)) -> -0.1111327472 | U224: =IF(U214=0,"",(S213/U214)^(1/(TestYear-RebaseYear-1))-1) -> 
D227: Calendar Year | F227: Revenues | K227: =IF(ISBLANK(Q202),"",CONCATENATE("Demand (",Q202,")")) -> Demand (kW) | Q227: =CONCATENATE("Demand (",Q202,") per ",LEFT(F204,LEN(F204)-1)) -> Demand (kW) per Customer
D228: =CONCATENATE("(for ",TestYear," Cost of Service") -> (for 2021 Cost of Service | L228: Actual (Weather actual) | M228: Weather-normalized | O228: =M228 -> Weather-normalized | R228: =L228 -> Actual (Weather actual) | S228: =M228 -> Weather-normalized | U228: =O228 -> Weather-normalized
C229: Historical | D229: =D230-1 -> 2014 | F229: =F206 -> Actual | G229: 226482.52 | H229: =IF(D229=RebaseYear,"OEB-approved","") -> OEB-approved | K229: =K206 -> Actual | N229: =N206 -> OEB-approved | Q229: =K229 -> Actual | R229: =IF(G229=0,"",L229/G229) -> 0 | S229: =IF(G229=0,"",M229/G229) -> 0 | T229: =N229 -> OEB-approved | U229: =IF(T229="","",IF(I229=0,"",O229/I229)) -> 
C230: Historical | D230: 2015 | F230: Actual | G230: 229170.75
C231: Historical | D231: 2016 | F231: Actual | G231: 232469.41 | H231: =IF(D231=RebaseYear,"OEB-approved","") ->  | K231: =K208 -> Actual | N231: =N208 ->  | Q231: =K231 -> Actual | R231: =IF(G231=0,"",L231/G231) -> 0 | S231: =IF(G231=0,"",M231/G231) -> 0 | T231: =N231 ->  | U231: =IF(T231="","",IF(I231=0,"",O231/I231)) -> 
... 275 more rows

Sheet App.2-JA_OM&A_Summary_Analys
K1: File Number: | L1: =EBNUMBER -> 0 | M1: ='LDC Info'!$E$28 -> 2014 | N1: Last Rebasing Year | O1: Column
K2: Exhibit: | M2: =TestYear -> 2021 | N2: 2010 | O2: B | P2: ae
K3: Tab: | M3: ='LDC Info'!$E$28 -> 2014 | N3: 2011 | O3: D | P3: ah
A4: TO BE UPDATED AT THE DRAFT RATE ORDER STAGE | K4: Schedule: | N4: 2012 | O4: G | P4: ak
K5: Page: | N5: 2013 | O5: J | P5: an
N6: 2014 | O6: M | P6: aq
K7: Date: | N7: 2015 | O7: P | P7: at
N8: 2016 | O8: S | P8: aw
A9: Appendix 2-JA | N9: 2017 | O9: V | P9: az
A10: Summary of Recoverable OM&A Expenses
C11: =RebaseYear -> 2014 | D11: =TestYear-8 -> 2013 | E11: =TestYear-7 -> 2014 | F11: =TestYear-6 -> 2015 | G11: =TestYear-5 -> 2016 | H11: =TestYear-4 -> 2017 | I11: =TestYear-3 -> 2018 | J11: =TestYear-2 -> 2019 | K11: =BridgeYear -> 2020 | L11: =TestYear -> 2021 | P11: =C11 -> 2014 | S11: =D11 -> 2013 | T11: =E11 -> 2014 | U11: 2015 | V11: 2016 | W11: 2017 | X11: 2018 | Y11: 2019 | Z11: 2020 | AB11: =L11 -> 2021
B12: =CONCATENATE(C11," ",IF($M1=C11,"Last Rebasing Year ",""),"OEB Approved") -> 2014 Last Rebasing Year OEB Approved | C12: =CONCATENATE(C11," ",IF($M1=C11,"Last Rebasing Year ",""),"Actuals") -> 2014 Last Rebasing Year Actuals | D12: 2013 Actuals | E12: 2014 Last Rebasing Year Actuals | F12: 2015 Actuals | G12: 2016 Actuals | H12: 2017 Actuals | I12: 2018 Actuals | J12: 2019 Actuals | K12: =BridgeYear & " Bridge Year" -> 2020 Bridge Year | L12: =TestYear & " Test Year" -> 2021 Test Year | P12: =CONCATENATE(IF($M1=P11,"Last Rebasing Year ",""),,P11," OEB Approved") -> Last Rebasing Year 2014 OEB Approved | Q12: =CONCATENATE(IF($M1=P11,"Last Rebasing Year ",""),P11," Actuals") -> Last Rebasing Year 2014 Actuals | R12: =CONCATENATE("Variance ",P11," OEB Approved - ",P11," Actuals") -> Variance 2014 OEB Approved - 2014 Actuals | S12: =CONCATENATE(IF($M1=S11,"Last Rebasing Year ",""),S11," Actuals") -> 2013 Actuals | T12: Last Rebasing Year 2014 Actuals | U12: 2015 Actuals | V12: 2016 Actuals | W12: 2017 Actuals | X12: 2018 Actuals | Y12: 2019 Actuals | Z12: =CONCATENATE(Z11," Bridge Year") -> 2020 Bridge Year | AA12: =CONCATENATE("Variance ",Z11," Bridge vs. ",Z11-1," Actuals") -> Variance 2020 Bridge vs. 2019 Actuals | AB12: =CONCATENATE(AB11," Test Year") -> 2021 Test Year | AC12: =CONCATENATE("Variance ",AB11," Test vs. ",AB11-1," Bridge") -> Variance 2021 Test vs. 2020 Bridge
A13: Reporting Basis | O13: Operations | P13: =B14 -> 0 | Q13: =C14 -> 0 | R13: =P13-Q13 -> 0 | S13: =D14 -> 0 | T13: 0 | U13: 0 | V13: 0 | W13: 0 | X13: 0 | Y13: 0 | Z13: 0 | AA13: =Z13-Y13 -> 0 | AB13: =L14 -> 0 | AC13: =AB13-Z13 -> 0
A14: Operations | O14: Maintenance | P14: =B15 -> 0 | Q14: =C15 -> 0 | R14: 0 | S14: 0 | T14: 0 | U14: 0 | V14: 0 | W14: 0 | X14: 0 | Y14: 0 | Z14: 0 | AA14: 0 | AB14: =L15 -> 0 | AC14: =AB14-Z14 -> 0
A15: Maintenance | O15: Billing and Collecting | P15: =B19 -> 0 | Q15: 0 | R15: 0 | S15: =D19 -> 0 | T15: 0 | U15: 0 | V15: 0 | W15: 0 | X15: 0 | Y15: 0 | Z15: 0 | AA15: 0 | AB15: =L19 -> 0 | AC15: 0
A16: SubTotal | B16: =SUM(B14:B15) -> 0 | C16: =SUM(C14:C15) -> 0 | D16: 0 | E16: 0 | F16: 0 | G16: =SUM(G14:G15) -> 0 | H16: 0 | I16: 0 | J16: 0 | K16: 0 | L16: 0 | O16: Community Relations | P16: 0 | Q16: 0 | R16: 0 | S16: 0 | T16: 0 | U16: 0 | V16: 0 | W16: 0 | X16: 0 | Y16: 0 | Z16: 0 | AA16: 0 | AB16: =L20 -> 0 | AC16: =AB16-Z16 -> 0
A17: %Change (year over year) | C17: =IF(ISERROR((C16-B16)/B16), "", (C16-B16)/B16) ->  | D17: =IF(ISERROR((D16-HLOOKUP(D11-1,$A$11:C26,6,FALSE))/HLOOKUP(D11-1,$A$11:C26,6,FALSE)), "", (D16-HLOOKUP(D11-1,$A$11:C26,6,FALSE))/HLOOKUP(D11-1,$A$11:C26,6,FALSE)) ->  | E17: =IF(ISERROR((E16-HLOOKUP(E11-1,$A$11:D26,6,FALSE))/HLOOKUP(E11-1,$A$11:D26,6,FALSE)), "", (E16-HLOOKUP(E11-1,$A$11:D26,6,FALSE))/HLOOKUP(E11-1,$A$11:D26,6,FALSE)) ->  | F17: =IF(ISERROR((F16-HLOOKUP(F11-1,$A$11:E26,6,FALSE))/HLOOKUP(F11-1,$A$11:E26,6,FALSE)), "", (F16-HLOOKUP(F11-1,$A$11:E26,6,FALSE))/HLOOKUP(F11-1,$A$11:E26,6,FALSE)) ->  | G17: =IF(ISERROR((G16-HLOOKUP(G11-1,$A$11:F26,6,FALSE))/HLOOKUP(G11-1,$A$11:F26,6,FALSE)), "", (G16-HLOOKUP(G11-1,$A$11:F26,6,FALSE))/HLOOKUP(G11-1,$A$11:F26,6,FALSE)) ->  | H17: =IF(ISERROR((H16-HLOOKUP(H11-1,$A$11:G26,6,FALSE))/HLOOKUP(H11-1,$A$11:G26,6,FALSE)), "", (H16-HLOOKUP(H11-1,$A$11:G26,6,FALSE))/HLOOKUP(H11-1,$A$11:G26,6,FALSE)) ->  | I17: =IF(ISERROR((I16-HLOOKUP(I11-1,$A$11:H26,6,FALSE))/HLOOKUP(I11-1,$A$11:H26,6,FALSE)), "", (I16-HLOOKUP(I11-1,$A$11:H26,6,FALSE))/HLOOKUP(I11-1,$A$11:H26,6,FALSE)) ->  | J17: =IF(ISERROR((J16-HLOOKUP(J11-1,$A$11:I26,6,FALSE))/HLOOKUP(J11-1,$A$11:I26,6,FALSE)), "", (J16-HLOOKUP(J11-1,$A$11:I26,6,FALSE))/HLOOKUP(J11-1,$A$11:I26,6,FALSE)) ->  | K17: =IF(ISERROR((K16-HLOOKUP(K11-1,$A$11:J26,6,FALSE))/HLOOKUP(K11-1,$A$11:J26,6,FALSE)), "", (K16-HLOOKUP(K11-1,$A$11:J26,6,FALSE))/HLOOKUP(K11-1,$A$11:J26,6,FALSE)) ->  | L17: =IF(ISERROR((L16-K16)/K16), "", (L16-K16)/K16) ->  | O17: Administrative and General | P17: 0 | Q17: 0 | R17: 0 | S17: 0 | T17: 0 | U17: 0 | V17: 0 | W17: 0 | X17: 0 | Y17: 0 | Z17: 0 | AA17: 0 | AB17: =L21 -> 0 | AC17: 0
A18: %Change (Test Year vs Last Rebasing Year - Actual) | L18: =IF(ISERROR((L16-C16)/C16), "", (L16-C16)/C16) ->  | O18: Total OM&A Expenses | P18: =B25 -> 0 | Q18: =C25 -> 0 | R18: =P18-Q18 -> 0 | S18: 0 | T18: 0 | U18: 0 | V18: 0 | W18: =H25 -> 0 | X18: =I25 -> 0 | Y18: =J25 -> 0 | Z18: =K25 -> 0 | AA18: 0 | AB18: =L25 -> 0 | AC18: 0
A19: Billing and Collecting | O19: Adjustments for Total non-recoverable items3
A20: Community Relations | O20: Total Recoverable OM&A Expenses | P20: =P18-P19 -> 0 | Q20: 0 | R20: 0 | S20: =IF(S11<=RebaseYear, 0, S18-S19) -> 0 | T20: 0 | U20: 0 | V20: 0 | W20: 0 | X20: 0 | Y20: 0 | Z20: 0 | AA20: =AA18-AA19 -> 0 | AB20: 0 | AC20: 0
A21: Administrative and General | O21: Variance from previous year | S21: =IF(S11<=RebaseYear, 0, S20-Q20) -> 0 | T21: =IF(T11<=RebaseYear, 0, IF(T11=RebaseYear+1, T20-$Q$20, T20-S20)) -> 0 | U21: 0 | V21: 0 | W21: 0 | X21: 0 | Y21: 0 | Z21: 0 | AB21: =AB20-Z20 -> 0
A22: SubTotal | B22: =SUM(B19:B21) -> 0 | C22: =SUM(C19:C21) -> 0 | D22: 0 | E22: 0 | F22: 0 | G22: 0 | H22: 0 | I22: 0 | J22: =SUM(J19:J21) -> 0 | K22: =SUM(K19:K21) -> 0 | L22: =SUM(L19:L21) -> 0 | O22: Percent change (year over year) | S22: =IF(S11<=RebaseYear, 0, IF(ISERROR(S21/Q20), "", S21/Q20)) -> 0 | T22: =IF(S11<=RebaseYear, 0, IF(T11=RebaseYear+1, IF(ISERROR(T21/$Q$20), "", T21/$Q$20),IF(ISERROR(T21/S20), "", T21/S20))) -> 0 | U22: 0 | AB22: =IF(ISERROR(AB21/Z20), "", AB21/Z20) -> 
A23: %Change (year over year) | C23: =IF(ISERROR((C22-B22)/B22), "", (C22-B22)/B22) ->  | D23: =IF(ISERROR((D22-HLOOKUP(D11-1,$A$11:C26,12,FALSE))/HLOOKUP(D11-1,$A$11:C26,12,FALSE)), "", (D22-HLOOKUP(D11-1,$A$11:C26,12,FALSE))/HLOOKUP(D11-1,$A$11:C26,12,FALSE)) ->  | E23: =IF(ISERROR((E22-HLOOKUP(E11-1,$A$11:D26,12,FALSE))/HLOOKUP(E11-1,$A$11:D26,12,FALSE)), "", (E22-HLOOKUP(E11-1,$A$11:D26,12,FALSE))/HLOOKUP(E11-1,$A$11:D26,12,FALSE)) ->  | F23: =IF(ISERROR((F22-HLOOKUP(F11-1,$A$11:E26,12,FALSE))/HLOOKUP(F11-1,$A$11:E26,12,FALSE)), "", (F22-HLOOKUP(F11-1,$A$11:E26,12,FALSE))/HLOOKUP(F11-1,$A$11:E26,12,FALSE)) ->  | G23: =IF(ISERROR((G22-HLOOKUP(G11-1,$A$11:F26,12,FALSE))/HLOOKUP(G11-1,$A$11:F26,12,FALSE)), "", (G22-HLOOKUP(G11-1,$A$11:F26,12,FALSE))/HLOOKUP(G11-1,$A$11:F26,12,FALSE)) ->  | H23: =IF(ISERROR((H22-HLOOKUP(H11-1,$A$11:G26,12,FALSE))/HLOOKUP(H11-1,$A$11:G26,12,FALSE)), "", (H22-HLOOKUP(H11-1,$A$11:G26,12,FALSE))/HLOOKUP(H11-1,$A$11:G26,12,FALSE)) ->  | I23: =IF(ISERROR((I22-HLOOKUP(I11-1,$A$11:H26,12,FALSE))/HLOOKUP(I11-1,$A$11:H26,12,FALSE)), "", (I22-HLOOKUP(I11-1,$A$11:H26,12,FALSE))/HLOOKUP(I11-1,$A$11:H26,12,FALSE)) ->  | J23: =IF(ISERROR((J22-HLOOKUP(J11-1,$A$11:I26,12,FALSE))/HLOOKUP(J11-1,$A$11:I26,12,FALSE)), "", (J22-HLOOKUP(J11-1,$A$11:I26,12,FALSE))/HLOOKUP(J11-1,$A$11:I26,12,FALSE)) ->  | K23: =IF(ISERROR((K22-HLOOKUP(K11-1,$A$11:J26,12,FALSE))/HLOOKUP(K11-1,$A$11:J26,12,FALSE)), "", (K22-HLOOKUP(K11-1,$A$11:J26,12,FALSE))/HLOOKUP(K11-1,$A$11:J26,12,FALSE)) ->  | L23: =IF(ISERROR((L22-K22)/K22), "", (L22-K22)/K22) ->  | O23: Percent Change: Test year vs. Most Current Actual | AB23: =IF(ISERROR((AB20-Y20)/Y20), "", (AB20-Y20)/Y20) -> 
A24: %Change (Test Year vs Last Rebasing Year - Actual) | L24: =IF(ISERROR((L22-C22)/C22), "", (L22-C22)/C22) ->  | O24: Simple average of % variance for all years | AB24: =IF(ISERROR(AVERAGEIF(S22:AB22,"<>0")),0,AVERAGEIF(S22:AB22,"<>0")) -> 0
A25: Total | B25: =SUM(B22,B16) -> 0 | C25: =SUM(C22,C16) -> 0 | D25: 0 | E25: 0 | F25: 0 | G25: =SUM(G22,G16) -> 0 | H25: =SUM(H22,H16) -> 0 | I25: 0 | J25: =SUM(J22,J16) -> 0 | K25: =SUM(K22,K16) -> 0 | L25: =SUM(L22,L16) -> 0 | O25: Compound Annual Growth Rate for all years | AC25: =IF((AB20-Q20)=0, "", (AB20/Q20)^(1/(TestYear-RebaseYear))-1) -> 
A26: %Change (year over year) | C26: =IF(ISERROR((C25-B25)/B25), "", (C25-B25)/B25) ->  | D26: =IF(ISERROR((D25-HLOOKUP(D11-1,$A$11:C26,15,FALSE))/HLOOKUP(D11-1,$A$11:C26,15,FALSE)), "", (D25-HLOOKUP(D11-1,$A$11:C26,15,FALSE))/HLOOKUP(D11-1,$A$11:C26,15,FALSE)) ->  | E26: =IF(ISERROR((E25-HLOOKUP(E11-1,$A$11:D26,15,FALSE))/HLOOKUP(E11-1,$A$11:D26,15,FALSE)), "", (E25-HLOOKUP(E11-1,$A$11:D26,15,FALSE))/HLOOKUP(E11-1,$A$11:D26,15,FALSE)) ->  | F26: =IF(ISERROR((F25-HLOOKUP(F11-1,$A$11:E26,15,FALSE))/HLOOKUP(F11-1,$A$11:E26,15,FALSE)), "", (F25-HLOOKUP(F11-1,$A$11:E26,15,FALSE))/HLOOKUP(F11-1,$A$11:E26,15,FALSE)) ->  | G26: =IF(ISERROR((G25-HLOOKUP(G11-1,$A$11:F26,15,FALSE))/HLOOKUP(G11-1,$A$11:F26,15,FALSE)), "", (G25-HLOOKUP(G11-1,$A$11:F26,15,FALSE))/HLOOKUP(G11-1,$A$11:F26,15,FALSE)) ->  | H26: =IF(ISERROR((H25-HLOOKUP(H11-1,$A$11:G26,15,FALSE))/HLOOKUP(H11-1,$A$11:G26,15,FALSE)), "", (H25-HLOOKUP(H11-1,$A$11:G26,15,FALSE))/HLOOKUP(H11-1,$A$11:G26,15,FALSE)) ->  | I26: =IF(ISERROR((I25-HLOOKUP(I11-1,$A$11:H26,15,FALSE))/HLOOKUP(I11-1,$A$11:H26,15,FALSE)), "", (I25-HLOOKUP(I11-1,$A$11:H26,15,FALSE))/HLOOKUP(I11-1,$A$11:H26,15,FALSE)) ->  | J26: =IF(ISERROR((J25-HLOOKUP(J11-1,$A$11:I26,15,FALSE))/HLOOKUP(J11-1,$A$11:I26,15,FALSE)), "", (J25-HLOOKUP(J11-1,$A$11:I26,15,FALSE))/HLOOKUP(J11-1,$A$11:I26,15,FALSE)) ->  | K26: =IF(ISERROR((K25-HLOOKUP(K11-1,$A$11:J26,15,FALSE))/HLOOKUP(K11-1,$A$11:J26,15,FALSE)), "", (K25-HLOOKUP(K11-1,$A$11:J26,15,FALSE))/HLOOKUP(K11-1,$A$11:J26,15,FALSE)) ->  | L26: =IF(ISERROR((L25-K25)/K25), "", (L25-K25)/K25) ->  | O26: ="Compound Growth Rate (" & TestYear - 2 & " vs. " & 'LDC Info'!E28 & " Actuals)" -> Compound Growth Rate (2019 vs. 2014 Actuals) | AB26: =IF((Y20-Q20)=0, "", (Y20/Q20)^(1/(TestYear-2-RebaseYear))-1) -> 
B29: =B12 -> 2014 Last Rebasing Year OEB Approved | C29: 2014 Last Rebasing Year Actuals | D29: 2013 Actuals | E29: 2014 Last Rebasing Year Actuals | F29: 2015 Actuals | G29: 2016 Actuals | H29: 2017 Actuals | I29: 2018 Actuals | J29: 2019 Actuals | K29: 2020 Bridge Year | L29: 2021 Test Year
A30: Operations | B30: =B14 -> 0 | C30: 0 | D30: 0 | E30: 0 | F30: 0 | G30: 0 | H30: 0 | I30: 0 | J30: 0 | K30: 0 | L30: 0
A31: Maintenance | B31: =B15 -> 0 | C31: 0 | D31: 0 | E31: 0 | F31: 0 | G31: 0 | H31: 0 | I31: 0 | J31: 0 | K31: 0 | L31: 0
A32: Billing and Collecting | B32: =B19 -> 0 | C32: 0 | D32: 0 | E32: 0 | F32: 0 | G32: 0 | H32: 0 | I32: 0 | J32: 0 | K32: 0 | L32: 0
A33: Community Relations | B33: =B20 -> 0 | C33: 0 | D33: 0 | E33: 0 | F33: 0 | G33: 0 | H33: 0 | I33: 0 | J33: 0 | K33: 0 | L33: 0
A34: Administrative and General | B34: =B21 -> 0 | C34: 0 | D34: 0 | E34: 0 | F34: 0 | G34: 0 | H34: 0 | I34: 0 | J34: 0 | K34: 0 | L34: 0
A35: Total | B35: =SUM(B30:B34) -> 0 | C35: =SUM(C30:C34) -> 0 | D35: =SUM(D30:D34) -> 0 | E35: =SUM(E30:E34) -> 0 | F35: 0 | G35: 0 | H35: 0 | I35: 0 | J35: 0 | K35: 0 | L35: 0
A36: %Change (year over year) | C36: =IF(ISERROR((C35-B35)/B35), "", (C35-B35)/B35) ->  | D36: =IF(R11<=RebaseYear,"",IF(R11=RebaseYear+1,IF(ISERROR((D35-$C$35)/$C$35),"",(D35-$C$35)/$C$35),IF(ISERROR((D35-C35)/C35),"",(D35-C35)/C35))) ->  | E36: =IF(S11<=RebaseYear,"",IF(S11=RebaseYear+1,IF(ISERROR((E35-$C$35)/$C$35),"",(E35-$C$35)/$C$35),IF(ISERROR((E35-D35)/D35),"",(E35-D35)/D35))) ->  | F36: =IF(T11<=RebaseYear,"",IF(T11=RebaseYear+1,IF(ISERROR((F35-$C$35)/$C$35),"",(F35-$C$35)/$C$35),IF(ISERROR((F35-E35)/E35),"",(F35-E35)/E35))) ->  | G36: =IF(U11<=RebaseYear,"",IF(U11=RebaseYear+1,IF(ISERROR((G35-$C$35)/$C$35),"",(G35-$C$35)/$C$35),IF(ISERROR((G35-F35)/F35),"",(G35-F35)/F35))) ->  | H36: =IF(W11<=RebaseYear,"",IF(W11=RebaseYear+1,IF(ISERROR((H35-$C$35)/$C$35),"",(H35-$C$35)/$C$35),IF(ISERROR((H35-G35)/G35),"",(H35-G35)/G35))) ->  | I36: =IF(X11<=RebaseYear,"",IF(X11=RebaseYear+1,IF(ISERROR((I35-$C$35)/$C$35),"",(I35-$C$35)/$C$35),IF(ISERROR((I35-H35)/H35),"",(I35-H35)/H35))) ->  | J36: =IF(Y11<=RebaseYear,"",IF(Y11=RebaseYear+1,IF(ISERROR((J35-$C$35)/$C$35),"",(J35-$C$35)/$C$35),IF(ISERROR((J35-I35)/I35),"",(J35-I35)/I35))) ->  | K36: =IF(Z11<=RebaseYear,"",IF(Z11=RebaseYear+1,IF(ISERROR((K35-$C$35)/$C$35),"",(K35-$C$35)/$C$35),IF(ISERROR((K35-J35)/J35),"",(K35-J35)/J35))) ->  | L36: =IF(Z11<=RebaseYear,0,IF(Z11=RebaseYear+1,IF(ISERROR((L35-$C$35)/$C$35),"",(L35-$C$35)/$C$35),IF(ISERROR((L35-K35)/K35),"",(L35-K35)/K35))) -> 
A38: Note:
A40: 1 Historical actuals going back to the last cost of service application are required to be entered by the applicant.
A41: 2 Recoverable OM&A that is included on these tables should be identical to the recoverable OM&A that is shown for the corresponding periods on Appendix 2-JB.
A42: 3 For unrecoverable OM&A Expenses see Section 2.4.3.7

Sheet Hidden_OM&A Summary (hidden)
A1: Utility Name | B1: EB Number | C1: Test Year | D1: Bridge Year | E1: Last Rebasing Year | F1: Heading | G1: Year | H1: Amount
A2: ='LDC Info'!$E$14 -> 0 | B2: =EBNUMBER -> 0 | C2: =TestYear -> 2021 | D2: =BridgeYear -> 2020 | E2: =RebaseYear -> 2014 | F2: Operations | G2: ='App.2-JA_OM&A_Summary_Analys'!$B$12 -> 2014 Last Rebasing Year OEB Approved | H2: ='App.2-JA_OM&A_Summary_Analys'!B$14 -> 0
A3: ='LDC Info'!$E$14 -> 0 | B3: 0 | C3: 2021 | D3: 2020 | E3: 2014 | F3: Maintenance | G3: ='App.2-JA_OM&A_Summary_Analys'!$B$12 -> 2014 Last Rebasing Year OEB Approved | H3: ='App.2-JA_OM&A_Summary_Analys'!B$15 -> 0
A4: ='LDC Info'!$E$14 -> 0 | B4: 0 | C4: 2021 | D4: 2020 | E4: 2014 | F4: Billing and Collecting | G4: ='App.2-JA_OM&A_Summary_Analys'!$B$12 -> 2014 Last Rebasing Year OEB Approved | H4: ='App.2-JA_OM&A_Summary_Analys'!B$19 -> 0
A5: ='LDC Info'!$E$14 -> 0 | B5: 0 | C5: 2021 | D5: 2020 | E5: 2014 | F5: Community Relations | G5: ='App.2-JA_OM&A_Summary_Analys'!$B$12 -> 2014 Last Rebasing Year OEB Approved | H5: ='App.2-JA_OM&A_Summary_Analys'!B$20 -> 0
A6: ='LDC Info'!$E$14 -> 0 | B6: 0 | C6: 2021 | D6: 2020 | E6: 2014 | F6: Administrative and General | G6: ='App.2-JA_OM&A_Summary_Analys'!$B$12 -> 2014 Last Rebasing Year OEB Approved | H6: ='App.2-JA_OM&A_Summary_Analys'!B$21 -> 0
A7: ='LDC Info'!$E$14 -> 0 | B7: 0 | C7: 2021 | D7: 2020 | E7: 2014 | F7: Operations | G7: ='App.2-JA_OM&A_Summary_Analys'!$C$12 -> 2014 Last Rebasing Year Actuals | H7: ='App.2-JA_OM&A_Summary_Analys'!C$14 -> 0
A8: ='LDC Info'!$E$14 -> 0 | B8: 0 | C8: 2021 | D8: 2020 | E8: 2014 | F8: Maintenance | G8: ='App.2-JA_OM&A_Summary_Analys'!$C$12 -> 2014 Last Rebasing Year Actuals | H8: ='App.2-JA_OM&A_Summary_Analys'!C$15 -> 0
A9: ='LDC Info'!$E$14 -> 0 | B9: 0 | C9: 2021 | D9: 2020 | E9: 2014 | F9: Billing and Collecting | G9: ='App.2-JA_OM&A_Summary_Analys'!$C$12 -> 2014 Last Rebasing Year Actuals | H9: ='App.2-JA_OM&A_Summary_Analys'!C$19 -> 0
A10: ='LDC Info'!$E$14 -> 0 | B10: 0 | C10: 2021 | D10: 2020 | E10: 2014 | F10: Community Relations | G10: ='App.2-JA_OM&A_Summary_Analys'!$C$12 -> 2014 Last Rebasing Year Actuals | H10: ='App.2-JA_OM&A_Summary_Analys'!C$20 -> 0
A11: ='LDC Info'!$E$14 -> 0 | B11: 0 | C11: 2021 | D11: 2020 | E11: 2014 | F11: Administrative and General | G11: ='App.2-JA_OM&A_Summary_Analys'!$C$12 -> 2014 Last Rebasing Year Actuals | H11: ='App.2-JA_OM&A_Summary_Analys'!C$21 -> 0
A12: ='LDC Info'!$E$14 -> 0 | B12: 0 | C12: 2021 | D12: 2020 | E12: 2014 | F12: Operations | G12: ='App.2-JA_OM&A_Summary_Analys'!$D$12 -> 2013 Actuals | H12: ='App.2-JA_OM&A_Summary_Analys'!D$14 -> 0
A13: ='LDC Info'!$E$14 -> 0 | B13: 0 | C13: 2021 | D13: 2020 | E13: 2014 | F13: Maintenance | G13: ='App.2-JA_OM&A_Summary_Analys'!$D$12 -> 2013 Actuals | H13: ='App.2-JA_OM&A_Summary_Analys'!D$15 -> 0
A14: ='LDC Info'!$E$14 -> 0 | B14: 0 | C14: 2021 | D14: 2020 | E14: 2014 | F14: Billing and Collecting | G14: ='App.2-JA_OM&A_Summary_Analys'!$D$12 -> 2013 Actuals | H14: ='App.2-JA_OM&A_Summary_Analys'!D$19 -> 0
A15: ='LDC Info'!$E$14 -> 0 | B15: 0 | C15: 2021 | D15: 2020 | E15: 2014 | F15: Community Relations | G15: ='App.2-JA_OM&A_Summary_Analys'!$D$12 -> 2013 Actuals | H15: ='App.2-JA_OM&A_Summary_Analys'!D$20 -> 0
A16: ='LDC Info'!$E$14 -> 0 | B16: 0 | C16: 2021 | D16: 2020 | E16: 2014 | F16: Administrative and General | G16: ='App.2-JA_OM&A_Summary_Analys'!$D$12 -> 2013 Actuals | H16: ='App.2-JA_OM&A_Summary_Analys'!D$21 -> 0
A17: ='LDC Info'!$E$14 -> 0 | B17: 0 | C17: 2021 | D17: 2020 | E17: 2014 | F17: Operations | G17: ='App.2-JA_OM&A_Summary_Analys'!$E$12 -> 2014 Last Rebasing Year Actuals | H17: ='App.2-JA_OM&A_Summary_Analys'!E$14 -> 0
A18: ='LDC Info'!$E$14 -> 0 | B18: 0 | C18: 2021 | D18: 2020 | E18: 2014 | F18: Maintenance | G18: ='App.2-JA_OM&A_Summary_Analys'!$E$12 -> 2014 Last Rebasing Year Actuals | H18: ='App.2-JA_OM&A_Summary_Analys'!E$15 -> 0
A19: ='LDC Info'!$E$14 -> 0 | B19: =EBNUMBER -> 0 | C19: =TestYear -> 2021 | D19: =BridgeYear -> 2020 | E19: =RebaseYear -> 2014 | F19: Billing and Collecting | G19: ='App.2-JA_OM&A_Summary_Analys'!$E$12 -> 2014 Last Rebasing Year Actuals | H19: ='App.2-JA_OM&A_Summary_Analys'!E$19 -> 0
A20: ='LDC Info'!$E$14 -> 0 | B20: 0 | C20: 2021 | D20: 2020 | E20: 2014 | F20: Community Relations | G20: ='App.2-JA_OM&A_Summary_Analys'!$E$12 -> 2014 Last Rebasing Year Actuals | H20: ='App.2-JA_OM&A_Summary_Analys'!E$20 -> 0
A21: ='LDC Info'!$E$14 -> 0 | B21: 0 | C21: 2021 | D21: 2020 | E21: 2014 | F21: Administrative and General | G21: ='App.2-JA_OM&A_Summary_Analys'!$E$12 -> 2014 Last Rebasing Year Actuals | H21: ='App.2-JA_OM&A_Summary_Analys'!E$21 -> 0
A22: ='LDC Info'!$E$14 -> 0 | B22: 0 | C22: 2021 | D22: 2020 | E22: 2014 | F22: Operations | G22: ='App.2-JA_OM&A_Summary_Analys'!$F$12 -> 2015 Actuals | H22: ='App.2-JA_OM&A_Summary_Analys'!F$14 -> 0
A23: ='LDC Info'!$E$14 -> 0 | B23: 0 | C23: 2021 | D23: 2020 | E23: 2014 | F23: Maintenance | G23: ='App.2-JA_OM&A_Summary_Analys'!$F$12 -> 2015 Actuals | H23: ='App.2-JA_OM&A_Summary_Analys'!F$15 -> 0
A24: ='LDC Info'!$E$14 -> 0 | B24: 0 | C24: 2021 | D24: 2020 | E24: 2014 | F24: Billing and Collecting | G24: ='App.2-JA_OM&A_Summary_Analys'!$F$12 -> 2015 Actuals | H24: ='App.2-JA_OM&A_Summary_Analys'!F$19 -> 0
A25: ='LDC Info'!$E$14 -> 0 | B25: 0 | C25: 2021 | D25: 2020 | E25: 2014 | F25: Community Relations | G25: ='App.2-JA_OM&A_Summary_Analys'!$F$12 -> 2015 Actuals | H25: ='App.2-JA_OM&A_Summary_Analys'!F$20 -> 0
A26: ='LDC Info'!$E$14 -> 0 | B26: 0 | C26: 2021 | D26: 2020 | E26: 2014 | F26: Administrative and General | G26: ='App.2-JA_OM&A_Summary_Analys'!$F$12 -> 2015 Actuals | H26: ='App.2-JA_OM&A_Summary_Analys'!F$21 -> 0
A27: ='LDC Info'!$E$14 -> 0 | B27: 0 | C27: 2021 | D27: 2020 | E27: 2014 | F27: Operations | G27: ='App.2-JA_OM&A_Summary_Analys'!$G$12 -> 2016 Actuals | H27: ='App.2-JA_OM&A_Summary_Analys'!G$14 -> 0
A28: ='LDC Info'!$E$14 -> 0 | B28: 0 | C28: 2021 | D28: 2020 | E28: 2014 | F28: Maintenance | G28: ='App.2-JA_OM&A_Summary_Analys'!$G$12 -> 2016 Actuals | H28: ='App.2-JA_OM&A_Summary_Analys'!G$15 -> 0
A29: ='LDC Info'!$E$14 -> 0 | B29: 0 | C29: 2021 | D29: 2020 | E29: 2014 | F29: Billing and Collecting | G29: ='App.2-JA_OM&A_Summary_Analys'!$G$12 -> 2016 Actuals | H29: ='App.2-JA_OM&A_Summary_Analys'!G$19 -> 0
A30: ='LDC Info'!$E$14 -> 0 | B30: 0 | C30: 2021 | D30: 2020 | E30: 2014 | F30: Community Relations | G30: ='App.2-JA_OM&A_Summary_Analys'!$G$12 -> 2016 Actuals | H30: ='App.2-JA_OM&A_Summary_Analys'!G$20 -> 0
A31: ='LDC Info'!$E$14 -> 0 | B31: =EBNUMBER -> 0 | C31: =TestYear -> 2021 | D31: =BridgeYear -> 2020 | E31: =RebaseYear -> 2014 | F31: Administrative and General | G31: ='App.2-JA_OM&A_Summary_Analys'!$G$12 -> 2016 Actuals | H31: ='App.2-JA_OM&A_Summary_Analys'!G$21 -> 0
A32: ='LDC Info'!$E$14 -> 0 | B32: 0 | C32: 2021 | D32: 2020 | E32: 2014 | F32: Operations | G32: ='App.2-JA_OM&A_Summary_Analys'!$H$12 -> 2017 Actuals | H32: ='App.2-JA_OM&A_Summary_Analys'!H$14 -> 0
A33: ='LDC Info'!$E$14 -> 0 | B33: 0 | C33: 2021 | D33: 2020 | E33: 2014 | F33: Maintenance | G33: ='App.2-JA_OM&A_Summary_Analys'!$H$12 -> 2017 Actuals | H33: ='App.2-JA_OM&A_Summary_Analys'!H$15 -> 0
A34: ='LDC Info'!$E$14 -> 0 | B34: 0 | C34: 2021 | D34: 2020 | E34: 2014 | F34: Billing and Collecting | G34: ='App.2-JA_OM&A_Summary_Analys'!$H$12 -> 2017 Actuals | H34: ='App.2-JA_OM&A_Summary_Analys'!H$19 -> 0
A35: ='LDC Info'!$E$14 -> 0 | B35: 0 | C35: 2021 | D35: 2020 | E35: 2014 | F35: Community Relations | G35: ='App.2-JA_OM&A_Summary_Analys'!$H$12 -> 2017 Actuals | H35: ='App.2-JA_OM&A_Summary_Analys'!H$20 -> 0
A36: ='LDC Info'!$E$14 -> 0 | B36: 0 | C36: 2021 | D36: 2020 | E36: 2014 | F36: Administrative and General | G36: ='App.2-JA_OM&A_Summary_Analys'!$H$12 -> 2017 Actuals | H36: ='App.2-JA_OM&A_Summary_Analys'!H$21 -> 0
A37: ='LDC Info'!$E$14 -> 0 | B37: 0 | C37: 2021 | D37: 2020 | E37: 2014 | F37: Operations | G37: ='App.2-JA_OM&A_Summary_Analys'!$I$12 -> 2018 Actuals | H37: ='App.2-JA_OM&A_Summary_Analys'!I$14 -> 0
A38: ='LDC Info'!$E$14 -> 0 | B38: 0 | C38: 2021 | D38: 2020 | E38: 2014 | F38: Maintenance | G38: ='App.2-JA_OM&A_Summary_Analys'!$I$12 -> 2018 Actuals | H38: ='App.2-JA_OM&A_Summary_Analys'!I$15 -> 0
A39: ='LDC Info'!$E$14 -> 0 | B39: 0 | C39: 2021 | D39: 2020 | E39: 2014 | F39: Billing and Collecting | G39: ='App.2-JA_OM&A_Summary_Analys'!$I$12 -> 2018 Actuals | H39: ='App.2-JA_OM&A_Summary_Analys'!I$19 -> 0
A40: ='LDC Info'!$E$14 -> 0 | B40: 0 | C40: 2021 | D40: 2020 | E40: 2014 | F40: Community Relations | G40: ='App.2-JA_OM&A_Summary_Analys'!$I$12 -> 2018 Actuals | H40: ='App.2-JA_OM&A_Summary_Analys'!I$20 -> 0
A41: ='LDC Info'!$E$14 -> 0 | B41: 0 | C41: 2021 | D41: 2020 | E41: 2014 | F41: Administrative and General | G41: ='App.2-JA_OM&A_Summary_Analys'!$I$12 -> 2018 Actuals | H41: ='App.2-JA_OM&A_Summary_Analys'!I$21 -> 0
A42: ='LDC Info'!$E$14 -> 0 | B42: =EBNUMBER -> 0 | C42: =TestYear -> 2021 | D42: =BridgeYear -> 2020 | E42: =RebaseYear -> 2014 | F42: Operations | G42: ='App.2-JA_OM&A_Summary_Analys'!$J$12 -> 2019 Actuals | H42: ='App.2-JA_OM&A_Summary_Analys'!J$14 -> 0
A43: ='LDC Info'!$E$14 -> 0 | B43: 0 | C43: 2021 | D43: 2020 | E43: 2014 | F43: Maintenance | G43: ='App.2-JA_OM&A_Summary_Analys'!$J$12 -> 2019 Actuals | H43: ='App.2-JA_OM&A_Summary_Analys'!J$15 -> 0
A44: ='LDC Info'!$E$14 -> 0 | B44: 0 | C44: 2021 | D44: 2020 | E44: 2014 | F44: Billing and Collecting | G44: ='App.2-JA_OM&A_Summary_Analys'!$J$12 -> 2019 Actuals | H44: ='App.2-JA_OM&A_Summary_Analys'!J$19 -> 0
A45: ='LDC Info'!$E$14 -> 0 | B45: 0 | C45: 2021 | D45: 2020 | E45: 2014 | F45: Community Relations | G45: ='App.2-JA_OM&A_Summary_Analys'!$J$12 -> 2019 Actuals | H45: ='App.2-JA_OM&A_Summary_Analys'!J$20 -> 0
A46: ='LDC Info'!$E$14 -> 0 | B46: 0 | C46: 2021 | D46: 2020 | E46: 2014 | F46: Administrative and General | G46: ='App.2-JA_OM&A_Summary_Analys'!$J$12 -> 2019 Actuals | H46: ='App.2-JA_OM&A_Summary_Analys'!J$21 -> 0
A47: ='LDC Info'!$E$14 -> 0 | B47: 0 | C47: 2021 | D47: 2020 | E47: 2014 | F47: Operations | G47: ='App.2-JA_OM&A_Summary_Analys'!$K$12 -> 2020 Bridge Year | H47: ='App.2-JA_OM&A_Summary_Analys'!K$14 -> 0
A48: ='LDC Info'!$E$14 -> 0 | B48: 0 | C48: 2021 | D48: 2020 | E48: 2014 | F48: Maintenance | G48: ='App.2-JA_OM&A_Summary_Analys'!$K$12 -> 2020 Bridge Year | H48: ='App.2-JA_OM&A_Summary_Analys'!K$15 -> 0
A49: ='LDC Info'!$E$14 -> 0 | B49: 0 | C49: 2021 | D49: 2020 | E49: 2014 | F49: Billing and Collecting | G49: ='App.2-JA_OM&A_Summary_Analys'!$K$12 -> 2020 Bridge Year | H49: ='App.2-JA_OM&A_Summary_Analys'!K$19 -> 0
A50: ='LDC Info'!$E$14 -> 0 | B50: 0 | C50: 2021 | D50: 2020 | E50: 2014 | F50: Community Relations | G50: ='App.2-JA_OM&A_Summary_Analys'!$K$12 -> 2020 Bridge Year | H50: ='App.2-JA_OM&A_Summary_Analys'!K$20 -> 0
A51: ='LDC Info'!$E$14 -> 0 | B51: 0 | C51: 2021 | D51: 2020 | E51: 2014 | F51: Administrative and General | G51: ='App.2-JA_OM&A_Summary_Analys'!$K$12 -> 2020 Bridge Year | H51: ='App.2-JA_OM&A_Summary_Analys'!K$21 -> 0
A52: ='LDC Info'!$E$14 -> 0 | B52: 0 | C52: 2021 | D52: 2020 | E52: 2014 | F52: Operations | G52: ='App.2-JA_OM&A_Summary_Analys'!$L$12 -> 2021 Test Year | H52: ='App.2-JA_OM&A_Summary_Analys'!L14 -> 0
A53: ='LDC Info'!$E$14 -> 0 | B53: 0 | C53: 2021 | D53: 2020 | E53: 2014 | F53: Maintenance | G53: ='App.2-JA_OM&A_Summary_Analys'!$L$12 -> 2021 Test Year | H53: ='App.2-JA_OM&A_Summary_Analys'!L15 -> 0
A54: ='LDC Info'!$E$14 -> 0 | B54: 0 | C54: 2021 | D54: 2020 | E54: 2014 | F54: Billing and Collecting | G54: ='App.2-JA_OM&A_Summary_Analys'!$L$12 -> 2021 Test Year | H54: ='App.2-JA_OM&A_Summary_Analys'!L19 -> 0
A55: ='LDC Info'!$E$14 -> 0 | B55: 0 | C55: 2021 | D55: 2020 | E55: 2014 | F55: Community Relations | G55: ='App.2-JA_OM&A_Summary_Analys'!$L$12 -> 2021 Test Year | H55: ='App.2-JA_OM&A_Summary_Analys'!L20 -> 0
A56: ='LDC Info'!$E$14 -> 0 | B56: 0 | C56: 2021 | D56: 2020 | E56: 2014 | F56: Administrative and General | G56: ='App.2-JA_OM&A_Summary_Analys'!$L$12 -> 2021 Test Year | H56: ='App.2-JA_OM&A_Summary_Analys'!L21 -> 0

Sheet App.2-JB_OM&A_Cost _Drivers
J1: File Number: | K1: =EBNUMBER -> 0
J2: Exhibit:
J3: Tab:
J4: Schedule:
J5: Page:
J7: Date:
A10: Appendix 2-JB
A11: ="Recoverable OM&A Cost Driver Table" & CHAR(185)&CHAR(183)&CHAR(179) -> Recoverable OM&A Cost Driver Table¹·³
A13: OM&A | B13: ="Last Rebasing Year ("&RebaseYear&" Actuals)" -> Last Rebasing Year (2014 Actuals) | C13: =BridgeYear -7 & " Actuals" -> 2013 Actuals | D13: =BridgeYear -6 & " Actuals" -> 2014 Actuals | E13: =BridgeYear -5 & " Actuals" -> 2015 Actuals | F13: =BridgeYear -4 & " Actuals" -> 2016 Actuals | G13: =BridgeYear -3 & " Actuals" -> 2017 Actuals | H13: =BridgeYear -2 & " Actuals" -> 2018 Actuals | I13: =BridgeYear -1 & " Actuals" -> 2019 Actuals | J13: =BridgeYear & " Bridge Year" -> 2020 Bridge Year | K13: =TestYear & " Test Year" -> 2021 Test Year
A14: Reporting Basis
A15: Opening Balance² | C15: =IF(BridgeYear-7<=RebaseYear,0,B42) -> 0 | D15: =IF(BridgeYear-6<=RebaseYear,0,IF((BridgeYear-6)=(RebaseYear+1),$B$42,C42)) -> 0 | E15: =IF(BridgeYear-5<=RebaseYear,0,IF((BridgeYear-5)=(RebaseYear+1),$B$42,D42)) -> 0 | F15: =IF(BridgeYear-4<=RebaseYear,0,IF((BridgeYear-4)=(RebaseYear+1),$B$42,E42)) -> 0 | G15: =IF(BridgeYear-3<=RebaseYear,0,IF((BridgeYear-3)=(RebaseYear+1),$B$42,F42)) -> 0 | H15: =IF(BridgeYear-2<=RebaseYear,0,IF((BridgeYear-2)=(RebaseYear+1),$B$42,G42)) -> 0 | I15: =IF(BridgeYear-1<=RebaseYear,0,IF((BridgeYear-1)=(RebaseYear+1),$B$42,H42)) -> 0 | J15: =I42 -> 0 | K15: =J42 -> 0
A16: Cost Driver # 1
A17: Cost Driver # 2
A18: Cost Driver # 3
A19: Cost Driver # 4
A20: etc.
A42: ="Closing Balance"&CHAR(178) -> Closing Balance² | B42: =SUM(B15:B41) -> 0 | C42: 0 | D42: 0 | E42: 0 | F42: 0 | G42: 0 | H42: 0 | I42: 0 | J42: 0 | K42: 0
A44: Notes:
A46: 1 | B46: For each year, a detailed explanation for each cost driver and associated amount is requied in Exhibit 4.
A47: 2 | B47: Opening Balance for "Last Rebasing Year" (cell B15) should be equal to the OEB-Approved amount. For purposes of assessing incremental cost drivers, the closing balance for each year becomes the opening balance for the next year.
A48: 3 | B48: If it has been more than four years since the applicant last filed a cost of service application, additional years of historical actuals should be incorporated into the table, as necessary, to go back to the last cost of service application. If the applicant last filed a cost of service application less than four years ago, a minimum of three years of actual information is required.

Sheet App.2-JC_OMA Programs
L1: File Number: | M1: =EBNUMBER -> 0
L2: Exhibit:
L3: Tab:
L4: Schedule:
L5: Page:
L7: Date:
A9: Appendix 2-JC
A10: OM&A Programs Table
A13: Programs | B13: ="Last Rebasing Year (" & RebaseYear & " OEB-Approved)" -> Last Rebasing Year (2014 OEB-Approved) | C13: ="Last Rebasing Year (" & RebaseYear & " Actuals)" -> Last Rebasing Year (2014 Actuals) | D13: =BridgeYear-7&" Actuals" -> 2013 Actuals | E13: =BridgeYear-6&" Actuals" -> 2014 Actuals | F13: =BridgeYear-5&" Actuals" -> 2015 Actuals | G13: =BridgeYear-4&" Actuals" -> 2016 Actuals | H13: =BridgeYear-3&" Actuals" -> 2017 Actuals | I13: =BridgeYear -2 & " Actuals" -> 2018 Actuals | J13: =BridgeYear -1 & " Actuals" -> 2019 Actuals | K13: =BridgeYear & " Bridge Year" -> 2020 Bridge Year | L13: =TestYear & " Test Year" -> 2021 Test Year | M13: ="Variance (Test Year vs. " & J13 &")" -> Variance (Test Year vs. 2019 Actuals) | N13: ="Variance (Test Year vs. " & B13 -> Variance (Test Year vs. Last Rebasing Year (2014 OEB-Approved)
A14: Reporting Basis
A15: Program Name #1
M16: =L16-J16 -> 0 | N16: =L16-B16 -> 0
M17: =L17-J17 -> 0 | N17: 0
M18: 0 | N18: 0
M19: 0 | N19: 0
M20: 0 | N20: 0
A21: Sub-Total | B21: =SUM(B16:B20) -> 0 | C21: =SUM(C16:C20) -> 0 | D21: 0 | E21: 0 | F21: 0 | G21: 0 | H21: 0 | I21: 0 | J21: 0 | K21: 0 | L21: 0 | M21: 0 | N21: 0
A22: Program Name #2
M23: 0 | N23: =L23-B23 -> 0
M24: 0 | N24: 0
M25: 0 | N25: 0
M26: 0 | N26: 0
M27: 0 | N27: 0
A28: Sub-Total | B28: =SUM(B23:B27) -> 0 | C28: 0 | D28: 0 | E28: 0 | F28: 0 | G28: 0 | H28: 0 | I28: 0 | J28: 0 | K28: 0 | L28: 0 | M28: 0 | N28: 0
A29: Program Name #3
M30: 0 | N30: =L30-B30 -> 0
M31: 0 | N31: 0
M32: 0 | N32: 0
M33: 0 | N33: 0
M34: 0 | N34: 0
A35: Sub-Total | B35: =SUM(B30:B34) -> 0 | C35: 0 | D35: 0 | E35: 0 | F35: 0 | G35: 0 | H35: 0 | I35: 0 | J35: 0 | K35: 0 | L35: 0 | M35: 0 | N35: 0
A36: Program Name #4
M37: 0 | N37: =L37-B37 -> 0
M38: 0 | N38: 0
M39: 0 | N39: 0
M40: 0 | N40: 0
M41: 0 | N41: 0
A42: Sub-Total | B42: =SUM(B37:B41) -> 0 | C42: 0 | D42: 0 | E42: 0 | F42: 0 | G42: 0 | H42: 0 | I42: 0 | J42: 0 | K42: 0 | L42: 0 | M42: 0 | N42: 0
A43: Program Name #5
M44: =L44-J44 -> 0 | N44: =L44-B44 -> 0
M45: 0 | N45: 0
M46: 0 | N46: 0
M47: 0 | N47: 0
M48: 0 | N48: 0
A49: Sub-Total | B49: =SUM(B44:B48) -> 0 | C49: 0 | D49: 0 | E49: 0 | F49: 0 | G49: 0 | H49: 0 | I49: 0 | J49: 0 | K49: 0 | L49: 0 | M49: 0 | N49: 0
A50: Miscellaneous | M50: 0 | N50: 0
A51: Total | B51: =SUMPRODUCT(--($A15:$A50="Sub-Total"), B$15:B$50)+B50 -> 0 | C51: 0 | D51: 0 | E51: 0 | F51: 0 | G51: 0 | H51: 0 | I51: 0 | J51: 0 | K51: 0 | L51: 0 | M51: =L51-J51 -> 0 | N51: 0
A53: Notes:
A55: 1 Please provide a breakdown of the major components of each OM&A Program undertaken in each year. Please ensure that all programs below the materiality threshold are included in the miscellaneous line. Add more Programs as required.
A56: 2 The applicant should group projects appropriately and avoid presentations that result in classification of significant components of the OM&A budget in the miscellaneous category

Sheet App.2-K_Employee Costs
Y1: File Number: | Z1: =EBNUMBER -> 0
Y2: Exhibit:
Y3: Tab:
A4: TO BE UPDATED AT THE DRAFT RATE ORDER STAGE | Y4: Schedule:
Y5: Page:
Y7: Date:
A9: Appendix 2-K
A10: Employee Costs
